Workbook

Sheet العمليات
A1: =الطباعة!A2 -> 1 | C1: الرصيد | D1: الرتبه | E1: التاريخ | F1: كود الموظف | G1: كود المنتج | H1: الكميه | I1: اسم الصنف | J1: اسم الموظف | K1: السعر | L1: g | M1: كرتين | N1: عبوات | P1: 1 | Q1: 2018-12-03
B2: =IF(F2="","",IF(COUNTIF(F$2:$F2,F2)-1=0,ROWS(F$2:$F2),"r")) -> 1 | C2: =IF(G2="","",IF(COUNTIF($G$2:G2,G2)-1=0,ROWS($G$2:G2),"r")) ->  | D2: =IF($A$1=F2,COUNTIF($F$2:F2,F2),"") -> 1 | E2: 2018-12-02 | F2: 1 | H2: 54 | I2: =IF(G2<>"",VLOOKUP(G2,التكويد!$A$1:$D$201,2,0),"") ->  | J2: =IF(F2<>"",VLOOKUP(F2,الموظفين!$A$2:$B$2006,2,0),"") -> عميل1 | K2: =IF(G2<>"",VLOOKUP(G2,التكويد!$A$1:$D$201,4,0)*H2,"") ->  | L2: =IF(H2="","",IF(H2<0,"منصرف",IF(H2>0,"بيع"))) -> بيع | M2: =IF(G2<>"",VLOOKUP(G2,الرصيد!$F$2:$L$1160,6,0),"") ->  | N2: =IF(G2<>"",VLOOKUP(G2,الرصيد!$F$2:$L$1160,7,0),"") ->  | Q2: 2018-12-02 | R2: من
B3: =IF(F3="","",IF(COUNTIF(F$2:$F3,F3)-1=0,ROWS(F$2:$F3),"r")) -> r | C3: =IF(G3="","",IF(COUNTIF($G$2:G3,G3)-1=0,ROWS($G$2:G3),"r")) -> 2 | D3: =IF($A$1=F3,COUNTIF($F$2:F3,F3),"") -> 2 | E3: 2018-12-02 | F3: 1 | G3: 102 | H3: 27 | I3: =IF(G3<>"",VLOOKUP(G3,التكويد!$A$1:$D$201,2,0),"") -> صنف2 | J3: =IF(F3<>"",VLOOKUP(F3,الموظفين!$A$2:$B$2006,2,0),"") -> عميل1 | K3: =IF(G3<>"",VLOOKUP(G3,التكويد!$A$1:$D$201,4,0)*H3,"") -> 303.75 | L3: =IF(H3="","",IF(H3<0,"منصرف",IF(H3>0,"بيع"))) -> بيع | M3: =IF(G3<>"",VLOOKUP(G3,الرصيد!$F$2:$L$1160,6,0),"") -> 17 | N3: =IF(G3<>"",VLOOKUP(G3,الرصيد!$F$2:$L$1160,7,0),"") -> 9 | Q3: 2018-12-04 | R3: الي
B4: =IF(F4="","",IF(COUNTIF(F$2:$F4,F4)-1=0,ROWS(F$2:$F4),"r")) -> r | C4: =IF(G4="","",IF(COUNTIF($G$2:G4,G4)-1=0,ROWS($G$2:G4),"r")) -> 3 | D4: =IF($A$1=F4,COUNTIF($F$2:F4,F4),"") -> 3 | E4: 2018-12-02 | F4: 1 | G4: 105 | H4: 27 | I4: =IF(G4<>"",VLOOKUP(G4,التكويد!$A$1:$D$201,2,0),"") -> صنف5 | J4: =IF(F4<>"",VLOOKUP(F4,الموظفين!$A$2:$B$2006,2,0),"") -> عميل1 | K4: =IF(G4<>"",VLOOKUP(G4,التكويد!$A$1:$D$201,4,0)*H4,"") -> 243 | L4: بيع | M4: =IF(G4<>"",VLOOKUP(G4,الرصيد!$F$2:$L$1160,6,0),"") -> 17 | N4: =IF(G4<>"",VLOOKUP(G4,الرصيد!$F$2:$L$1160,7,0),"") -> 9
B5: =IF(F5="","",IF(COUNTIF(F$2:$F5,F5)-1=0,ROWS(F$2:$F5),"r")) -> r | C5: =IF(G5="","",IF(COUNTIF($G$2:G5,G5)-1=0,ROWS($G$2:G5),"r")) -> 4 | D5: =IF($A$1=F5,COUNTIF($F$2:F5,F5),"") -> 4 | E5: 2018-12-02 | F5: 1 | G5: 107 | H5: 81 | I5: =IF(G5<>"",VLOOKUP(G5,التكويد!$A$1:$D$201,2,0),"") -> صنف7 | J5: =IF(F5<>"",VLOOKUP(F5,الموظفين!$A$2:$B$2006,2,0),"") -> عميل1 | K5: =IF(G5<>"",VLOOKUP(G5,التكويد!$A$1:$D$201,4,0)*H5,"") -> 241.785 | L5: بيع | M5: =IF(G5<>"",VLOOKUP(G5,الرصيد!$F$2:$L$1160,6,0),"") -> 17 | N5: =IF(G5<>"",VLOOKUP(G5,الرصيد!$F$2:$L$1160,7,0),"") -> 0 | Q5: =SUMIFS($K$2:$K$1653,$E$2:$E$1653,">="&$Q$2,$E$2:$E$1653,"<="&$Q$3) -> 1518.525
B6: =IF(F6="","",IF(COUNTIF(F$2:$F6,F6)-1=0,ROWS(F$2:$F6),"r")) -> r | C6: =IF(G6="","",IF(COUNTIF($G$2:G6,G6)-1=0,ROWS($G$2:G6),"r")) -> 5 | D6: =IF($A$1=F6,COUNTIF($F$2:F6,F6),"") -> 5 | E6: 2018-12-02 | F6: 1 | G6: 112 | H6: 6 | I6: =IF(G6<>"",VLOOKUP(G6,التكويد!$A$1:$D$201,2,0),"") -> صنف12 | J6: =IF(F6<>"",VLOOKUP(F6,الموظفين!$A$2:$B$2006,2,0),"") -> عميل1 | K6: =IF(G6<>"",VLOOKUP(G6,التكويد!$A$1:$D$201,4,0)*H6,"") -> 19.08 | L6: بيع | M6: =IF(G6<>"",VLOOKUP(G6,الرصيد!$F$2:$L$1160,6,0),"") -> 19 | N6: =IF(G6<>"",VLOOKUP(G6,الرصيد!$F$2:$L$1160,7,0),"") -> 21
B7: =IF(F7="","",IF(COUNTIF(F$2:$F7,F7)-1=0,ROWS(F$2:$F7),"r")) -> r | C7: =IF(G7="","",IF(COUNTIF($G$2:G7,G7)-1=0,ROWS($G$2:G7),"r")) -> 6 | D7: =IF($A$1=F7,COUNTIF($F$2:F7,F7),"") -> 6 | E7: 2018-12-03 | F7: 1 | G7: 110 | H7: 6 | I7: =IF(G7<>"",VLOOKUP(G7,التكويد!$A$1:$D$201,2,0),"") -> صنف10 | J7: =IF(F7<>"",VLOOKUP(F7,الموظفين!$A$2:$B$2006,2,0),"") -> عميل1 | K7: =IF(G7<>"",VLOOKUP(G7,التكويد!$A$1:$D$201,4,0)*H7,"") -> 19.08 | L7: بيع | M7: =IF(G7<>"",VLOOKUP(G7,الرصيد!$F$2:$L$1160,6,0),"") -> 19 | N7: =IF(G7<>"",VLOOKUP(G7,الرصيد!$F$2:$L$1160,7,0),"") -> 21
B8: =IF(F8="","",IF(COUNTIF(F$2:$F8,F8)-1=0,ROWS(F$2:$F8),"r")) -> r | C8: =IF(G8="","",IF(COUNTIF($G$2:G8,G8)-1=0,ROWS($G$2:G8),"r")) -> 7 | D8: =IF($A$1=F8,COUNTIF($F$2:F8,F8),"") -> 7 | E8: 2018-12-03 | F8: 1 | G8: 101 | H8: 6 | I8: =IF(G8<>"",VLOOKUP(G8,التكويد!$A$1:$D$201,2,0),"") -> صنف1 | J8: =IF(F8<>"",VLOOKUP(F8,الموظفين!$A$2:$B$2006,2,0),"") -> عميل1 | K8: =IF(G8<>"",VLOOKUP(G8,التكويد!$A$1:$D$201,4,0)*H8,"") -> 67.5 | L8: بيع | M8: =IF(G8<>"",VLOOKUP(G8,الرصيد!$F$2:$L$1160,6,0),"") -> 39 | N8: =IF(G8<>"",VLOOKUP(G8,الرصيد!$F$2:$L$1160,7,0),"") -> 6
B9: =IF(F9="","",IF(COUNTIF(F$2:$F9,F9)-1=0,ROWS(F$2:$F9),"r")) -> r | C9: =IF(G9="","",IF(COUNTIF($G$2:G9,G9)-1=0,ROWS($G$2:G9),"r")) -> 8 | D9: =IF($A$1=F9,COUNTIF($F$2:F9,F9),"") -> 8 | E9: 2018-12-03 | F9: 1 | G9: 118 | H9: 9 | I9: =IF(G9<>"",VLOOKUP(G9,التكويد!$A$1:$D$201,2,0),"") -> صنف18 | J9: =IF(F9<>"",VLOOKUP(F9,الموظفين!$A$2:$B$2006,2,0),"") -> عميل1 | K9: =IF(G9<>"",VLOOKUP(G9,التكويد!$A$1:$D$201,4,0)*H9,"") -> 14.769 | L9: بيع | M9: =IF(G9<>"",VLOOKUP(G9,الرصيد!$F$2:$L$1160,6,0),"") -> 18 | N9: =IF(G9<>"",VLOOKUP(G9,الرصيد!$F$2:$L$1160,7,0),"") -> 18
B10: =IF(F10="","",IF(COUNTIF(F$2:$F10,F10)-1=0,ROWS(F$2:$F10),"r")) -> r | C10: =IF(G10="","",IF(COUNTIF($G$2:G10,G10)-1=0,ROWS($G$2:G10),"r")) -> 9 | D10: =IF($A$1=F10,COUNTIF($F$2:F10,F10),"") -> 9 | E10: 2018-12-03 | F10: 1 | G10: 115 | H10: 9 | I10: =IF(G10<>"",VLOOKUP(G10,التكويد!$A$1:$D$201,2,0),"") -> صنف15 | J10: =IF(F10<>"",VLOOKUP(F10,الموظفين!$A$2:$B$2006,2,0),"") -> عميل1 | K10: =IF(G10<>"",VLOOKUP(G10,التكويد!$A$1:$D$201,4,0)*H10,"") -> 44.253 | L10: بيع | M10: =IF(G10<>"",VLOOKUP(G10,الرصيد!$F$2:$L$1160,6,0),"") -> 19 | N10: =IF(G10<>"",VLOOKUP(G10,الرصيد!$F$2:$L$1160,7,0),"") -> 3
B11: =IF(F11="","",IF(COUNTIF(F$2:$F11,F11)-1=0,ROWS(F$2:$F11),"r")) -> r | C11: =IF(G11="","",IF(COUNTIF($G$2:G11,G11)-1=0,ROWS($G$2:G11),"r")) -> 10 | D11: =IF($A$1=F11,COUNTIF($F$2:F11,F11),"") -> 10 | E11: 2018-12-03 | F11: 1 | G11: 116 | H11: 9 | I11: =IF(G11<>"",VLOOKUP(G11,التكويد!$A$1:$D$201,2,0),"") -> صنف16 | J11: =IF(F11<>"",VLOOKUP(F11,الموظفين!$A$2:$B$2006,2,0),"") -> عميل1 | K11: =IF(G11<>"",VLOOKUP(G11,التكويد!$A$1:$D$201,4,0)*H11,"") -> 44.253 | L11: بيع | M11: =IF(G11<>"",VLOOKUP(G11,الرصيد!$F$2:$L$1160,6,0),"") -> 19 | N11: =IF(G11<>"",VLOOKUP(G11,الرصيد!$F$2:$L$1160,7,0),"") -> 3
B12: =IF(F12="","",IF(COUNTIF(F$2:$F12,F12)-1=0,ROWS(F$2:$F12),"r")) -> r | C12: =IF(G12="","",IF(COUNTIF($G$2:G12,G12)-1=0,ROWS($G$2:G12),"r")) -> 11 | D12: =IF($A$1=F12,COUNTIF($F$2:F12,F12),"") -> 11 | E12: 2018-12-03 | F12: 1 | G12: 117 | H12: 9 | I12: =IF(G12<>"",VLOOKUP(G12,التكويد!$A$1:$D$201,2,0),"") -> صنف17 | J12: =IF(F12<>"",VLOOKUP(F12,الموظفين!$A$2:$B$2006,2,0),"") -> عميل1 | K12: =IF(G12<>"",VLOOKUP(G12,التكويد!$A$1:$D$201,4,0)*H12,"") -> 14.769 | L12: بيع | M12: =IF(G12<>"",VLOOKUP(G12,الرصيد!$F$2:$L$1160,6,0),"") -> 19 | N12: =IF(G12<>"",VLOOKUP(G12,الرصيد!$F$2:$L$1160,7,0),"") -> 18
B13: =IF(F13="","",IF(COUNTIF(F$2:$F13,F13)-1=0,ROWS(F$2:$F13),"r")) -> r | C13: =IF(G13="","",IF(COUNTIF($G$2:G13,G13)-1=0,ROWS($G$2:G13),"r")) -> r | D13: =IF($A$1=F13,COUNTIF($F$2:F13,F13),"") -> 12 | E13: 2018-12-03 | F13: 1 | G13: 118 | H13: 27 | I13: =IF(G13<>"",VLOOKUP(G13,التكويد!$A$1:$D$201,2,0),"") -> صنف18 | J13: =IF(F13<>"",VLOOKUP(F13,الموظفين!$A$2:$B$2006,2,0),"") -> عميل1 | K13: 85.59 | L13: بيع | M13: =IF(G13<>"",VLOOKUP(G13,الرصيد!$F$2:$L$1160,6,0),"") -> 18 | N13: =IF(G13<>"",VLOOKUP(G13,الرصيد!$F$2:$L$1160,7,0),"") -> 18
B14: =IF(F14="","",IF(COUNTIF(F$2:$F14,F14)-1=0,ROWS(F$2:$F14),"r")) -> r | C14: =IF(G14="","",IF(COUNTIF($G$2:G14,G14)-1=0,ROWS($G$2:G14),"r")) -> 13 | D14: =IF($A$1=F14,COUNTIF($F$2:F14,F14),"") -> 13 | E14: 2018-12-03 | F14: 1 | G14: 119 | H14: 54 | I14: =IF(G14<>"",VLOOKUP(G14,التكويد!$A$1:$D$201,2,0),"") -> صنف19 | J14: =IF(F14<>"",VLOOKUP(F14,الموظفين!$A$2:$B$2006,2,0),"") -> عميل1 | K14: 171.18 | L14: بيع | M14: =IF(G14<>"",VLOOKUP(G14,الرصيد!$F$2:$L$1160,6,0),"") -> 18 | N14: =IF(G14<>"",VLOOKUP(G14,الرصيد!$F$2:$L$1160,7,0),"") -> 0
B15: =IF(F15="","",IF(COUNTIF(F$2:$F15,F15)-1=0,ROWS(F$2:$F15),"r")) -> r | C15: =IF(G15="","",IF(COUNTIF($G$2:G15,G15)-1=0,ROWS($G$2:G15),"r")) -> 14 | D15: =IF($A$1=F15,COUNTIF($F$2:F15,F15),"") -> 14 | E15: 2018-12-03 | F15: 1 | G15: 120 | H15: 25 | I15: =IF(G15<>"",VLOOKUP(G15,التكويد!$A$1:$D$201,2,0),"") -> صنف20 | J15: =IF(F15<>"",VLOOKUP(F15,الموظفين!$A$2:$B$2006,2,0),"") -> عميل1 | K15: =IF(G15<>"",VLOOKUP(G15,التكويد!$A$1:$D$201,4,0)*H15,"") -> 41.025 | L15: بيع | M15: =IF(G15<>"",VLOOKUP(G15,الرصيد!$F$2:$L$1160,6,0),"") -> 19 | N15: =IF(G15<>"",VLOOKUP(G15,الرصيد!$F$2:$L$1160,7,0),"") -> 2
B16: =IF(F16="","",IF(COUNTIF(F$2:$F16,F16)-1=0,ROWS(F$2:$F16),"r")) -> r | C16: =IF(G16="","",IF(COUNTIF($G$2:G16,G16)-1=0,ROWS($G$2:G16),"r")) -> 15 | D16: =IF($A$1=F16,COUNTIF($F$2:F16,F16),"") -> 15 | E16: 2018-12-03 | F16: 1 | G16: 121 | H16: 21 | I16: =IF(G16<>"",VLOOKUP(G16,التكويد!$A$1:$D$201,2,0),"") -> صنف21 | J16: =IF(F16<>"",VLOOKUP(F16,الموظفين!$A$2:$B$2006,2,0),"") -> عميل1 | K16: =IF(G16<>"",VLOOKUP(G16,التكويد!$A$1:$D$201,4,0)*H16,"") -> 28.35 | L16: بيع | M16: =IF(G16<>"",VLOOKUP(G16,الرصيد!$F$2:$L$1160,6,0),"") -> 19 | N16: =IF(G16<>"",VLOOKUP(G16,الرصيد!$F$2:$L$1160,7,0),"") -> 19
B17: =IF(F17="","",IF(COUNTIF(F$2:$F17,F17)-1=0,ROWS(F$2:$F17),"r")) -> r | C17: =IF(G17="","",IF(COUNTIF($G$2:G17,G17)-1=0,ROWS($G$2:G17),"r")) -> 16 | D17: =IF($A$1=F17,COUNTIF($F$2:F17,F17),"") -> 16 | E17: 2018-12-03 | F17: 1 | G17: 123 | H17: 25 | I17: =IF(G17<>"",VLOOKUP(G17,التكويد!$A$1:$D$201,2,0),"") -> صنف23 | J17: =IF(F17<>"",VLOOKUP(F17,الموظفين!$A$2:$B$2006,2,0),"") -> عميل1 | K17: =IF(G17<>"",VLOOKUP(G17,التكويد!$A$1:$D$201,4,0)*H17,"") -> 60.9375 | L17: بيع | M17: =IF(G17<>"",VLOOKUP(G17,الرصيد!$F$2:$L$1160,6,0),"") -> 19 | N17: =IF(G17<>"",VLOOKUP(G17,الرصيد!$F$2:$L$1160,7,0),"") -> 2
B18: =IF(F18="","",IF(COUNTIF(F$2:$F18,F18)-1=0,ROWS(F$2:$F18),"r")) -> r | C18: =IF(G18="","",IF(COUNTIF($G$2:G18,G18)-1=0,ROWS($G$2:G18),"r")) -> 17 | D18: =IF($A$1=F18,COUNTIF($F$2:F18,F18),"") -> 17 | E18: 2018-12-03 | F18: 1 | G18: 124 | H18: 23 | I18: =IF(G18<>"",VLOOKUP(G18,التكويد!$A$1:$D$201,2,0),"") -> صنف24 | J18: =IF(F18<>"",VLOOKUP(F18,الموظفين!$A$2:$B$2006,2,0),"") -> عميل1 | K18: =IF(G18<>"",VLOOKUP(G18,التكويد!$A$1:$D$201,4,0)*H18,"") -> 56.0625 | L18: بيع | M18: =IF(G18<>"",VLOOKUP(G18,الرصيد!$F$2:$L$1160,6,0),"") -> 19 | N18: =IF(G18<>"",VLOOKUP(G18,الرصيد!$F$2:$L$1160,7,0),"") -> 4
B19: =IF(F19="","",IF(COUNTIF(F$2:$F19,F19)-1=0,ROWS(F$2:$F19),"r")) -> r | C19: =IF(G19="","",IF(COUNTIF($G$2:G19,G19)-1=0,ROWS($G$2:G19),"r")) -> 18 | D19: =IF($A$1=F19,COUNTIF($F$2:F19,F19),"") -> 18 | E19: 2018-12-03 | F19: 1 | G19: 125 | H19: 12 | I19: =IF(G19<>"",VLOOKUP(G19,التكويد!$A$1:$D$201,2,0),"") -> صنف25 | J19: =IF(F19<>"",VLOOKUP(F19,الموظفين!$A$2:$B$2006,2,0),"") -> عميل1 | K19: =IF(G19<>"",VLOOKUP(G19,التكويد!$A$1:$D$201,4,0)*H19,"") -> 29.25 | L19: بيع | M19: =IF(G19<>"",VLOOKUP(G19,الرصيد!$F$2:$L$1160,6,0),"") -> 19 | N19: =IF(G19<>"",VLOOKUP(G19,الرصيد!$F$2:$L$1160,7,0),"") -> 15
B20: =IF(F20="","",IF(COUNTIF(F$2:$F20,F20)-1=0,ROWS(F$2:$F20),"r")) -> r | C20: =IF(G20="","",IF(COUNTIF($G$2:G20,G20)-1=0,ROWS($G$2:G20),"r")) -> 19 | D20: =IF($A$1=F20,COUNTIF($F$2:F20,F20),"") -> 19 | E20: 2018-12-03 | F20: 1 | G20: 126 | H20: 13 | I20: =IF(G20<>"",VLOOKUP(G20,التكويد!$A$1:$D$201,2,0),"") -> صنف26 | J20: =IF(F20<>"",VLOOKUP(F20,الموظفين!$A$2:$B$2006,2,0),"") -> عميل1 | K20: =IF(G20<>"",VLOOKUP(G20,التكويد!$A$1:$D$201,4,0)*H20,"") -> 33.891 | L20: بيع | M20: =IF(G20<>"",VLOOKUP(G20,الرصيد!$F$2:$L$1160,6,0),"") -> 19 | N20: =IF(G20<>"",VLOOKUP(G20,الرصيد!$F$2:$L$1160,7,0),"") -> 14
B21: =IF(F21="","",IF(COUNTIF(F$2:$F21,F21)-1=0,ROWS(F$2:$F21),"r")) ->  | C21: =IF(G21="","",IF(COUNTIF($G$2:G21,G21)-1=0,ROWS($G$2:G21),"r")) ->  | D21: =IF($A$1=F21,COUNTIF($F$2:F21,F21),"") ->  | I21: =IF(G21<>"",VLOOKUP(G21,التكويد!$A$1:$D$201,2,0),"") ->  | J21: =IF(F21<>"",VLOOKUP(F21,الموظفين!$A$2:$B$2006,2,0),"") ->  | K21: =IF(G21<>"",VLOOKUP(G21,التكويد!$A$1:$D$201,4,0)*H21,"") ->  | M21: =IF(G21<>"",VLOOKUP(G21,الرصيد!$F$2:$L$1160,6,0),"") ->  | N21: =IF(G21<>"",VLOOKUP(G21,الرصيد!$F$2:$L$1160,7,0),"") -> 
B22: =IF(F22="","",IF(COUNTIF(F$2:$F22,F22)-1=0,ROWS(F$2:$F22),"r")) ->  | C22: =IF(G22="","",IF(COUNTIF($G$2:G22,G22)-1=0,ROWS($G$2:G22),"r")) ->  | D22: =IF($A$1=F22,COUNTIF($F$2:F22,F22),"") ->  | I22: =IF(G22<>"",VLOOKUP(G22,التكويد!$A$1:$D$201,2,0),"") ->  | J22: =IF(F22<>"",VLOOKUP(F22,الموظفين!$A$2:$B$2006,2,0),"") ->  | K22: =IF(G22<>"",VLOOKUP(G22,التكويد!$A$1:$D$201,4,0)*H22,"") ->  | M22: =IF(G22<>"",VLOOKUP(G22,الرصيد!$F$2:$L$1160,6,0),"") ->  | N22: =IF(G22<>"",VLOOKUP(G22,الرصيد!$F$2:$L$1160,7,0),"") -> 
B23: =IF(F23="","",IF(COUNTIF(F$2:$F23,F23)-1=0,ROWS(F$2:$F23),"r")) ->  | C23: =IF(G23="","",IF(COUNTIF($G$2:G23,G23)-1=0,ROWS($G$2:G23),"r")) ->  | D23: =IF($A$1=F23,COUNTIF($F$2:F23,F23),"") ->  | I23: =IF(G23<>"",VLOOKUP(G23,التكويد!$A$1:$D$201,2,0),"") ->  | J23: =IF(F23<>"",VLOOKUP(F23,الموظفين!$A$2:$B$2006,2,0),"") ->  | K23: =IF(G23<>"",VLOOKUP(G23,التكويد!$A$1:$D$201,4,0)*H23,"") ->  | M23: =IF(G23<>"",VLOOKUP(G23,الرصيد!$F$2:$L$1160,6,0),"") ->  | N23: =IF(G23<>"",VLOOKUP(G23,الرصيد!$F$2:$L$1160,7,0),"") -> 
B24: =IF(F24="","",IF(COUNTIF(F$2:$F24,F24)-1=0,ROWS(F$2:$F24),"r")) ->  | C24: =IF(G24="","",IF(COUNTIF($G$2:G24,G24)-1=0,ROWS($G$2:G24),"r")) ->  | D24: =IF($A$1=F24,COUNTIF($F$2:F24,F24),"") ->  | I24: =IF(G24<>"",VLOOKUP(G24,التكويد!$A$1:$D$201,2,0),"") ->  | J24: =IF(F24<>"",VLOOKUP(F24,الموظفين!$A$2:$B$2006,2,0),"") ->  | K24: =IF(G24<>"",VLOOKUP(G24,التكويد!$A$1:$D$201,4,0)*H24,"") ->  | M24: =IF(G24<>"",VLOOKUP(G24,الرصيد!$F$2:$L$1160,6,0),"") ->  | N24: =IF(G24<>"",VLOOKUP(G24,الرصيد!$F$2:$L$1160,7,0),"") -> 
B25: =IF(F25="","",IF(COUNTIF(F$2:$F25,F25)-1=0,ROWS(F$2:$F25),"r")) ->  | C25: =IF(G25="","",IF(COUNTIF($G$2:G25,G25)-1=0,ROWS($G$2:G25),"r")) ->  | D25: =IF($A$1=F25,COUNTIF($F$2:F25,F25),"") ->  | I25: =IF(G25<>"",VLOOKUP(G25,التكويد!$A$1:$D$201,2,0),"") ->  | J25: =IF(F25<>"",VLOOKUP(F25,الموظفين!$A$2:$B$2006,2,0),"") ->  | K25: =IF(G25<>"",VLOOKUP(G25,التكويد!$A$1:$D$201,4,0)*H25,"") ->  | M25: =IF(G25<>"",VLOOKUP(G25,الرصيد!$F$2:$L$1160,6,0),"") ->  | N25: =IF(G25<>"",VLOOKUP(G25,الرصيد!$F$2:$L$1160,7,0),"") -> 
B26: =IF(F26="","",IF(COUNTIF(F$2:$F26,F26)-1=0,ROWS(F$2:$F26),"r")) ->  | C26: =IF(G26="","",IF(COUNTIF($G$2:G26,G26)-1=0,ROWS($G$2:G26),"r")) ->  | D26: =IF($A$1=F26,COUNTIF($F$2:F26,F26),"") ->  | I26: =IF(G26<>"",VLOOKUP(G26,التكويد!$A$1:$D$201,2,0),"") ->  | J26: =IF(F26<>"",VLOOKUP(F26,الموظفين!$A$2:$B$2006,2,0),"") ->  | K26: =IF(G26<>"",VLOOKUP(G26,التكويد!$A$1:$D$201,4,0)*H26,"") ->  | M26: =IF(G26<>"",VLOOKUP(G26,الرصيد!$F$2:$L$1160,6,0),"") ->  | N26: =IF(G26<>"",VLOOKUP(G26,الرصيد!$F$2:$L$1160,7,0),"") -> 
B27: =IF(F27="","",IF(COUNTIF(F$2:$F27,F27)-1=0,ROWS(F$2:$F27),"r")) ->  | C27: =IF(G27="","",IF(COUNTIF($G$2:G27,G27)-1=0,ROWS($G$2:G27),"r")) ->  | D27: =IF($A$1=F27,COUNTIF($F$2:F27,F27),"") ->  | I27: =IF(G27<>"",VLOOKUP(G27,التكويد!$A$1:$D$201,2,0),"") ->  | J27: =IF(F27<>"",VLOOKUP(F27,الموظفين!$A$2:$B$2006,2,0),"") ->  | K27: =IF(G27<>"",VLOOKUP(G27,التكويد!$A$1:$D$201,4,0)*H27,"") ->  | M27: =IF(G27<>"",VLOOKUP(G27,الرصيد!$F$2:$L$1160,6,0),"") ->  | N27: =IF(G27<>"",VLOOKUP(G27,الرصيد!$F$2:$L$1160,7,0),"") -> 
B28: =IF(F28="","",IF(COUNTIF(F$2:$F28,F28)-1=0,ROWS(F$2:$F28),"r")) ->  | C28: =IF(G28="","",IF(COUNTIF($G$2:G28,G28)-1=0,ROWS($G$2:G28),"r")) ->  | D28: =IF($A$1=F28,COUNTIF($F$2:F28,F28),"") ->  | I28: =IF(G28<>"",VLOOKUP(G28,التكويد!$A$1:$D$201,2,0),"") ->  | J28: =IF(F28<>"",VLOOKUP(F28,الموظفين!$A$2:$B$2006,2,0),"") ->  | K28: =IF(G28<>"",VLOOKUP(G28,التكويد!$A$1:$D$201,4,0)*H28,"") ->  | M28: =IF(G28<>"",VLOOKUP(G28,الرصيد!$F$2:$L$1160,6,0),"") ->  | N28: =IF(G28<>"",VLOOKUP(G28,الرصيد!$F$2:$L$1160,7,0),"") -> 
B29: =IF(F29="","",IF(COUNTIF(F$2:$F29,F29)-1=0,ROWS(F$2:$F29),"r")) ->  | C29: =IF(G29="","",IF(COUNTIF($G$2:G29,G29)-1=0,ROWS($G$2:G29),"r")) ->  | D29: =IF($A$1=F29,COUNTIF($F$2:F29,F29),"") ->  | I29: =IF(G29<>"",VLOOKUP(G29,التكويد!$A$1:$D$201,2,0),"") ->  | J29: =IF(F29<>"",VLOOKUP(F29,الموظفين!$A$2:$B$2006,2,0),"") ->  | K29: =IF(G29<>"",VLOOKUP(G29,التكويد!$A$1:$D$201,4,0)*H29,"") ->  | M29: =IF(G29<>"",VLOOKUP(G29,الرصيد!$F$2:$L$1160,6,0),"") ->  | N29: =IF(G29<>"",VLOOKUP(G29,الرصيد!$F$2:$L$1160,7,0),"") -> 
B30: =IF(F30="","",IF(COUNTIF(F$2:$F30,F30)-1=0,ROWS(F$2:$F30),"r")) ->  | C30: =IF(G30="","",IF(COUNTIF($G$2:G30,G30)-1=0,ROWS($G$2:G30),"r")) ->  | D30: =IF($A$1=F30,COUNTIF($F$2:F30,F30),"") ->  | I30: =IF(G30<>"",VLOOKUP(G30,التكويد!$A$1:$D$201,2,0),"") ->  | J30: =IF(F30<>"",VLOOKUP(F30,الموظفين!$A$2:$B$2006,2,0),"") ->  | K30: =IF(G30<>"",VLOOKUP(G30,التكويد!$A$1:$D$201,4,0)*H30,"") ->  | M30: =IF(G30<>"",VLOOKUP(G30,الرصيد!$F$2:$L$1160,6,0),"") ->  | N30: =IF(G30<>"",VLOOKUP(G30,الرصيد!$F$2:$L$1160,7,0),"") -> 
B31: =IF(F31="","",IF(COUNTIF(F$2:$F31,F31)-1=0,ROWS(F$2:$F31),"r")) ->  | C31: =IF(G31="","",IF(COUNTIF($G$2:G31,G31)-1=0,ROWS($G$2:G31),"r")) ->  | D31: =IF($A$1=F31,COUNTIF($F$2:F31,F31),"") ->  | I31: =IF(G31<>"",VLOOKUP(G31,التكويد!$A$1:$D$201,2,0),"") ->  | J31: =IF(F31<>"",VLOOKUP(F31,الموظفين!$A$2:$B$2006,2,0),"") ->  | K31: =IF(G31<>"",VLOOKUP(G31,التكويد!$A$1:$D$201,4,0)*H31,"") ->  | M31: =IF(G31<>"",VLOOKUP(G31,الرصيد!$F$2:$L$1160,6,0),"") ->  | N31: =IF(G31<>"",VLOOKUP(G31,الرصيد!$F$2:$L$1160,7,0),"") -> 
B32: =IF(F32="","",IF(COUNTIF(F$2:$F32,F32)-1=0,ROWS(F$2:$F32),"r")) ->  | C32: =IF(G32="","",IF(COUNTIF($G$2:G32,G32)-1=0,ROWS($G$2:G32),"r")) ->  | D32: =IF($A$1=F32,COUNTIF($F$2:F32,F32),"") ->  | I32: =IF(G32<>"",VLOOKUP(G32,التكويد!$A$1:$D$201,2,0),"") ->  | J32: =IF(F32<>"",VLOOKUP(F32,الموظفين!$A$2:$B$2006,2,0),"") ->  | K32: =IF(G32<>"",VLOOKUP(G32,التكويد!$A$1:$D$201,4,0)*H32,"") ->  | M32: =IF(G32<>"",VLOOKUP(G32,الرصيد!$F$2:$L$1160,6,0),"") ->  | N32: =IF(G32<>"",VLOOKUP(G32,الرصيد!$F$2:$L$1160,7,0),"") -> 
B33: =IF(F33="","",IF(COUNTIF(F$2:$F33,F33)-1=0,ROWS(F$2:$F33),"r")) ->  | C33: =IF(G33="","",IF(COUNTIF($G$2:G33,G33)-1=0,ROWS($G$2:G33),"r")) ->  | D33: =IF($A$1=F33,COUNTIF($F$2:F33,F33),"") ->  | I33: =IF(G33<>"",VLOOKUP(G33,التكويد!$A$1:$D$201,2,0),"") ->  | J33: =IF(F33<>"",VLOOKUP(F33,الموظفين!$A$2:$B$2006,2,0),"") ->  | K33: =IF(G33<>"",VLOOKUP(G33,التكويد!$A$1:$D$201,4,0)*H33,"") ->  | M33: =IF(G33<>"",VLOOKUP(G33,الرصيد!$F$2:$L$1160,6,0),"") ->  | N33: =IF(G33<>"",VLOOKUP(G33,الرصيد!$F$2:$L$1160,7,0),"") -> 
B34: =IF(F34="","",IF(COUNTIF(F$2:$F34,F34)-1=0,ROWS(F$2:$F34),"r")) ->  | C34: =IF(G34="","",IF(COUNTIF($G$2:G34,G34)-1=0,ROWS($G$2:G34),"r")) ->  | D34: =IF($A$1=F34,COUNTIF($F$2:F34,F34),"") ->  | I34: =IF(G34<>"",VLOOKUP(G34,التكويد!$A$1:$D$201,2,0),"") ->  | J34: =IF(F34<>"",VLOOKUP(F34,الموظفين!$A$2:$B$2006,2,0),"") ->  | K34: =IF(G34<>"",VLOOKUP(G34,التكويد!$A$1:$D$201,4,0)*H34,"") ->  | M34: =IF(G34<>"",VLOOKUP(G34,الرصيد!$F$2:$L$1160,6,0),"") ->  | N34: =IF(G34<>"",VLOOKUP(G34,الرصيد!$F$2:$L$1160,7,0),"") -> 
B35: =IF(F35="","",IF(COUNTIF(F$2:$F35,F35)-1=0,ROWS(F$2:$F35),"r")) ->  | C35: =IF(G35="","",IF(COUNTIF($G$2:G35,G35)-1=0,ROWS($G$2:G35),"r")) ->  | D35: =IF($A$1=F35,COUNTIF($F$2:F35,F35),"") ->  | I35: =IF(G35<>"",VLOOKUP(G35,التكويد!$A$1:$D$201,2,0),"") ->  | J35: =IF(F35<>"",VLOOKUP(F35,الموظفين!$A$2:$B$2006,2,0),"") ->  | K35: =IF(G35<>"",VLOOKUP(G35,التكويد!$A$1:$D$201,4,0)*H35,"") ->  | M35: =IF(G35<>"",VLOOKUP(G35,الرصيد!$F$2:$L$1160,6,0),"") ->  | N35: =IF(G35<>"",VLOOKUP(G35,الرصيد!$F$2:$L$1160,7,0),"") -> 
B36: =IF(F36="","",IF(COUNTIF(F$2:$F36,F36)-1=0,ROWS(F$2:$F36),"r")) ->  | C36: =IF(G36="","",IF(COUNTIF($G$2:G36,G36)-1=0,ROWS($G$2:G36),"r")) ->  | D36: =IF($A$1=F36,COUNTIF($F$2:F36,F36),"") ->  | I36: =IF(G36<>"",VLOOKUP(G36,التكويد!$A$1:$D$201,2,0),"") ->  | J36: =IF(F36<>"",VLOOKUP(F36,الموظفين!$A$2:$B$2006,2,0),"") ->  | K36: =IF(G36<>"",VLOOKUP(G36,التكويد!$A$1:$D$201,4,0)*H36,"") ->  | M36: =IF(G36<>"",VLOOKUP(G36,الرصيد!$F$2:$L$1160,6,0),"") ->  | N36: =IF(G36<>"",VLOOKUP(G36,الرصيد!$F$2:$L$1160,7,0),"") -> 
B37: =IF(F37="","",IF(COUNTIF(F$2:$F37,F37)-1=0,ROWS(F$2:$F37),"r")) ->  | C37: =IF(G37="","",IF(COUNTIF($G$2:G37,G37)-1=0,ROWS($G$2:G37),"r")) ->  | D37: =IF($A$1=F37,COUNTIF($F$2:F37,F37),"") ->  | I37: =IF(G37<>"",VLOOKUP(G37,التكويد!$A$1:$D$201,2,0),"") ->  | J37: =IF(F37<>"",VLOOKUP(F37,الموظفين!$A$2:$B$2006,2,0),"") ->  | K37: =IF(G37<>"",VLOOKUP(G37,التكويد!$A$1:$D$201,4,0)*H37,"") ->  | M37: =IF(G37<>"",VLOOKUP(G37,الرصيد!$F$2:$L$1160,6,0),"") ->  | N37: =IF(G37<>"",VLOOKUP(G37,الرصيد!$F$2:$L$1160,7,0),"") -> 
B38: =IF(F38="","",IF(COUNTIF(F$2:$F38,F38)-1=0,ROWS(F$2:$F38),"r")) ->  | C38: =IF(G38="","",IF(COUNTIF($G$2:G38,G38)-1=0,ROWS($G$2:G38),"r")) ->  | D38: =IF($A$1=F38,COUNTIF($F$2:F38,F38),"") ->  | I38: =IF(G38<>"",VLOOKUP(G38,التكويد!$A$1:$D$201,2,0),"") ->  | J38: =IF(F38<>"",VLOOKUP(F38,الموظفين!$A$2:$B$2006,2,0),"") ->  | K38: =IF(G38<>"",VLOOKUP(G38,التكويد!$A$1:$D$201,4,0)*H38,"") ->  | M38: =IF(G38<>"",VLOOKUP(G38,الرصيد!$F$2:$L$1160,6,0),"") ->  | N38: =IF(G38<>"",VLOOKUP(G38,الرصيد!$F$2:$L$1160,7,0),"") -> 
B39: =IF(F39="","",IF(COUNTIF(F$2:$F39,F39)-1=0,ROWS(F$2:$F39),"r")) ->  | C39: =IF(G39="","",IF(COUNTIF($G$2:G39,G39)-1=0,ROWS($G$2:G39),"r")) ->  | D39: =IF($A$1=F39,COUNTIF($F$2:F39,F39),"") ->  | I39: =IF(G39<>"",VLOOKUP(G39,التكويد!$A$1:$D$201,2,0),"") ->  | J39: =IF(F39<>"",VLOOKUP(F39,الموظفين!$A$2:$B$2006,2,0),"") ->  | K39: =IF(G39<>"",VLOOKUP(G39,التكويد!$A$1:$D$201,4,0)*H39,"") ->  | M39: =IF(G39<>"",VLOOKUP(G39,الرصيد!$F$2:$L$1160,6,0),"") ->  | N39: =IF(G39<>"",VLOOKUP(G39,الرصيد!$F$2:$L$1160,7,0),"") -> 
B40: =IF(F40="","",IF(COUNTIF(F$2:$F40,F40)-1=0,ROWS(F$2:$F40),"r")) ->  | C40: =IF(G40="","",IF(COUNTIF($G$2:G40,G40)-1=0,ROWS($G$2:G40),"r")) ->  | D40: =IF($A$1=F40,COUNTIF($F$2:F40,F40),"") ->  | I40: =IF(G40<>"",VLOOKUP(G40,التكويد!$A$1:$D$201,2,0),"") ->  | J40: =IF(F40<>"",VLOOKUP(F40,الموظفين!$A$2:$B$2006,2,0),"") ->  | K40: =IF(G40<>"",VLOOKUP(G40,التكويد!$A$1:$D$201,4,0)*H40,"") ->  | M40: =IF(G40<>"",VLOOKUP(G40,الرصيد!$F$2:$L$1160,6,0),"") ->  | N40: =IF(G40<>"",VLOOKUP(G40,الرصيد!$F$2:$L$1160,7,0),"") -> 
B41: =IF(F41="","",IF(COUNTIF(F$2:$F41,F41)-1=0,ROWS(F$2:$F41),"r")) ->  | C41: =IF(G41="","",IF(COUNTIF($G$2:G41,G41)-1=0,ROWS($G$2:G41),"r")) ->  | D41: =IF($A$1=F41,COUNTIF($F$2:F41,F41),"") ->  | I41: =IF(G41<>"",VLOOKUP(G41,التكويد!$A$1:$D$201,2,0),"") ->  | J41: =IF(F41<>"",VLOOKUP(F41,الموظفين!$A$2:$B$2006,2,0),"") ->  | K41: =IF(G41<>"",VLOOKUP(G41,التكويد!$A$1:$D$201,4,0)*H41,"") ->  | M41: =IF(G41<>"",VLOOKUP(G41,الرصيد!$F$2:$L$1160,6,0),"") ->  | N41: =IF(G41<>"",VLOOKUP(G41,الرصيد!$F$2:$L$1160,7,0),"") -> 
B42: =IF(F42="","",IF(COUNTIF(F$2:$F42,F42)-1=0,ROWS(F$2:$F42),"r")) ->  | C42: =IF(G42="","",IF(COUNTIF($G$2:G42,G42)-1=0,ROWS($G$2:G42),"r")) ->  | D42: =IF($A$1=F42,COUNTIF($F$2:F42,F42),"") ->  | I42: =IF(G42<>"",VLOOKUP(G42,التكويد!$A$1:$D$201,2,0),"") ->  | J42: =IF(F42<>"",VLOOKUP(F42,الموظفين!$A$2:$B$2006,2,0),"") ->  | K42: =IF(G42<>"",VLOOKUP(G42,التكويد!$A$1:$D$201,4,0)*H42,"") ->  | M42: =IF(G42<>"",VLOOKUP(G42,الرصيد!$F$2:$L$1160,6,0),"") ->  | N42: =IF(G42<>"",VLOOKUP(G42,الرصيد!$F$2:$L$1160,7,0),"") -> 
B43: =IF(F43="","",IF(COUNTIF(F$2:$F43,F43)-1=0,ROWS(F$2:$F43),"r")) ->  | C43: =IF(G43="","",IF(COUNTIF($G$2:G43,G43)-1=0,ROWS($G$2:G43),"r")) ->  | D43: =IF($A$1=F43,COUNTIF($F$2:F43,F43),"") ->  | I43: =IF(G43<>"",VLOOKUP(G43,التكويد!$A$1:$D$201,2,0),"") ->  | J43: =IF(F43<>"",VLOOKUP(F43,الموظفين!$A$2:$B$2006,2,0),"") ->  | K43: =IF(G43<>"",VLOOKUP(G43,التكويد!$A$1:$D$201,4,0)*H43,"") ->  | M43: =IF(G43<>"",VLOOKUP(G43,الرصيد!$F$2:$L$1160,6,0),"") ->  | N43: =IF(G43<>"",VLOOKUP(G43,الرصيد!$F$2:$L$1160,7,0),"") -> 
B44: =IF(F44="","",IF(COUNTIF(F$2:$F44,F44)-1=0,ROWS(F$2:$F44),"r")) ->  | C44: =IF(G44="","",IF(COUNTIF($G$2:G44,G44)-1=0,ROWS($G$2:G44),"r")) ->  | D44: =IF($A$1=F44,COUNTIF($F$2:F44,F44),"") ->  | I44: =IF(G44<>"",VLOOKUP(G44,التكويد!$A$1:$D$201,2,0),"") ->  | J44: =IF(F44<>"",VLOOKUP(F44,الموظفين!$A$2:$B$2006,2,0),"") ->  | K44: =IF(G44<>"",VLOOKUP(G44,التكويد!$A$1:$D$201,4,0)*H44,"") ->  | M44: =IF(G44<>"",VLOOKUP(G44,الرصيد!$F$2:$L$1160,6,0),"") ->  | N44: =IF(G44<>"",VLOOKUP(G44,الرصيد!$F$2:$L$1160,7,0),"") -> 
B45: =IF(F45="","",IF(COUNTIF(F$2:$F45,F45)-1=0,ROWS(F$2:$F45),"r")) ->  | C45: =IF(G45="","",IF(COUNTIF($G$2:G45,G45)-1=0,ROWS($G$2:G45),"r")) ->  | D45: =IF($A$1=F45,COUNTIF($F$2:F45,F45),"") ->  | I45: =IF(G45<>"",VLOOKUP(G45,التكويد!$A$1:$D$201,2,0),"") ->  | J45: =IF(F45<>"",VLOOKUP(F45,الموظفين!$A$2:$B$2006,2,0),"") ->  | K45: =IF(G45<>"",VLOOKUP(G45,التكويد!$A$1:$D$201,4,0)*H45,"") ->  | M45: =IF(G45<>"",VLOOKUP(G45,الرصيد!$F$2:$L$1160,6,0),"") ->  | N45: =IF(G45<>"",VLOOKUP(G45,الرصيد!$F$2:$L$1160,7,0),"") -> 
B46: =IF(F46="","",IF(COUNTIF(F$2:$F46,F46)-1=0,ROWS(F$2:$F46),"r")) ->  | C46: =IF(G46="","",IF(COUNTIF($G$2:G46,G46)-1=0,ROWS($G$2:G46),"r")) ->  | D46: =IF($A$1=F46,COUNTIF($F$2:F46,F46),"") ->  | I46: =IF(G46<>"",VLOOKUP(G46,التكويد!$A$1:$D$201,2,0),"") ->  | J46: =IF(F46<>"",VLOOKUP(F46,الموظفين!$A$2:$B$2006,2,0),"") ->  | K46: =IF(G46<>"",VLOOKUP(G46,التكويد!$A$1:$D$201,4,0)*H46,"") ->  | M46: =IF(G46<>"",VLOOKUP(G46,الرصيد!$F$2:$L$1160,6,0),"") ->  | N46: =IF(G46<>"",VLOOKUP(G46,الرصيد!$F$2:$L$1160,7,0),"") -> 
B47: =IF(F47="","",IF(COUNTIF(F$2:$F47,F47)-1=0,ROWS(F$2:$F47),"r")) ->  | C47: =IF(G47="","",IF(COUNTIF($G$2:G47,G47)-1=0,ROWS($G$2:G47),"r")) ->  | D47: =IF($A$1=F47,COUNTIF($F$2:F47,F47),"") ->  | I47: =IF(G47<>"",VLOOKUP(G47,التكويد!$A$1:$D$201,2,0),"") ->  | J47: =IF(F47<>"",VLOOKUP(F47,الموظفين!$A$2:$B$2006,2,0),"") ->  | K47: =IF(G47<>"",VLOOKUP(G47,التكويد!$A$1:$D$201,4,0)*H47,"") ->  | M47: =IF(G47<>"",VLOOKUP(G47,الرصيد!$F$2:$L$1160,6,0),"") ->  | N47: =IF(G47<>"",VLOOKUP(G47,الرصيد!$F$2:$L$1160,7,0),"") -> 
B48: =IF(F48="","",IF(COUNTIF(F$2:$F48,F48)-1=0,ROWS(F$2:$F48),"r")) ->  | C48: =IF(G48="","",IF(COUNTIF($G$2:G48,G48)-1=0,ROWS($G$2:G48),"r")) ->  | D48: =IF($A$1=F48,COUNTIF($F$2:F48,F48),"") ->  | I48: =IF(G48<>"",VLOOKUP(G48,التكويد!$A$1:$D$201,2,0),"") ->  | J48: =IF(F48<>"",VLOOKUP(F48,الموظفين!$A$2:$B$2006,2,0),"") ->  | K48: =IF(G48<>"",VLOOKUP(G48,التكويد!$A$1:$D$201,4,0)*H48,"") ->  | M48: =IF(G48<>"",VLOOKUP(G48,الرصيد!$F$2:$L$1160,6,0),"") ->  | N48: =IF(G48<>"",VLOOKUP(G48,الرصيد!$F$2:$L$1160,7,0),"") -> 
B49: =IF(F49="","",IF(COUNTIF(F$2:$F49,F49)-1=0,ROWS(F$2:$F49),"r")) ->  | C49: =IF(G49="","",IF(COUNTIF($G$2:G49,G49)-1=0,ROWS($G$2:G49),"r")) ->  | D49: =IF($A$1=F49,COUNTIF($F$2:F49,F49),"") ->  | I49: =IF(G49<>"",VLOOKUP(G49,التكويد!$A$1:$D$201,2,0),"") ->  | J49: =IF(F49<>"",VLOOKUP(F49,الموظفين!$A$2:$B$2006,2,0),"") ->  | K49: =IF(G49<>"",VLOOKUP(G49,التكويد!$A$1:$D$201,4,0)*H49,"") ->  | M49: =IF(G49<>"",VLOOKUP(G49,الرصيد!$F$2:$L$1160,6,0),"") ->  | N49: =IF(G49<>"",VLOOKUP(G49,الرصيد!$F$2:$L$1160,7,0),"") -> 
B50: =IF(F50="","",IF(COUNTIF(F$2:$F50,F50)-1=0,ROWS(F$2:$F50),"r")) ->  | C50: =IF(G50="","",IF(COUNTIF($G$2:G50,G50)-1=0,ROWS($G$2:G50),"r")) ->  | D50: =IF($A$1=F50,COUNTIF($F$2:F50,F50),"") ->  | I50: =IF(G50<>"",VLOOKUP(G50,التكويد!$A$1:$D$201,2,0),"") ->  | J50: =IF(F50<>"",VLOOKUP(F50,الموظفين!$A$2:$B$2006,2,0),"") ->  | K50: =IF(G50<>"",VLOOKUP(G50,التكويد!$A$1:$D$201,4,0)*H50,"") ->  | M50: =IF(G50<>"",VLOOKUP(G50,الرصيد!$F$2:$L$1160,6,0),"") ->  | N50: =IF(G50<>"",VLOOKUP(G50,الرصيد!$F$2:$L$1160,7,0),"") -> 
B51: =IF(F51="","",IF(COUNTIF(F$2:$F51,F51)-1=0,ROWS(F$2:$F51),"r")) ->  | C51: =IF(G51="","",IF(COUNTIF($G$2:G51,G51)-1=0,ROWS($G$2:G51),"r")) ->  | D51: =IF($A$1=F51,COUNTIF($F$2:F51,F51),"") ->  | I51: =IF(G51<>"",VLOOKUP(G51,التكويد!$A$1:$D$201,2,0),"") ->  | J51: =IF(F51<>"",VLOOKUP(F51,الموظفين!$A$2:$B$2006,2,0),"") ->  | K51: =IF(G51<>"",VLOOKUP(G51,التكويد!$A$1:$D$201,4,0)*H51,"") ->  | M51: =IF(G51<>"",VLOOKUP(G51,الرصيد!$F$2:$L$1160,6,0),"") ->  | N51: =IF(G51<>"",VLOOKUP(G51,الرصيد!$F$2:$L$1160,7,0),"") -> 
B52: =IF(F52="","",IF(COUNTIF(F$2:$F52,F52)-1=0,ROWS(F$2:$F52),"r")) ->  | C52: =IF(G52="","",IF(COUNTIF($G$2:G52,G52)-1=0,ROWS($G$2:G52),"r")) ->  | D52: =IF($A$1=F52,COUNTIF($F$2:F52,F52),"") ->  | I52: =IF(G52<>"",VLOOKUP(G52,التكويد!$A$1:$D$201,2,0),"") ->  | J52: =IF(F52<>"",VLOOKUP(F52,الموظفين!$A$2:$B$2006,2,0),"") ->  | K52: =IF(G52<>"",VLOOKUP(G52,التكويد!$A$1:$D$201,4,0)*H52,"") ->  | M52: =IF(G52<>"",VLOOKUP(G52,الرصيد!$F$2:$L$1160,6,0),"") ->  | N52: =IF(G52<>"",VLOOKUP(G52,الرصيد!$F$2:$L$1160,7,0),"") -> 
B53: =IF(F53="","",IF(COUNTIF(F$2:$F53,F53)-1=0,ROWS(F$2:$F53),"r")) ->  | C53: =IF(G53="","",IF(COUNTIF($G$2:G53,G53)-1=0,ROWS($G$2:G53),"r")) ->  | D53: =IF($A$1=F53,COUNTIF($F$2:F53,F53),"") ->  | I53: =IF(G53<>"",VLOOKUP(G53,التكويد!$A$1:$D$201,2,0),"") ->  | J53: =IF(F53<>"",VLOOKUP(F53,الموظفين!$A$2:$B$2006,2,0),"") ->  | K53: =IF(G53<>"",VLOOKUP(G53,التكويد!$A$1:$D$201,4,0)*H53,"") ->  | M53: =IF(G53<>"",VLOOKUP(G53,الرصيد!$F$2:$L$1160,6,0),"") ->  | N53: =IF(G53<>"",VLOOKUP(G53,الرصيد!$F$2:$L$1160,7,0),"") -> 
B54: =IF(F54="","",IF(COUNTIF(F$2:$F54,F54)-1=0,ROWS(F$2:$F54),"r")) ->  | C54: =IF(G54="","",IF(COUNTIF($G$2:G54,G54)-1=0,ROWS($G$2:G54),"r")) ->  | D54: =IF($A$1=F54,COUNTIF($F$2:F54,F54),"") ->  | I54: =IF(G54<>"",VLOOKUP(G54,التكويد!$A$1:$D$201,2,0),"") ->  | J54: =IF(F54<>"",VLOOKUP(F54,الموظفين!$A$2:$B$2006,2,0),"") ->  | K54: =IF(G54<>"",VLOOKUP(G54,التكويد!$A$1:$D$201,4,0)*H54,"") ->  | M54: =IF(G54<>"",VLOOKUP(G54,الرصيد!$F$2:$L$1160,6,0),"") ->  | N54: =IF(G54<>"",VLOOKUP(G54,الرصيد!$F$2:$L$1160,7,0),"") -> 
B55: =IF(F55="","",IF(COUNTIF(F$2:$F55,F55)-1=0,ROWS(F$2:$F55),"r")) ->  | C55: =IF(G55="","",IF(COUNTIF($G$2:G55,G55)-1=0,ROWS($G$2:G55),"r")) ->  | D55: =IF($A$1=F55,COUNTIF($F$2:F55,F55),"") ->  | I55: =IF(G55<>"",VLOOKUP(G55,التكويد!$A$1:$D$201,2,0),"") ->  | J55: =IF(F55<>"",VLOOKUP(F55,الموظفين!$A$2:$B$2006,2,0),"") ->  | K55: =IF(G55<>"",VLOOKUP(G55,التكويد!$A$1:$D$201,4,0)*H55,"") ->  | M55: =IF(G55<>"",VLOOKUP(G55,الرصيد!$F$2:$L$1160,6,0),"") ->  | N55: =IF(G55<>"",VLOOKUP(G55,الرصيد!$F$2:$L$1160,7,0),"") -> 
B56: =IF(F56="","",IF(COUNTIF(F$2:$F56,F56)-1=0,ROWS(F$2:$F56),"r")) ->  | C56: =IF(G56="","",IF(COUNTIF($G$2:G56,G56)-1=0,ROWS($G$2:G56),"r")) ->  | D56: =IF($A$1=F56,COUNTIF($F$2:F56,F56),"") ->  | I56: =IF(G56<>"",VLOOKUP(G56,التكويد!$A$1:$D$201,2,0),"") ->  | J56: =IF(F56<>"",VLOOKUP(F56,الموظفين!$A$2:$B$2006,2,0),"") ->  | K56: =IF(G56<>"",VLOOKUP(G56,التكويد!$A$1:$D$201,4,0)*H56,"") ->  | M56: =IF(G56<>"",VLOOKUP(G56,الرصيد!$F$2:$L$1160,6,0),"") ->  | N56: =IF(G56<>"",VLOOKUP(G56,الرصيد!$F$2:$L$1160,7,0),"") -> 
B57: =IF(F57="","",IF(COUNTIF(F$2:$F57,F57)-1=0,ROWS(F$2:$F57),"r")) ->  | C57: =IF(G57="","",IF(COUNTIF($G$2:G57,G57)-1=0,ROWS($G$2:G57),"r")) ->  | D57: =IF($A$1=F57,COUNTIF($F$2:F57,F57),"") ->  | I57: =IF(G57<>"",VLOOKUP(G57,التكويد!$A$1:$D$201,2,0),"") ->  | J57: =IF(F57<>"",VLOOKUP(F57,الموظفين!$A$2:$B$2006,2,0),"") ->  | K57: =IF(G57<>"",VLOOKUP(G57,التكويد!$A$1:$D$201,4,0)*H57,"") ->  | M57: =IF(G57<>"",VLOOKUP(G57,الرصيد!$F$2:$L$1160,6,0),"") ->  | N57: =IF(G57<>"",VLOOKUP(G57,الرصيد!$F$2:$L$1160,7,0),"") -> 
B58: =IF(F58="","",IF(COUNTIF(F$2:$F58,F58)-1=0,ROWS(F$2:$F58),"r")) ->  | C58: =IF(G58="","",IF(COUNTIF($G$2:G58,G58)-1=0,ROWS($G$2:G58),"r")) ->  | D58: =IF($A$1=F58,COUNTIF($F$2:F58,F58),"") ->  | I58: =IF(G58<>"",VLOOKUP(G58,التكويد!$A$1:$D$201,2,0),"") ->  | J58: =IF(F58<>"",VLOOKUP(F58,الموظفين!$A$2:$B$2006,2,0),"") ->  | K58: =IF(G58<>"",VLOOKUP(G58,التكويد!$A$1:$D$201,4,0)*H58,"") ->  | M58: =IF(G58<>"",VLOOKUP(G58,الرصيد!$F$2:$L$1160,6,0),"") ->  | N58: =IF(G58<>"",VLOOKUP(G58,الرصيد!$F$2:$L$1160,7,0),"") -> 
B59: =IF(F59="","",IF(COUNTIF(F$2:$F59,F59)-1=0,ROWS(F$2:$F59),"r")) ->  | C59: =IF(G59="","",IF(COUNTIF($G$2:G59,G59)-1=0,ROWS($G$2:G59),"r")) ->  | D59: =IF($A$1=F59,COUNTIF($F$2:F59,F59),"") ->  | I59: =IF(G59<>"",VLOOKUP(G59,التكويد!$A$1:$D$201,2,0),"") ->  | J59: =IF(F59<>"",VLOOKUP(F59,الموظفين!$A$2:$B$2006,2,0),"") ->  | K59: =IF(G59<>"",VLOOKUP(G59,التكويد!$A$1:$D$201,4,0)*H59,"") ->  | M59: =IF(G59<>"",VLOOKUP(G59,الرصيد!$F$2:$L$1160,6,0),"") ->  | N59: =IF(G59<>"",VLOOKUP(G59,الرصيد!$F$2:$L$1160,7,0),"") -> 
B60: =IF(F60="","",IF(COUNTIF(F$2:$F60,F60)-1=0,ROWS(F$2:$F60),"r")) ->  | C60: =IF(G60="","",IF(COUNTIF($G$2:G60,G60)-1=0,ROWS($G$2:G60),"r")) ->  | D60: =IF($A$1=F60,COUNTIF($F$2:F60,F60),"") ->  | I60: =IF(G60<>"",VLOOKUP(G60,التكويد!$A$1:$D$201,2,0),"") ->  | J60: =IF(F60<>"",VLOOKUP(F60,الموظفين!$A$2:$B$2006,2,0),"") ->  | K60: =IF(G60<>"",VLOOKUP(G60,التكويد!$A$1:$D$201,4,0)*H60,"") ->  | M60: =IF(G60<>"",VLOOKUP(G60,الرصيد!$F$2:$L$1160,6,0),"") ->  | N60: =IF(G60<>"",VLOOKUP(G60,الرصيد!$F$2:$L$1160,7,0),"") -> 
B61: =IF(F61="","",IF(COUNTIF(F$2:$F61,F61)-1=0,ROWS(F$2:$F61),"r")) ->  | C61: =IF(G61="","",IF(COUNTIF($G$2:G61,G61)-1=0,ROWS($G$2:G61),"r")) ->  | D61: =IF($A$1=F61,COUNTIF($F$2:F61,F61),"") ->  | I61: =IF(G61<>"",VLOOKUP(G61,التكويد!$A$1:$D$201,2,0),"") ->  | J61: =IF(F61<>"",VLOOKUP(F61,الموظفين!$A$2:$B$2006,2,0),"") ->  | K61: =IF(G61<>"",VLOOKUP(G61,التكويد!$A$1:$D$201,4,0)*H61,"") ->  | M61: =IF(G61<>"",VLOOKUP(G61,الرصيد!$F$2:$L$1160,6,0),"") ->  | N61: =IF(G61<>"",VLOOKUP(G61,الرصيد!$F$2:$L$1160,7,0),"") -> 
B62: =IF(F62="","",IF(COUNTIF(F$2:$F62,F62)-1=0,ROWS(F$2:$F62),"r")) ->  | C62: =IF(G62="","",IF(COUNTIF($G$2:G62,G62)-1=0,ROWS($G$2:G62),"r")) ->  | D62: =IF($A$1=F62,COUNTIF($F$2:F62,F62),"") ->  | I62: =IF(G62<>"",VLOOKUP(G62,التكويد!$A$1:$D$201,2,0),"") ->  | J62: =IF(F62<>"",VLOOKUP(F62,الموظفين!$A$2:$B$2006,2,0),"") ->  | K62: =IF(G62<>"",VLOOKUP(G62,التكويد!$A$1:$D$201,4,0)*H62,"") ->  | M62: =IF(G62<>"",VLOOKUP(G62,الرصيد!$F$2:$L$1160,6,0),"") ->  | N62: =IF(G62<>"",VLOOKUP(G62,الرصيد!$F$2:$L$1160,7,0),"") -> 
B63: =IF(F63="","",IF(COUNTIF(F$2:$F63,F63)-1=0,ROWS(F$2:$F63),"r")) ->  | C63: =IF(G63="","",IF(COUNTIF($G$2:G63,G63)-1=0,ROWS($G$2:G63),"r")) ->  | D63: =IF($A$1=F63,COUNTIF($F$2:F63,F63),"") ->  | I63: =IF(G63<>"",VLOOKUP(G63,التكويد!$A$1:$D$201,2,0),"") ->  | J63: =IF(F63<>"",VLOOKUP(F63,الموظفين!$A$2:$B$2006,2,0),"") ->  | K63: =IF(G63<>"",VLOOKUP(G63,التكويد!$A$1:$D$201,4,0)*H63,"") ->  | M63: =IF(G63<>"",VLOOKUP(G63,الرصيد!$F$2:$L$1160,6,0),"") ->  | N63: =IF(G63<>"",VLOOKUP(G63,الرصيد!$F$2:$L$1160,7,0),"") -> 
B64: =IF(F64="","",IF(COUNTIF(F$2:$F64,F64)-1=0,ROWS(F$2:$F64),"r")) ->  | C64: =IF(G64="","",IF(COUNTIF($G$2:G64,G64)-1=0,ROWS($G$2:G64),"r")) ->  | D64: =IF($A$1=F64,COUNTIF($F$2:F64,F64),"") ->  | I64: =IF(G64<>"",VLOOKUP(G64,التكويد!$A$1:$D$201,2,0),"") ->  | J64: =IF(F64<>"",VLOOKUP(F64,الموظفين!$A$2:$B$2006,2,0),"") ->  | K64: =IF(G64<>"",VLOOKUP(G64,التكويد!$A$1:$D$201,4,0)*H64,"") ->  | M64: =IF(G64<>"",VLOOKUP(G64,الرصيد!$F$2:$L$1160,6,0),"") ->  | N64: =IF(G64<>"",VLOOKUP(G64,الرصيد!$F$2:$L$1160,7,0),"") -> 
B65: =IF(F65="","",IF(COUNTIF(F$2:$F65,F65)-1=0,ROWS(F$2:$F65),"r")) ->  | C65: =IF(G65="","",IF(COUNTIF($G$2:G65,G65)-1=0,ROWS($G$2:G65),"r")) ->  | D65: =IF($A$1=F65,COUNTIF($F$2:F65,F65),"") ->  | I65: =IF(G65<>"",VLOOKUP(G65,التكويد!$A$1:$D$201,2,0),"") ->  | J65: =IF(F65<>"",VLOOKUP(F65,الموظفين!$A$2:$B$2006,2,0),"") ->  | K65: =IF(G65<>"",VLOOKUP(G65,التكويد!$A$1:$D$201,4,0)*H65,"") ->  | M65: =IF(G65<>"",VLOOKUP(G65,الرصيد!$F$2:$L$1160,6,0),"") ->  | N65: =IF(G65<>"",VLOOKUP(G65,الرصيد!$F$2:$L$1160,7,0),"") -> 
B66: =IF(F66="","",IF(COUNTIF(F$2:$F66,F66)-1=0,ROWS(F$2:$F66),"r")) ->  | C66: =IF(G66="","",IF(COUNTIF($G$2:G66,G66)-1=0,ROWS($G$2:G66),"r")) ->  | D66: =IF($A$1=F66,COUNTIF($F$2:F66,F66),"") ->  | I66: =IF(G66<>"",VLOOKUP(G66,التكويد!$A$1:$D$201,2,0),"") ->  | J66: =IF(F66<>"",VLOOKUP(F66,الموظفين!$A$2:$B$2006,2,0),"") ->  | K66: =IF(G66<>"",VLOOKUP(G66,التكويد!$A$1:$D$201,4,0)*H66,"") ->  | M66: =IF(G66<>"",VLOOKUP(G66,الرصيد!$F$2:$L$1160,6,0),"") ->  | N66: =IF(G66<>"",VLOOKUP(G66,الرصيد!$F$2:$L$1160,7,0),"") -> 
B67: =IF(F67="","",IF(COUNTIF(F$2:$F67,F67)-1=0,ROWS(F$2:$F67),"r")) ->  | C67: =IF(G67="","",IF(COUNTIF($G$2:G67,G67)-1=0,ROWS($G$2:G67),"r")) ->  | D67: =IF($A$1=F67,COUNTIF($F$2:F67,F67),"") ->  | I67: =IF(G67<>"",VLOOKUP(G67,التكويد!$A$1:$D$201,2,0),"") ->  | J67: =IF(F67<>"",VLOOKUP(F67,الموظفين!$A$2:$B$2006,2,0),"") ->  | K67: =IF(G67<>"",VLOOKUP(G67,التكويد!$A$1:$D$201,4,0)*H67,"") ->  | L67: =IF(H67="","",IF(H67<0,"منصرف",IF(H67>0,"بيع"))) ->  | M67: =IF(G67<>"",VLOOKUP(G67,الرصيد!$F$2:$L$1160,6,0),"") ->  | N67: =IF(G67<>"",VLOOKUP(G67,الرصيد!$F$2:$L$1160,7,0),"") -> 
B68: =IF(F68="","",IF(COUNTIF(F$2:$F68,F68)-1=0,ROWS(F$2:$F68),"r")) ->  | C68: =IF(G68="","",IF(COUNTIF($G$2:G68,G68)-1=0,ROWS($G$2:G68),"r")) ->  | D68: =IF($A$1=F68,COUNTIF($F$2:F68,F68),"") ->  | I68: =IF(G68<>"",VLOOKUP(G68,التكويد!$A$1:$D$201,2,0),"") ->  | J68: =IF(F68<>"",VLOOKUP(F68,الموظفين!$A$2:$B$2006,2,0),"") ->  | K68: =IF(G68<>"",VLOOKUP(G68,التكويد!$A$1:$D$201,4,0)*H68,"") ->  | M68: =IF(G68<>"",VLOOKUP(G68,الرصيد!$F$2:$L$1160,6,0),"") ->  | N68: =IF(G68<>"",VLOOKUP(G68,الرصيد!$F$2:$L$1160,7,0),"") -> 
B69: =IF(F69="","",IF(COUNTIF(F$2:$F69,F69)-1=0,ROWS(F$2:$F69),"r")) ->  | C69: =IF(G69="","",IF(COUNTIF($G$2:G69,G69)-1=0,ROWS($G$2:G69),"r")) ->  | D69: =IF($A$1=F69,COUNTIF($F$2:F69,F69),"") ->  | I69: =IF(G69<>"",VLOOKUP(G69,التكويد!$A$1:$D$201,2,0),"") ->  | J69: =IF(F69<>"",VLOOKUP(F69,الموظفين!$A$2:$B$2006,2,0),"") ->  | K69: =IF(G69<>"",VLOOKUP(G69,التكويد!$A$1:$D$201,4,0)*H69,"") ->  | M69: =IF(G69<>"",VLOOKUP(G69,الرصيد!$F$2:$L$1160,6,0),"") ->  | N69: =IF(G69<>"",VLOOKUP(G69,الرصيد!$F$2:$L$1160,7,0),"") -> 
B70: =IF(F70="","",IF(COUNTIF(F$2:$F70,F70)-1=0,ROWS(F$2:$F70),"r")) ->  | C70: =IF(G70="","",IF(COUNTIF($G$2:G70,G70)-1=0,ROWS($G$2:G70),"r")) ->  | D70: =IF($A$1=F70,COUNTIF($F$2:F70,F70),"") ->  | I70: =IF(G70<>"",VLOOKUP(G70,التكويد!$A$1:$D$201,2,0),"") ->  | J70: =IF(F70<>"",VLOOKUP(F70,الموظفين!$A$2:$B$2006,2,0),"") ->  | K70: =IF(G70<>"",VLOOKUP(G70,التكويد!$A$1:$D$201,4,0)*H70,"") ->  | M70: =IF(G70<>"",VLOOKUP(G70,الرصيد!$F$2:$L$1160,6,0),"") ->  | N70: =IF(G70<>"",VLOOKUP(G70,الرصيد!$F$2:$L$1160,7,0),"") -> 
B71: =IF(F71="","",IF(COUNTIF(F$2:$F71,F71)-1=0,ROWS(F$2:$F71),"r")) ->  | C71: =IF(G71="","",IF(COUNTIF($G$2:G71,G71)-1=0,ROWS($G$2:G71),"r")) ->  | D71: =IF($A$1=F71,COUNTIF($F$2:F71,F71),"") ->  | I71: =IF(G71<>"",VLOOKUP(G71,التكويد!$A$1:$D$201,2,0),"") ->  | J71: =IF(F71<>"",VLOOKUP(F71,الموظفين!$A$2:$B$2006,2,0),"") ->  | K71: =IF(G71<>"",VLOOKUP(G71,التكويد!$A$1:$D$201,4,0)*H71,"") ->  | M71: =IF(G71<>"",VLOOKUP(G71,الرصيد!$F$2:$L$1160,6,0),"") ->  | N71: =IF(G71<>"",VLOOKUP(G71,الرصيد!$F$2:$L$1160,7,0),"") -> 
B72: =IF(F72="","",IF(COUNTIF(F$2:$F72,F72)-1=0,ROWS(F$2:$F72),"r")) ->  | C72: =IF(G72="","",IF(COUNTIF($G$2:G72,G72)-1=0,ROWS($G$2:G72),"r")) ->  | D72: =IF($A$1=F72,COUNTIF($F$2:F72,F72),"") ->  | I72: =IF(G72<>"",VLOOKUP(G72,التكويد!$A$1:$D$201,2,0),"") ->  | J72: =IF(F72<>"",VLOOKUP(F72,الموظفين!$A$2:$B$2006,2,0),"") ->  | K72: =IF(G72<>"",VLOOKUP(G72,التكويد!$A$1:$D$201,4,0)*H72,"") ->  | M72: =IF(G72<>"",VLOOKUP(G72,الرصيد!$F$2:$L$1160,6,0),"") ->  | N72: =IF(G72<>"",VLOOKUP(G72,الرصيد!$F$2:$L$1160,7,0),"") -> 
B73: =IF(F73="","",IF(COUNTIF(F$2:$F73,F73)-1=0,ROWS(F$2:$F73),"r")) ->  | C73: =IF(G73="","",IF(COUNTIF($G$2:G73,G73)-1=0,ROWS($G$2:G73),"r")) ->  | D73: =IF($A$1=F73,COUNTIF($F$2:F73,F73),"") ->  | I73: =IF(G73<>"",VLOOKUP(G73,التكويد!$A$1:$D$201,2,0),"") ->  | J73: =IF(F73<>"",VLOOKUP(F73,الموظفين!$A$2:$B$2006,2,0),"") ->  | K73: =IF(G73<>"",VLOOKUP(G73,التكويد!$A$1:$D$201,4,0)*H73,"") ->  | M73: =IF(G73<>"",VLOOKUP(G73,الرصيد!$F$2:$L$1160,6,0),"") ->  | N73: =IF(G73<>"",VLOOKUP(G73,الرصيد!$F$2:$L$1160,7,0),"") -> 
B74: =IF(F74="","",IF(COUNTIF(F$2:$F74,F74)-1=0,ROWS(F$2:$F74),"r")) ->  | C74: =IF(G74="","",IF(COUNTIF($G$2:G74,G74)-1=0,ROWS($G$2:G74),"r")) ->  | D74: =IF($A$1=F74,COUNTIF($F$2:F74,F74),"") ->  | I74: =IF(G74<>"",VLOOKUP(G74,التكويد!$A$1:$D$201,2,0),"") ->  | J74: =IF(F74<>"",VLOOKUP(F74,الموظفين!$A$2:$B$2006,2,0),"") ->  | K74: =IF(G74<>"",VLOOKUP(G74,التكويد!$A$1:$D$201,4,0)*H74,"") ->  | M74: =IF(G74<>"",VLOOKUP(G74,الرصيد!$F$2:$L$1160,6,0),"") ->  | N74: =IF(G74<>"",VLOOKUP(G74,الرصيد!$F$2:$L$1160,7,0),"") -> 
B75: =IF(F75="","",IF(COUNTIF(F$2:$F75,F75)-1=0,ROWS(F$2:$F75),"r")) ->  | C75: =IF(G75="","",IF(COUNTIF($G$2:G75,G75)-1=0,ROWS($G$2:G75),"r")) ->  | D75: =IF($A$1=F75,COUNTIF($F$2:F75,F75),"") ->  | I75: =IF(G75<>"",VLOOKUP(G75,التكويد!$A$1:$D$201,2,0),"") ->  | J75: =IF(F75<>"",VLOOKUP(F75,الموظفين!$A$2:$B$2006,2,0),"") ->  | K75: =IF(G75<>"",VLOOKUP(G75,التكويد!$A$1:$D$201,4,0)*H75,"") ->  | M75: =IF(G75<>"",VLOOKUP(G75,الرصيد!$F$2:$L$1160,6,0),"") ->  | N75: =IF(G75<>"",VLOOKUP(G75,الرصيد!$F$2:$L$1160,7,0),"") -> 
B76: =IF(F76="","",IF(COUNTIF(F$2:$F76,F76)-1=0,ROWS(F$2:$F76),"r")) ->  | C76: =IF(G76="","",IF(COUNTIF($G$2:G76,G76)-1=0,ROWS($G$2:G76),"r")) ->  | D76: =IF($A$1=F76,COUNTIF($F$2:F76,F76),"") ->  | I76: =IF(G76<>"",VLOOKUP(G76,التكويد!$A$1:$D$201,2,0),"") ->  | J76: =IF(F76<>"",VLOOKUP(F76,الموظفين!$A$2:$B$2006,2,0),"") ->  | K76: =IF(G76<>"",VLOOKUP(G76,التكويد!$A$1:$D$201,4,0)*H76,"") ->  | M76: =IF(G76<>"",VLOOKUP(G76,الرصيد!$F$2:$L$1160,6,0),"") ->  | N76: =IF(G76<>"",VLOOKUP(G76,الرصيد!$F$2:$L$1160,7,0),"") -> 
B77: =IF(F77="","",IF(COUNTIF(F$2:$F77,F77)-1=0,ROWS(F$2:$F77),"r")) ->  | C77: =IF(G77="","",IF(COUNTIF($G$2:G77,G77)-1=0,ROWS($G$2:G77),"r")) ->  | D77: =IF($A$1=F77,COUNTIF($F$2:F77,F77),"") ->  | I77: =IF(G77<>"",VLOOKUP(G77,التكويد!$A$1:$D$201,2,0),"") ->  | J77: =IF(F77<>"",VLOOKUP(F77,الموظفين!$A$2:$B$2006,2,0),"") ->  | K77: =IF(G77<>"",VLOOKUP(G77,التكويد!$A$1:$D$201,4,0)*H77,"") ->  | M77: =IF(G77<>"",VLOOKUP(G77,الرصيد!$F$2:$L$1160,6,0),"") ->  | N77: =IF(G77<>"",VLOOKUP(G77,الرصيد!$F$2:$L$1160,7,0),"") -> 
B78: =IF(F78="","",IF(COUNTIF(F$2:$F78,F78)-1=0,ROWS(F$2:$F78),"r")) ->  | C78: =IF(G78="","",IF(COUNTIF($G$2:G78,G78)-1=0,ROWS($G$2:G78),"r")) ->  | D78: =IF($A$1=F78,COUNTIF($F$2:F78,F78),"") ->  | I78: =IF(G78<>"",VLOOKUP(G78,التكويد!$A$1:$D$201,2,0),"") ->  | J78: =IF(F78<>"",VLOOKUP(F78,الموظفين!$A$2:$B$2006,2,0),"") ->  | K78: =IF(G78<>"",VLOOKUP(G78,التكويد!$A$1:$D$201,4,0)*H78,"") ->  | M78: =IF(G78<>"",VLOOKUP(G78,الرصيد!$F$2:$L$1160,6,0),"") ->  | N78: =IF(G78<>"",VLOOKUP(G78,الرصيد!$F$2:$L$1160,7,0),"") -> 
B79: =IF(F79="","",IF(COUNTIF(F$2:$F79,F79)-1=0,ROWS(F$2:$F79),"r")) ->  | C79: =IF(G79="","",IF(COUNTIF($G$2:G79,G79)-1=0,ROWS($G$2:G79),"r")) ->  | D79: =IF($A$1=F79,COUNTIF($F$2:F79,F79),"") ->  | I79: =IF(G79<>"",VLOOKUP(G79,التكويد!$A$1:$D$201,2,0),"") ->  | J79: =IF(F79<>"",VLOOKUP(F79,الموظفين!$A$2:$B$2006,2,0),"") ->  | K79: =IF(G79<>"",VLOOKUP(G79,التكويد!$A$1:$D$201,4,0)*H79,"") ->  | M79: =IF(G79<>"",VLOOKUP(G79,الرصيد!$F$2:$L$1160,6,0),"") ->  | N79: =IF(G79<>"",VLOOKUP(G79,الرصيد!$F$2:$L$1160,7,0),"") -> 
B80: =IF(F80="","",IF(COUNTIF(F$2:$F80,F80)-1=0,ROWS(F$2:$F80),"r")) ->  | C80: =IF(G80="","",IF(COUNTIF($G$2:G80,G80)-1=0,ROWS($G$2:G80),"r")) ->  | D80: =IF($A$1=F80,COUNTIF($F$2:F80,F80),"") ->  | I80: =IF(G80<>"",VLOOKUP(G80,التكويد!$A$1:$D$201,2,0),"") ->  | J80: =IF(F80<>"",VLOOKUP(F80,الموظفين!$A$2:$B$2006,2,0),"") ->  | K80: =IF(G80<>"",VLOOKUP(G80,التكويد!$A$1:$D$201,4,0)*H80,"") ->  | M80: =IF(G80<>"",VLOOKUP(G80,الرصيد!$F$2:$L$1160,6,0),"") ->  | N80: =IF(G80<>"",VLOOKUP(G80,الرصيد!$F$2:$L$1160,7,0),"") -> 
B81: =IF(F81="","",IF(COUNTIF(F$2:$F81,F81)-1=0,ROWS(F$2:$F81),"r")) ->  | C81: =IF(G81="","",IF(COUNTIF($G$2:G81,G81)-1=0,ROWS($G$2:G81),"r")) ->  | D81: =IF($A$1=F81,COUNTIF($F$2:F81,F81),"") ->  | I81: =IF(G81<>"",VLOOKUP(G81,التكويد!$A$1:$D$201,2,0),"") ->  | J81: =IF(F81<>"",VLOOKUP(F81,الموظفين!$A$2:$B$2006,2,0),"") ->  | K81: =IF(G81<>"",VLOOKUP(G81,التكويد!$A$1:$D$201,4,0)*H81,"") ->  | M81: =IF(G81<>"",VLOOKUP(G81,الرصيد!$F$2:$L$1160,6,0),"") ->  | N81: =IF(G81<>"",VLOOKUP(G81,الرصيد!$F$2:$L$1160,7,0),"") -> 
B82: =IF(F82="","",IF(COUNTIF(F$2:$F82,F82)-1=0,ROWS(F$2:$F82),"r")) ->  | C82: =IF(G82="","",IF(COUNTIF($G$2:G82,G82)-1=0,ROWS($G$2:G82),"r")) ->  | D82: =IF($A$1=F82,COUNTIF($F$2:F82,F82),"") ->  | I82: =IF(G82<>"",VLOOKUP(G82,التكويد!$A$1:$D$201,2,0),"") ->  | J82: =IF(F82<>"",VLOOKUP(F82,الموظفين!$A$2:$B$2006,2,0),"") ->  | K82: =IF(G82<>"",VLOOKUP(G82,التكويد!$A$1:$D$201,4,0)*H82,"") ->  | M82: =IF(G82<>"",VLOOKUP(G82,الرصيد!$F$2:$L$1160,6,0),"") ->  | N82: =IF(G82<>"",VLOOKUP(G82,الرصيد!$F$2:$L$1160,7,0),"") -> 
B83: =IF(F83="","",IF(COUNTIF(F$2:$F83,F83)-1=0,ROWS(F$2:$F83),"r")) ->  | C83: =IF(G83="","",IF(COUNTIF($G$2:G83,G83)-1=0,ROWS($G$2:G83),"r")) ->  | D83: =IF($A$1=F83,COUNTIF($F$2:F83,F83),"") ->  | I83: =IF(G83<>"",VLOOKUP(G83,التكويد!$A$1:$D$201,2,0),"") ->  | J83: =IF(F83<>"",VLOOKUP(F83,الموظفين!$A$2:$B$2006,2,0),"") ->  | K83: =IF(G83<>"",VLOOKUP(G83,التكويد!$A$1:$D$201,4,0)*H83,"") ->  | M83: =IF(G83<>"",VLOOKUP(G83,الرصيد!$F$2:$L$1160,6,0),"") ->  | N83: =IF(G83<>"",VLOOKUP(G83,الرصيد!$F$2:$L$1160,7,0),"") -> 
B84: =IF(F84="","",IF(COUNTIF(F$2:$F84,F84)-1=0,ROWS(F$2:$F84),"r")) ->  | C84: =IF(G84="","",IF(COUNTIF($G$2:G84,G84)-1=0,ROWS($G$2:G84),"r")) ->  | D84: =IF($A$1=F84,COUNTIF($F$2:F84,F84),"") ->  | I84: =IF(G84<>"",VLOOKUP(G84,التكويد!$A$1:$D$201,2,0),"") ->  | J84: =IF(F84<>"",VLOOKUP(F84,الموظفين!$A$2:$B$2006,2,0),"") ->  | K84: =IF(G84<>"",VLOOKUP(G84,التكويد!$A$1:$D$201,4,0)*H84,"") ->  | M84: =IF(G84<>"",VLOOKUP(G84,الرصيد!$F$2:$L$1160,6,0),"") ->  | N84: =IF(G84<>"",VLOOKUP(G84,الرصيد!$F$2:$L$1160,7,0),"") -> 
B85: =IF(F85="","",IF(COUNTIF(F$2:$F85,F85)-1=0,ROWS(F$2:$F85),"r")) ->  | C85: =IF(G85="","",IF(COUNTIF($G$2:G85,G85)-1=0,ROWS($G$2:G85),"r")) ->  | D85: =IF($A$1=F85,COUNTIF($F$2:F85,F85),"") ->  | I85: =IF(G85<>"",VLOOKUP(G85,التكويد!$A$1:$D$201,2,0),"") ->  | J85: =IF(F85<>"",VLOOKUP(F85,الموظفين!$A$2:$B$2006,2,0),"") ->  | K85: =IF(G85<>"",VLOOKUP(G85,التكويد!$A$1:$D$201,4,0)*H85,"") ->  | M85: =IF(G85<>"",VLOOKUP(G85,الرصيد!$F$2:$L$1160,6,0),"") ->  | N85: =IF(G85<>"",VLOOKUP(G85,الرصيد!$F$2:$L$1160,7,0),"") -> 
B86: =IF(F86="","",IF(COUNTIF(F$2:$F86,F86)-1=0,ROWS(F$2:$F86),"r")) ->  | C86: =IF(G86="","",IF(COUNTIF($G$2:G86,G86)-1=0,ROWS($G$2:G86),"r")) ->  | D86: =IF($A$1=F86,COUNTIF($F$2:F86,F86),"") ->  | I86: =IF(G86<>"",VLOOKUP(G86,التكويد!$A$1:$D$201,2,0),"") ->  | J86: =IF(F86<>"",VLOOKUP(F86,الموظفين!$A$2:$B$2006,2,0),"") ->  | K86: =IF(G86<>"",VLOOKUP(G86,التكويد!$A$1:$D$201,4,0)*H86,"") ->  | M86: =IF(G86<>"",VLOOKUP(G86,الرصيد!$F$2:$L$1160,6,0),"") ->  | N86: =IF(G86<>"",VLOOKUP(G86,الرصيد!$F$2:$L$1160,7,0),"") -> 
B87: =IF(F87="","",IF(COUNTIF(F$2:$F87,F87)-1=0,ROWS(F$2:$F87),"r")) ->  | C87: =IF(G87="","",IF(COUNTIF($G$2:G87,G87)-1=0,ROWS($G$2:G87),"r")) ->  | D87: =IF($A$1=F87,COUNTIF($F$2:F87,F87),"") ->  | I87: =IF(G87<>"",VLOOKUP(G87,التكويد!$A$1:$D$201,2,0),"") ->  | J87: =IF(F87<>"",VLOOKUP(F87,الموظفين!$A$2:$B$2006,2,0),"") ->  | K87: =IF(G87<>"",VLOOKUP(G87,التكويد!$A$1:$D$201,4,0)*H87,"") ->  | M87: =IF(G87<>"",VLOOKUP(G87,الرصيد!$F$2:$L$1160,6,0),"") ->  | N87: =IF(G87<>"",VLOOKUP(G87,الرصيد!$F$2:$L$1160,7,0),"") -> 
B88: =IF(F88="","",IF(COUNTIF(F$2:$F88,F88)-1=0,ROWS(F$2:$F88),"r")) ->  | C88: =IF(G88="","",IF(COUNTIF($G$2:G88,G88)-1=0,ROWS($G$2:G88),"r")) ->  | D88: =IF($A$1=F88,COUNTIF($F$2:F88,F88),"") ->  | I88: =IF(G88<>"",VLOOKUP(G88,التكويد!$A$1:$D$201,2,0),"") ->  | J88: =IF(F88<>"",VLOOKUP(F88,الموظفين!$A$2:$B$2006,2,0),"") ->  | K88: =IF(G88<>"",VLOOKUP(G88,التكويد!$A$1:$D$201,4,0)*H88,"") ->  | M88: =IF(G88<>"",VLOOKUP(G88,الرصيد!$F$2:$L$1160,6,0),"") ->  | N88: =IF(G88<>"",VLOOKUP(G88,الرصيد!$F$2:$L$1160,7,0),"") -> 
B89: =IF(F89="","",IF(COUNTIF(F$2:$F89,F89)-1=0,ROWS(F$2:$F89),"r")) ->  | C89: =IF(G89="","",IF(COUNTIF($G$2:G89,G89)-1=0,ROWS($G$2:G89),"r")) ->  | D89: =IF($A$1=F89,COUNTIF($F$2:F89,F89),"") ->  | I89: =IF(G89<>"",VLOOKUP(G89,التكويد!$A$1:$D$201,2,0),"") ->  | J89: =IF(F89<>"",VLOOKUP(F89,الموظفين!$A$2:$B$2006,2,0),"") ->  | K89: =IF(G89<>"",VLOOKUP(G89,التكويد!$A$1:$D$201,4,0)*H89,"") ->  | M89: =IF(G89<>"",VLOOKUP(G89,الرصيد!$F$2:$L$1160,6,0),"") ->  | N89: =IF(G89<>"",VLOOKUP(G89,الرصيد!$F$2:$L$1160,7,0),"") -> 
B90: =IF(F90="","",IF(COUNTIF(F$2:$F90,F90)-1=0,ROWS(F$2:$F90),"r")) ->  | C90: =IF(G90="","",IF(COUNTIF($G$2:G90,G90)-1=0,ROWS($G$2:G90),"r")) ->  | D90: =IF($A$1=F90,COUNTIF($F$2:F90,F90),"") ->  | I90: =IF(G90<>"",VLOOKUP(G90,التكويد!$A$1:$D$201,2,0),"") ->  | J90: =IF(F90<>"",VLOOKUP(F90,الموظفين!$A$2:$B$2006,2,0),"") ->  | K90: =IF(G90<>"",VLOOKUP(G90,التكويد!$A$1:$D$201,4,0)*H90,"") ->  | M90: =IF(G90<>"",VLOOKUP(G90,الرصيد!$F$2:$L$1160,6,0),"") ->  | N90: =IF(G90<>"",VLOOKUP(G90,الرصيد!$F$2:$L$1160,7,0),"") -> 
B91: =IF(F91="","",IF(COUNTIF(F$2:$F91,F91)-1=0,ROWS(F$2:$F91),"r")) ->  | C91: =IF(G91="","",IF(COUNTIF($G$2:G91,G91)-1=0,ROWS($G$2:G91),"r")) ->  | D91: =IF($A$1=F91,COUNTIF($F$2:F91,F91),"") ->  | I91: =IF(G91<>"",VLOOKUP(G91,التكويد!$A$1:$D$201,2,0),"") ->  | J91: =IF(F91<>"",VLOOKUP(F91,الموظفين!$A$2:$B$2006,2,0),"") ->  | K91: =IF(G91<>"",VLOOKUP(G91,التكويد!$A$1:$D$201,4,0)*H91,"") ->  | M91: =IF(G91<>"",VLOOKUP(G91,الرصيد!$F$2:$L$1160,6,0),"") ->  | N91: =IF(G91<>"",VLOOKUP(G91,الرصيد!$F$2:$L$1160,7,0),"") -> 
B92: =IF(F92="","",IF(COUNTIF(F$2:$F92,F92)-1=0,ROWS(F$2:$F92),"r")) ->  | C92: =IF(G92="","",IF(COUNTIF($G$2:G92,G92)-1=0,ROWS($G$2:G92),"r")) ->  | D92: =IF($A$1=F92,COUNTIF($F$2:F92,F92),"") ->  | I92: =IF(G92<>"",VLOOKUP(G92,التكويد!$A$1:$D$201,2,0),"") ->  | J92: =IF(F92<>"",VLOOKUP(F92,الموظفين!$A$2:$B$2006,2,0),"") ->  | K92: =IF(G92<>"",VLOOKUP(G92,التكويد!$A$1:$D$201,4,0)*H92,"") ->  | M92: =IF(G92<>"",VLOOKUP(G92,الرصيد!$F$2:$L$1160,6,0),"") ->  | N92: =IF(G92<>"",VLOOKUP(G92,الرصيد!$F$2:$L$1160,7,0),"") -> 
B93: =IF(F93="","",IF(COUNTIF(F$2:$F93,F93)-1=0,ROWS(F$2:$F93),"r")) ->  | C93: =IF(G93="","",IF(COUNTIF($G$2:G93,G93)-1=0,ROWS($G$2:G93),"r")) ->  | D93: =IF($A$1=F93,COUNTIF($F$2:F93,F93),"") ->  | I93: =IF(G93<>"",VLOOKUP(G93,التكويد!$A$1:$D$201,2,0),"") ->  | J93: =IF(F93<>"",VLOOKUP(F93,الموظفين!$A$2:$B$2006,2,0),"") ->  | K93: =IF(G93<>"",VLOOKUP(G93,التكويد!$A$1:$D$201,4,0)*H93,"") ->  | M93: =IF(G93<>"",VLOOKUP(G93,الرصيد!$F$2:$L$1160,6,0),"") ->  | N93: =IF(G93<>"",VLOOKUP(G93,الرصيد!$F$2:$L$1160,7,0),"") -> 
B94: =IF(F94="","",IF(COUNTIF(F$2:$F94,F94)-1=0,ROWS(F$2:$F94),"r")) ->  | C94: =IF(G94="","",IF(COUNTIF($G$2:G94,G94)-1=0,ROWS($G$2:G94),"r")) ->  | D94: =IF($A$1=F94,COUNTIF($F$2:F94,F94),"") ->  | I94: =IF(G94<>"",VLOOKUP(G94,التكويد!$A$1:$D$201,2,0),"") ->  | J94: =IF(F94<>"",VLOOKUP(F94,الموظفين!$A$2:$B$2006,2,0),"") ->  | K94: =IF(G94<>"",VLOOKUP(G94,التكويد!$A$1:$D$201,4,0)*H94,"") ->  | M94: =IF(G94<>"",VLOOKUP(G94,الرصيد!$F$2:$L$1160,6,0),"") ->  | N94: =IF(G94<>"",VLOOKUP(G94,الرصيد!$F$2:$L$1160,7,0),"") -> 
B95: =IF(F95="","",IF(COUNTIF(F$2:$F95,F95)-1=0,ROWS(F$2:$F95),"r")) ->  | C95: =IF(G95="","",IF(COUNTIF($G$2:G95,G95)-1=0,ROWS($G$2:G95),"r")) ->  | D95: =IF($A$1=F95,COUNTIF($F$2:F95,F95),"") ->  | I95: =IF(G95<>"",VLOOKUP(G95,التكويد!$A$1:$D$201,2,0),"") ->  | J95: =IF(F95<>"",VLOOKUP(F95,الموظفين!$A$2:$B$2006,2,0),"") ->  | K95: =IF(G95<>"",VLOOKUP(G95,التكويد!$A$1:$D$201,4,0)*H95,"") ->  | M95: =IF(G95<>"",VLOOKUP(G95,الرصيد!$F$2:$L$1160,6,0),"") ->  | N95: =IF(G95<>"",VLOOKUP(G95,الرصيد!$F$2:$L$1160,7,0),"") -> 
B96: =IF(F96="","",IF(COUNTIF(F$2:$F96,F96)-1=0,ROWS(F$2:$F96),"r")) ->  | C96: =IF(G96="","",IF(COUNTIF($G$2:G96,G96)-1=0,ROWS($G$2:G96),"r")) ->  | D96: =IF($A$1=F96,COUNTIF($F$2:F96,F96),"") ->  | I96: =IF(G96<>"",VLOOKUP(G96,التكويد!$A$1:$D$201,2,0),"") ->  | J96: =IF(F96<>"",VLOOKUP(F96,الموظفين!$A$2:$B$2006,2,0),"") ->  | K96: =IF(G96<>"",VLOOKUP(G96,التكويد!$A$1:$D$201,4,0)*H96,"") ->  | M96: =IF(G96<>"",VLOOKUP(G96,الرصيد!$F$2:$L$1160,6,0),"") ->  | N96: =IF(G96<>"",VLOOKUP(G96,الرصيد!$F$2:$L$1160,7,0),"") -> 
B97: =IF(F97="","",IF(COUNTIF(F$2:$F97,F97)-1=0,ROWS(F$2:$F97),"r")) ->  | C97: =IF(G97="","",IF(COUNTIF($G$2:G97,G97)-1=0,ROWS($G$2:G97),"r")) ->  | D97: =IF($A$1=F97,COUNTIF($F$2:F97,F97),"") ->  | I97: =IF(G97<>"",VLOOKUP(G97,التكويد!$A$1:$D$201,2,0),"") ->  | J97: =IF(F97<>"",VLOOKUP(F97,الموظفين!$A$2:$B$2006,2,0),"") ->  | K97: =IF(G97<>"",VLOOKUP(G97,التكويد!$A$1:$D$201,4,0)*H97,"") ->  | M97: =IF(G97<>"",VLOOKUP(G97,الرصيد!$F$2:$L$1160,6,0),"") ->  | N97: =IF(G97<>"",VLOOKUP(G97,الرصيد!$F$2:$L$1160,7,0),"") -> 
B98: =IF(F98="","",IF(COUNTIF(F$2:$F98,F98)-1=0,ROWS(F$2:$F98),"r")) ->  | C98: =IF(G98="","",IF(COUNTIF($G$2:G98,G98)-1=0,ROWS($G$2:G98),"r")) ->  | D98: =IF($A$1=F98,COUNTIF($F$2:F98,F98),"") ->  | I98: =IF(G98<>"",VLOOKUP(G98,التكويد!$A$1:$D$201,2,0),"") ->  | J98: =IF(F98<>"",VLOOKUP(F98,الموظفين!$A$2:$B$2006,2,0),"") ->  | K98: =IF(G98<>"",VLOOKUP(G98,التكويد!$A$1:$D$201,4,0)*H98,"") ->  | M98: =IF(G98<>"",VLOOKUP(G98,الرصيد!$F$2:$L$1160,6,0),"") ->  | N98: =IF(G98<>"",VLOOKUP(G98,الرصيد!$F$2:$L$1160,7,0),"") -> 
B99: =IF(F99="","",IF(COUNTIF(F$2:$F99,F99)-1=0,ROWS(F$2:$F99),"r")) ->  | C99: =IF(G99="","",IF(COUNTIF($G$2:G99,G99)-1=0,ROWS($G$2:G99),"r")) ->  | D99: =IF($A$1=F99,COUNTIF($F$2:F99,F99),"") ->  | I99: =IF(G99<>"",VLOOKUP(G99,التكويد!$A$1:$D$201,2,0),"") ->  | J99: =IF(F99<>"",VLOOKUP(F99,الموظفين!$A$2:$B$2006,2,0),"") ->  | K99: =IF(G99<>"",VLOOKUP(G99,التكويد!$A$1:$D$201,4,0)*H99,"") ->  | M99: =IF(G99<>"",VLOOKUP(G99,الرصيد!$F$2:$L$1160,6,0),"") ->  | N99: =IF(G99<>"",VLOOKUP(G99,الرصيد!$F$2:$L$1160,7,0),"") -> 
B100: =IF(F100="","",IF(COUNTIF(F$2:$F100,F100)-1=0,ROWS(F$2:$F100),"r")) ->  | C100: =IF(G100="","",IF(COUNTIF($G$2:G100,G100)-1=0,ROWS($G$2:G100),"r")) ->  | D100: =IF($A$1=F100,COUNTIF($F$2:F100,F100),"") ->  | I100: =IF(G100<>"",VLOOKUP(G100,التكويد!$A$1:$D$201,2,0),"") ->  | J100: =IF(F100<>"",VLOOKUP(F100,الموظفين!$A$2:$B$2006,2,0),"") ->  | K100: =IF(G100<>"",VLOOKUP(G100,التكويد!$A$1:$D$201,4,0)*H100,"") ->  | M100: =IF(G100<>"",VLOOKUP(G100,الرصيد!$F$2:$L$1160,6,0),"") ->  | N100: =IF(G100<>"",VLOOKUP(G100,الرصيد!$F$2:$L$1160,7,0),"") -> 
B101: =IF(F101="","",IF(COUNTIF(F$2:$F101,F101)-1=0,ROWS(F$2:$F101),"r")) ->  | C101: =IF(G101="","",IF(COUNTIF($G$2:G101,G101)-1=0,ROWS($G$2:G101),"r")) ->  | D101: =IF($A$1=F101,COUNTIF($F$2:F101,F101),"") ->  | I101: =IF(G101<>"",VLOOKUP(G101,التكويد!$A$1:$D$201,2,0),"") ->  | J101: =IF(F101<>"",VLOOKUP(F101,الموظفين!$A$2:$B$2006,2,0),"") ->  | K101: =IF(G101<>"",VLOOKUP(G101,التكويد!$A$1:$D$201,4,0)*H101,"") ->  | M101: =IF(G101<>"",VLOOKUP(G101,الرصيد!$F$2:$L$1160,6,0),"") ->  | N101: =IF(G101<>"",VLOOKUP(G101,الرصيد!$F$2:$L$1160,7,0),"") -> 
B102: =IF(F102="","",IF(COUNTIF(F$2:$F102,F102)-1=0,ROWS(F$2:$F102),"r")) ->  | C102: =IF(G102="","",IF(COUNTIF($G$2:G102,G102)-1=0,ROWS($G$2:G102),"r")) ->  | D102: =IF($A$1=F102,COUNTIF($F$2:F102,F102),"") ->  | I102: =IF(G102<>"",VLOOKUP(G102,التكويد!$A$1:$D$201,2,0),"") ->  | J102: =IF(F102<>"",VLOOKUP(F102,الموظفين!$A$2:$B$2006,2,0),"") ->  | K102: =IF(G102<>"",VLOOKUP(G102,التكويد!$A$1:$D$201,4,0)*H102,"") ->  | M102: =IF(G102<>"",VLOOKUP(G102,الرصيد!$F$2:$L$1160,6,0),"") ->  | N102: =IF(G102<>"",VLOOKUP(G102,الرصيد!$F$2:$L$1160,7,0),"") -> 
B103: =IF(F103="","",IF(COUNTIF(F$2:$F103,F103)-1=0,ROWS(F$2:$F103),"r")) ->  | C103: =IF(G103="","",IF(COUNTIF($G$2:G103,G103)-1=0,ROWS($G$2:G103),"r")) ->  | D103: =IF($A$1=F103,COUNTIF($F$2:F103,F103),"") ->  | I103: =IF(G103<>"",VLOOKUP(G103,التكويد!$A$1:$D$201,2,0),"") ->  | J103: =IF(F103<>"",VLOOKUP(F103,الموظفين!$A$2:$B$2006,2,0),"") ->  | K103: =IF(G103<>"",VLOOKUP(G103,التكويد!$A$1:$D$201,4,0)*H103,"") ->  | M103: =IF(G103<>"",VLOOKUP(G103,الرصيد!$F$2:$L$1160,6,0),"") ->  | N103: =IF(G103<>"",VLOOKUP(G103,الرصيد!$F$2:$L$1160,7,0),"") -> 
B104: =IF(F104="","",IF(COUNTIF(F$2:$F104,F104)-1=0,ROWS(F$2:$F104),"r")) ->  | C104: =IF(G104="","",IF(COUNTIF($G$2:G104,G104)-1=0,ROWS($G$2:G104),"r")) ->  | D104: =IF($A$1=F104,COUNTIF($F$2:F104,F104),"") ->  | I104: =IF(G104<>"",VLOOKUP(G104,التكويد!$A$1:$D$201,2,0),"") ->  | J104: =IF(F104<>"",VLOOKUP(F104,الموظفين!$A$2:$B$2006,2,0),"") ->  | K104: =IF(G104<>"",VLOOKUP(G104,التكويد!$A$1:$D$201,4,0)*H104,"") ->  | M104: =IF(G104<>"",VLOOKUP(G104,الرصيد!$F$2:$L$1160,6,0),"") ->  | N104: =IF(G104<>"",VLOOKUP(G104,الرصيد!$F$2:$L$1160,7,0),"") -> 
B105: =IF(F105="","",IF(COUNTIF(F$2:$F105,F105)-1=0,ROWS(F$2:$F105),"r")) ->  | C105: =IF(G105="","",IF(COUNTIF($G$2:G105,G105)-1=0,ROWS($G$2:G105),"r")) ->  | D105: =IF($A$1=F105,COUNTIF($F$2:F105,F105),"") ->  | I105: =IF(G105<>"",VLOOKUP(G105,التكويد!$A$1:$D$201,2,0),"") ->  | J105: =IF(F105<>"",VLOOKUP(F105,الموظفين!$A$2:$B$2006,2,0),"") ->  | K105: =IF(G105<>"",VLOOKUP(G105,التكويد!$A$1:$D$201,4,0)*H105,"") ->  | M105: =IF(G105<>"",VLOOKUP(G105,الرصيد!$F$2:$L$1160,6,0),"") ->  | N105: =IF(G105<>"",VLOOKUP(G105,الرصيد!$F$2:$L$1160,7,0),"") -> 
B106: =IF(F106="","",IF(COUNTIF(F$2:$F106,F106)-1=0,ROWS(F$2:$F106),"r")) ->  | C106: =IF(G106="","",IF(COUNTIF($G$2:G106,G106)-1=0,ROWS($G$2:G106),"r")) ->  | D106: =IF($A$1=F106,COUNTIF($F$2:F106,F106),"") ->  | I106: =IF(G106<>"",VLOOKUP(G106,التكويد!$A$1:$D$201,2,0),"") ->  | J106: =IF(F106<>"",VLOOKUP(F106,الموظفين!$A$2:$B$2006,2,0),"") ->  | K106: =IF(G106<>"",VLOOKUP(G106,التكويد!$A$1:$D$201,4,0)*H106,"") ->  | M106: =IF(G106<>"",VLOOKUP(G106,الرصيد!$F$2:$L$1160,6,0),"") ->  | N106: =IF(G106<>"",VLOOKUP(G106,الرصيد!$F$2:$L$1160,7,0),"") -> 
B107: =IF(F107="","",IF(COUNTIF(F$2:$F107,F107)-1=0,ROWS(F$2:$F107),"r")) ->  | C107: =IF(G107="","",IF(COUNTIF($G$2:G107,G107)-1=0,ROWS($G$2:G107),"r")) ->  | D107: =IF($A$1=F107,COUNTIF($F$2:F107,F107),"") ->  | I107: =IF(G107<>"",VLOOKUP(G107,التكويد!$A$1:$D$201,2,0),"") ->  | J107: =IF(F107<>"",VLOOKUP(F107,الموظفين!$A$2:$B$2006,2,0),"") ->  | K107: =IF(G107<>"",VLOOKUP(G107,التكويد!$A$1:$D$201,4,0)*H107,"") ->  | M107: =IF(G107<>"",VLOOKUP(G107,الرصيد!$F$2:$L$1160,6,0),"") ->  | N107: =IF(G107<>"",VLOOKUP(G107,الرصيد!$F$2:$L$1160,7,0),"") -> 
B108: =IF(F108="","",IF(COUNTIF(F$2:$F108,F108)-1=0,ROWS(F$2:$F108),"r")) ->  | C108: =IF(G108="","",IF(COUNTIF($G$2:G108,G108)-1=0,ROWS($G$2:G108),"r")) ->  | D108: =IF($A$1=F108,COUNTIF($F$2:F108,F108),"") ->  | I108: =IF(G108<>"",VLOOKUP(G108,التكويد!$A$1:$D$201,2,0),"") ->  | J108: =IF(F108<>"",VLOOKUP(F108,الموظفين!$A$2:$B$2006,2,0),"") ->  | K108: =IF(G108<>"",VLOOKUP(G108,التكويد!$A$1:$D$201,4,0)*H108,"") ->  | M108: =IF(G108<>"",VLOOKUP(G108,الرصيد!$F$2:$L$1160,6,0),"") ->  | N108: =IF(G108<>"",VLOOKUP(G108,الرصيد!$F$2:$L$1160,7,0),"") -> 
B109: =IF(F109="","",IF(COUNTIF(F$2:$F109,F109)-1=0,ROWS(F$2:$F109),"r")) ->  | C109: =IF(G109="","",IF(COUNTIF($G$2:G109,G109)-1=0,ROWS($G$2:G109),"r")) ->  | D109: =IF($A$1=F109,COUNTIF($F$2:F109,F109),"") ->  | I109: =IF(G109<>"",VLOOKUP(G109,التكويد!$A$1:$D$201,2,0),"") ->  | J109: =IF(F109<>"",VLOOKUP(F109,الموظفين!$A$2:$B$2006,2,0),"") ->  | K109: =IF(G109<>"",VLOOKUP(G109,التكويد!$A$1:$D$201,4,0)*H109,"") ->  | M109: =IF(G109<>"",VLOOKUP(G109,الرصيد!$F$2:$L$1160,6,0),"") ->  | N109: =IF(G109<>"",VLOOKUP(G109,الرصيد!$F$2:$L$1160,7,0),"") -> 
B110: =IF(F110="","",IF(COUNTIF(F$2:$F110,F110)-1=0,ROWS(F$2:$F110),"r")) ->  | C110: =IF(G110="","",IF(COUNTIF($G$2:G110,G110)-1=0,ROWS($G$2:G110),"r")) ->  | D110: =IF($A$1=F110,COUNTIF($F$2:F110,F110),"") ->  | I110: =IF(G110<>"",VLOOKUP(G110,التكويد!$A$1:$D$201,2,0),"") ->  | J110: =IF(F110<>"",VLOOKUP(F110,الموظفين!$A$2:$B$2006,2,0),"") ->  | K110: =IF(G110<>"",VLOOKUP(G110,التكويد!$A$1:$D$201,4,0)*H110,"") ->  | M110: =IF(G110<>"",VLOOKUP(G110,الرصيد!$F$2:$L$1160,6,0),"") ->  | N110: =IF(G110<>"",VLOOKUP(G110,الرصيد!$F$2:$L$1160,7,0),"") -> 
B111: =IF(F111="","",IF(COUNTIF(F$2:$F111,F111)-1=0,ROWS(F$2:$F111),"r")) ->  | C111: =IF(G111="","",IF(COUNTIF($G$2:G111,G111)-1=0,ROWS($G$2:G111),"r")) ->  | D111: =IF($A$1=F111,COUNTIF($F$2:F111,F111),"") ->  | I111: =IF(G111<>"",VLOOKUP(G111,التكويد!$A$1:$D$201,2,0),"") ->  | J111: =IF(F111<>"",VLOOKUP(F111,الموظفين!$A$2:$B$2006,2,0),"") ->  | K111: =IF(G111<>"",VLOOKUP(G111,التكويد!$A$1:$D$201,4,0)*H111,"") ->  | M111: =IF(G111<>"",VLOOKUP(G111,الرصيد!$F$2:$L$1160,6,0),"") ->  | N111: =IF(G111<>"",VLOOKUP(G111,الرصيد!$F$2:$L$1160,7,0),"") -> 
B112: =IF(F112="","",IF(COUNTIF(F$2:$F112,F112)-1=0,ROWS(F$2:$F112),"r")) ->  | C112: =IF(G112="","",IF(COUNTIF($G$2:G112,G112)-1=0,ROWS($G$2:G112),"r")) ->  | D112: =IF($A$1=F112,COUNTIF($F$2:F112,F112),"") ->  | I112: =IF(G112<>"",VLOOKUP(G112,التكويد!$A$1:$D$201,2,0),"") ->  | J112: =IF(F112<>"",VLOOKUP(F112,الموظفين!$A$2:$B$2006,2,0),"") ->  | K112: =IF(G112<>"",VLOOKUP(G112,التكويد!$A$1:$D$201,4,0)*H112,"") ->  | M112: =IF(G112<>"",VLOOKUP(G112,الرصيد!$F$2:$L$1160,6,0),"") ->  | N112: =IF(G112<>"",VLOOKUP(G112,الرصيد!$F$2:$L$1160,7,0),"") -> 
B113: =IF(F113="","",IF(COUNTIF(F$2:$F113,F113)-1=0,ROWS(F$2:$F113),"r")) ->  | C113: =IF(G113="","",IF(COUNTIF($G$2:G113,G113)-1=0,ROWS($G$2:G113),"r")) ->  | D113: =IF($A$1=F113,COUNTIF($F$2:F113,F113),"") ->  | I113: =IF(G113<>"",VLOOKUP(G113,التكويد!$A$1:$D$201,2,0),"") ->  | J113: =IF(F113<>"",VLOOKUP(F113,الموظفين!$A$2:$B$2006,2,0),"") ->  | K113: =IF(G113<>"",VLOOKUP(G113,التكويد!$A$1:$D$201,4,0)*H113,"") ->  | M113: =IF(G113<>"",VLOOKUP(G113,الرصيد!$F$2:$L$1160,6,0),"") ->  | N113: =IF(G113<>"",VLOOKUP(G113,الرصيد!$F$2:$L$1160,7,0),"") -> 
B114: =IF(F114="","",IF(COUNTIF(F$2:$F114,F114)-1=0,ROWS(F$2:$F114),"r")) ->  | C114: =IF(G114="","",IF(COUNTIF($G$2:G114,G114)-1=0,ROWS($G$2:G114),"r")) ->  | D114: =IF($A$1=F114,COUNTIF($F$2:F114,F114),"") ->  | I114: =IF(G114<>"",VLOOKUP(G114,التكويد!$A$1:$D$201,2,0),"") ->  | J114: =IF(F114<>"",VLOOKUP(F114,الموظفين!$A$2:$B$2006,2,0),"") ->  | K114: =IF(G114<>"",VLOOKUP(G114,التكويد!$A$1:$D$201,4,0)*H114,"") ->  | M114: =IF(G114<>"",VLOOKUP(G114,الرصيد!$F$2:$L$1160,6,0),"") ->  | N114: =IF(G114<>"",VLOOKUP(G114,الرصيد!$F$2:$L$1160,7,0),"") -> 
B115: =IF(F115="","",IF(COUNTIF(F$2:$F115,F115)-1=0,ROWS(F$2:$F115),"r")) ->  | C115: =IF(G115="","",IF(COUNTIF($G$2:G115,G115)-1=0,ROWS($G$2:G115),"r")) ->  | D115: =IF($A$1=F115,COUNTIF($F$2:F115,F115),"") ->  | I115: =IF(G115<>"",VLOOKUP(G115,التكويد!$A$1:$D$201,2,0),"") ->  | J115: =IF(F115<>"",VLOOKUP(F115,الموظفين!$A$2:$B$2006,2,0),"") ->  | K115: =IF(G115<>"",VLOOKUP(G115,التكويد!$A$1:$D$201,4,0)*H115,"") ->  | M115: =IF(G115<>"",VLOOKUP(G115,الرصيد!$F$2:$L$1160,6,0),"") ->  | N115: =IF(G115<>"",VLOOKUP(G115,الرصيد!$F$2:$L$1160,7,0),"") -> 
B116: =IF(F116="","",IF(COUNTIF(F$2:$F116,F116)-1=0,ROWS(F$2:$F116),"r")) ->  | C116: =IF(G116="","",IF(COUNTIF($G$2:G116,G116)-1=0,ROWS($G$2:G116),"r")) ->  | D116: =IF($A$1=F116,COUNTIF($F$2:F116,F116),"") ->  | I116: =IF(G116<>"",VLOOKUP(G116,التكويد!$A$1:$D$201,2,0),"") ->  | J116: =IF(F116<>"",VLOOKUP(F116,الموظفين!$A$2:$B$2006,2,0),"") ->  | K116: =IF(G116<>"",VLOOKUP(G116,التكويد!$A$1:$D$201,4,0)*H116,"") ->  | M116: =IF(G116<>"",VLOOKUP(G116,الرصيد!$F$2:$L$1160,6,0),"") ->  | N116: =IF(G116<>"",VLOOKUP(G116,الرصيد!$F$2:$L$1160,7,0),"") -> 
B117: =IF(F117="","",IF(COUNTIF(F$2:$F117,F117)-1=0,ROWS(F$2:$F117),"r")) ->  | C117: =IF(G117="","",IF(COUNTIF($G$2:G117,G117)-1=0,ROWS($G$2:G117),"r")) ->  | D117: =IF($A$1=F117,COUNTIF($F$2:F117,F117),"") ->  | I117: =IF(G117<>"",VLOOKUP(G117,التكويد!$A$1:$D$201,2,0),"") ->  | J117: =IF(F117<>"",VLOOKUP(F117,الموظفين!$A$2:$B$2006,2,0),"") ->  | K117: =IF(G117<>"",VLOOKUP(G117,التكويد!$A$1:$D$201,4,0)*H117,"") ->  | M117: =IF(G117<>"",VLOOKUP(G117,الرصيد!$F$2:$L$1160,6,0),"") ->  | N117: =IF(G117<>"",VLOOKUP(G117,الرصيد!$F$2:$L$1160,7,0),"") -> 
B118: =IF(F118="","",IF(COUNTIF(F$2:$F118,F118)-1=0,ROWS(F$2:$F118),"r")) ->  | C118: =IF(G118="","",IF(COUNTIF($G$2:G118,G118)-1=0,ROWS($G$2:G118),"r")) ->  | D118: =IF($A$1=F118,COUNTIF($F$2:F118,F118),"") ->  | I118: =IF(G118<>"",VLOOKUP(G118,التكويد!$A$1:$D$201,2,0),"") ->  | J118: =IF(F118<>"",VLOOKUP(F118,الموظفين!$A$2:$B$2006,2,0),"") ->  | K118: =IF(G118<>"",VLOOKUP(G118,التكويد!$A$1:$D$201,4,0)*H118,"") ->  | M118: =IF(G118<>"",VLOOKUP(G118,الرصيد!$F$2:$L$1160,6,0),"") ->  | N118: =IF(G118<>"",VLOOKUP(G118,الرصيد!$F$2:$L$1160,7,0),"") -> 
B119: =IF(F119="","",IF(COUNTIF(F$2:$F119,F119)-1=0,ROWS(F$2:$F119),"r")) ->  | C119: =IF(G119="","",IF(COUNTIF($G$2:G119,G119)-1=0,ROWS($G$2:G119),"r")) ->  | D119: =IF($A$1=F119,COUNTIF($F$2:F119,F119),"") ->  | I119: =IF(G119<>"",VLOOKUP(G119,التكويد!$A$1:$D$201,2,0),"") ->  | J119: =IF(F119<>"",VLOOKUP(F119,الموظفين!$A$2:$B$2006,2,0),"") ->  | K119: =IF(G119<>"",VLOOKUP(G119,التكويد!$A$1:$D$201,4,0)*H119,"") ->  | M119: =IF(G119<>"",VLOOKUP(G119,الرصيد!$F$2:$L$1160,6,0),"") ->  | N119: =IF(G119<>"",VLOOKUP(G119,الرصيد!$F$2:$L$1160,7,0),"") -> 
B120: =IF(F120="","",IF(COUNTIF(F$2:$F120,F120)-1=0,ROWS(F$2:$F120),"r")) ->  | C120: =IF(G120="","",IF(COUNTIF($G$2:G120,G120)-1=0,ROWS($G$2:G120),"r")) ->  | D120: =IF($A$1=F120,COUNTIF($F$2:F120,F120),"") ->  | I120: =IF(G120<>"",VLOOKUP(G120,التكويد!$A$1:$D$201,2,0),"") ->  | J120: =IF(F120<>"",VLOOKUP(F120,الموظفين!$A$2:$B$2006,2,0),"") ->  | K120: =IF(G120<>"",VLOOKUP(G120,التكويد!$A$1:$D$201,4,0)*H120,"") ->  | M120: =IF(G120<>"",VLOOKUP(G120,الرصيد!$F$2:$L$1160,6,0),"") ->  | N120: =IF(G120<>"",VLOOKUP(G120,الرصيد!$F$2:$L$1160,7,0),"") -> 
B121: =IF(F121="","",IF(COUNTIF(F$2:$F121,F121)-1=0,ROWS(F$2:$F121),"r")) ->  | C121: =IF(G121="","",IF(COUNTIF($G$2:G121,G121)-1=0,ROWS($G$2:G121),"r")) ->  | D121: =IF($A$1=F121,COUNTIF($F$2:F121,F121),"") ->  | I121: =IF(G121<>"",VLOOKUP(G121,التكويد!$A$1:$D$201,2,0),"") ->  | J121: =IF(F121<>"",VLOOKUP(F121,الموظفين!$A$2:$B$2006,2,0),"") ->  | K121: =IF(G121<>"",VLOOKUP(G121,التكويد!$A$1:$D$201,4,0)*H121,"") ->  | M121: =IF(G121<>"",VLOOKUP(G121,الرصيد!$F$2:$L$1160,6,0),"") ->  | N121: =IF(G121<>"",VLOOKUP(G121,الرصيد!$F$2:$L$1160,7,0),"") -> 
B122: =IF(F122="","",IF(COUNTIF(F$2:$F122,F122)-1=0,ROWS(F$2:$F122),"r")) ->  | C122: =IF(G122="","",IF(COUNTIF($G$2:G122,G122)-1=0,ROWS($G$2:G122),"r")) ->  | D122: =IF($A$1=F122,COUNTIF($F$2:F122,F122),"") ->  | I122: =IF(G122<>"",VLOOKUP(G122,التكويد!$A$1:$D$201,2,0),"") ->  | J122: =IF(F122<>"",VLOOKUP(F122,الموظفين!$A$2:$B$2006,2,0),"") ->  | K122: =IF(G122<>"",VLOOKUP(G122,التكويد!$A$1:$D$201,4,0)*H122,"") ->  | M122: =IF(G122<>"",VLOOKUP(G122,الرصيد!$F$2:$L$1160,6,0),"") ->  | N122: =IF(G122<>"",VLOOKUP(G122,الرصيد!$F$2:$L$1160,7,0),"") -> 
B123: =IF(F123="","",IF(COUNTIF(F$2:$F123,F123)-1=0,ROWS(F$2:$F123),"r")) ->  | C123: =IF(G123="","",IF(COUNTIF($G$2:G123,G123)-1=0,ROWS($G$2:G123),"r")) ->  | D123: =IF($A$1=F123,COUNTIF($F$2:F123,F123),"") ->  | I123: =IF(G123<>"",VLOOKUP(G123,التكويد!$A$1:$D$201,2,0),"") ->  | J123: =IF(F123<>"",VLOOKUP(F123,الموظفين!$A$2:$B$2006,2,0),"") ->  | K123: =IF(G123<>"",VLOOKUP(G123,التكويد!$A$1:$D$201,4,0)*H123,"") ->  | M123: =IF(G123<>"",VLOOKUP(G123,الرصيد!$F$2:$L$1160,6,0),"") ->  | N123: =IF(G123<>"",VLOOKUP(G123,الرصيد!$F$2:$L$1160,7,0),"") -> 
B124: =IF(F124="","",IF(COUNTIF(F$2:$F124,F124)-1=0,ROWS(F$2:$F124),"r")) ->  | C124: =IF(G124="","",IF(COUNTIF($G$2:G124,G124)-1=0,ROWS($G$2:G124),"r")) ->  | D124: =IF($A$1=F124,COUNTIF($F$2:F124,F124),"") ->  | I124: =IF(G124<>"",VLOOKUP(G124,التكويد!$A$1:$D$201,2,0),"") ->  | J124: =IF(F124<>"",VLOOKUP(F124,الموظفين!$A$2:$B$2006,2,0),"") ->  | K124: =IF(G124<>"",VLOOKUP(G124,التكويد!$A$1:$D$201,4,0)*H124,"") ->  | M124: =IF(G124<>"",VLOOKUP(G124,الرصيد!$F$2:$L$1160,6,0),"") ->  | N124: =IF(G124<>"",VLOOKUP(G124,الرصيد!$F$2:$L$1160,7,0),"") -> 
B125: =IF(F125="","",IF(COUNTIF(F$2:$F125,F125)-1=0,ROWS(F$2:$F125),"r")) ->  | C125: =IF(G125="","",IF(COUNTIF($G$2:G125,G125)-1=0,ROWS($G$2:G125),"r")) ->  | D125: =IF($A$1=F125,COUNTIF($F$2:F125,F125),"") ->  | I125: =IF(G125<>"",VLOOKUP(G125,التكويد!$A$1:$D$201,2,0),"") ->  | J125: =IF(F125<>"",VLOOKUP(F125,الموظفين!$A$2:$B$2006,2,0),"") ->  | K125: =IF(G125<>"",VLOOKUP(G125,التكويد!$A$1:$D$201,4,0)*H125,"") ->  | M125: =IF(G125<>"",VLOOKUP(G125,الرصيد!$F$2:$L$1160,6,0),"") ->  | N125: =IF(G125<>"",VLOOKUP(G125,الرصيد!$F$2:$L$1160,7,0),"") -> 
B126: =IF(F126="","",IF(COUNTIF(F$2:$F126,F126)-1=0,ROWS(F$2:$F126),"r")) ->  | C126: =IF(G126="","",IF(COUNTIF($G$2:G126,G126)-1=0,ROWS($G$2:G126),"r")) ->  | D126: =IF($A$1=F126,COUNTIF($F$2:F126,F126),"") ->  | I126: =IF(G126<>"",VLOOKUP(G126,التكويد!$A$1:$D$201,2,0),"") ->  | J126: =IF(F126<>"",VLOOKUP(F126,الموظفين!$A$2:$B$2006,2,0),"") ->  | K126: =IF(G126<>"",VLOOKUP(G126,التكويد!$A$1:$D$201,4,0)*H126,"") ->  | M126: =IF(G126<>"",VLOOKUP(G126,الرصيد!$F$2:$L$1160,6,0),"") ->  | N126: =IF(G126<>"",VLOOKUP(G126,الرصيد!$F$2:$L$1160,7,0),"") -> 
B127: =IF(F127="","",IF(COUNTIF(F$2:$F127,F127)-1=0,ROWS(F$2:$F127),"r")) ->  | C127: =IF(G127="","",IF(COUNTIF($G$2:G127,G127)-1=0,ROWS($G$2:G127),"r")) ->  | D127: =IF($A$1=F127,COUNTIF($F$2:F127,F127),"") ->  | I127: =IF(G127<>"",VLOOKUP(G127,التكويد!$A$1:$D$201,2,0),"") ->  | J127: =IF(F127<>"",VLOOKUP(F127,الموظفين!$A$2:$B$2006,2,0),"") ->  | K127: =IF(G127<>"",VLOOKUP(G127,التكويد!$A$1:$D$201,4,0)*H127,"") ->  | M127: =IF(G127<>"",VLOOKUP(G127,الرصيد!$F$2:$L$1160,6,0),"") ->  | N127: =IF(G127<>"",VLOOKUP(G127,الرصيد!$F$2:$L$1160,7,0),"") -> 
B128: =IF(F128="","",IF(COUNTIF(F$2:$F128,F128)-1=0,ROWS(F$2:$F128),"r")) ->  | C128: =IF(G128="","",IF(COUNTIF($G$2:G128,G128)-1=0,ROWS($G$2:G128),"r")) ->  | D128: =IF($A$1=F128,COUNTIF($F$2:F128,F128),"") ->  | I128: =IF(G128<>"",VLOOKUP(G128,التكويد!$A$1:$D$201,2,0),"") ->  | J128: =IF(F128<>"",VLOOKUP(F128,الموظفين!$A$2:$B$2006,2,0),"") ->  | K128: =IF(G128<>"",VLOOKUP(G128,التكويد!$A$1:$D$201,4,0)*H128,"") ->  | M128: =IF(G128<>"",VLOOKUP(G128,الرصيد!$F$2:$L$1160,6,0),"") ->  | N128: =IF(G128<>"",VLOOKUP(G128,الرصيد!$F$2:$L$1160,7,0),"") -> 
B129: =IF(F129="","",IF(COUNTIF(F$2:$F129,F129)-1=0,ROWS(F$2:$F129),"r")) ->  | C129: =IF(G129="","",IF(COUNTIF($G$2:G129,G129)-1=0,ROWS($G$2:G129),"r")) ->  | D129: =IF($A$1=F129,COUNTIF($F$2:F129,F129),"") ->  | I129: =IF(G129<>"",VLOOKUP(G129,التكويد!$A$1:$D$201,2,0),"") ->  | J129: =IF(F129<>"",VLOOKUP(F129,الموظفين!$A$2:$B$2006,2,0),"") ->  | K129: =IF(G129<>"",VLOOKUP(G129,التكويد!$A$1:$D$201,4,0)*H129,"") ->  | M129: =IF(G129<>"",VLOOKUP(G129,الرصيد!$F$2:$L$1160,6,0),"") ->  | N129: =IF(G129<>"",VLOOKUP(G129,الرصيد!$F$2:$L$1160,7,0),"") -> 
B130: =IF(F130="","",IF(COUNTIF(F$2:$F130,F130)-1=0,ROWS(F$2:$F130),"r")) ->  | C130: =IF(G130="","",IF(COUNTIF($G$2:G130,G130)-1=0,ROWS($G$2:G130),"r")) ->  | D130: =IF($A$1=F130,COUNTIF($F$2:F130,F130),"") ->  | I130: =IF(G130<>"",VLOOKUP(G130,التكويد!$A$1:$D$201,2,0),"") ->  | J130: =IF(F130<>"",VLOOKUP(F130,الموظفين!$A$2:$B$2006,2,0),"") ->  | K130: =IF(G130<>"",VLOOKUP(G130,التكويد!$A$1:$D$201,4,0)*H130,"") ->  | M130: =IF(G130<>"",VLOOKUP(G130,الرصيد!$F$2:$L$1160,6,0),"") ->  | N130: =IF(G130<>"",VLOOKUP(G130,الرصيد!$F$2:$L$1160,7,0),"") -> 
B131: =IF(F131="","",IF(COUNTIF(F$2:$F131,F131)-1=0,ROWS(F$2:$F131),"r")) ->  | C131: =IF(G131="","",IF(COUNTIF($G$2:G131,G131)-1=0,ROWS($G$2:G131),"r")) ->  | D131: =IF($A$1=F131,COUNTIF($F$2:F131,F131),"") ->  | I131: =IF(G131<>"",VLOOKUP(G131,التكويد!$A$1:$D$201,2,0),"") ->  | J131: =IF(F131<>"",VLOOKUP(F131,الموظفين!$A$2:$B$2006,2,0),"") ->  | K131: =IF(G131<>"",VLOOKUP(G131,التكويد!$A$1:$D$201,4,0)*H131,"") ->  | L131: =IF(H131="","",IF(H131<0,"منصرف",IF(H131>0,"بيع"))) ->  | M131: =IF(G131<>"",VLOOKUP(G131,الرصيد!$F$2:$L$1160,6,0),"") ->  | N131: =IF(G131<>"",VLOOKUP(G131,الرصيد!$F$2:$L$1160,7,0),"") -> 
B132: =IF(F132="","",IF(COUNTIF(F$2:$F132,F132)-1=0,ROWS(F$2:$F132),"r")) ->  | C132: =IF(G132="","",IF(COUNTIF($G$2:G132,G132)-1=0,ROWS($G$2:G132),"r")) ->  | D132: =IF($A$1=F132,COUNTIF($F$2:F132,F132),"") ->  | I132: =IF(G132<>"",VLOOKUP(G132,التكويد!$A$1:$D$201,2,0),"") ->  | J132: =IF(F132<>"",VLOOKUP(F132,الموظفين!$A$2:$B$2006,2,0),"") ->  | K132: =IF(G132<>"",VLOOKUP(G132,التكويد!$A$1:$D$201,4,0)*H132,"") ->  | M132: =IF(G132<>"",VLOOKUP(G132,الرصيد!$F$2:$L$1160,6,0),"") ->  | N132: =IF(G132<>"",VLOOKUP(G132,الرصيد!$F$2:$L$1160,7,0),"") -> 
B133: =IF(F133="","",IF(COUNTIF(F$2:$F133,F133)-1=0,ROWS(F$2:$F133),"r")) ->  | C133: =IF(G133="","",IF(COUNTIF($G$2:G133,G133)-1=0,ROWS($G$2:G133),"r")) ->  | D133: =IF($A$1=F133,COUNTIF($F$2:F133,F133),"") ->  | I133: =IF(G133<>"",VLOOKUP(G133,التكويد!$A$1:$D$201,2,0),"") ->  | J133: =IF(F133<>"",VLOOKUP(F133,الموظفين!$A$2:$B$2006,2,0),"") ->  | K133: =IF(G133<>"",VLOOKUP(G133,التكويد!$A$1:$D$201,4,0)*H133,"") ->  | M133: =IF(G133<>"",VLOOKUP(G133,الرصيد!$F$2:$L$1160,6,0),"") ->  | N133: =IF(G133<>"",VLOOKUP(G133,الرصيد!$F$2:$L$1160,7,0),"") -> 
B134: =IF(F134="","",IF(COUNTIF(F$2:$F134,F134)-1=0,ROWS(F$2:$F134),"r")) ->  | C134: =IF(G134="","",IF(COUNTIF($G$2:G134,G134)-1=0,ROWS($G$2:G134),"r")) ->  | D134: =IF($A$1=F134,COUNTIF($F$2:F134,F134),"") ->  | I134: =IF(G134<>"",VLOOKUP(G134,التكويد!$A$1:$D$201,2,0),"") ->  | J134: =IF(F134<>"",VLOOKUP(F134,الموظفين!$A$2:$B$2006,2,0),"") ->  | K134: =IF(G134<>"",VLOOKUP(G134,التكويد!$A$1:$D$201,4,0)*H134,"") ->  | M134: =IF(G134<>"",VLOOKUP(G134,الرصيد!$F$2:$L$1160,6,0),"") ->  | N134: =IF(G134<>"",VLOOKUP(G134,الرصيد!$F$2:$L$1160,7,0),"") -> 
B135: =IF(F135="","",IF(COUNTIF(F$2:$F135,F135)-1=0,ROWS(F$2:$F135),"r")) ->  | C135: =IF(G135="","",IF(COUNTIF($G$2:G135,G135)-1=0,ROWS($G$2:G135),"r")) ->  | D135: =IF($A$1=F135,COUNTIF($F$2:F135,F135),"") ->  | I135: =IF(G135<>"",VLOOKUP(G135,التكويد!$A$1:$D$201,2,0),"") ->  | J135: =IF(F135<>"",VLOOKUP(F135,الموظفين!$A$2:$B$2006,2,0),"") ->  | K135: =IF(G135<>"",VLOOKUP(G135,التكويد!$A$1:$D$201,4,0)*H135,"") ->  | M135: =IF(G135<>"",VLOOKUP(G135,الرصيد!$F$2:$L$1160,6,0),"") ->  | N135: =IF(G135<>"",VLOOKUP(G135,الرصيد!$F$2:$L$1160,7,0),"") -> 
B136: =IF(F136="","",IF(COUNTIF(F$2:$F136,F136)-1=0,ROWS(F$2:$F136),"r")) ->  | C136: =IF(G136="","",IF(COUNTIF($G$2:G136,G136)-1=0,ROWS($G$2:G136),"r")) ->  | D136: =IF($A$1=F136,COUNTIF($F$2:F136,F136),"") ->  | I136: =IF(G136<>"",VLOOKUP(G136,التكويد!$A$1:$D$201,2,0),"") ->  | J136: =IF(F136<>"",VLOOKUP(F136,الموظفين!$A$2:$B$2006,2,0),"") ->  | K136: =IF(G136<>"",VLOOKUP(G136,التكويد!$A$1:$D$201,4,0)*H136,"") ->  | M136: =IF(G136<>"",VLOOKUP(G136,الرصيد!$F$2:$L$1160,6,0),"") ->  | N136: =IF(G136<>"",VLOOKUP(G136,الرصيد!$F$2:$L$1160,7,0),"") -> 
B137: =IF(F137="","",IF(COUNTIF(F$2:$F137,F137)-1=0,ROWS(F$2:$F137),"r")) ->  | C137: =IF(G137="","",IF(COUNTIF($G$2:G137,G137)-1=0,ROWS($G$2:G137),"r")) ->  | D137: =IF($A$1=F137,COUNTIF($F$2:F137,F137),"") ->  | I137: =IF(G137<>"",VLOOKUP(G137,التكويد!$A$1:$D$201,2,0),"") ->  | J137: =IF(F137<>"",VLOOKUP(F137,الموظفين!$A$2:$B$2006,2,0),"") ->  | K137: =IF(G137<>"",VLOOKUP(G137,التكويد!$A$1:$D$201,4,0)*H137,"") ->  | M137: =IF(G137<>"",VLOOKUP(G137,الرصيد!$F$2:$L$1160,6,0),"") ->  | N137: =IF(G137<>"",VLOOKUP(G137,الرصيد!$F$2:$L$1160,7,0),"") -> 
B138: =IF(F138="","",IF(COUNTIF(F$2:$F138,F138)-1=0,ROWS(F$2:$F138),"r")) ->  | C138: =IF(G138="","",IF(COUNTIF($G$2:G138,G138)-1=0,ROWS($G$2:G138),"r")) ->  | D138: =IF($A$1=F138,COUNTIF($F$2:F138,F138),"") ->  | I138: =IF(G138<>"",VLOOKUP(G138,التكويد!$A$1:$D$201,2,0),"") ->  | J138: =IF(F138<>"",VLOOKUP(F138,الموظفين!$A$2:$B$2006,2,0),"") ->  | K138: =IF(G138<>"",VLOOKUP(G138,التكويد!$A$1:$D$201,4,0)*H138,"") ->  | M138: =IF(G138<>"",VLOOKUP(G138,الرصيد!$F$2:$L$1160,6,0),"") ->  | N138: =IF(G138<>"",VLOOKUP(G138,الرصيد!$F$2:$L$1160,7,0),"") -> 
B139: =IF(F139="","",IF(COUNTIF(F$2:$F139,F139)-1=0,ROWS(F$2:$F139),"r")) ->  | C139: =IF(G139="","",IF(COUNTIF($G$2:G139,G139)-1=0,ROWS($G$2:G139),"r")) ->  | D139: =IF($A$1=F139,COUNTIF($F$2:F139,F139),"") ->  | I139: =IF(G139<>"",VLOOKUP(G139,التكويد!$A$1:$D$201,2,0),"") ->  | J139: =IF(F139<>"",VLOOKUP(F139,الموظفين!$A$2:$B$2006,2,0),"") ->  | K139: =IF(G139<>"",VLOOKUP(G139,التكويد!$A$1:$D$201,4,0)*H139,"") ->  | M139: =IF(G139<>"",VLOOKUP(G139,الرصيد!$F$2:$L$1160,6,0),"") ->  | N139: =IF(G139<>"",VLOOKUP(G139,الرصيد!$F$2:$L$1160,7,0),"") -> 
B140: =IF(F140="","",IF(COUNTIF(F$2:$F140,F140)-1=0,ROWS(F$2:$F140),"r")) ->  | C140: =IF(G140="","",IF(COUNTIF($G$2:G140,G140)-1=0,ROWS($G$2:G140),"r")) ->  | D140: =IF($A$1=F140,COUNTIF($F$2:F140,F140),"") ->  | I140: =IF(G140<>"",VLOOKUP(G140,التكويد!$A$1:$D$201,2,0),"") ->  | J140: =IF(F140<>"",VLOOKUP(F140,الموظفين!$A$2:$B$2006,2,0),"") ->  | K140: =IF(G140<>"",VLOOKUP(G140,التكويد!$A$1:$D$201,4,0)*H140,"") ->  | M140: =IF(G140<>"",VLOOKUP(G140,الرصيد!$F$2:$L$1160,6,0),"") ->  | N140: =IF(G140<>"",VLOOKUP(G140,الرصيد!$F$2:$L$1160,7,0),"") -> 
B141: =IF(F141="","",IF(COUNTIF(F$2:$F141,F141)-1=0,ROWS(F$2:$F141),"r")) ->  | C141: =IF(G141="","",IF(COUNTIF($G$2:G141,G141)-1=0,ROWS($G$2:G141),"r")) ->  | D141: =IF($A$1=F141,COUNTIF($F$2:F141,F141),"") ->  | I141: =IF(G141<>"",VLOOKUP(G141,التكويد!$A$1:$D$201,2,0),"") ->  | J141: =IF(F141<>"",VLOOKUP(F141,الموظفين!$A$2:$B$2006,2,0),"") ->  | K141: =IF(G141<>"",VLOOKUP(G141,التكويد!$A$1:$D$201,4,0)*H141,"") ->  | M141: =IF(G141<>"",VLOOKUP(G141,الرصيد!$F$2:$L$1160,6,0),"") ->  | N141: =IF(G141<>"",VLOOKUP(G141,الرصيد!$F$2:$L$1160,7,0),"") -> 
B142: =IF(F142="","",IF(COUNTIF(F$2:$F142,F142)-1=0,ROWS(F$2:$F142),"r")) ->  | C142: =IF(G142="","",IF(COUNTIF($G$2:G142,G142)-1=0,ROWS($G$2:G142),"r")) ->  | D142: =IF($A$1=F142,COUNTIF($F$2:F142,F142),"") ->  | I142: =IF(G142<>"",VLOOKUP(G142,التكويد!$A$1:$D$201,2,0),"") ->  | J142: =IF(F142<>"",VLOOKUP(F142,الموظفين!$A$2:$B$2006,2,0),"") ->  | K142: =IF(G142<>"",VLOOKUP(G142,التكويد!$A$1:$D$201,4,0)*H142,"") ->  | M142: =IF(G142<>"",VLOOKUP(G142,الرصيد!$F$2:$L$1160,6,0),"") ->  | N142: =IF(G142<>"",VLOOKUP(G142,الرصيد!$F$2:$L$1160,7,0),"") -> 
B143: =IF(F143="","",IF(COUNTIF(F$2:$F143,F143)-1=0,ROWS(F$2:$F143),"r")) ->  | C143: =IF(G143="","",IF(COUNTIF($G$2:G143,G143)-1=0,ROWS($G$2:G143),"r")) ->  | D143: =IF($A$1=F143,COUNTIF($F$2:F143,F143),"") ->  | I143: =IF(G143<>"",VLOOKUP(G143,التكويد!$A$1:$D$201,2,0),"") ->  | J143: =IF(F143<>"",VLOOKUP(F143,الموظفين!$A$2:$B$2006,2,0),"") ->  | K143: =IF(G143<>"",VLOOKUP(G143,التكويد!$A$1:$D$201,4,0)*H143,"") ->  | M143: =IF(G143<>"",VLOOKUP(G143,الرصيد!$F$2:$L$1160,6,0),"") ->  | N143: =IF(G143<>"",VLOOKUP(G143,الرصيد!$F$2:$L$1160,7,0),"") -> 
B144: =IF(F144="","",IF(COUNTIF(F$2:$F144,F144)-1=0,ROWS(F$2:$F144),"r")) ->  | C144: =IF(G144="","",IF(COUNTIF($G$2:G144,G144)-1=0,ROWS($G$2:G144),"r")) ->  | D144: =IF($A$1=F144,COUNTIF($F$2:F144,F144),"") ->  | I144: =IF(G144<>"",VLOOKUP(G144,التكويد!$A$1:$D$201,2,0),"") ->  | J144: =IF(F144<>"",VLOOKUP(F144,الموظفين!$A$2:$B$2006,2,0),"") ->  | K144: =IF(G144<>"",VLOOKUP(G144,التكويد!$A$1:$D$201,4,0)*H144,"") ->  | M144: =IF(G144<>"",VLOOKUP(G144,الرصيد!$F$2:$L$1160,6,0),"") ->  | N144: =IF(G144<>"",VLOOKUP(G144,الرصيد!$F$2:$L$1160,7,0),"") -> 
B145: =IF(F145="","",IF(COUNTIF(F$2:$F145,F145)-1=0,ROWS(F$2:$F145),"r")) ->  | C145: =IF(G145="","",IF(COUNTIF($G$2:G145,G145)-1=0,ROWS($G$2:G145),"r")) ->  | D145: =IF($A$1=F145,COUNTIF($F$2:F145,F145),"") ->  | I145: =IF(G145<>"",VLOOKUP(G145,التكويد!$A$1:$D$201,2,0),"") ->  | J145: =IF(F145<>"",VLOOKUP(F145,الموظفين!$A$2:$B$2006,2,0),"") ->  | K145: =IF(G145<>"",VLOOKUP(G145,التكويد!$A$1:$D$201,4,0)*H145,"") ->  | M145: =IF(G145<>"",VLOOKUP(G145,الرصيد!$F$2:$L$1160,6,0),"") ->  | N145: =IF(G145<>"",VLOOKUP(G145,الرصيد!$F$2:$L$1160,7,0),"") -> 
B146: =IF(F146="","",IF(COUNTIF(F$2:$F146,F146)-1=0,ROWS(F$2:$F146),"r")) ->  | C146: =IF(G146="","",IF(COUNTIF($G$2:G146,G146)-1=0,ROWS($G$2:G146),"r")) ->  | D146: =IF($A$1=F146,COUNTIF($F$2:F146,F146),"") ->  | I146: =IF(G146<>"",VLOOKUP(G146,التكويد!$A$1:$D$201,2,0),"") ->  | J146: =IF(F146<>"",VLOOKUP(F146,الموظفين!$A$2:$B$2006,2,0),"") ->  | K146: =IF(G146<>"",VLOOKUP(G146,التكويد!$A$1:$D$201,4,0)*H146,"") ->  | M146: =IF(G146<>"",VLOOKUP(G146,الرصيد!$F$2:$L$1160,6,0),"") ->  | N146: =IF(G146<>"",VLOOKUP(G146,الرصيد!$F$2:$L$1160,7,0),"") -> 
B147: =IF(F147="","",IF(COUNTIF(F$2:$F147,F147)-1=0,ROWS(F$2:$F147),"r")) ->  | C147: =IF(G147="","",IF(COUNTIF($G$2:G147,G147)-1=0,ROWS($G$2:G147),"r")) ->  | D147: =IF($A$1=F147,COUNTIF($F$2:F147,F147),"") ->  | I147: =IF(G147<>"",VLOOKUP(G147,التكويد!$A$1:$D$201,2,0),"") ->  | J147: =IF(F147<>"",VLOOKUP(F147,الموظفين!$A$2:$B$2006,2,0),"") ->  | K147: =IF(G147<>"",VLOOKUP(G147,التكويد!$A$1:$D$201,4,0)*H147,"") ->  | M147: =IF(G147<>"",VLOOKUP(G147,الرصيد!$F$2:$L$1160,6,0),"") ->  | N147: =IF(G147<>"",VLOOKUP(G147,الرصيد!$F$2:$L$1160,7,0),"") -> 
B148: =IF(F148="","",IF(COUNTIF(F$2:$F148,F148)-1=0,ROWS(F$2:$F148),"r")) ->  | C148: =IF(G148="","",IF(COUNTIF($G$2:G148,G148)-1=0,ROWS($G$2:G148),"r")) ->  | D148: =IF($A$1=F148,COUNTIF($F$2:F148,F148),"") ->  | I148: =IF(G148<>"",VLOOKUP(G148,التكويد!$A$1:$D$201,2,0),"") ->  | J148: =IF(F148<>"",VLOOKUP(F148,الموظفين!$A$2:$B$2006,2,0),"") ->  | K148: =IF(G148<>"",VLOOKUP(G148,التكويد!$A$1:$D$201,4,0)*H148,"") ->  | M148: =IF(G148<>"",VLOOKUP(G148,الرصيد!$F$2:$L$1160,6,0),"") ->  | N148: =IF(G148<>"",VLOOKUP(G148,الرصيد!$F$2:$L$1160,7,0),"") -> 
B149: =IF(F149="","",IF(COUNTIF(F$2:$F149,F149)-1=0,ROWS(F$2:$F149),"r")) ->  | C149: =IF(G149="","",IF(COUNTIF($G$2:G149,G149)-1=0,ROWS($G$2:G149),"r")) ->  | D149: =IF($A$1=F149,COUNTIF($F$2:F149,F149),"") ->  | I149: =IF(G149<>"",VLOOKUP(G149,التكويد!$A$1:$D$201,2,0),"") ->  | J149: =IF(F149<>"",VLOOKUP(F149,الموظفين!$A$2:$B$2006,2,0),"") ->  | K149: =IF(G149<>"",VLOOKUP(G149,التكويد!$A$1:$D$201,4,0)*H149,"") ->  | M149: =IF(G149<>"",VLOOKUP(G149,الرصيد!$F$2:$L$1160,6,0),"") ->  | N149: =IF(G149<>"",VLOOKUP(G149,الرصيد!$F$2:$L$1160,7,0),"") -> 
B150: =IF(F150="","",IF(COUNTIF(F$2:$F150,F150)-1=0,ROWS(F$2:$F150),"r")) ->  | C150: =IF(G150="","",IF(COUNTIF($G$2:G150,G150)-1=0,ROWS($G$2:G150),"r")) ->  | D150: =IF($A$1=F150,COUNTIF($F$2:F150,F150),"") ->  | I150: =IF(G150<>"",VLOOKUP(G150,التكويد!$A$1:$D$201,2,0),"") ->  | J150: =IF(F150<>"",VLOOKUP(F150,الموظفين!$A$2:$B$2006,2,0),"") ->  | K150: =IF(G150<>"",VLOOKUP(G150,التكويد!$A$1:$D$201,4,0)*H150,"") ->  | M150: =IF(G150<>"",VLOOKUP(G150,الرصيد!$F$2:$L$1160,6,0),"") ->  | N150: =IF(G150<>"",VLOOKUP(G150,الرصيد!$F$2:$L$1160,7,0),"") -> 
B151: =IF(F151="","",IF(COUNTIF(F$2:$F151,F151)-1=0,ROWS(F$2:$F151),"r")) ->  | C151: =IF(G151="","",IF(COUNTIF($G$2:G151,G151)-1=0,ROWS($G$2:G151),"r")) ->  | D151: =IF($A$1=F151,COUNTIF($F$2:F151,F151),"") ->  | I151: =IF(G151<>"",VLOOKUP(G151,التكويد!$A$1:$D$201,2,0),"") ->  | J151: =IF(F151<>"",VLOOKUP(F151,الموظفين!$A$2:$B$2006,2,0),"") ->  | K151: =IF(G151<>"",VLOOKUP(G151,التكويد!$A$1:$D$201,4,0)*H151,"") ->  | M151: =IF(G151<>"",VLOOKUP(G151,الرصيد!$F$2:$L$1160,6,0),"") ->  | N151: =IF(G151<>"",VLOOKUP(G151,الرصيد!$F$2:$L$1160,7,0),"") -> 
B152: =IF(F152="","",IF(COUNTIF(F$2:$F152,F152)-1=0,ROWS(F$2:$F152),"r")) ->  | C152: =IF(G152="","",IF(COUNTIF($G$2:G152,G152)-1=0,ROWS($G$2:G152),"r")) ->  | D152: =IF($A$1=F152,COUNTIF($F$2:F152,F152),"") ->  | I152: =IF(G152<>"",VLOOKUP(G152,التكويد!$A$1:$D$201,2,0),"") ->  | J152: =IF(F152<>"",VLOOKUP(F152,الموظفين!$A$2:$B$2006,2,0),"") ->  | K152: =IF(G152<>"",VLOOKUP(G152,التكويد!$A$1:$D$201,4,0)*H152,"") ->  | M152: =IF(G152<>"",VLOOKUP(G152,الرصيد!$F$2:$L$1160,6,0),"") ->  | N152: =IF(G152<>"",VLOOKUP(G152,الرصيد!$F$2:$L$1160,7,0),"") -> 
B153: =IF(F153="","",IF(COUNTIF(F$2:$F153,F153)-1=0,ROWS(F$2:$F153),"r")) ->  | C153: =IF(G153="","",IF(COUNTIF($G$2:G153,G153)-1=0,ROWS($G$2:G153),"r")) ->  | D153: =IF($A$1=F153,COUNTIF($F$2:F153,F153),"") ->  | I153: =IF(G153<>"",VLOOKUP(G153,التكويد!$A$1:$D$201,2,0),"") ->  | J153: =IF(F153<>"",VLOOKUP(F153,الموظفين!$A$2:$B$2006,2,0),"") ->  | K153: =IF(G153<>"",VLOOKUP(G153,التكويد!$A$1:$D$201,4,0)*H153,"") ->  | M153: =IF(G153<>"",VLOOKUP(G153,الرصيد!$F$2:$L$1160,6,0),"") ->  | N153: =IF(G153<>"",VLOOKUP(G153,الرصيد!$F$2:$L$1160,7,0),"") -> 
B154: =IF(F154="","",IF(COUNTIF(F$2:$F154,F154)-1=0,ROWS(F$2:$F154),"r")) ->  | C154: =IF(G154="","",IF(COUNTIF($G$2:G154,G154)-1=0,ROWS($G$2:G154),"r")) ->  | D154: =IF($A$1=F154,COUNTIF($F$2:F154,F154),"") ->  | I154: =IF(G154<>"",VLOOKUP(G154,التكويد!$A$1:$D$201,2,0),"") ->  | J154: =IF(F154<>"",VLOOKUP(F154,الموظفين!$A$2:$B$2006,2,0),"") ->  | K154: =IF(G154<>"",VLOOKUP(G154,التكويد!$A$1:$D$201,4,0)*H154,"") ->  | M154: =IF(G154<>"",VLOOKUP(G154,الرصيد!$F$2:$L$1160,6,0),"") ->  | N154: =IF(G154<>"",VLOOKUP(G154,الرصيد!$F$2:$L$1160,7,0),"") -> 
B155: =IF(F155="","",IF(COUNTIF(F$2:$F155,F155)-1=0,ROWS(F$2:$F155),"r")) ->  | C155: =IF(G155="","",IF(COUNTIF($G$2:G155,G155)-1=0,ROWS($G$2:G155),"r")) ->  | D155: =IF($A$1=F155,COUNTIF($F$2:F155,F155),"") ->  | I155: =IF(G155<>"",VLOOKUP(G155,التكويد!$A$1:$D$201,2,0),"") ->  | J155: =IF(F155<>"",VLOOKUP(F155,الموظفين!$A$2:$B$2006,2,0),"") ->  | K155: =IF(G155<>"",VLOOKUP(G155,التكويد!$A$1:$D$201,4,0)*H155,"") ->  | M155: =IF(G155<>"",VLOOKUP(G155,الرصيد!$F$2:$L$1160,6,0),"") ->  | N155: =IF(G155<>"",VLOOKUP(G155,الرصيد!$F$2:$L$1160,7,0),"") -> 
B156: =IF(F156="","",IF(COUNTIF(F$2:$F156,F156)-1=0,ROWS(F$2:$F156),"r")) ->  | C156: =IF(G156="","",IF(COUNTIF($G$2:G156,G156)-1=0,ROWS($G$2:G156),"r")) ->  | D156: =IF($A$1=F156,COUNTIF($F$2:F156,F156),"") ->  | I156: =IF(G156<>"",VLOOKUP(G156,التكويد!$A$1:$D$201,2,0),"") ->  | J156: =IF(F156<>"",VLOOKUP(F156,الموظفين!$A$2:$B$2006,2,0),"") ->  | K156: =IF(G156<>"",VLOOKUP(G156,التكويد!$A$1:$D$201,4,0)*H156,"") ->  | M156: =IF(G156<>"",VLOOKUP(G156,الرصيد!$F$2:$L$1160,6,0),"") ->  | N156: =IF(G156<>"",VLOOKUP(G156,الرصيد!$F$2:$L$1160,7,0),"") -> 
B157: =IF(F157="","",IF(COUNTIF(F$2:$F157,F157)-1=0,ROWS(F$2:$F157),"r")) ->  | C157: =IF(G157="","",IF(COUNTIF($G$2:G157,G157)-1=0,ROWS($G$2:G157),"r")) ->  | D157: =IF($A$1=F157,COUNTIF($F$2:F157,F157),"") ->  | I157: =IF(G157<>"",VLOOKUP(G157,التكويد!$A$1:$D$201,2,0),"") ->  | J157: =IF(F157<>"",VLOOKUP(F157,الموظفين!$A$2:$B$2006,2,0),"") ->  | K157: =IF(G157<>"",VLOOKUP(G157,التكويد!$A$1:$D$201,4,0)*H157,"") ->  | M157: =IF(G157<>"",VLOOKUP(G157,الرصيد!$F$2:$L$1160,6,0),"") ->  | N157: =IF(G157<>"",VLOOKUP(G157,الرصيد!$F$2:$L$1160,7,0),"") -> 
B158: =IF(F158="","",IF(COUNTIF(F$2:$F158,F158)-1=0,ROWS(F$2:$F158),"r")) ->  | C158: =IF(G158="","",IF(COUNTIF($G$2:G158,G158)-1=0,ROWS($G$2:G158),"r")) ->  | D158: =IF($A$1=F158,COUNTIF($F$2:F158,F158),"") ->  | I158: =IF(G158<>"",VLOOKUP(G158,التكويد!$A$1:$D$201,2,0),"") ->  | J158: =IF(F158<>"",VLOOKUP(F158,الموظفين!$A$2:$B$2006,2,0),"") ->  | K158: =IF(G158<>"",VLOOKUP(G158,التكويد!$A$1:$D$201,4,0)*H158,"") ->  | M158: =IF(G158<>"",VLOOKUP(G158,الرصيد!$F$2:$L$1160,6,0),"") ->  | N158: =IF(G158<>"",VLOOKUP(G158,الرصيد!$F$2:$L$1160,7,0),"") -> 
B159: =IF(F159="","",IF(COUNTIF(F$2:$F159,F159)-1=0,ROWS(F$2:$F159),"r")) ->  | C159: =IF(G159="","",IF(COUNTIF($G$2:G159,G159)-1=0,ROWS($G$2:G159),"r")) ->  | D159: =IF($A$1=F159,COUNTIF($F$2:F159,F159),"") ->  | I159: =IF(G159<>"",VLOOKUP(G159,التكويد!$A$1:$D$201,2,0),"") ->  | J159: =IF(F159<>"",VLOOKUP(F159,الموظفين!$A$2:$B$2006,2,0),"") ->  | K159: =IF(G159<>"",VLOOKUP(G159,التكويد!$A$1:$D$201,4,0)*H159,"") ->  | M159: =IF(G159<>"",VLOOKUP(G159,الرصيد!$F$2:$L$1160,6,0),"") ->  | N159: =IF(G159<>"",VLOOKUP(G159,الرصيد!$F$2:$L$1160,7,0),"") -> 
B160: =IF(F160="","",IF(COUNTIF(F$2:$F160,F160)-1=0,ROWS(F$2:$F160),"r")) ->  | C160: =IF(G160="","",IF(COUNTIF($G$2:G160,G160)-1=0,ROWS($G$2:G160),"r")) ->  | D160: =IF($A$1=F160,COUNTIF($F$2:F160,F160),"") ->  | I160: =IF(G160<>"",VLOOKUP(G160,التكويد!$A$1:$D$201,2,0),"") ->  | J160: =IF(F160<>"",VLOOKUP(F160,الموظفين!$A$2:$B$2006,2,0),"") ->  | K160: =IF(G160<>"",VLOOKUP(G160,التكويد!$A$1:$D$201,4,0)*H160,"") ->  | M160: =IF(G160<>"",VLOOKUP(G160,الرصيد!$F$2:$L$1160,6,0),"") ->  | N160: =IF(G160<>"",VLOOKUP(G160,الرصيد!$F$2:$L$1160,7,0),"") -> 
B161: =IF(F161="","",IF(COUNTIF(F$2:$F161,F161)-1=0,ROWS(F$2:$F161),"r")) ->  | C161: =IF(G161="","",IF(COUNTIF($G$2:G161,G161)-1=0,ROWS($G$2:G161),"r")) ->  | D161: =IF($A$1=F161,COUNTIF($F$2:F161,F161),"") ->  | I161: =IF(G161<>"",VLOOKUP(G161,التكويد!$A$1:$D$201,2,0),"") ->  | J161: =IF(F161<>"",VLOOKUP(F161,الموظفين!$A$2:$B$2006,2,0),"") ->  | K161: =IF(G161<>"",VLOOKUP(G161,التكويد!$A$1:$D$201,4,0)*H161,"") ->  | M161: =IF(G161<>"",VLOOKUP(G161,الرصيد!$F$2:$L$1160,6,0),"") ->  | N161: =IF(G161<>"",VLOOKUP(G161,الرصيد!$F$2:$L$1160,7,0),"") -> 
B162: =IF(F162="","",IF(COUNTIF(F$2:$F162,F162)-1=0,ROWS(F$2:$F162),"r")) ->  | C162: =IF(G162="","",IF(COUNTIF($G$2:G162,G162)-1=0,ROWS($G$2:G162),"r")) ->  | D162: =IF($A$1=F162,COUNTIF($F$2:F162,F162),"") ->  | I162: =IF(G162<>"",VLOOKUP(G162,التكويد!$A$1:$D$201,2,0),"") ->  | J162: =IF(F162<>"",VLOOKUP(F162,الموظفين!$A$2:$B$2006,2,0),"") ->  | K162: =IF(G162<>"",VLOOKUP(G162,التكويد!$A$1:$D$201,4,0)*H162,"") ->  | M162: =IF(G162<>"",VLOOKUP(G162,الرصيد!$F$2:$L$1160,6,0),"") ->  | N162: =IF(G162<>"",VLOOKUP(G162,الرصيد!$F$2:$L$1160,7,0),"") -> 
B163: =IF(F163="","",IF(COUNTIF(F$2:$F163,F163)-1=0,ROWS(F$2:$F163),"r")) ->  | C163: =IF(G163="","",IF(COUNTIF($G$2:G163,G163)-1=0,ROWS($G$2:G163),"r")) ->  | D163: =IF($A$1=F163,COUNTIF($F$2:F163,F163),"") ->  | I163: =IF(G163<>"",VLOOKUP(G163,التكويد!$A$1:$D$201,2,0),"") ->  | J163: =IF(F163<>"",VLOOKUP(F163,الموظفين!$A$2:$B$2006,2,0),"") ->  | K163: =IF(G163<>"",VLOOKUP(G163,التكويد!$A$1:$D$201,4,0)*H163,"") ->  | M163: =IF(G163<>"",VLOOKUP(G163,الرصيد!$F$2:$L$1160,6,0),"") ->  | N163: =IF(G163<>"",VLOOKUP(G163,الرصيد!$F$2:$L$1160,7,0),"") -> 
B164: =IF(F164="","",IF(COUNTIF(F$2:$F164,F164)-1=0,ROWS(F$2:$F164),"r")) ->  | C164: =IF(G164="","",IF(COUNTIF($G$2:G164,G164)-1=0,ROWS($G$2:G164),"r")) ->  | D164: =IF($A$1=F164,COUNTIF($F$2:F164,F164),"") ->  | I164: =IF(G164<>"",VLOOKUP(G164,التكويد!$A$1:$D$201,2,0),"") ->  | J164: =IF(F164<>"",VLOOKUP(F164,الموظفين!$A$2:$B$2006,2,0),"") ->  | K164: =IF(G164<>"",VLOOKUP(G164,التكويد!$A$1:$D$201,4,0)*H164,"") ->  | M164: =IF(G164<>"",VLOOKUP(G164,الرصيد!$F$2:$L$1160,6,0),"") ->  | N164: =IF(G164<>"",VLOOKUP(G164,الرصيد!$F$2:$L$1160,7,0),"") -> 
B165: =IF(F165="","",IF(COUNTIF(F$2:$F165,F165)-1=0,ROWS(F$2:$F165),"r")) ->  | C165: =IF(G165="","",IF(COUNTIF($G$2:G165,G165)-1=0,ROWS($G$2:G165),"r")) ->  | D165: =IF($A$1=F165,COUNTIF($F$2:F165,F165),"") ->  | I165: =IF(G165<>"",VLOOKUP(G165,التكويد!$A$1:$D$201,2,0),"") ->  | J165: =IF(F165<>"",VLOOKUP(F165,الموظفين!$A$2:$B$2006,2,0),"") ->  | K165: =IF(G165<>"",VLOOKUP(G165,التكويد!$A$1:$D$201,4,0)*H165,"") ->  | M165: =IF(G165<>"",VLOOKUP(G165,الرصيد!$F$2:$L$1160,6,0),"") ->  | N165: =IF(G165<>"",VLOOKUP(G165,الرصيد!$F$2:$L$1160,7,0),"") -> 
B166: =IF(F166="","",IF(COUNTIF(F$2:$F166,F166)-1=0,ROWS(F$2:$F166),"r")) ->  | C166: =IF(G166="","",IF(COUNTIF($G$2:G166,G166)-1=0,ROWS($G$2:G166),"r")) ->  | D166: =IF($A$1=F166,COUNTIF($F$2:F166,F166),"") ->  | I166: =IF(G166<>"",VLOOKUP(G166,التكويد!$A$1:$D$201,2,0),"") ->  | J166: =IF(F166<>"",VLOOKUP(F166,الموظفين!$A$2:$B$2006,2,0),"") ->  | K166: =IF(G166<>"",VLOOKUP(G166,التكويد!$A$1:$D$201,4,0)*H166,"") ->  | M166: =IF(G166<>"",VLOOKUP(G166,الرصيد!$F$2:$L$1160,6,0),"") ->  | N166: =IF(G166<>"",VLOOKUP(G166,الرصيد!$F$2:$L$1160,7,0),"") -> 
B167: =IF(F167="","",IF(COUNTIF(F$2:$F167,F167)-1=0,ROWS(F$2:$F167),"r")) ->  | C167: =IF(G167="","",IF(COUNTIF($G$2:G167,G167)-1=0,ROWS($G$2:G167),"r")) ->  | D167: =IF($A$1=F167,COUNTIF($F$2:F167,F167),"") ->  | I167: =IF(G167<>"",VLOOKUP(G167,التكويد!$A$1:$D$201,2,0),"") ->  | J167: =IF(F167<>"",VLOOKUP(F167,الموظفين!$A$2:$B$2006,2,0),"") ->  | K167: =IF(G167<>"",VLOOKUP(G167,التكويد!$A$1:$D$201,4,0)*H167,"") ->  | M167: =IF(G167<>"",VLOOKUP(G167,الرصيد!$F$2:$L$1160,6,0),"") ->  | N167: =IF(G167<>"",VLOOKUP(G167,الرصيد!$F$2:$L$1160,7,0),"") -> 
B168: =IF(F168="","",IF(COUNTIF(F$2:$F168,F168)-1=0,ROWS(F$2:$F168),"r")) ->  | C168: =IF(G168="","",IF(COUNTIF($G$2:G168,G168)-1=0,ROWS($G$2:G168),"r")) ->  | D168: =IF($A$1=F168,COUNTIF($F$2:F168,F168),"") ->  | I168: =IF(G168<>"",VLOOKUP(G168,التكويد!$A$1:$D$201,2,0),"") ->  | J168: =IF(F168<>"",VLOOKUP(F168,الموظفين!$A$2:$B$2006,2,0),"") ->  | K168: =IF(G168<>"",VLOOKUP(G168,التكويد!$A$1:$D$201,4,0)*H168,"") ->  | M168: =IF(G168<>"",VLOOKUP(G168,الرصيد!$F$2:$L$1160,6,0),"") ->  | N168: =IF(G168<>"",VLOOKUP(G168,الرصيد!$F$2:$L$1160,7,0),"") -> 
B169: =IF(F169="","",IF(COUNTIF(F$2:$F169,F169)-1=0,ROWS(F$2:$F169),"r")) ->  | C169: =IF(G169="","",IF(COUNTIF($G$2:G169,G169)-1=0,ROWS($G$2:G169),"r")) ->  | D169: =IF($A$1=F169,COUNTIF($F$2:F169,F169),"") ->  | I169: =IF(G169<>"",VLOOKUP(G169,التكويد!$A$1:$D$201,2,0),"") ->  | J169: =IF(F169<>"",VLOOKUP(F169,الموظفين!$A$2:$B$2006,2,0),"") ->  | K169: =IF(G169<>"",VLOOKUP(G169,التكويد!$A$1:$D$201,4,0)*H169,"") ->  | M169: =IF(G169<>"",VLOOKUP(G169,الرصيد!$F$2:$L$1160,6,0),"") ->  | N169: =IF(G169<>"",VLOOKUP(G169,الرصيد!$F$2:$L$1160,7,0),"") -> 
B170: =IF(F170="","",IF(COUNTIF(F$2:$F170,F170)-1=0,ROWS(F$2:$F170),"r")) ->  | C170: =IF(G170="","",IF(COUNTIF($G$2:G170,G170)-1=0,ROWS($G$2:G170),"r")) ->  | D170: =IF($A$1=F170,COUNTIF($F$2:F170,F170),"") ->  | I170: =IF(G170<>"",VLOOKUP(G170,التكويد!$A$1:$D$201,2,0),"") ->  | J170: =IF(F170<>"",VLOOKUP(F170,الموظفين!$A$2:$B$2006,2,0),"") ->  | K170: =IF(G170<>"",VLOOKUP(G170,التكويد!$A$1:$D$201,4,0)*H170,"") ->  | M170: =IF(G170<>"",VLOOKUP(G170,الرصيد!$F$2:$L$1160,6,0),"") ->  | N170: =IF(G170<>"",VLOOKUP(G170,الرصيد!$F$2:$L$1160,7,0),"") -> 
B171: =IF(F171="","",IF(COUNTIF(F$2:$F171,F171)-1=0,ROWS(F$2:$F171),"r")) ->  | C171: =IF(G171="","",IF(COUNTIF($G$2:G171,G171)-1=0,ROWS($G$2:G171),"r")) ->  | D171: =IF($A$1=F171,COUNTIF($F$2:F171,F171),"") ->  | I171: =IF(G171<>"",VLOOKUP(G171,التكويد!$A$1:$D$201,2,0),"") ->  | J171: =IF(F171<>"",VLOOKUP(F171,الموظفين!$A$2:$B$2006,2,0),"") ->  | K171: =IF(G171<>"",VLOOKUP(G171,التكويد!$A$1:$D$201,4,0)*H171,"") ->  | M171: =IF(G171<>"",VLOOKUP(G171,الرصيد!$F$2:$L$1160,6,0),"") ->  | N171: =IF(G171<>"",VLOOKUP(G171,الرصيد!$F$2:$L$1160,7,0),"") -> 
B172: =IF(F172="","",IF(COUNTIF(F$2:$F172,F172)-1=0,ROWS(F$2:$F172),"r")) ->  | C172: =IF(G172="","",IF(COUNTIF($G$2:G172,G172)-1=0,ROWS($G$2:G172),"r")) ->  | D172: =IF($A$1=F172,COUNTIF($F$2:F172,F172),"") ->  | I172: =IF(G172<>"",VLOOKUP(G172,التكويد!$A$1:$D$201,2,0),"") ->  | J172: =IF(F172<>"",VLOOKUP(F172,الموظفين!$A$2:$B$2006,2,0),"") ->  | K172: =IF(G172<>"",VLOOKUP(G172,التكويد!$A$1:$D$201,4,0)*H172,"") ->  | M172: =IF(G172<>"",VLOOKUP(G172,الرصيد!$F$2:$L$1160,6,0),"") ->  | N172: =IF(G172<>"",VLOOKUP(G172,الرصيد!$F$2:$L$1160,7,0),"") -> 
B173: =IF(F173="","",IF(COUNTIF(F$2:$F173,F173)-1=0,ROWS(F$2:$F173),"r")) ->  | C173: =IF(G173="","",IF(COUNTIF($G$2:G173,G173)-1=0,ROWS($G$2:G173),"r")) ->  | D173: =IF($A$1=F173,COUNTIF($F$2:F173,F173),"") ->  | I173: =IF(G173<>"",VLOOKUP(G173,التكويد!$A$1:$D$201,2,0),"") ->  | J173: =IF(F173<>"",VLOOKUP(F173,الموظفين!$A$2:$B$2006,2,0),"") ->  | K173: =IF(G173<>"",VLOOKUP(G173,التكويد!$A$1:$D$201,4,0)*H173,"") ->  | M173: =IF(G173<>"",VLOOKUP(G173,الرصيد!$F$2:$L$1160,6,0),"") ->  | N173: =IF(G173<>"",VLOOKUP(G173,الرصيد!$F$2:$L$1160,7,0),"") -> 
B174: =IF(F174="","",IF(COUNTIF(F$2:$F174,F174)-1=0,ROWS(F$2:$F174),"r")) ->  | C174: =IF(G174="","",IF(COUNTIF($G$2:G174,G174)-1=0,ROWS($G$2:G174),"r")) ->  | D174: =IF($A$1=F174,COUNTIF($F$2:F174,F174),"") ->  | I174: =IF(G174<>"",VLOOKUP(G174,التكويد!$A$1:$D$201,2,0),"") ->  | J174: =IF(F174<>"",VLOOKUP(F174,الموظفين!$A$2:$B$2006,2,0),"") ->  | K174: =IF(G174<>"",VLOOKUP(G174,التكويد!$A$1:$D$201,4,0)*H174,"") ->  | M174: =IF(G174<>"",VLOOKUP(G174,الرصيد!$F$2:$L$1160,6,0),"") ->  | N174: =IF(G174<>"",VLOOKUP(G174,الرصيد!$F$2:$L$1160,7,0),"") -> 
B175: =IF(F175="","",IF(COUNTIF(F$2:$F175,F175)-1=0,ROWS(F$2:$F175),"r")) ->  | C175: =IF(G175="","",IF(COUNTIF($G$2:G175,G175)-1=0,ROWS($G$2:G175),"r")) ->  | D175: =IF($A$1=F175,COUNTIF($F$2:F175,F175),"") ->  | I175: =IF(G175<>"",VLOOKUP(G175,التكويد!$A$1:$D$201,2,0),"") ->  | J175: =IF(F175<>"",VLOOKUP(F175,الموظفين!$A$2:$B$2006,2,0),"") ->  | K175: =IF(G175<>"",VLOOKUP(G175,التكويد!$A$1:$D$201,4,0)*H175,"") ->  | M175: =IF(G175<>"",VLOOKUP(G175,الرصيد!$F$2:$L$1160,6,0),"") ->  | N175: =IF(G175<>"",VLOOKUP(G175,الرصيد!$F$2:$L$1160,7,0),"") -> 
B176: =IF(F176="","",IF(COUNTIF(F$2:$F176,F176)-1=0,ROWS(F$2:$F176),"r")) ->  | C176: =IF(G176="","",IF(COUNTIF($G$2:G176,G176)-1=0,ROWS($G$2:G176),"r")) ->  | D176: =IF($A$1=F176,COUNTIF($F$2:F176,F176),"") ->  | I176: =IF(G176<>"",VLOOKUP(G176,التكويد!$A$1:$D$201,2,0),"") ->  | J176: =IF(F176<>"",VLOOKUP(F176,الموظفين!$A$2:$B$2006,2,0),"") ->  | K176: =IF(G176<>"",VLOOKUP(G176,التكويد!$A$1:$D$201,4,0)*H176,"") ->  | M176: =IF(G176<>"",VLOOKUP(G176,الرصيد!$F$2:$L$1160,6,0),"") ->  | N176: =IF(G176<>"",VLOOKUP(G176,الرصيد!$F$2:$L$1160,7,0),"") -> 
B177: =IF(F177="","",IF(COUNTIF(F$2:$F177,F177)-1=0,ROWS(F$2:$F177),"r")) ->  | C177: =IF(G177="","",IF(COUNTIF($G$2:G177,G177)-1=0,ROWS($G$2:G177),"r")) ->  | D177: =IF($A$1=F177,COUNTIF($F$2:F177,F177),"") ->  | I177: =IF(G177<>"",VLOOKUP(G177,التكويد!$A$1:$D$201,2,0),"") ->  | J177: =IF(F177<>"",VLOOKUP(F177,الموظفين!$A$2:$B$2006,2,0),"") ->  | K177: =IF(G177<>"",VLOOKUP(G177,التكويد!$A$1:$D$201,4,0)*H177,"") ->  | M177: =IF(G177<>"",VLOOKUP(G177,الرصيد!$F$2:$L$1160,6,0),"") ->  | N177: =IF(G177<>"",VLOOKUP(G177,الرصيد!$F$2:$L$1160,7,0),"") -> 
B178: =IF(F178="","",IF(COUNTIF(F$2:$F178,F178)-1=0,ROWS(F$2:$F178),"r")) ->  | C178: =IF(G178="","",IF(COUNTIF($G$2:G178,G178)-1=0,ROWS($G$2:G178),"r")) ->  | D178: =IF($A$1=F178,COUNTIF($F$2:F178,F178),"") ->  | I178: =IF(G178<>"",VLOOKUP(G178,التكويد!$A$1:$D$201,2,0),"") ->  | J178: =IF(F178<>"",VLOOKUP(F178,الموظفين!$A$2:$B$2006,2,0),"") ->  | K178: =IF(G178<>"",VLOOKUP(G178,التكويد!$A$1:$D$201,4,0)*H178,"") ->  | M178: =IF(G178<>"",VLOOKUP(G178,الرصيد!$F$2:$L$1160,6,0),"") ->  | N178: =IF(G178<>"",VLOOKUP(G178,الرصيد!$F$2:$L$1160,7,0),"") -> 
B179: =IF(F179="","",IF(COUNTIF(F$2:$F179,F179)-1=0,ROWS(F$2:$F179),"r")) ->  | C179: =IF(G179="","",IF(COUNTIF($G$2:G179,G179)-1=0,ROWS($G$2:G179),"r")) ->  | D179: =IF($A$1=F179,COUNTIF($F$2:F179,F179),"") ->  | I179: =IF(G179<>"",VLOOKUP(G179,التكويد!$A$1:$D$201,2,0),"") ->  | J179: =IF(F179<>"",VLOOKUP(F179,الموظفين!$A$2:$B$2006,2,0),"") ->  | K179: =IF(G179<>"",VLOOKUP(G179,التكويد!$A$1:$D$201,4,0)*H179,"") ->  | M179: =IF(G179<>"",VLOOKUP(G179,الرصيد!$F$2:$L$1160,6,0),"") ->  | N179: =IF(G179<>"",VLOOKUP(G179,الرصيد!$F$2:$L$1160,7,0),"") -> 
B180: =IF(F180="","",IF(COUNTIF(F$2:$F180,F180)-1=0,ROWS(F$2:$F180),"r")) ->  | C180: =IF(G180="","",IF(COUNTIF($G$2:G180,G180)-1=0,ROWS($G$2:G180),"r")) ->  | D180: =IF($A$1=F180,COUNTIF($F$2:F180,F180),"") ->  | I180: =IF(G180<>"",VLOOKUP(G180,التكويد!$A$1:$D$201,2,0),"") ->  | J180: =IF(F180<>"",VLOOKUP(F180,الموظفين!$A$2:$B$2006,2,0),"") ->  | K180: =IF(G180<>"",VLOOKUP(G180,التكويد!$A$1:$D$201,4,0)*H180,"") ->  | M180: =IF(G180<>"",VLOOKUP(G180,الرصيد!$F$2:$L$1160,6,0),"") ->  | N180: =IF(G180<>"",VLOOKUP(G180,الرصيد!$F$2:$L$1160,7,0),"") -> 
B181: =IF(F181="","",IF(COUNTIF(F$2:$F181,F181)-1=0,ROWS(F$2:$F181),"r")) ->  | C181: =IF(G181="","",IF(COUNTIF($G$2:G181,G181)-1=0,ROWS($G$2:G181),"r")) ->  | D181: =IF($A$1=F181,COUNTIF($F$2:F181,F181),"") ->  | I181: =IF(G181<>"",VLOOKUP(G181,التكويد!$A$1:$D$201,2,0),"") ->  | J181: =IF(F181<>"",VLOOKUP(F181,الموظفين!$A$2:$B$2006,2,0),"") ->  | K181: =IF(G181<>"",VLOOKUP(G181,التكويد!$A$1:$D$201,4,0)*H181,"") ->  | M181: =IF(G181<>"",VLOOKUP(G181,الرصيد!$F$2:$L$1160,6,0),"") ->  | N181: =IF(G181<>"",VLOOKUP(G181,الرصيد!$F$2:$L$1160,7,0),"") -> 
B182: =IF(F182="","",IF(COUNTIF(F$2:$F182,F182)-1=0,ROWS(F$2:$F182),"r")) ->  | C182: =IF(G182="","",IF(COUNTIF($G$2:G182,G182)-1=0,ROWS($G$2:G182),"r")) ->  | D182: =IF($A$1=F182,COUNTIF($F$2:F182,F182),"") ->  | I182: =IF(G182<>"",VLOOKUP(G182,التكويد!$A$1:$D$201,2,0),"") ->  | J182: =IF(F182<>"",VLOOKUP(F182,الموظفين!$A$2:$B$2006,2,0),"") ->  | K182: =IF(G182<>"",VLOOKUP(G182,التكويد!$A$1:$D$201,4,0)*H182,"") ->  | M182: =IF(G182<>"",VLOOKUP(G182,الرصيد!$F$2:$L$1160,6,0),"") ->  | N182: =IF(G182<>"",VLOOKUP(G182,الرصيد!$F$2:$L$1160,7,0),"") -> 
B183: =IF(F183="","",IF(COUNTIF(F$2:$F183,F183)-1=0,ROWS(F$2:$F183),"r")) ->  | C183: =IF(G183="","",IF(COUNTIF($G$2:G183,G183)-1=0,ROWS($G$2:G183),"r")) ->  | D183: =IF($A$1=F183,COUNTIF($F$2:F183,F183),"") ->  | I183: =IF(G183<>"",VLOOKUP(G183,التكويد!$A$1:$D$201,2,0),"") ->  | J183: =IF(F183<>"",VLOOKUP(F183,الموظفين!$A$2:$B$2006,2,0),"") ->  | K183: =IF(G183<>"",VLOOKUP(G183,التكويد!$A$1:$D$201,4,0)*H183,"") ->  | M183: =IF(G183<>"",VLOOKUP(G183,الرصيد!$F$2:$L$1160,6,0),"") ->  | N183: =IF(G183<>"",VLOOKUP(G183,الرصيد!$F$2:$L$1160,7,0),"") -> 
B184: =IF(F184="","",IF(COUNTIF(F$2:$F184,F184)-1=0,ROWS(F$2:$F184),"r")) ->  | C184: =IF(G184="","",IF(COUNTIF($G$2:G184,G184)-1=0,ROWS($G$2:G184),"r")) ->  | D184: =IF($A$1=F184,COUNTIF($F$2:F184,F184),"") ->  | I184: =IF(G184<>"",VLOOKUP(G184,التكويد!$A$1:$D$201,2,0),"") ->  | J184: =IF(F184<>"",VLOOKUP(F184,الموظفين!$A$2:$B$2006,2,0),"") ->  | K184: =IF(G184<>"",VLOOKUP(G184,التكويد!$A$1:$D$201,4,0)*H184,"") ->  | M184: =IF(G184<>"",VLOOKUP(G184,الرصيد!$F$2:$L$1160,6,0),"") ->  | N184: =IF(G184<>"",VLOOKUP(G184,الرصيد!$F$2:$L$1160,7,0),"") -> 
B185: =IF(F185="","",IF(COUNTIF(F$2:$F185,F185)-1=0,ROWS(F$2:$F185),"r")) ->  | C185: =IF(G185="","",IF(COUNTIF($G$2:G185,G185)-1=0,ROWS($G$2:G185),"r")) ->  | D185: =IF($A$1=F185,COUNTIF($F$2:F185,F185),"") ->  | I185: =IF(G185<>"",VLOOKUP(G185,التكويد!$A$1:$D$201,2,0),"") ->  | J185: =IF(F185<>"",VLOOKUP(F185,الموظفين!$A$2:$B$2006,2,0),"") ->  | K185: =IF(G185<>"",VLOOKUP(G185,التكويد!$A$1:$D$201,4,0)*H185,"") ->  | M185: =IF(G185<>"",VLOOKUP(G185,الرصيد!$F$2:$L$1160,6,0),"") ->  | N185: =IF(G185<>"",VLOOKUP(G185,الرصيد!$F$2:$L$1160,7,0),"") -> 
B186: =IF(F186="","",IF(COUNTIF(F$2:$F186,F186)-1=0,ROWS(F$2:$F186),"r")) ->  | C186: =IF(G186="","",IF(COUNTIF($G$2:G186,G186)-1=0,ROWS($G$2:G186),"r")) ->  | D186: =IF($A$1=F186,COUNTIF($F$2:F186,F186),"") ->  | I186: =IF(G186<>"",VLOOKUP(G186,التكويد!$A$1:$D$201,2,0),"") ->  | J186: =IF(F186<>"",VLOOKUP(F186,الموظفين!$A$2:$B$2006,2,0),"") ->  | K186: =IF(G186<>"",VLOOKUP(G186,التكويد!$A$1:$D$201,4,0)*H186,"") ->  | M186: =IF(G186<>"",VLOOKUP(G186,الرصيد!$F$2:$L$1160,6,0),"") ->  | N186: =IF(G186<>"",VLOOKUP(G186,الرصيد!$F$2:$L$1160,7,0),"") -> 
B187: =IF(F187="","",IF(COUNTIF(F$2:$F187,F187)-1=0,ROWS(F$2:$F187),"r")) ->  | C187: =IF(G187="","",IF(COUNTIF($G$2:G187,G187)-1=0,ROWS($G$2:G187),"r")) ->  | D187: =IF($A$1=F187,COUNTIF($F$2:F187,F187),"") ->  | I187: =IF(G187<>"",VLOOKUP(G187,التكويد!$A$1:$D$201,2,0),"") ->  | J187: =IF(F187<>"",VLOOKUP(F187,الموظفين!$A$2:$B$2006,2,0),"") ->  | K187: =IF(G187<>"",VLOOKUP(G187,التكويد!$A$1:$D$201,4,0)*H187,"") ->  | M187: =IF(G187<>"",VLOOKUP(G187,الرصيد!$F$2:$L$1160,6,0),"") ->  | N187: =IF(G187<>"",VLOOKUP(G187,الرصيد!$F$2:$L$1160,7,0),"") -> 
B188: =IF(F188="","",IF(COUNTIF(F$2:$F188,F188)-1=0,ROWS(F$2:$F188),"r")) ->  | C188: =IF(G188="","",IF(COUNTIF($G$2:G188,G188)-1=0,ROWS($G$2:G188),"r")) ->  | D188: =IF($A$1=F188,COUNTIF($F$2:F188,F188),"") ->  | I188: =IF(G188<>"",VLOOKUP(G188,التكويد!$A$1:$D$201,2,0),"") ->  | J188: =IF(F188<>"",VLOOKUP(F188,الموظفين!$A$2:$B$2006,2,0),"") ->  | K188: =IF(G188<>"",VLOOKUP(G188,التكويد!$A$1:$D$201,4,0)*H188,"") ->  | M188: =IF(G188<>"",VLOOKUP(G188,الرصيد!$F$2:$L$1160,6,0),"") ->  | N188: =IF(G188<>"",VLOOKUP(G188,الرصيد!$F$2:$L$1160,7,0),"") -> 
B189: =IF(F189="","",IF(COUNTIF(F$2:$F189,F189)-1=0,ROWS(F$2:$F189),"r")) ->  | C189: =IF(G189="","",IF(COUNTIF($G$2:G189,G189)-1=0,ROWS($G$2:G189),"r")) ->  | D189: =IF($A$1=F189,COUNTIF($F$2:F189,F189),"") ->  | I189: =IF(G189<>"",VLOOKUP(G189,التكويد!$A$1:$D$201,2,0),"") ->  | J189: =IF(F189<>"",VLOOKUP(F189,الموظفين!$A$2:$B$2006,2,0),"") ->  | K189: =IF(G189<>"",VLOOKUP(G189,التكويد!$A$1:$D$201,4,0)*H189,"") ->  | M189: =IF(G189<>"",VLOOKUP(G189,الرصيد!$F$2:$L$1160,6,0),"") ->  | N189: =IF(G189<>"",VLOOKUP(G189,الرصيد!$F$2:$L$1160,7,0),"") -> 
B190: =IF(F190="","",IF(COUNTIF(F$2:$F190,F190)-1=0,ROWS(F$2:$F190),"r")) ->  | C190: =IF(G190="","",IF(COUNTIF($G$2:G190,G190)-1=0,ROWS($G$2:G190),"r")) ->  | D190: =IF($A$1=F190,COUNTIF($F$2:F190,F190),"") ->  | I190: =IF(G190<>"",VLOOKUP(G190,التكويد!$A$1:$D$201,2,0),"") ->  | J190: =IF(F190<>"",VLOOKUP(F190,الموظفين!$A$2:$B$2006,2,0),"") ->  | K190: =IF(G190<>"",VLOOKUP(G190,التكويد!$A$1:$D$201,4,0)*H190,"") ->  | M190: =IF(G190<>"",VLOOKUP(G190,الرصيد!$F$2:$L$1160,6,0),"") ->  | N190: =IF(G190<>"",VLOOKUP(G190,الرصيد!$F$2:$L$1160,7,0),"") -> 
B191: =IF(F191="","",IF(COUNTIF(F$2:$F191,F191)-1=0,ROWS(F$2:$F191),"r")) ->  | C191: =IF(G191="","",IF(COUNTIF($G$2:G191,G191)-1=0,ROWS($G$2:G191),"r")) ->  | D191: =IF($A$1=F191,COUNTIF($F$2:F191,F191),"") ->  | I191: =IF(G191<>"",VLOOKUP(G191,التكويد!$A$1:$D$201,2,0),"") ->  | J191: =IF(F191<>"",VLOOKUP(F191,الموظفين!$A$2:$B$2006,2,0),"") ->  | K191: =IF(G191<>"",VLOOKUP(G191,التكويد!$A$1:$D$201,4,0)*H191,"") ->  | M191: =IF(G191<>"",VLOOKUP(G191,الرصيد!$F$2:$L$1160,6,0),"") ->  | N191: =IF(G191<>"",VLOOKUP(G191,الرصيد!$F$2:$L$1160,7,0),"") -> 
B192: =IF(F192="","",IF(COUNTIF(F$2:$F192,F192)-1=0,ROWS(F$2:$F192),"r")) ->  | C192: =IF(G192="","",IF(COUNTIF($G$2:G192,G192)-1=0,ROWS($G$2:G192),"r")) ->  | D192: =IF($A$1=F192,COUNTIF($F$2:F192,F192),"") ->  | I192: =IF(G192<>"",VLOOKUP(G192,التكويد!$A$1:$D$201,2,0),"") ->  | J192: =IF(F192<>"",VLOOKUP(F192,الموظفين!$A$2:$B$2006,2,0),"") ->  | K192: =IF(G192<>"",VLOOKUP(G192,التكويد!$A$1:$D$201,4,0)*H192,"") ->  | M192: =IF(G192<>"",VLOOKUP(G192,الرصيد!$F$2:$L$1160,6,0),"") ->  | N192: =IF(G192<>"",VLOOKUP(G192,الرصيد!$F$2:$L$1160,7,0),"") -> 
B193: =IF(F193="","",IF(COUNTIF(F$2:$F193,F193)-1=0,ROWS(F$2:$F193),"r")) ->  | C193: =IF(G193="","",IF(COUNTIF($G$2:G193,G193)-1=0,ROWS($G$2:G193),"r")) ->  | D193: =IF($A$1=F193,COUNTIF($F$2:F193,F193),"") ->  | I193: =IF(G193<>"",VLOOKUP(G193,التكويد!$A$1:$D$201,2,0),"") ->  | J193: =IF(F193<>"",VLOOKUP(F193,الموظفين!$A$2:$B$2006,2,0),"") ->  | K193: =IF(G193<>"",VLOOKUP(G193,التكويد!$A$1:$D$201,4,0)*H193,"") ->  | M193: =IF(G193<>"",VLOOKUP(G193,الرصيد!$F$2:$L$1160,6,0),"") ->  | N193: =IF(G193<>"",VLOOKUP(G193,الرصيد!$F$2:$L$1160,7,0),"") -> 
B194: =IF(F194="","",IF(COUNTIF(F$2:$F194,F194)-1=0,ROWS(F$2:$F194),"r")) ->  | C194: =IF(G194="","",IF(COUNTIF($G$2:G194,G194)-1=0,ROWS($G$2:G194),"r")) ->  | D194: =IF($A$1=F194,COUNTIF($F$2:F194,F194),"") ->  | I194: =IF(G194<>"",VLOOKUP(G194,التكويد!$A$1:$D$201,2,0),"") ->  | J194: =IF(F194<>"",VLOOKUP(F194,الموظفين!$A$2:$B$2006,2,0),"") ->  | K194: =IF(G194<>"",VLOOKUP(G194,التكويد!$A$1:$D$201,4,0)*H194,"") ->  | M194: =IF(G194<>"",VLOOKUP(G194,الرصيد!$F$2:$L$1160,6,0),"") ->  | N194: =IF(G194<>"",VLOOKUP(G194,الرصيد!$F$2:$L$1160,7,0),"") -> 
B195: =IF(F195="","",IF(COUNTIF(F$2:$F195,F195)-1=0,ROWS(F$2:$F195),"r")) ->  | C195: =IF(G195="","",IF(COUNTIF($G$2:G195,G195)-1=0,ROWS($G$2:G195),"r")) ->  | D195: =IF($A$1=F195,COUNTIF($F$2:F195,F195),"") ->  | I195: =IF(G195<>"",VLOOKUP(G195,التكويد!$A$1:$D$201,2,0),"") ->  | J195: =IF(F195<>"",VLOOKUP(F195,الموظفين!$A$2:$B$2006,2,0),"") ->  | K195: =IF(G195<>"",VLOOKUP(G195,التكويد!$A$1:$D$201,4,0)*H195,"") ->  | L195: =IF(H195="","",IF(H195<0,"منصرف",IF(H195>0,"بيع"))) ->  | M195: =IF(G195<>"",VLOOKUP(G195,الرصيد!$F$2:$L$1160,6,0),"") ->  | N195: =IF(G195<>"",VLOOKUP(G195,الرصيد!$F$2:$L$1160,7,0),"") -> 
B196: =IF(F196="","",IF(COUNTIF(F$2:$F196,F196)-1=0,ROWS(F$2:$F196),"r")) ->  | C196: =IF(G196="","",IF(COUNTIF($G$2:G196,G196)-1=0,ROWS($G$2:G196),"r")) ->  | D196: =IF($A$1=F196,COUNTIF($F$2:F196,F196),"") ->  | I196: =IF(G196<>"",VLOOKUP(G196,التكويد!$A$1:$D$201,2,0),"") ->  | J196: =IF(F196<>"",VLOOKUP(F196,الموظفين!$A$2:$B$2006,2,0),"") ->  | K196: =IF(G196<>"",VLOOKUP(G196,التكويد!$A$1:$D$201,4,0)*H196,"") ->  | M196: =IF(G196<>"",VLOOKUP(G196,الرصيد!$F$2:$L$1160,6,0),"") ->  | N196: =IF(G196<>"",VLOOKUP(G196,الرصيد!$F$2:$L$1160,7,0),"") -> 
B197: =IF(F197="","",IF(COUNTIF(F$2:$F197,F197)-1=0,ROWS(F$2:$F197),"r")) ->  | C197: =IF(G197="","",IF(COUNTIF($G$2:G197,G197)-1=0,ROWS($G$2:G197),"r")) ->  | D197: =IF($A$1=F197,COUNTIF($F$2:F197,F197),"") ->  | I197: =IF(G197<>"",VLOOKUP(G197,التكويد!$A$1:$D$201,2,0),"") ->  | J197: =IF(F197<>"",VLOOKUP(F197,الموظفين!$A$2:$B$2006,2,0),"") ->  | K197: =IF(G197<>"",VLOOKUP(G197,التكويد!$A$1:$D$201,4,0)*H197,"") ->  | M197: =IF(G197<>"",VLOOKUP(G197,الرصيد!$F$2:$L$1160,6,0),"") ->  | N197: =IF(G197<>"",VLOOKUP(G197,الرصيد!$F$2:$L$1160,7,0),"") -> 
B198: =IF(F198="","",IF(COUNTIF(F$2:$F198,F198)-1=0,ROWS(F$2:$F198),"r")) ->  | C198: =IF(G198="","",IF(COUNTIF($G$2:G198,G198)-1=0,ROWS($G$2:G198),"r")) ->  | D198: =IF($A$1=F198,COUNTIF($F$2:F198,F198),"") ->  | I198: =IF(G198<>"",VLOOKUP(G198,التكويد!$A$1:$D$201,2,0),"") ->  | J198: =IF(F198<>"",VLOOKUP(F198,الموظفين!$A$2:$B$2006,2,0),"") ->  | K198: =IF(G198<>"",VLOOKUP(G198,التكويد!$A$1:$D$201,4,0)*H198,"") ->  | M198: =IF(G198<>"",VLOOKUP(G198,الرصيد!$F$2:$L$1160,6,0),"") ->  | N198: =IF(G198<>"",VLOOKUP(G198,الرصيد!$F$2:$L$1160,7,0),"") -> 
B199: =IF(F199="","",IF(COUNTIF(F$2:$F199,F199)-1=0,ROWS(F$2:$F199),"r")) ->  | C199: =IF(G199="","",IF(COUNTIF($G$2:G199,G199)-1=0,ROWS($G$2:G199),"r")) ->  | D199: =IF($A$1=F199,COUNTIF($F$2:F199,F199),"") ->  | I199: =IF(G199<>"",VLOOKUP(G199,التكويد!$A$1:$D$201,2,0),"") ->  | J199: =IF(F199<>"",VLOOKUP(F199,الموظفين!$A$2:$B$2006,2,0),"") ->  | K199: =IF(G199<>"",VLOOKUP(G199,التكويد!$A$1:$D$201,4,0)*H199,"") ->  | M199: =IF(G199<>"",VLOOKUP(G199,الرصيد!$F$2:$L$1160,6,0),"") ->  | N199: =IF(G199<>"",VLOOKUP(G199,الرصيد!$F$2:$L$1160,7,0),"") -> 
B200: =IF(F200="","",IF(COUNTIF(F$2:$F200,F200)-1=0,ROWS(F$2:$F200),"r")) ->  | C200: =IF(G200="","",IF(COUNTIF($G$2:G200,G200)-1=0,ROWS($G$2:G200),"r")) ->  | D200: =IF($A$1=F200,COUNTIF($F$2:F200,F200),"") ->  | I200: =IF(G200<>"",VLOOKUP(G200,التكويد!$A$1:$D$201,2,0),"") ->  | J200: =IF(F200<>"",VLOOKUP(F200,الموظفين!$A$2:$B$2006,2,0),"") ->  | K200: =IF(G200<>"",VLOOKUP(G200,التكويد!$A$1:$D$201,4,0)*H200,"") ->  | M200: =IF(G200<>"",VLOOKUP(G200,الرصيد!$F$2:$L$1160,6,0),"") ->  | N200: =IF(G200<>"",VLOOKUP(G200,الرصيد!$F$2:$L$1160,7,0),"") -> 
... 1453 more rows

Sheet الطباعة
A1: PLANT OUT LET POS 25%
A2: =العمليات!P1 -> 1 | B2: =VLOOKUP($A$2,الموظفين!$A$1:$B$2006,2,0) -> عميل1 | D2: total
A3: =العمليات!Q1 -> 2018-12-03 | B3: =VLOOKUP($A$2,الرصيد!$M$2:$O$1160,3,0) -> 1518.525 | C3: =1000-B3 -> -518.525 | D3: =SUM(D5:D16) -> 647.769
A4: الكود | B4: الصنف | C4: الكميه | D4: السعر
A5: =IFERROR(INDEX(العمليات!$G$2:$G$200,SMALL(IF(العمليات!$F$2:$F$200=$A$2,IF(العمليات!$E$2:$E$200=$A$3,ROW($A$2:$A$200)-ROW($A$2)+1)),ROWS($A$5:A5))),"") -> 110 | B5: =IFERROR(INDEX(العمليات!$I$2:$I$200,SMALL(IF(العمليات!$F$2:$F$200=$A$2,IF(العمليات!$E$2:$E$200=$A$3,ROW($A$2:$A$200)-ROW($A$2)+1)),ROWS($A$5:B5))),"") -> صنف10 | C5: =IFERROR(INDEX(العمليات!$H$2:$H$200,SMALL(IF(العمليات!$F$2:$F$200=$A$2,IF(العمليات!$E$2:$E$200=$A$3,ROW($A$2:$A$200)-ROW($A$2)+1)),ROWS($A$5:C5))),"") -> 6 | D5: =IFERROR(INDEX(العمليات!$K$2:$K$200,SMALL(IF(العمليات!$F$2:$F$200=$A$2,IF(العمليات!$E$2:$E$200=$A$3,ROW($A$2:$A$200)-ROW($A$2)+1)),ROWS($A$5:D5))),"") -> 19.08
A6: =IFERROR(INDEX(العمليات!$G$2:$G$200,SMALL(IF(العمليات!$F$2:$F$200=$A$2,IF(العمليات!$E$2:$E$200=$A$3,ROW($A$2:$A$200)-ROW($A$2)+1)),ROWS($A$5:A6))),"") -> 101 | B6: =IFERROR(INDEX(العمليات!$I$2:$I$200,SMALL(IF(العمليات!$F$2:$F$200=$A$2,IF(العمليات!$E$2:$E$200=$A$3,ROW($A$2:$A$200)-ROW($A$2)+1)),ROWS($A$5:B6))),"") -> صنف1 | C6: =IFERROR(INDEX(العمليات!$H$2:$H$200,SMALL(IF(العمليات!$F$2:$F$200=$A$2,IF(العمليات!$E$2:$E$200=$A$3,ROW($A$2:$A$200)-ROW($A$2)+1)),ROWS($A$5:C6))),"") -> 6 | D6: =IFERROR(INDEX(العمليات!$K$2:$K$200,SMALL(IF(العمليات!$F$2:$F$200=$A$2,IF(العمليات!$E$2:$E$200=$A$3,ROW($A$2:$A$200)-ROW($A$2)+1)),ROWS($A$5:D6))),"") -> 67.5
A7: =IFERROR(INDEX(العمليات!$G$2:$G$200,SMALL(IF(العمليات!$F$2:$F$200=$A$2,IF(العمليات!$E$2:$E$200=$A$3,ROW($A$2:$A$200)-ROW($A$2)+1)),ROWS($A$5:A7))),"") -> 118 | B7: =IFERROR(INDEX(العمليات!$I$2:$I$200,SMALL(IF(العمليات!$F$2:$F$200=$A$2,IF(العمليات!$E$2:$E$200=$A$3,ROW($A$2:$A$200)-ROW($A$2)+1)),ROWS($A$5:B7))),"") -> صنف18 | C7: =IFERROR(INDEX(العمليات!$H$2:$H$200,SMALL(IF(العمليات!$F$2:$F$200=$A$2,IF(العمليات!$E$2:$E$200=$A$3,ROW($A$2:$A$200)-ROW($A$2)+1)),ROWS($A$5:C7))),"") -> 9 | D7: =IFERROR(INDEX(العمليات!$K$2:$K$200,SMALL(IF(العمليات!$F$2:$F$200=$A$2,IF(العمليات!$E$2:$E$200=$A$3,ROW($A$2:$A$200)-ROW($A$2)+1)),ROWS($A$5:D7))),"") -> 14.769
A8: =IFERROR(INDEX(العمليات!$G$2:$G$200,SMALL(IF(العمليات!$F$2:$F$200=$A$2,IF(العمليات!$E$2:$E$200=$A$3,ROW($A$2:$A$200)-ROW($A$2)+1)),ROWS($A$5:A8))),"") -> 115 | B8: =IFERROR(INDEX(العمليات!$I$2:$I$200,SMALL(IF(العمليات!$F$2:$F$200=$A$2,IF(العمليات!$E$2:$E$200=$A$3,ROW($A$2:$A$200)-ROW($A$2)+1)),ROWS($A$5:B8))),"") -> صنف15 | C8: =IFERROR(INDEX(العمليات!$H$2:$H$200,SMALL(IF(العمليات!$F$2:$F$200=$A$2,IF(العمليات!$E$2:$E$200=$A$3,ROW($A$2:$A$200)-ROW($A$2)+1)),ROWS($A$5:C8))),"") -> 9 | D8: =IFERROR(INDEX(العمليات!$K$2:$K$200,SMALL(IF(العمليات!$F$2:$F$200=$A$2,IF(العمليات!$E$2:$E$200=$A$3,ROW($A$2:$A$200)-ROW($A$2)+1)),ROWS($A$5:D8))),"") -> 44.253
A9: =IFERROR(INDEX(العمليات!$G$2:$G$200,SMALL(IF(العمليات!$F$2:$F$200=$A$2,IF(العمليات!$E$2:$E$200=$A$3,ROW($A$2:$A$200)-ROW($A$2)+1)),ROWS($A$5:A9))),"") -> 116 | B9: =IFERROR(INDEX(العمليات!$I$2:$I$200,SMALL(IF(العمليات!$F$2:$F$200=$A$2,IF(العمليات!$E$2:$E$200=$A$3,ROW($A$2:$A$200)-ROW($A$2)+1)),ROWS($A$5:B9))),"") -> صنف16 | C9: =IFERROR(INDEX(العمليات!$H$2:$H$200,SMALL(IF(العمليات!$F$2:$F$200=$A$2,IF(العمليات!$E$2:$E$200=$A$3,ROW($A$2:$A$200)-ROW($A$2)+1)),ROWS($A$5:C9))),"") -> 9 | D9: =IFERROR(INDEX(العمليات!$K$2:$K$200,SMALL(IF(العمليات!$F$2:$F$200=$A$2,IF(العمليات!$E$2:$E$200=$A$3,ROW($A$2:$A$200)-ROW($A$2)+1)),ROWS($A$5:D9))),"") -> 44.253
A10: =IFERROR(INDEX(العمليات!$G$2:$G$200,SMALL(IF(العمليات!$F$2:$F$200=$A$2,IF(العمليات!$E$2:$E$200=$A$3,ROW($A$2:$A$200)-ROW($A$2)+1)),ROWS($A$5:A10))),"") -> 117 | B10: =IFERROR(INDEX(العمليات!$I$2:$I$200,SMALL(IF(العمليات!$F$2:$F$200=$A$2,IF(العمليات!$E$2:$E$200=$A$3,ROW($A$2:$A$200)-ROW($A$2)+1)),ROWS($A$5:B10))),"") -> صنف17 | C10: =IFERROR(INDEX(العمليات!$H$2:$H$200,SMALL(IF(العمليات!$F$2:$F$200=$A$2,IF(العمليات!$E$2:$E$200=$A$3,ROW($A$2:$A$200)-ROW($A$2)+1)),ROWS($A$5:C10))),"") -> 9 | D10: =IFERROR(INDEX(العمليات!$K$2:$K$200,SMALL(IF(العمليات!$F$2:$F$200=$A$2,IF(العمليات!$E$2:$E$200=$A$3,ROW($A$2:$A$200)-ROW($A$2)+1)),ROWS($A$5:D10))),"") -> 14.769
A11: =IFERROR(INDEX(العمليات!$G$2:$G$200,SMALL(IF(العمليات!$F$2:$F$200=$A$2,IF(العمليات!$E$2:$E$200=$A$3,ROW($A$2:$A$200)-ROW($A$2)+1)),ROWS($A$5:A11))),"") -> 118 | B11: =IFERROR(INDEX(العمليات!$I$2:$I$200,SMALL(IF(العمليات!$F$2:$F$200=$A$2,IF(العمليات!$E$2:$E$200=$A$3,ROW($A$2:$A$200)-ROW($A$2)+1)),ROWS($A$5:B11))),"") -> صنف18 | C11: =IFERROR(INDEX(العمليات!$H$2:$H$200,SMALL(IF(العمليات!$F$2:$F$200=$A$2,IF(العمليات!$E$2:$E$200=$A$3,ROW($A$2:$A$200)-ROW($A$2)+1)),ROWS($A$5:C11))),"") -> 27 | D11: =IFERROR(INDEX(العمليات!$K$2:$K$200,SMALL(IF(العمليات!$F$2:$F$200=$A$2,IF(العمليات!$E$2:$E$200=$A$3,ROW($A$2:$A$200)-ROW($A$2)+1)),ROWS($A$5:D11))),"") -> 85.59
A12: =IFERROR(INDEX(العمليات!$G$2:$G$200,SMALL(IF(العمليات!$F$2:$F$200=$A$2,IF(العمليات!$E$2:$E$200=$A$3,ROW($A$2:$A$200)-ROW($A$2)+1)),ROWS($A$5:A12))),"") -> 119 | B12: =IFERROR(INDEX(العمليات!$I$2:$I$200,SMALL(IF(العمليات!$F$2:$F$200=$A$2,IF(العمليات!$E$2:$E$200=$A$3,ROW($A$2:$A$200)-ROW($A$2)+1)),ROWS($A$5:B12))),"") -> صنف19 | C12: =IFERROR(INDEX(العمليات!$H$2:$H$200,SMALL(IF(العمليات!$F$2:$F$200=$A$2,IF(العمليات!$E$2:$E$200=$A$3,ROW($A$2:$A$200)-ROW($A$2)+1)),ROWS($A$5:C12))),"") -> 54 | D12: =IFERROR(INDEX(العمليات!$K$2:$K$200,SMALL(IF(العمليات!$F$2:$F$200=$A$2,IF(العمليات!$E$2:$E$200=$A$3,ROW($A$2:$A$200)-ROW($A$2)+1)),ROWS($A$5:D12))),"") -> 171.18
A13: =IFERROR(INDEX(العمليات!$G$2:$G$200,SMALL(IF(العمليات!$F$2:$F$200=$A$2,IF(العمليات!$E$2:$E$200=$A$3,ROW($A$2:$A$200)-ROW($A$2)+1)),ROWS($A$5:A13))),"") -> 120 | B13: =IFERROR(INDEX(العمليات!$I$2:$I$200,SMALL(IF(العمليات!$F$2:$F$200=$A$2,IF(العمليات!$E$2:$E$200=$A$3,ROW($A$2:$A$200)-ROW($A$2)+1)),ROWS($A$5:B13))),"") -> صنف20 | C13: =IFERROR(INDEX(العمليات!$H$2:$H$200,SMALL(IF(العمليات!$F$2:$F$200=$A$2,IF(العمليات!$E$2:$E$200=$A$3,ROW($A$2:$A$200)-ROW($A$2)+1)),ROWS($A$5:C13))),"") -> 25 | D13: =IFERROR(INDEX(العمليات!$K$2:$K$200,SMALL(IF(العمليات!$F$2:$F$200=$A$2,IF(العمليات!$E$2:$E$200=$A$3,ROW($A$2:$A$200)-ROW($A$2)+1)),ROWS($A$5:D13))),"") -> 41.025
A14: =IFERROR(INDEX(العمليات!$G$2:$G$200,SMALL(IF(العمليات!$F$2:$F$200=$A$2,IF(العمليات!$E$2:$E$200=$A$3,ROW($A$2:$A$200)-ROW($A$2)+1)),ROWS($A$5:A14))),"") -> 121 | B14: =IFERROR(INDEX(العمليات!$I$2:$I$200,SMALL(IF(العمليات!$F$2:$F$200=$A$2,IF(العمليات!$E$2:$E$200=$A$3,ROW($A$2:$A$200)-ROW($A$2)+1)),ROWS($A$5:B14))),"") -> صنف21 | C14: =IFERROR(INDEX(العمليات!$H$2:$H$200,SMALL(IF(العمليات!$F$2:$F$200=$A$2,IF(العمليات!$E$2:$E$200=$A$3,ROW($A$2:$A$200)-ROW($A$2)+1)),ROWS($A$5:C14))),"") -> 21 | D14: =IFERROR(INDEX(العمليات!$K$2:$K$200,SMALL(IF(العمليات!$F$2:$F$200=$A$2,IF(العمليات!$E$2:$E$200=$A$3,ROW($A$2:$A$200)-ROW($A$2)+1)),ROWS($A$5:D14))),"") -> 28.35
A15: =IFERROR(INDEX(العمليات!$G$2:$G$200,SMALL(IF(العمليات!$F$2:$F$200=$A$2,IF(العمليات!$E$2:$E$200=$A$3,ROW($A$2:$A$200)-ROW($A$2)+1)),ROWS($A$5:A15))),"") -> 123 | B15: =IFERROR(INDEX(العمليات!$I$2:$I$200,SMALL(IF(العمليات!$F$2:$F$200=$A$2,IF(العمليات!$E$2:$E$200=$A$3,ROW($A$2:$A$200)-ROW($A$2)+1)),ROWS($A$5:B15))),"") -> صنف23 | C15: =IFERROR(INDEX(العمليات!$H$2:$H$200,SMALL(IF(العمليات!$F$2:$F$200=$A$2,IF(العمليات!$E$2:$E$200=$A$3,ROW($A$2:$A$200)-ROW($A$2)+1)),ROWS($A$5:C15))),"") -> 25 | D15: =IFERROR(INDEX(العمليات!$K$2:$K$200,SMALL(IF(العمليات!$F$2:$F$200=$A$2,IF(العمليات!$E$2:$E$200=$A$3,ROW($A$2:$A$200)-ROW($A$2)+1)),ROWS($A$5:D15))),"") -> 60.9375
A16: =IFERROR(INDEX(العمليات!$G$2:$G$200,SMALL(IF(العمليات!$F$2:$F$200=$A$2,IF(العمليات!$E$2:$E$200=$A$3,ROW($A$2:$A$200)-ROW($A$2)+1)),ROWS($A$5:A16))),"") -> 124 | B16: =IFERROR(INDEX(العمليات!$I$2:$I$200,SMALL(IF(العمليات!$F$2:$F$200=$A$2,IF(العمليات!$E$2:$E$200=$A$3,ROW($A$2:$A$200)-ROW($A$2)+1)),ROWS($A$5:B16))),"") -> صنف24 | C16: =IFERROR(INDEX(العمليات!$H$2:$H$200,SMALL(IF(العمليات!$F$2:$F$200=$A$2,IF(العمليات!$E$2:$E$200=$A$3,ROW($A$2:$A$200)-ROW($A$2)+1)),ROWS($A$5:C16))),"") -> 23 | D16: =IFERROR(INDEX(العمليات!$K$2:$K$200,SMALL(IF(العمليات!$F$2:$F$200=$A$2,IF(العمليات!$E$2:$E$200=$A$3,ROW($A$2:$A$200)-ROW($A$2)+1)),ROWS($A$5:D16))),"") -> 56.0625
A17: =IFERROR(INDEX(العمليات!$G$2:$G$200,SMALL(IF(العمليات!$F$2:$F$200=$A$2,IF(العمليات!$E$2:$E$200=$A$3,ROW($A$2:$A$200)-ROW($A$2)+1)),ROWS($A$5:A17))),"") -> 125 | B17: =IFERROR(INDEX(العمليات!$I$2:$I$200,SMALL(IF(العمليات!$F$2:$F$200=$A$2,IF(العمليات!$E$2:$E$200=$A$3,ROW($A$2:$A$200)-ROW($A$2)+1)),ROWS($A$5:B17))),"") -> صنف25 | C17: =IFERROR(INDEX(العمليات!$H$2:$H$200,SMALL(IF(العمليات!$F$2:$F$200=$A$2,IF(العمليات!$E$2:$E$200=$A$3,ROW($A$2:$A$200)-ROW($A$2)+1)),ROWS($A$5:C17))),"") -> 12 | D17: =IFERROR(INDEX(العمليات!$K$2:$K$200,SMALL(IF(العمليات!$F$2:$F$200=$A$2,IF(العمليات!$E$2:$E$200=$A$3,ROW($A$2:$A$200)-ROW($A$2)+1)),ROWS($A$5:D17))),"") -> 29.25
A18: =IFERROR(INDEX(العمليات!$G$2:$G$200,SMALL(IF(العمليات!$F$2:$F$200=$A$2,IF(العمليات!$E$2:$E$200=$A$3,ROW($A$2:$A$200)-ROW($A$2)+1)),ROWS($A$5:A18))),"") -> 126 | B18: =IFERROR(INDEX(العمليات!$I$2:$I$200,SMALL(IF(العمليات!$F$2:$F$200=$A$2,IF(العمليات!$E$2:$E$200=$A$3,ROW($A$2:$A$200)-ROW($A$2)+1)),ROWS($A$5:B18))),"") -> صنف26 | C18: =IFERROR(INDEX(العمليات!$H$2:$H$200,SMALL(IF(العمليات!$F$2:$F$200=$A$2,IF(العمليات!$E$2:$E$200=$A$3,ROW($A$2:$A$200)-ROW($A$2)+1)),ROWS($A$5:C18))),"") -> 13 | D18: =IFERROR(INDEX(العمليات!$K$2:$K$200,SMALL(IF(العمليات!$F$2:$F$200=$A$2,IF(العمليات!$E$2:$E$200=$A$3,ROW($A$2:$A$200)-ROW($A$2)+1)),ROWS($A$5:D18))),"") -> 33.891
A19: =IFERROR(INDEX(العمليات!$G$2:$G$200,SMALL(IF(العمليات!$F$2:$F$200=$A$2,IF(العمليات!$E$2:$E$200=$A$3,ROW($A$2:$A$200)-ROW($A$2)+1)),ROWS($A$5:A19))),"") ->  | B19: =IFERROR(INDEX(العمليات!$I$2:$I$200,SMALL(IF(العمليات!$F$2:$F$200=$A$2,IF(العمليات!$E$2:$E$200=$A$3,ROW($A$2:$A$200)-ROW($A$2)+1)),ROWS($A$5:B19))),"") ->  | C19: =IFERROR(INDEX(العمليات!$H$2:$H$200,SMALL(IF(العمليات!$F$2:$F$200=$A$2,IF(العمليات!$E$2:$E$200=$A$3,ROW($A$2:$A$200)-ROW($A$2)+1)),ROWS($A$5:C19))),"") ->  | D19: =IFERROR(INDEX(العمليات!$K$2:$K$200,SMALL(IF(العمليات!$F$2:$F$200=$A$2,IF(العمليات!$E$2:$E$200=$A$3,ROW($A$2:$A$200)-ROW($A$2)+1)),ROWS($A$5:D19))),"") -> 
A20: =IFERROR(INDEX(العمليات!$G$2:$G$200,SMALL(IF(العمليات!$F$2:$F$200=$A$2,IF(العمليات!$E$2:$E$200=$A$3,ROW($A$2:$A$200)-ROW($A$2)+1)),ROWS($A$5:A20))),"") ->  | B20: =IFERROR(INDEX(العمليات!$I$2:$I$200,SMALL(IF(العمليات!$F$2:$F$200=$A$2,IF(العمليات!$E$2:$E$200=$A$3,ROW($A$2:$A$200)-ROW($A$2)+1)),ROWS($A$5:B20))),"") ->  | C20: =IFERROR(INDEX(العمليات!$H$2:$H$200,SMALL(IF(العمليات!$F$2:$F$200=$A$2,IF(العمليات!$E$2:$E$200=$A$3,ROW($A$2:$A$200)-ROW($A$2)+1)),ROWS($A$5:C20))),"") ->  | D20: =IFERROR(INDEX(العمليات!$K$2:$K$200,SMALL(IF(العمليات!$F$2:$F$200=$A$2,IF(العمليات!$E$2:$E$200=$A$3,ROW($A$2:$A$200)-ROW($A$2)+1)),ROWS($A$5:D20))),"") -> 
A21: =IFERROR(INDEX(العمليات!$G$2:$G$200,SMALL(IF(العمليات!$F$2:$F$200=$A$2,IF(العمليات!$E$2:$E$200=$A$3,ROW($A$2:$A$200)-ROW($A$2)+1)),ROWS($A$5:A21))),"") ->  | B21: =IFERROR(INDEX(العمليات!$I$2:$I$200,SMALL(IF(العمليات!$F$2:$F$200=$A$2,IF(العمليات!$E$2:$E$200=$A$3,ROW($A$2:$A$200)-ROW($A$2)+1)),ROWS($A$5:B21))),"") ->  | C21: =IFERROR(INDEX(العمليات!$H$2:$H$200,SMALL(IF(العمليات!$F$2:$F$200=$A$2,IF(العمليات!$E$2:$E$200=$A$3,ROW($A$2:$A$200)-ROW($A$2)+1)),ROWS($A$5:C21))),"") ->  | D21: =IFERROR(INDEX(العمليات!$K$2:$K$200,SMALL(IF(العمليات!$F$2:$F$200=$A$2,IF(العمليات!$E$2:$E$200=$A$3,ROW($A$2:$A$200)-ROW($A$2)+1)),ROWS($A$5:D21))),"") -> 
A22: =IFERROR(INDEX(العمليات!$G$2:$G$200,SMALL(IF(العمليات!$F$2:$F$200=$A$2,IF(العمليات!$E$2:$E$200=$A$3,ROW($A$2:$A$200)-ROW($A$2)+1)),ROWS($A$5:A22))),"") ->  | B22: =IFERROR(INDEX(العمليات!$I$2:$I$200,SMALL(IF(العمليات!$F$2:$F$200=$A$2,IF(العمليات!$E$2:$E$200=$A$3,ROW($A$2:$A$200)-ROW($A$2)+1)),ROWS($A$5:B22))),"") ->  | C22: =IFERROR(INDEX(العمليات!$H$2:$H$200,SMALL(IF(العمليات!$F$2:$F$200=$A$2,IF(العمليات!$E$2:$E$200=$A$3,ROW($A$2:$A$200)-ROW($A$2)+1)),ROWS($A$5:C22))),"") ->  | D22: =IFERROR(INDEX(العمليات!$K$2:$K$200,SMALL(IF(العمليات!$F$2:$F$200=$A$2,IF(العمليات!$E$2:$E$200=$A$3,ROW($A$2:$A$200)-ROW($A$2)+1)),ROWS($A$5:D22))),"") -> 
A23: =IFERROR(INDEX(العمليات!$G$2:$G$200,SMALL(IF(العمليات!$F$2:$F$200=$A$2,IF(العمليات!$E$2:$E$200=$A$3,ROW($A$2:$A$200)-ROW($A$2)+1)),ROWS($A$5:A23))),"") ->  | B23: =IFERROR(INDEX(العمليات!$I$2:$I$200,SMALL(IF(العمليات!$F$2:$F$200=$A$2,IF(العمليات!$E$2:$E$200=$A$3,ROW($A$2:$A$200)-ROW($A$2)+1)),ROWS($A$5:B23))),"") ->  | C23: =IFERROR(INDEX(العمليات!$H$2:$H$200,SMALL(IF(العمليات!$F$2:$F$200=$A$2,IF(العمليات!$E$2:$E$200=$A$3,ROW($A$2:$A$200)-ROW($A$2)+1)),ROWS($A$5:C23))),"") ->  | D23: =IFERROR(INDEX(العمليات!$K$2:$K$200,SMALL(IF(العمليات!$F$2:$F$200=$A$2,IF(العمليات!$E$2:$E$200=$A$3,ROW($A$2:$A$200)-ROW($A$2)+1)),ROWS($A$5:D23))),"") -> 
A24: =IFERROR(INDEX(العمليات!$G$2:$G$200,SMALL(IF(العمليات!$F$2:$F$200=$A$2,IF(العمليات!$E$2:$E$200=$A$3,ROW($A$2:$A$200)-ROW($A$2)+1)),ROWS($A$5:A24))),"") ->  | B24: =IFERROR(INDEX(العمليات!$I$2:$I$200,SMALL(IF(العمليات!$F$2:$F$200=$A$2,IF(العمليات!$E$2:$E$200=$A$3,ROW($A$2:$A$200)-ROW($A$2)+1)),ROWS($A$5:B24))),"") ->  | C24: =IFERROR(INDEX(العمليات!$H$2:$H$200,SMALL(IF(العمليات!$F$2:$F$200=$A$2,IF(العمليات!$E$2:$E$200=$A$3,ROW($A$2:$A$200)-ROW($A$2)+1)),ROWS($A$5:C24))),"") ->  | D24: =IFERROR(INDEX(العمليات!$K$2:$K$200,SMALL(IF(العمليات!$F$2:$F$200=$A$2,IF(العمليات!$E$2:$E$200=$A$3,ROW($A$2:$A$200)-ROW($A$2)+1)),ROWS($A$5:D24))),"") -> 
A25: =IFERROR(INDEX(العمليات!$G$2:$G$200,SMALL(IF(العمليات!$F$2:$F$200=$A$2,IF(العمليات!$E$2:$E$200=$A$3,ROW($A$2:$A$200)-ROW($A$2)+1)),ROWS($A$5:A25))),"") ->  | B25: =IFERROR(INDEX(العمليات!$I$2:$I$200,SMALL(IF(العمليات!$F$2:$F$200=$A$2,IF(العمليات!$E$2:$E$200=$A$3,ROW($A$2:$A$200)-ROW($A$2)+1)),ROWS($A$5:B25))),"") ->  | C25: =IFERROR(INDEX(العمليات!$H$2:$H$200,SMALL(IF(العمليات!$F$2:$F$200=$A$2,IF(العمليات!$E$2:$E$200=$A$3,ROW($A$2:$A$200)-ROW($A$2)+1)),ROWS($A$5:C25))),"") ->  | D25: =IFERROR(INDEX(العمليات!$K$2:$K$200,SMALL(IF(العمليات!$F$2:$F$200=$A$2,IF(العمليات!$E$2:$E$200=$A$3,ROW($A$2:$A$200)-ROW($A$2)+1)),ROWS($A$5:D25))),"") -> 
A26: =IFERROR(INDEX(العمليات!$G$2:$G$200,SMALL(IF(العمليات!$F$2:$F$200=$A$2,IF(العمليات!$E$2:$E$200=$A$3,ROW($A$2:$A$200)-ROW($A$2)+1)),ROWS($A$5:A26))),"") ->  | B26: =IFERROR(INDEX(العمليات!$I$2:$I$200,SMALL(IF(العمليات!$F$2:$F$200=$A$2,IF(العمليات!$E$2:$E$200=$A$3,ROW($A$2:$A$200)-ROW($A$2)+1)),ROWS($A$5:B26))),"") ->  | C26: =IFERROR(INDEX(العمليات!$H$2:$H$200,SMALL(IF(العمليات!$F$2:$F$200=$A$2,IF(العمليات!$E$2:$E$200=$A$3,ROW($A$2:$A$200)-ROW($A$2)+1)),ROWS($A$5:C26))),"") ->  | D26: =IFERROR(INDEX(العمليات!$K$2:$K$200,SMALL(IF(العمليات!$F$2:$F$200=$A$2,IF(العمليات!$E$2:$E$200=$A$3,ROW($A$2:$A$200)-ROW($A$2)+1)),ROWS($A$5:D26))),"") -> 
A27: =IFERROR(INDEX(العمليات!$G$2:$G$200,SMALL(IF(العمليات!$F$2:$F$200=$A$2,IF(العمليات!$E$2:$E$200=$A$3,ROW($A$2:$A$200)-ROW($A$2)+1)),ROWS($A$5:A27))),"") ->  | B27: =IFERROR(INDEX(العمليات!$I$2:$I$200,SMALL(IF(العمليات!$F$2:$F$200=$A$2,IF(العمليات!$E$2:$E$200=$A$3,ROW($A$2:$A$200)-ROW($A$2)+1)),ROWS($A$5:B27))),"") ->  | C27: =IFERROR(INDEX(العمليات!$H$2:$H$200,SMALL(IF(العمليات!$F$2:$F$200=$A$2,IF(العمليات!$E$2:$E$200=$A$3,ROW($A$2:$A$200)-ROW($A$2)+1)),ROWS($A$5:C27))),"") ->  | D27: =IFERROR(INDEX(العمليات!$K$2:$K$200,SMALL(IF(العمليات!$F$2:$F$200=$A$2,IF(العمليات!$E$2:$E$200=$A$3,ROW($A$2:$A$200)-ROW($A$2)+1)),ROWS($A$5:D27))),"") -> 
A28: =IFERROR(INDEX(العمليات!$G$2:$G$200,SMALL(IF(العمليات!$F$2:$F$200=$A$2,IF(العمليات!$E$2:$E$200=$A$3,ROW($A$2:$A$200)-ROW($A$2)+1)),ROWS($A$5:A28))),"") ->  | B28: =IFERROR(INDEX(العمليات!$I$2:$I$200,SMALL(IF(العمليات!$F$2:$F$200=$A$2,IF(العمليات!$E$2:$E$200=$A$3,ROW($A$2:$A$200)-ROW($A$2)+1)),ROWS($A$5:B28))),"") ->  | C28: =IFERROR(INDEX(العمليات!$H$2:$H$200,SMALL(IF(العمليات!$F$2:$F$200=$A$2,IF(العمليات!$E$2:$E$200=$A$3,ROW($A$2:$A$200)-ROW($A$2)+1)),ROWS($A$5:C28))),"") ->  | D28: =IFERROR(INDEX(العمليات!$K$2:$K$200,SMALL(IF(العمليات!$F$2:$F$200=$A$2,IF(العمليات!$E$2:$E$200=$A$3,ROW($A$2:$A$200)-ROW($A$2)+1)),ROWS($A$5:D28))),"") -> 
A29: =IFERROR(INDEX(العمليات!$G$2:$G$200,SMALL(IF(العمليات!$F$2:$F$200=$A$2,IF(العمليات!$E$2:$E$200=$A$3,ROW($A$2:$A$200)-ROW($A$2)+1)),ROWS($A$5:A29))),"") ->  | B29: =IFERROR(INDEX(العمليات!$I$2:$I$200,SMALL(IF(العمليات!$F$2:$F$200=$A$2,IF(العمليات!$E$2:$E$200=$A$3,ROW($A$2:$A$200)-ROW($A$2)+1)),ROWS($A$5:B29))),"") ->  | C29: =IFERROR(INDEX(العمليات!$H$2:$H$200,SMALL(IF(العمليات!$F$2:$F$200=$A$2,IF(العمليات!$E$2:$E$200=$A$3,ROW($A$2:$A$200)-ROW($A$2)+1)),ROWS($A$5:C29))),"") ->  | D29: =IFERROR(INDEX(العمليات!$K$2:$K$200,SMALL(IF(العمليات!$F$2:$F$200=$A$2,IF(العمليات!$E$2:$E$200=$A$3,ROW($A$2:$A$200)-ROW($A$2)+1)),ROWS($A$5:D29))),"") -> 
A30: =IFERROR(INDEX(العمليات!$G$2:$G$200,SMALL(IF(العمليات!$F$2:$F$200=$A$2,IF(العمليات!$E$2:$E$200=$A$3,ROW($A$2:$A$200)-ROW($A$2)+1)),ROWS($A$5:A30))),"") ->  | B30: =IFERROR(INDEX(العمليات!$I$2:$I$200,SMALL(IF(العمليات!$F$2:$F$200=$A$2,IF(العمليات!$E$2:$E$200=$A$3,ROW($A$2:$A$200)-ROW($A$2)+1)),ROWS($A$5:B30))),"") ->  | C30: =IFERROR(INDEX(العمليات!$H$2:$H$200,SMALL(IF(العمليات!$F$2:$F$200=$A$2,IF(العمليات!$E$2:$E$200=$A$3,ROW($A$2:$A$200)-ROW($A$2)+1)),ROWS($A$5:C30))),"") ->  | D30: =IFERROR(INDEX(العمليات!$K$2:$K$200,SMALL(IF(العمليات!$F$2:$F$200=$A$2,IF(العمليات!$E$2:$E$200=$A$3,ROW($A$2:$A$200)-ROW($A$2)+1)),ROWS($A$5:D30))),"") -> 
A31: =IFERROR(INDEX(العمليات!$G$2:$G$200,SMALL(IF(العمليات!$F$2:$F$200=$A$2,IF(العمليات!$E$2:$E$200=$A$3,ROW($A$2:$A$200)-ROW($A$2)+1)),ROWS($A$5:A31))),"") ->  | B31: =IFERROR(INDEX(العمليات!$I$2:$I$200,SMALL(IF(العمليات!$F$2:$F$200=$A$2,IF(العمليات!$E$2:$E$200=$A$3,ROW($A$2:$A$200)-ROW($A$2)+1)),ROWS($A$5:B31))),"") ->  | C31: =IFERROR(INDEX(العمليات!$H$2:$H$200,SMALL(IF(العمليات!$F$2:$F$200=$A$2,IF(العمليات!$E$2:$E$200=$A$3,ROW($A$2:$A$200)-ROW($A$2)+1)),ROWS($A$5:C31))),"") ->  | D31: =IFERROR(INDEX(العمليات!$K$2:$K$200,SMALL(IF(العمليات!$F$2:$F$200=$A$2,IF(العمليات!$E$2:$E$200=$A$3,ROW($A$2:$A$200)-ROW($A$2)+1)),ROWS($A$5:D31))),"") -> 
A32: =IFERROR(INDEX(العمليات!$G$2:$G$200,SMALL(IF(العمليات!$F$2:$F$200=$A$2,IF(العمليات!$E$2:$E$200=$A$3,ROW($A$2:$A$200)-ROW($A$2)+1)),ROWS($A$5:A32))),"") ->  | B32: =IFERROR(INDEX(العمليات!$I$2:$I$200,SMALL(IF(العمليات!$F$2:$F$200=$A$2,IF(العمليات!$E$2:$E$200=$A$3,ROW($A$2:$A$200)-ROW($A$2)+1)),ROWS($A$5:B32))),"") ->  | C32: =IFERROR(INDEX(العمليات!$H$2:$H$200,SMALL(IF(العمليات!$F$2:$F$200=$A$2,IF(العمليات!$E$2:$E$200=$A$3,ROW($A$2:$A$200)-ROW($A$2)+1)),ROWS($A$5:C32))),"") ->  | D32: =IFERROR(INDEX(العمليات!$K$2:$K$200,SMALL(IF(العمليات!$F$2:$F$200=$A$2,IF(العمليات!$E$2:$E$200=$A$3,ROW($A$2:$A$200)-ROW($A$2)+1)),ROWS($A$5:D32))),"") -> 
A33: =IFERROR(INDEX(العمليات!$G$2:$G$200,SMALL(IF(العمليات!$F$2:$F$200=$A$2,IF(العمليات!$E$2:$E$200=$A$3,ROW($A$2:$A$200)-ROW($A$2)+1)),ROWS($A$5:A33))),"") ->  | B33: =IFERROR(INDEX(العمليات!$I$2:$I$200,SMALL(IF(العمليات!$F$2:$F$200=$A$2,IF(العمليات!$E$2:$E$200=$A$3,ROW($A$2:$A$200)-ROW($A$2)+1)),ROWS($A$5:B33))),"") ->  | C33: =IFERROR(INDEX(العمليات!$H$2:$H$200,SMALL(IF(العمليات!$F$2:$F$200=$A$2,IF(العمليات!$E$2:$E$200=$A$3,ROW($A$2:$A$200)-ROW($A$2)+1)),ROWS($A$5:C33))),"") ->  | D33: =IFERROR(INDEX(العمليات!$K$2:$K$200,SMALL(IF(العمليات!$F$2:$F$200=$A$2,IF(العمليات!$E$2:$E$200=$A$3,ROW($A$2:$A$200)-ROW($A$2)+1)),ROWS($A$5:D33))),"") -> 
A34: =IFERROR(INDEX(العمليات!$G$2:$G$200,SMALL(IF(العمليات!$F$2:$F$200=$A$2,IF(العمليات!$E$2:$E$200=$A$3,ROW($A$2:$A$200)-ROW($A$2)+1)),ROWS($A$5:A34))),"") ->  | B34: =IFERROR(INDEX(العمليات!$I$2:$I$200,SMALL(IF(العمليات!$F$2:$F$200=$A$2,IF(العمليات!$E$2:$E$200=$A$3,ROW($A$2:$A$200)-ROW($A$2)+1)),ROWS($A$5:B34))),"") ->  | C34: =IFERROR(INDEX(العمليات!$H$2:$H$200,SMALL(IF(العمليات!$F$2:$F$200=$A$2,IF(العمليات!$E$2:$E$200=$A$3,ROW($A$2:$A$200)-ROW($A$2)+1)),ROWS($A$5:C34))),"") ->  | D34: =IFERROR(INDEX(العمليات!$K$2:$K$200,SMALL(IF(العمليات!$F$2:$F$200=$A$2,IF(العمليات!$E$2:$E$200=$A$3,ROW($A$2:$A$200)-ROW($A$2)+1)),ROWS($A$5:D34))),"") -> 
A35: =IFERROR(INDEX(العمليات!$G$2:$G$200,SMALL(IF(العمليات!$F$2:$F$200=$A$2,IF(العمليات!$E$2:$E$200=$A$3,ROW($A$2:$A$200)-ROW($A$2)+1)),ROWS($A$5:A35))),"") ->  | B35: =IFERROR(INDEX(العمليات!$I$2:$I$200,SMALL(IF(العمليات!$F$2:$F$200=$A$2,IF(العمليات!$E$2:$E$200=$A$3,ROW($A$2:$A$200)-ROW($A$2)+1)),ROWS($A$5:B35))),"") ->  | C35: =IFERROR(INDEX(العمليات!$H$2:$H$200,SMALL(IF(العمليات!$F$2:$F$200=$A$2,IF(العمليات!$E$2:$E$200=$A$3,ROW($A$2:$A$200)-ROW($A$2)+1)),ROWS($A$5:C35))),"") ->  | D35: =IFERROR(INDEX(العمليات!$K$2:$K$200,SMALL(IF(العمليات!$F$2:$F$200=$A$2,IF(العمليات!$E$2:$E$200=$A$3,ROW($A$2:$A$200)-ROW($A$2)+1)),ROWS($A$5:D35))),"") -> 
A36: =IFERROR(INDEX(العمليات!$G$2:$G$200,SMALL(IF(العمليات!$F$2:$F$200=$A$2,IF(العمليات!$E$2:$E$200=$A$3,ROW($A$2:$A$200)-ROW($A$2)+1)),ROWS($A$5:A36))),"") ->  | B36: =IFERROR(INDEX(العمليات!$I$2:$I$200,SMALL(IF(العمليات!$F$2:$F$200=$A$2,IF(العمليات!$E$2:$E$200=$A$3,ROW($A$2:$A$200)-ROW($A$2)+1)),ROWS($A$5:B36))),"") ->  | C36: =IFERROR(INDEX(العمليات!$H$2:$H$200,SMALL(IF(العمليات!$F$2:$F$200=$A$2,IF(العمليات!$E$2:$E$200=$A$3,ROW($A$2:$A$200)-ROW($A$2)+1)),ROWS($A$5:C36))),"") ->  | D36: =IFERROR(INDEX(العمليات!$K$2:$K$200,SMALL(IF(العمليات!$F$2:$F$200=$A$2,IF(العمليات!$E$2:$E$200=$A$3,ROW($A$2:$A$200)-ROW($A$2)+1)),ROWS($A$5:D36))),"") -> 
A37: =IFERROR(INDEX(العمليات!$G$2:$G$200,SMALL(IF(العمليات!$F$2:$F$200=$A$2,IF(العمليات!$E$2:$E$200=$A$3,ROW($A$2:$A$200)-ROW($A$2)+1)),ROWS($A$5:A37))),"") ->  | B37: =IFERROR(INDEX(العمليات!$I$2:$I$200,SMALL(IF(العمليات!$F$2:$F$200=$A$2,IF(العمليات!$E$2:$E$200=$A$3,ROW($A$2:$A$200)-ROW($A$2)+1)),ROWS($A$5:B37))),"") ->  | C37: =IFERROR(INDEX(العمليات!$H$2:$H$200,SMALL(IF(العمليات!$F$2:$F$200=$A$2,IF(العمليات!$E$2:$E$200=$A$3,ROW($A$2:$A$200)-ROW($A$2)+1)),ROWS($A$5:C37))),"") ->  | D37: =IFERROR(INDEX(العمليات!$K$2:$K$200,SMALL(IF(العمليات!$F$2:$F$200=$A$2,IF(العمليات!$E$2:$E$200=$A$3,ROW($A$2:$A$200)-ROW($A$2)+1)),ROWS($A$5:D37))),"") -> 
A38: =IFERROR(INDEX(العمليات!$G$2:$G$200,SMALL(IF(العمليات!$F$2:$F$200=$A$2,IF(العمليات!$E$2:$E$200=$A$3,ROW($A$2:$A$200)-ROW($A$2)+1)),ROWS($A$5:A38))),"") ->  | B38: =IFERROR(INDEX(العمليات!$I$2:$I$200,SMALL(IF(العمليات!$F$2:$F$200=$A$2,IF(العمليات!$E$2:$E$200=$A$3,ROW($A$2:$A$200)-ROW($A$2)+1)),ROWS($A$5:B38))),"") ->  | C38: =IFERROR(INDEX(العمليات!$H$2:$H$200,SMALL(IF(العمليات!$F$2:$F$200=$A$2,IF(العمليات!$E$2:$E$200=$A$3,ROW($A$2:$A$200)-ROW($A$2)+1)),ROWS($A$5:C38))),"") ->  | D38: =IFERROR(INDEX(العمليات!$K$2:$K$200,SMALL(IF(العمليات!$F$2:$F$200=$A$2,IF(العمليات!$E$2:$E$200=$A$3,ROW($A$2:$A$200)-ROW($A$2)+1)),ROWS($A$5:D38))),"") -> 
A39: =IFERROR(INDEX(العمليات!$G$2:$G$200,SMALL(IF(العمليات!$F$2:$F$200=$A$2,IF(العمليات!$E$2:$E$200=$A$3,ROW($A$2:$A$200)-ROW($A$2)+1)),ROWS($A$5:A39))),"") ->  | B39: =IFERROR(INDEX(العمليات!$I$2:$I$200,SMALL(IF(العمليات!$F$2:$F$200=$A$2,IF(العمليات!$E$2:$E$200=$A$3,ROW($A$2:$A$200)-ROW($A$2)+1)),ROWS($A$5:B39))),"") ->  | C39: =IFERROR(INDEX(العمليات!$H$2:$H$200,SMALL(IF(العمليات!$F$2:$F$200=$A$2,IF(العمليات!$E$2:$E$200=$A$3,ROW($A$2:$A$200)-ROW($A$2)+1)),ROWS($A$5:C39))),"") ->  | D39: =IFERROR(INDEX(العمليات!$K$2:$K$200,SMALL(IF(العمليات!$F$2:$F$200=$A$2,IF(العمليات!$E$2:$E$200=$A$3,ROW($A$2:$A$200)-ROW($A$2)+1)),ROWS($A$5:D39))),"") -> 
A40: =IFERROR(INDEX(العمليات!$G$2:$G$200,SMALL(IF(العمليات!$F$2:$F$200=$A$2,IF(العمليات!$E$2:$E$200=$A$3,ROW($A$2:$A$200)-ROW($A$2)+1)),ROWS($A$5:A40))),"") ->  | B40: =IFERROR(INDEX(العمليات!$I$2:$I$200,SMALL(IF(العمليات!$F$2:$F$200=$A$2,IF(العمليات!$E$2:$E$200=$A$3,ROW($A$2:$A$200)-ROW($A$2)+1)),ROWS($A$5:B40))),"") ->  | C40: =IFERROR(INDEX(العمليات!$H$2:$H$200,SMALL(IF(العمليات!$F$2:$F$200=$A$2,IF(العمليات!$E$2:$E$200=$A$3,ROW($A$2:$A$200)-ROW($A$2)+1)),ROWS($A$5:C40))),"") ->  | D40: =IFERROR(INDEX(العمليات!$K$2:$K$200,SMALL(IF(العمليات!$F$2:$F$200=$A$2,IF(العمليات!$E$2:$E$200=$A$3,ROW($A$2:$A$200)-ROW($A$2)+1)),ROWS($A$5:D40))),"") -> 
A41: =IFERROR(INDEX(العمليات!$G$2:$G$200,SMALL(IF(العمليات!$F$2:$F$200=$A$2,IF(العمليات!$E$2:$E$200=$A$3,ROW($A$2:$A$200)-ROW($A$2)+1)),ROWS($A$5:A41))),"") ->  | B41: =IFERROR(INDEX(العمليات!$I$2:$I$200,SMALL(IF(العمليات!$F$2:$F$200=$A$2,IF(العمليات!$E$2:$E$200=$A$3,ROW($A$2:$A$200)-ROW($A$2)+1)),ROWS($A$5:B41))),"") ->  | C41: =IFERROR(INDEX(العمليات!$H$2:$H$200,SMALL(IF(العمليات!$F$2:$F$200=$A$2,IF(العمليات!$E$2:$E$200=$A$3,ROW($A$2:$A$200)-ROW($A$2)+1)),ROWS($A$5:C41))),"") ->  | D41: =IFERROR(INDEX(العمليات!$K$2:$K$200,SMALL(IF(العمليات!$F$2:$F$200=$A$2,IF(العمليات!$E$2:$E$200=$A$3,ROW($A$2:$A$200)-ROW($A$2)+1)),ROWS($A$5:D41))),"") -> 
A42: =IFERROR(INDEX(العمليات!$G$2:$G$200,SMALL(IF(العمليات!$F$2:$F$200=$A$2,IF(العمليات!$E$2:$E$200=$A$3,ROW($A$2:$A$200)-ROW($A$2)+1)),ROWS($A$5:A42))),"") ->  | B42: =IFERROR(INDEX(العمليات!$I$2:$I$200,SMALL(IF(العمليات!$F$2:$F$200=$A$2,IF(العمليات!$E$2:$E$200=$A$3,ROW($A$2:$A$200)-ROW($A$2)+1)),ROWS($A$5:B42))),"") ->  | C42: =IFERROR(INDEX(العمليات!$H$2:$H$200,SMALL(IF(العمليات!$F$2:$F$200=$A$2,IF(العمليات!$E$2:$E$200=$A$3,ROW($A$2:$A$200)-ROW($A$2)+1)),ROWS($A$5:C42))),"") ->  | D42: =IFERROR(INDEX(العمليات!$K$2:$K$200,SMALL(IF(العمليات!$F$2:$F$200=$A$2,IF(العمليات!$E$2:$E$200=$A$3,ROW($A$2:$A$200)-ROW($A$2)+1)),ROWS($A$5:D42))),"") -> 
A43: =IFERROR(INDEX(العمليات!$G$2:$G$200,SMALL(IF(العمليات!$F$2:$F$200=$A$2,IF(العمليات!$E$2:$E$200=$A$3,ROW($A$2:$A$200)-ROW($A$2)+1)),ROWS($A$5:A43))),"") ->  | B43: =IFERROR(INDEX(العمليات!$I$2:$I$200,SMALL(IF(العمليات!$F$2:$F$200=$A$2,IF(العمليات!$E$2:$E$200=$A$3,ROW($A$2:$A$200)-ROW($A$2)+1)),ROWS($A$5:B43))),"") ->  | C43: =IFERROR(INDEX(العمليات!$H$2:$H$200,SMALL(IF(العمليات!$F$2:$F$200=$A$2,IF(العمليات!$E$2:$E$200=$A$3,ROW($A$2:$A$200)-ROW($A$2)+1)),ROWS($A$5:C43))),"") ->  | D43: =IFERROR(INDEX(العمليات!$K$2:$K$200,SMALL(IF(العمليات!$F$2:$F$200=$A$2,IF(العمليات!$E$2:$E$200=$A$3,ROW($A$2:$A$200)-ROW($A$2)+1)),ROWS($A$5:D43))),"") -> 
A44: =IFERROR(INDEX(العمليات!$G$2:$G$200,SMALL(IF(العمليات!$F$2:$F$200=$A$2,IF(العمليات!$E$2:$E$200=$A$3,ROW($A$2:$A$200)-ROW($A$2)+1)),ROWS($A$5:A44))),"") ->  | B44: =IFERROR(INDEX(العمليات!$I$2:$I$200,SMALL(IF(العمليات!$F$2:$F$200=$A$2,IF(العمليات!$E$2:$E$200=$A$3,ROW($A$2:$A$200)-ROW($A$2)+1)),ROWS($A$5:B44))),"") ->  | C44: =IFERROR(INDEX(العمليات!$H$2:$H$200,SMALL(IF(العمليات!$F$2:$F$200=$A$2,IF(العمليات!$E$2:$E$200=$A$3,ROW($A$2:$A$200)-ROW($A$2)+1)),ROWS($A$5:C44))),"") ->  | D44: =IFERROR(INDEX(العمليات!$K$2:$K$200,SMALL(IF(العمليات!$F$2:$F$200=$A$2,IF(العمليات!$E$2:$E$200=$A$3,ROW($A$2:$A$200)-ROW($A$2)+1)),ROWS($A$5:D44))),"") -> 
A45: =IFERROR(INDEX(العمليات!$G$2:$G$200,SMALL(IF(العمليات!$F$2:$F$200=$A$2,IF(العمليات!$E$2:$E$200=$A$3,ROW($A$2:$A$200)-ROW($A$2)+1)),ROWS($A$5:A45))),"") ->  | B45: =IFERROR(INDEX(العمليات!$I$2:$I$200,SMALL(IF(العمليات!$F$2:$F$200=$A$2,IF(العمليات!$E$2:$E$200=$A$3,ROW($A$2:$A$200)-ROW($A$2)+1)),ROWS($A$5:B45))),"") ->  | C45: =IFERROR(INDEX(العمليات!$H$2:$H$200,SMALL(IF(العمليات!$F$2:$F$200=$A$2,IF(العمليات!$E$2:$E$200=$A$3,ROW($A$2:$A$200)-ROW($A$2)+1)),ROWS($A$5:C45))),"") ->  | D45: =IFERROR(INDEX(العمليات!$K$2:$K$200,SMALL(IF(العمليات!$F$2:$F$200=$A$2,IF(العمليات!$E$2:$E$200=$A$3,ROW($A$2:$A$200)-ROW($A$2)+1)),ROWS($A$5:D45))),"") -> 
A46: =IFERROR(INDEX(العمليات!$G$2:$G$200,SMALL(IF(العمليات!$F$2:$F$200=$A$2,IF(العمليات!$E$2:$E$200=$A$3,ROW($A$2:$A$200)-ROW($A$2)+1)),ROWS($A$5:A46))),"") ->  | B46: =IFERROR(INDEX(العمليات!$I$2:$I$200,SMALL(IF(العمليات!$F$2:$F$200=$A$2,IF(العمليات!$E$2:$E$200=$A$3,ROW($A$2:$A$200)-ROW($A$2)+1)),ROWS($A$5:B46))),"") ->  | C46: =IFERROR(INDEX(العمليات!$H$2:$H$200,SMALL(IF(العمليات!$F$2:$F$200=$A$2,IF(العمليات!$E$2:$E$200=$A$3,ROW($A$2:$A$200)-ROW($A$2)+1)),ROWS($A$5:C46))),"") ->  | D46: =IFERROR(INDEX(العمليات!$K$2:$K$200,SMALL(IF(العمليات!$F$2:$F$200=$A$2,IF(العمليات!$E$2:$E$200=$A$3,ROW($A$2:$A$200)-ROW($A$2)+1)),ROWS($A$5:D46))),"") -> 
A47: =IFERROR(INDEX(العمليات!$G$2:$G$200,SMALL(IF(العمليات!$F$2:$F$200=$A$2,IF(العمليات!$E$2:$E$200=$A$3,ROW($A$2:$A$200)-ROW($A$2)+1)),ROWS($A$5:A47))),"") ->  | B47: =IFERROR(INDEX(العمليات!$I$2:$I$200,SMALL(IF(العمليات!$F$2:$F$200=$A$2,IF(العمليات!$E$2:$E$200=$A$3,ROW($A$2:$A$200)-ROW($A$2)+1)),ROWS($A$5:B47))),"") ->  | C47: =IFERROR(INDEX(العمليات!$H$2:$H$200,SMALL(IF(العمليات!$F$2:$F$200=$A$2,IF(العمليات!$E$2:$E$200=$A$3,ROW($A$2:$A$200)-ROW($A$2)+1)),ROWS($A$5:C47))),"") ->  | D47: =IFERROR(INDEX(العمليات!$K$2:$K$200,SMALL(IF(العمليات!$F$2:$F$200=$A$2,IF(العمليات!$E$2:$E$200=$A$3,ROW($A$2:$A$200)-ROW($A$2)+1)),ROWS($A$5:D47))),"") -> 
A48: =IFERROR(INDEX(العمليات!$G$2:$G$200,SMALL(IF(العمليات!$F$2:$F$200=$A$2,IF(العمليات!$E$2:$E$200=$A$3,ROW($A$2:$A$200)-ROW($A$2)+1)),ROWS($A$5:A48))),"") ->  | B48: =IFERROR(INDEX(العمليات!$I$2:$I$200,SMALL(IF(العمليات!$F$2:$F$200=$A$2,IF(العمليات!$E$2:$E$200=$A$3,ROW($A$2:$A$200)-ROW($A$2)+1)),ROWS($A$5:B48))),"") ->  | C48: =IFERROR(INDEX(العمليات!$H$2:$H$200,SMALL(IF(العمليات!$F$2:$F$200=$A$2,IF(العمليات!$E$2:$E$200=$A$3,ROW($A$2:$A$200)-ROW($A$2)+1)),ROWS($A$5:C48))),"") ->  | D48: =IFERROR(INDEX(العمليات!$K$2:$K$200,SMALL(IF(العمليات!$F$2:$F$200=$A$2,IF(العمليات!$E$2:$E$200=$A$3,ROW($A$2:$A$200)-ROW($A$2)+1)),ROWS($A$5:D48))),"") -> 
A49: =IFERROR(INDEX(العمليات!$G$2:$G$200,SMALL(IF(العمليات!$F$2:$F$200=$A$2,IF(العمليات!$E$2:$E$200=$A$3,ROW($A$2:$A$200)-ROW($A$2)+1)),ROWS($A$5:A49))),"") ->  | B49: =IFERROR(INDEX(العمليات!$I$2:$I$200,SMALL(IF(العمليات!$F$2:$F$200=$A$2,IF(العمليات!$E$2:$E$200=$A$3,ROW($A$2:$A$200)-ROW($A$2)+1)),ROWS($A$5:B49))),"") ->  | C49: =IFERROR(INDEX(العمليات!$H$2:$H$200,SMALL(IF(العمليات!$F$2:$F$200=$A$2,IF(العمليات!$E$2:$E$200=$A$3,ROW($A$2:$A$200)-ROW($A$2)+1)),ROWS($A$5:C49))),"") ->  | D49: =IFERROR(INDEX(العمليات!$K$2:$K$200,SMALL(IF(العمليات!$F$2:$F$200=$A$2,IF(العمليات!$E$2:$E$200=$A$3,ROW($A$2:$A$200)-ROW($A$2)+1)),ROWS($A$5:D49))),"") -> 
A50: =IFERROR(INDEX(العمليات!$G$2:$G$200,SMALL(IF(العمليات!$F$2:$F$200=$A$2,IF(العمليات!$E$2:$E$200=$A$3,ROW($A$2:$A$200)-ROW($A$2)+1)),ROWS($A$5:A50))),"") ->  | B50: =IFERROR(INDEX(العمليات!$I$2:$I$200,SMALL(IF(العمليات!$F$2:$F$200=$A$2,IF(العمليات!$E$2:$E$200=$A$3,ROW($A$2:$A$200)-ROW($A$2)+1)),ROWS($A$5:B50))),"") ->  | C50: =IFERROR(INDEX(العمليات!$H$2:$H$200,SMALL(IF(العمليات!$F$2:$F$200=$A$2,IF(العمليات!$E$2:$E$200=$A$3,ROW($A$2:$A$200)-ROW($A$2)+1)),ROWS($A$5:C50))),"") ->  | D50: =IFERROR(INDEX(العمليات!$K$2:$K$200,SMALL(IF(العمليات!$F$2:$F$200=$A$2,IF(العمليات!$E$2:$E$200=$A$3,ROW($A$2:$A$200)-ROW($A$2)+1)),ROWS($A$5:D50))),"") -> 
A51: =IFERROR(INDEX(العمليات!$G$2:$G$200,SMALL(IF(العمليات!$F$2:$F$200=$A$2,IF(العمليات!$E$2:$E$200=$A$3,ROW($A$2:$A$200)-ROW($A$2)+1)),ROWS($A$5:A51))),"") ->  | B51: =IFERROR(INDEX(العمليات!$I$2:$I$200,SMALL(IF(العمليات!$F$2:$F$200=$A$2,IF(العمليات!$E$2:$E$200=$A$3,ROW($A$2:$A$200)-ROW($A$2)+1)),ROWS($A$5:B51))),"") ->  | C51: =IFERROR(INDEX(العمليات!$H$2:$H$200,SMALL(IF(العمليات!$F$2:$F$200=$A$2,IF(العمليات!$E$2:$E$200=$A$3,ROW($A$2:$A$200)-ROW($A$2)+1)),ROWS($A$5:C51))),"") ->  | D51: =IFERROR(INDEX(العمليات!$K$2:$K$200,SMALL(IF(العمليات!$F$2:$F$200=$A$2,IF(العمليات!$E$2:$E$200=$A$3,ROW($A$2:$A$200)-ROW($A$2)+1)),ROWS($A$5:D51))),"") -> 
A52: =IFERROR(INDEX(العمليات!$G$2:$G$200,SMALL(IF(العمليات!$F$2:$F$200=$A$2,IF(العمليات!$E$2:$E$200=$A$3,ROW($A$2:$A$200)-ROW($A$2)+1)),ROWS($A$5:A52))),"") ->  | B52: =IFERROR(INDEX(العمليات!$I$2:$I$200,SMALL(IF(العمليات!$F$2:$F$200=$A$2,IF(العمليات!$E$2:$E$200=$A$3,ROW($A$2:$A$200)-ROW($A$2)+1)),ROWS($A$5:B52))),"") ->  | C52: =IFERROR(INDEX(العمليات!$H$2:$H$200,SMALL(IF(العمليات!$F$2:$F$200=$A$2,IF(العمليات!$E$2:$E$200=$A$3,ROW($A$2:$A$200)-ROW($A$2)+1)),ROWS($A$5:C52))),"") ->  | D52: =IFERROR(INDEX(العمليات!$K$2:$K$200,SMALL(IF(العمليات!$F$2:$F$200=$A$2,IF(العمليات!$E$2:$E$200=$A$3,ROW($A$2:$A$200)-ROW($A$2)+1)),ROWS($A$5:D52))),"") -> 
A53: =IFERROR(INDEX(العمليات!$G$2:$G$200,SMALL(IF(العمليات!$F$2:$F$200=$A$2,IF(العمليات!$E$2:$E$200=$A$3,ROW($A$2:$A$200)-ROW($A$2)+1)),ROWS($A$5:A53))),"") ->  | B53: =IFERROR(INDEX(العمليات!$I$2:$I$200,SMALL(IF(العمليات!$F$2:$F$200=$A$2,IF(العمليات!$E$2:$E$200=$A$3,ROW($A$2:$A$200)-ROW($A$2)+1)),ROWS($A$5:B53))),"") ->  | C53: =IFERROR(INDEX(العمليات!$H$2:$H$200,SMALL(IF(العمليات!$F$2:$F$200=$A$2,IF(العمليات!$E$2:$E$200=$A$3,ROW($A$2:$A$200)-ROW($A$2)+1)),ROWS($A$5:C53))),"") ->  | D53: =IFERROR(INDEX(العمليات!$K$2:$K$200,SMALL(IF(العمليات!$F$2:$F$200=$A$2,IF(العمليات!$E$2:$E$200=$A$3,ROW($A$2:$A$200)-ROW($A$2)+1)),ROWS($A$5:D53))),"") -> 
A54: =IFERROR(INDEX(العمليات!$G$2:$G$200,SMALL(IF(العمليات!$F$2:$F$200=$A$2,IF(العمليات!$E$2:$E$200=$A$3,ROW($A$2:$A$200)-ROW($A$2)+1)),ROWS($A$5:A54))),"") ->  | B54: =IFERROR(INDEX(العمليات!$I$2:$I$200,SMALL(IF(العمليات!$F$2:$F$200=$A$2,IF(العمليات!$E$2:$E$200=$A$3,ROW($A$2:$A$200)-ROW($A$2)+1)),ROWS($A$5:B54))),"") ->  | C54: =IFERROR(INDEX(العمليات!$H$2:$H$200,SMALL(IF(العمليات!$F$2:$F$200=$A$2,IF(العمليات!$E$2:$E$200=$A$3,ROW($A$2:$A$200)-ROW($A$2)+1)),ROWS($A$5:C54))),"") ->  | D54: =IFERROR(INDEX(العمليات!$K$2:$K$200,SMALL(IF(العمليات!$F$2:$F$200=$A$2,IF(العمليات!$E$2:$E$200=$A$3,ROW($A$2:$A$200)-ROW($A$2)+1)),ROWS($A$5:D54))),"") -> 
A55: =IFERROR(INDEX(العمليات!$G$2:$G$200,SMALL(IF(العمليات!$F$2:$F$200=$A$2,IF(العمليات!$E$2:$E$200=$A$3,ROW($A$2:$A$200)-ROW($A$2)+1)),ROWS($A$5:A55))),"") ->  | B55: =IFERROR(INDEX(العمليات!$I$2:$I$200,SMALL(IF(العمليات!$F$2:$F$200=$A$2,IF(العمليات!$E$2:$E$200=$A$3,ROW($A$2:$A$200)-ROW($A$2)+1)),ROWS($A$5:B55))),"") ->  | C55: =IFERROR(INDEX(العمليات!$H$2:$H$200,SMALL(IF(العمليات!$F$2:$F$200=$A$2,IF(العمليات!$E$2:$E$200=$A$3,ROW($A$2:$A$200)-ROW($A$2)+1)),ROWS($A$5:C55))),"") ->  | D55: =IFERROR(INDEX(العمليات!$K$2:$K$200,SMALL(IF(العمليات!$F$2:$F$200=$A$2,IF(العمليات!$E$2:$E$200=$A$3,ROW($A$2:$A$200)-ROW($A$2)+1)),ROWS($A$5:D55))),"") -> 
A56: =IFERROR(INDEX(العمليات!$G$2:$G$200,SMALL(IF(العمليات!$F$2:$F$200=$A$2,IF(العمليات!$E$2:$E$200=$A$3,ROW($A$2:$A$200)-ROW($A$2)+1)),ROWS($A$5:A56))),"") ->  | B56: =IFERROR(INDEX(العمليات!$I$2:$I$200,SMALL(IF(العمليات!$F$2:$F$200=$A$2,IF(العمليات!$E$2:$E$200=$A$3,ROW($A$2:$A$200)-ROW($A$2)+1)),ROWS($A$5:B56))),"") ->  | C56: =IFERROR(INDEX(العمليات!$H$2:$H$200,SMALL(IF(العمليات!$F$2:$F$200=$A$2,IF(العمليات!$E$2:$E$200=$A$3,ROW($A$2:$A$200)-ROW($A$2)+1)),ROWS($A$5:C56))),"") ->  | D56: =IFERROR(INDEX(العمليات!$K$2:$K$200,SMALL(IF(العمليات!$F$2:$F$200=$A$2,IF(العمليات!$E$2:$E$200=$A$3,ROW($A$2:$A$200)-ROW($A$2)+1)),ROWS($A$5:D56))),"") -> 
A57: =IFERROR(INDEX(العمليات!$G$2:$G$200,SMALL(IF(العمليات!$F$2:$F$200=$A$2,IF(العمليات!$E$2:$E$200=$A$3,ROW($A$2:$A$200)-ROW($A$2)+1)),ROWS($A$5:A57))),"") ->  | B57: =IFERROR(INDEX(العمليات!$I$2:$I$200,SMALL(IF(العمليات!$F$2:$F$200=$A$2,IF(العمليات!$E$2:$E$200=$A$3,ROW($A$2:$A$200)-ROW($A$2)+1)),ROWS($A$5:B57))),"") ->  | C57: =IFERROR(INDEX(العمليات!$H$2:$H$200,SMALL(IF(العمليات!$F$2:$F$200=$A$2,IF(العمليات!$E$2:$E$200=$A$3,ROW($A$2:$A$200)-ROW($A$2)+1)),ROWS($A$5:C57))),"") ->  | D57: =IFERROR(INDEX(العمليات!$K$2:$K$200,SMALL(IF(العمليات!$F$2:$F$200=$A$2,IF(العمليات!$E$2:$E$200=$A$3,ROW($A$2:$A$200)-ROW($A$2)+1)),ROWS($A$5:D57))),"") -> 
A58: =IFERROR(INDEX(العمليات!$G$2:$G$200,SMALL(IF(العمليات!$F$2:$F$200=$A$2,IF(العمليات!$E$2:$E$200=$A$3,ROW($A$2:$A$200)-ROW($A$2)+1)),ROWS($A$5:A58))),"") ->  | B58: =IFERROR(INDEX(العمليات!$I$2:$I$200,SMALL(IF(العمليات!$F$2:$F$200=$A$2,IF(العمليات!$E$2:$E$200=$A$3,ROW($A$2:$A$200)-ROW($A$2)+1)),ROWS($A$5:B58))),"") ->  | C58: =IFERROR(INDEX(العمليات!$H$2:$H$200,SMALL(IF(العمليات!$F$2:$F$200=$A$2,IF(العمليات!$E$2:$E$200=$A$3,ROW($A$2:$A$200)-ROW($A$2)+1)),ROWS($A$5:C58))),"") ->  | D58: =IFERROR(INDEX(العمليات!$K$2:$K$200,SMALL(IF(العمليات!$F$2:$F$200=$A$2,IF(العمليات!$E$2:$E$200=$A$3,ROW($A$2:$A$200)-ROW($A$2)+1)),ROWS($A$5:D58))),"") -> 
A59: =IFERROR(INDEX(العمليات!$G$2:$G$200,SMALL(IF(العمليات!$F$2:$F$200=$A$2,IF(العمليات!$E$2:$E$200=$A$3,ROW($A$2:$A$200)-ROW($A$2)+1)),ROWS($A$5:A59))),"") ->  | B59: =IFERROR(INDEX(العمليات!$I$2:$I$200,SMALL(IF(العمليات!$F$2:$F$200=$A$2,IF(العمليات!$E$2:$E$200=$A$3,ROW($A$2:$A$200)-ROW($A$2)+1)),ROWS($A$5:B59))),"") ->  | C59: =IFERROR(INDEX(العمليات!$H$2:$H$200,SMALL(IF(العمليات!$F$2:$F$200=$A$2,IF(العمليات!$E$2:$E$200=$A$3,ROW($A$2:$A$200)-ROW($A$2)+1)),ROWS($A$5:C59))),"") ->  | D59: =IFERROR(INDEX(العمليات!$K$2:$K$200,SMALL(IF(العمليات!$F$2:$F$200=$A$2,IF(العمليات!$E$2:$E$200=$A$3,ROW($A$2:$A$200)-ROW($A$2)+1)),ROWS($A$5:D59))),"") -> 
A60: =IFERROR(INDEX(العمليات!$G$2:$G$200,SMALL(IF(العمليات!$F$2:$F$200=$A$2,IF(العمليات!$E$2:$E$200=$A$3,ROW($A$2:$A$200)-ROW($A$2)+1)),ROWS($A$5:A60))),"") ->  | B60: =IFERROR(INDEX(العمليات!$I$2:$I$200,SMALL(IF(العمليات!$F$2:$F$200=$A$2,IF(العمليات!$E$2:$E$200=$A$3,ROW($A$2:$A$200)-ROW($A$2)+1)),ROWS($A$5:B60))),"") ->  | C60: =IFERROR(INDEX(العمليات!$H$2:$H$200,SMALL(IF(العمليات!$F$2:$F$200=$A$2,IF(العمليات!$E$2:$E$200=$A$3,ROW($A$2:$A$200)-ROW($A$2)+1)),ROWS($A$5:C60))),"") ->  | D60: =IFERROR(INDEX(العمليات!$K$2:$K$200,SMALL(IF(العمليات!$F$2:$F$200=$A$2,IF(العمليات!$E$2:$E$200=$A$3,ROW($A$2:$A$200)-ROW($A$2)+1)),ROWS($A$5:D60))),"") -> 
A61: =IFERROR(INDEX(العمليات!$G$2:$G$200,SMALL(IF(العمليات!$F$2:$F$200=$A$2,IF(العمليات!$E$2:$E$200=$A$3,ROW($A$2:$A$200)-ROW($A$2)+1)),ROWS($A$5:A61))),"") ->  | B61: =IFERROR(INDEX(العمليات!$I$2:$I$200,SMALL(IF(العمليات!$F$2:$F$200=$A$2,IF(العمليات!$E$2:$E$200=$A$3,ROW($A$2:$A$200)-ROW($A$2)+1)),ROWS($A$5:B61))),"") ->  | C61: =IFERROR(INDEX(العمليات!$H$2:$H$200,SMALL(IF(العمليات!$F$2:$F$200=$A$2,IF(العمليات!$E$2:$E$200=$A$3,ROW($A$2:$A$200)-ROW($A$2)+1)),ROWS($A$5:C61))),"") ->  | D61: =IFERROR(INDEX(العمليات!$K$2:$K$200,SMALL(IF(العمليات!$F$2:$F$200=$A$2,IF(العمليات!$E$2:$E$200=$A$3,ROW($A$2:$A$200)-ROW($A$2)+1)),ROWS($A$5:D61))),"") -> 
A62: =IFERROR(INDEX(العمليات!$G$2:$G$200,SMALL(IF(العمليات!$F$2:$F$200=$A$2,IF(العمليات!$E$2:$E$200=$A$3,ROW($A$2:$A$200)-ROW($A$2)+1)),ROWS($A$5:A62))),"") ->  | B62: =IFERROR(INDEX(العمليات!$I$2:$I$200,SMALL(IF(العمليات!$F$2:$F$200=$A$2,IF(العمليات!$E$2:$E$200=$A$3,ROW($A$2:$A$200)-ROW($A$2)+1)),ROWS($A$5:B62))),"") ->  | C62: =IFERROR(INDEX(العمليات!$H$2:$H$200,SMALL(IF(العمليات!$F$2:$F$200=$A$2,IF(العمليات!$E$2:$E$200=$A$3,ROW($A$2:$A$200)-ROW($A$2)+1)),ROWS($A$5:C62))),"") ->  | D62: =IFERROR(INDEX(العمليات!$K$2:$K$200,SMALL(IF(العمليات!$F$2:$F$200=$A$2,IF(العمليات!$E$2:$E$200=$A$3,ROW($A$2:$A$200)-ROW($A$2)+1)),ROWS($A$5:D62))),"") -> 
A63: =IFERROR(INDEX(العمليات!$G$2:$G$200,SMALL(IF(العمليات!$F$2:$F$200=$A$2,IF(العمليات!$E$2:$E$200=$A$3,ROW($A$2:$A$200)-ROW($A$2)+1)),ROWS($A$5:A63))),"") ->  | B63: =IFERROR(INDEX(العمليات!$I$2:$I$200,SMALL(IF(العمليات!$F$2:$F$200=$A$2,IF(العمليات!$E$2:$E$200=$A$3,ROW($A$2:$A$200)-ROW($A$2)+1)),ROWS($A$5:B63))),"") ->  | C63: =IFERROR(INDEX(العمليات!$H$2:$H$200,SMALL(IF(العمليات!$F$2:$F$200=$A$2,IF(العمليات!$E$2:$E$200=$A$3,ROW($A$2:$A$200)-ROW($A$2)+1)),ROWS($A$5:C63))),"") ->  | D63: =IFERROR(INDEX(العمليات!$K$2:$K$200,SMALL(IF(العمليات!$F$2:$F$200=$A$2,IF(العمليات!$E$2:$E$200=$A$3,ROW($A$2:$A$200)-ROW($A$2)+1)),ROWS($A$5:D63))),"") -> 
A64: =IFERROR(INDEX(العمليات!$G$2:$G$200,SMALL(IF(العمليات!$F$2:$F$200=$A$2,IF(العمليات!$E$2:$E$200=$A$3,ROW($A$2:$A$200)-ROW($A$2)+1)),ROWS($A$5:A64))),"") ->  | B64: =IFERROR(INDEX(العمليات!$I$2:$I$200,SMALL(IF(العمليات!$F$2:$F$200=$A$2,IF(العمليات!$E$2:$E$200=$A$3,ROW($A$2:$A$200)-ROW($A$2)+1)),ROWS($A$5:B64))),"") ->  | C64: =IFERROR(INDEX(العمليات!$H$2:$H$200,SMALL(IF(العمليات!$F$2:$F$200=$A$2,IF(العمليات!$E$2:$E$200=$A$3,ROW($A$2:$A$200)-ROW($A$2)+1)),ROWS($A$5:C64))),"") ->  | D64: =IFERROR(INDEX(العمليات!$K$2:$K$200,SMALL(IF(العمليات!$F$2:$F$200=$A$2,IF(العمليات!$E$2:$E$200=$A$3,ROW($A$2:$A$200)-ROW($A$2)+1)),ROWS($A$5:D64))),"") -> 
A65: =IFERROR(INDEX(العمليات!$G$2:$G$200,SMALL(IF(العمليات!$F$2:$F$200=$A$2,IF(العمليات!$E$2:$E$200=$A$3,ROW($A$2:$A$200)-ROW($A$2)+1)),ROWS($A$5:A65))),"") ->  | B65: =IFERROR(INDEX(العمليات!$I$2:$I$200,SMALL(IF(العمليات!$F$2:$F$200=$A$2,IF(العمليات!$E$2:$E$200=$A$3,ROW($A$2:$A$200)-ROW($A$2)+1)),ROWS($A$5:B65))),"") ->  | C65: =IFERROR(INDEX(العمليات!$H$2:$H$200,SMALL(IF(العمليات!$F$2:$F$200=$A$2,IF(العمليات!$E$2:$E$200=$A$3,ROW($A$2:$A$200)-ROW($A$2)+1)),ROWS($A$5:C65))),"") ->  | D65: =IFERROR(INDEX(العمليات!$K$2:$K$200,SMALL(IF(العمليات!$F$2:$F$200=$A$2,IF(العمليات!$E$2:$E$200=$A$3,ROW($A$2:$A$200)-ROW($A$2)+1)),ROWS($A$5:D65))),"") -> 
A66: =IFERROR(INDEX(العمليات!$G$2:$G$200,SMALL(IF(العمليات!$F$2:$F$200=$A$2,IF(العمليات!$E$2:$E$200=$A$3,ROW($A$2:$A$200)-ROW($A$2)+1)),ROWS($A$5:A66))),"") ->  | B66: =IFERROR(INDEX(العمليات!$I$2:$I$200,SMALL(IF(العمليات!$F$2:$F$200=$A$2,IF(العمليات!$E$2:$E$200=$A$3,ROW($A$2:$A$200)-ROW($A$2)+1)),ROWS($A$5:B66))),"") ->  | C66: =IFERROR(INDEX(العمليات!$H$2:$H$200,SMALL(IF(العمليات!$F$2:$F$200=$A$2,IF(العمليات!$E$2:$E$200=$A$3,ROW($A$2:$A$200)-ROW($A$2)+1)),ROWS($A$5:C66))),"") ->  | D66: =IFERROR(INDEX(العمليات!$K$2:$K$200,SMALL(IF(العمليات!$F$2:$F$200=$A$2,IF(العمليات!$E$2:$E$200=$A$3,ROW($A$2:$A$200)-ROW($A$2)+1)),ROWS($A$5:D66))),"") -> 
A67: =IFERROR(INDEX(العمليات!$G$2:$G$200,SMALL(IF(العمليات!$F$2:$F$200=$A$2,IF(العمليات!$E$2:$E$200=$A$3,ROW($A$2:$A$200)-ROW($A$2)+1)),ROWS($A$5:A67))),"") ->  | B67: =IFERROR(INDEX(العمليات!$I$2:$I$200,SMALL(IF(العمليات!$F$2:$F$200=$A$2,IF(العمليات!$E$2:$E$200=$A$3,ROW($A$2:$A$200)-ROW($A$2)+1)),ROWS($A$5:B67))),"") ->  | C67: =IFERROR(INDEX(العمليات!$H$2:$H$200,SMALL(IF(العمليات!$F$2:$F$200=$A$2,IF(العمليات!$E$2:$E$200=$A$3,ROW($A$2:$A$200)-ROW($A$2)+1)),ROWS($A$5:C67))),"") ->  | D67: =IFERROR(INDEX(العمليات!$K$2:$K$200,SMALL(IF(العمليات!$F$2:$F$200=$A$2,IF(العمليات!$E$2:$E$200=$A$3,ROW($A$2:$A$200)-ROW($A$2)+1)),ROWS($A$5:D67))),"") -> 
A68: =IFERROR(INDEX(العمليات!$G$2:$G$200,SMALL(IF(العمليات!$F$2:$F$200=$A$2,IF(العمليات!$E$2:$E$200=$A$3,ROW($A$2:$A$200)-ROW($A$2)+1)),ROWS($A$5:A68))),"") ->  | B68: =IFERROR(INDEX(العمليات!$I$2:$I$200,SMALL(IF(العمليات!$F$2:$F$200=$A$2,IF(العمليات!$E$2:$E$200=$A$3,ROW($A$2:$A$200)-ROW($A$2)+1)),ROWS($A$5:B68))),"") ->  | C68: =IFERROR(INDEX(العمليات!$H$2:$H$200,SMALL(IF(العمليات!$F$2:$F$200=$A$2,IF(العمليات!$E$2:$E$200=$A$3,ROW($A$2:$A$200)-ROW($A$2)+1)),ROWS($A$5:C68))),"") ->  | D68: =IFERROR(INDEX(العمليات!$K$2:$K$200,SMALL(IF(العمليات!$F$2:$F$200=$A$2,IF(العمليات!$E$2:$E$200=$A$3,ROW($A$2:$A$200)-ROW($A$2)+1)),ROWS($A$5:D68))),"") -> 
A69: =IFERROR(INDEX(العمليات!$G$2:$G$200,SMALL(IF(العمليات!$F$2:$F$200=$A$2,IF(العمليات!$E$2:$E$200=$A$3,ROW($A$2:$A$200)-ROW($A$2)+1)),ROWS($A$5:A69))),"") ->  | B69: =IFERROR(INDEX(العمليات!$I$2:$I$200,SMALL(IF(العمليات!$F$2:$F$200=$A$2,IF(العمليات!$E$2:$E$200=$A$3,ROW($A$2:$A$200)-ROW($A$2)+1)),ROWS($A$5:B69))),"") ->  | C69: =IFERROR(INDEX(العمليات!$H$2:$H$200,SMALL(IF(العمليات!$F$2:$F$200=$A$2,IF(العمليات!$E$2:$E$200=$A$3,ROW($A$2:$A$200)-ROW($A$2)+1)),ROWS($A$5:C69))),"") ->  | D69: =IFERROR(INDEX(العمليات!$K$2:$K$200,SMALL(IF(العمليات!$F$2:$F$200=$A$2,IF(العمليات!$E$2:$E$200=$A$3,ROW($A$2:$A$200)-ROW($A$2)+1)),ROWS($A$5:D69))),"") -> 
A70: =IFERROR(INDEX(العمليات!$G$2:$G$200,SMALL(IF(العمليات!$F$2:$F$200=$A$2,IF(العمليات!$E$2:$E$200=$A$3,ROW($A$2:$A$200)-ROW($A$2)+1)),ROWS($A$5:A70))),"") ->  | B70: =IFERROR(INDEX(العمليات!$I$2:$I$200,SMALL(IF(العمليات!$F$2:$F$200=$A$2,IF(العمليات!$E$2:$E$200=$A$3,ROW($A$2:$A$200)-ROW($A$2)+1)),ROWS($A$5:B70))),"") ->  | C70: =IFERROR(INDEX(العمليات!$H$2:$H$200,SMALL(IF(العمليات!$F$2:$F$200=$A$2,IF(العمليات!$E$2:$E$200=$A$3,ROW($A$2:$A$200)-ROW($A$2)+1)),ROWS($A$5:C70))),"") ->  | D70: =IFERROR(INDEX(العمليات!$K$2:$K$200,SMALL(IF(العمليات!$F$2:$F$200=$A$2,IF(العمليات!$E$2:$E$200=$A$3,ROW($A$2:$A$200)-ROW($A$2)+1)),ROWS($A$5:D70))),"") -> 
A71: =IFERROR(INDEX(العمليات!$G$2:$G$200,SMALL(IF(العمليات!$F$2:$F$200=$A$2,IF(العمليات!$E$2:$E$200=$A$3,ROW($A$2:$A$200)-ROW($A$2)+1)),ROWS($A$5:A71))),"") ->  | B71: =IFERROR(INDEX(العمليات!$I$2:$I$200,SMALL(IF(العمليات!$F$2:$F$200=$A$2,IF(العمليات!$E$2:$E$200=$A$3,ROW($A$2:$A$200)-ROW($A$2)+1)),ROWS($A$5:B71))),"") ->  | C71: =IFERROR(INDEX(العمليات!$H$2:$H$200,SMALL(IF(العمليات!$F$2:$F$200=$A$2,IF(العمليات!$E$2:$E$200=$A$3,ROW($A$2:$A$200)-ROW($A$2)+1)),ROWS($A$5:C71))),"") ->  | D71: =IFERROR(INDEX(العمليات!$K$2:$K$200,SMALL(IF(العمليات!$F$2:$F$200=$A$2,IF(العمليات!$E$2:$E$200=$A$3,ROW($A$2:$A$200)-ROW($A$2)+1)),ROWS($A$5:D71))),"") -> 
A72: =IFERROR(INDEX(العمليات!$G$2:$G$200,SMALL(IF(العمليات!$F$2:$F$200=$A$2,IF(العمليات!$E$2:$E$200=$A$3,ROW($A$2:$A$200)-ROW($A$2)+1)),ROWS($A$5:A72))),"") ->  | B72: =IFERROR(INDEX(العمليات!$I$2:$I$200,SMALL(IF(العمليات!$F$2:$F$200=$A$2,IF(العمليات!$E$2:$E$200=$A$3,ROW($A$2:$A$200)-ROW($A$2)+1)),ROWS($A$5:B72))),"") ->  | C72: =IFERROR(INDEX(العمليات!$H$2:$H$200,SMALL(IF(العمليات!$F$2:$F$200=$A$2,IF(العمليات!$E$2:$E$200=$A$3,ROW($A$2:$A$200)-ROW($A$2)+1)),ROWS($A$5:C72))),"") ->  | D72: =IFERROR(INDEX(العمليات!$K$2:$K$200,SMALL(IF(العمليات!$F$2:$F$200=$A$2,IF(العمليات!$E$2:$E$200=$A$3,ROW($A$2:$A$200)-ROW($A$2)+1)),ROWS($A$5:D72))),"") -> 
A73: =IFERROR(INDEX(العمليات!$G$2:$G$200,SMALL(IF(العمليات!$F$2:$F$200=$A$2,IF(العمليات!$E$2:$E$200=$A$3,ROW($A$2:$A$200)-ROW($A$2)+1)),ROWS($A$5:A73))),"") ->  | B73: =IFERROR(INDEX(العمليات!$I$2:$I$200,SMALL(IF(العمليات!$F$2:$F$200=$A$2,IF(العمليات!$E$2:$E$200=$A$3,ROW($A$2:$A$200)-ROW($A$2)+1)),ROWS($A$5:B73))),"") ->  | C73: =IFERROR(INDEX(العمليات!$H$2:$H$200,SMALL(IF(العمليات!$F$2:$F$200=$A$2,IF(العمليات!$E$2:$E$200=$A$3,ROW($A$2:$A$200)-ROW($A$2)+1)),ROWS($A$5:C73))),"") ->  | D73: =IFERROR(INDEX(العمليات!$K$2:$K$200,SMALL(IF(العمليات!$F$2:$F$200=$A$2,IF(العمليات!$E$2:$E$200=$A$3,ROW($A$2:$A$200)-ROW($A$2)+1)),ROWS($A$5:D73))),"") -> 
A74: =IFERROR(INDEX(العمليات!$G$2:$G$200,SMALL(IF(العمليات!$F$2:$F$200=$A$2,IF(العمليات!$E$2:$E$200=$A$3,ROW($A$2:$A$200)-ROW($A$2)+1)),ROWS($A$5:A74))),"") ->  | B74: =IFERROR(INDEX(العمليات!$I$2:$I$200,SMALL(IF(العمليات!$F$2:$F$200=$A$2,IF(العمليات!$E$2:$E$200=$A$3,ROW($A$2:$A$200)-ROW($A$2)+1)),ROWS($A$5:B74))),"") ->  | C74: =IFERROR(INDEX(العمليات!$H$2:$H$200,SMALL(IF(العمليات!$F$2:$F$200=$A$2,IF(العمليات!$E$2:$E$200=$A$3,ROW($A$2:$A$200)-ROW($A$2)+1)),ROWS($A$5:C74))),"") ->  | D74: =IFERROR(INDEX(العمليات!$K$2:$K$200,SMALL(IF(العمليات!$F$2:$F$200=$A$2,IF(العمليات!$E$2:$E$200=$A$3,ROW($A$2:$A$200)-ROW($A$2)+1)),ROWS($A$5:D74))),"") -> 
A75: =IFERROR(INDEX(العمليات!$G$2:$G$200,SMALL(IF(العمليات!$F$2:$F$200=$A$2,IF(العمليات!$E$2:$E$200=$A$3,ROW($A$2:$A$200)-ROW($A$2)+1)),ROWS($A$5:A75))),"") ->  | B75: =IFERROR(INDEX(العمليات!$I$2:$I$200,SMALL(IF(العمليات!$F$2:$F$200=$A$2,IF(العمليات!$E$2:$E$200=$A$3,ROW($A$2:$A$200)-ROW($A$2)+1)),ROWS($A$5:B75))),"") ->  | C75: =IFERROR(INDEX(العمليات!$H$2:$H$200,SMALL(IF(العمليات!$F$2:$F$200=$A$2,IF(العمليات!$E$2:$E$200=$A$3,ROW($A$2:$A$200)-ROW($A$2)+1)),ROWS($A$5:C75))),"") ->  | D75: =IFERROR(INDEX(العمليات!$K$2:$K$200,SMALL(IF(العمليات!$F$2:$F$200=$A$2,IF(العمليات!$E$2:$E$200=$A$3,ROW($A$2:$A$200)-ROW($A$2)+1)),ROWS($A$5:D75))),"") -> 
A76: =IFERROR(INDEX(العمليات!$G$2:$G$200,SMALL(IF(العمليات!$F$2:$F$200=$A$2,IF(العمليات!$E$2:$E$200=$A$3,ROW($A$2:$A$200)-ROW($A$2)+1)),ROWS($A$5:A76))),"") ->  | B76: =IFERROR(INDEX(العمليات!$I$2:$I$200,SMALL(IF(العمليات!$F$2:$F$200=$A$2,IF(العمليات!$E$2:$E$200=$A$3,ROW($A$2:$A$200)-ROW($A$2)+1)),ROWS($A$5:B76))),"") ->  | C76: =IFERROR(INDEX(العمليات!$H$2:$H$200,SMALL(IF(العمليات!$F$2:$F$200=$A$2,IF(العمليات!$E$2:$E$200=$A$3,ROW($A$2:$A$200)-ROW($A$2)+1)),ROWS($A$5:C76))),"") ->  | D76: =IFERROR(INDEX(العمليات!$K$2:$K$200,SMALL(IF(العمليات!$F$2:$F$200=$A$2,IF(العمليات!$E$2:$E$200=$A$3,ROW($A$2:$A$200)-ROW($A$2)+1)),ROWS($A$5:D76))),"") -> 
A77: =IFERROR(INDEX(العمليات!$G$2:$G$200,SMALL(IF(العمليات!$F$2:$F$200=$A$2,IF(العمليات!$E$2:$E$200=$A$3,ROW($A$2:$A$200)-ROW($A$2)+1)),ROWS($A$5:A77))),"") ->  | B77: =IFERROR(INDEX(العمليات!$I$2:$I$200,SMALL(IF(العمليات!$F$2:$F$200=$A$2,IF(العمليات!$E$2:$E$200=$A$3,ROW($A$2:$A$200)-ROW($A$2)+1)),ROWS($A$5:B77))),"") ->  | C77: =IFERROR(INDEX(العمليات!$H$2:$H$200,SMALL(IF(العمليات!$F$2:$F$200=$A$2,IF(العمليات!$E$2:$E$200=$A$3,ROW($A$2:$A$200)-ROW($A$2)+1)),ROWS($A$5:C77))),"") ->  | D77: =IFERROR(INDEX(العمليات!$K$2:$K$200,SMALL(IF(العمليات!$F$2:$F$200=$A$2,IF(العمليات!$E$2:$E$200=$A$3,ROW($A$2:$A$200)-ROW($A$2)+1)),ROWS($A$5:D77))),"") -> 
A78: =IFERROR(INDEX(العمليات!$G$2:$G$200,SMALL(IF(العمليات!$F$2:$F$200=$A$2,IF(العمليات!$E$2:$E$200=$A$3,ROW($A$2:$A$200)-ROW($A$2)+1)),ROWS($A$5:A78))),"") ->  | B78: =IFERROR(INDEX(العمليات!$I$2:$I$200,SMALL(IF(العمليات!$F$2:$F$200=$A$2,IF(العمليات!$E$2:$E$200=$A$3,ROW($A$2:$A$200)-ROW($A$2)+1)),ROWS($A$5:B78))),"") ->  | C78: =IFERROR(INDEX(العمليات!$H$2:$H$200,SMALL(IF(العمليات!$F$2:$F$200=$A$2,IF(العمليات!$E$2:$E$200=$A$3,ROW($A$2:$A$200)-ROW($A$2)+1)),ROWS($A$5:C78))),"") ->  | D78: =IFERROR(INDEX(العمليات!$K$2:$K$200,SMALL(IF(العمليات!$F$2:$F$200=$A$2,IF(العمليات!$E$2:$E$200=$A$3,ROW($A$2:$A$200)-ROW($A$2)+1)),ROWS($A$5:D78))),"") -> 
A79: =IFERROR(INDEX(العمليات!$G$2:$G$200,SMALL(IF(العمليات!$F$2:$F$200=$A$2,IF(العمليات!$E$2:$E$200=$A$3,ROW($A$2:$A$200)-ROW($A$2)+1)),ROWS($A$5:A79))),"") ->  | B79: =IFERROR(INDEX(العمليات!$I$2:$I$200,SMALL(IF(العمليات!$F$2:$F$200=$A$2,IF(العمليات!$E$2:$E$200=$A$3,ROW($A$2:$A$200)-ROW($A$2)+1)),ROWS($A$5:B79))),"") ->  | C79: =IFERROR(INDEX(العمليات!$H$2:$H$200,SMALL(IF(العمليات!$F$2:$F$200=$A$2,IF(العمليات!$E$2:$E$200=$A$3,ROW($A$2:$A$200)-ROW($A$2)+1)),ROWS($A$5:C79))),"") ->  | D79: =IFERROR(INDEX(العمليات!$K$2:$K$200,SMALL(IF(العمليات!$F$2:$F$200=$A$2,IF(العمليات!$E$2:$E$200=$A$3,ROW($A$2:$A$200)-ROW($A$2)+1)),ROWS($A$5:D79))),"") -> 
A80: =IFERROR(INDEX(العمليات!$G$2:$G$200,SMALL(IF(العمليات!$F$2:$F$200=$A$2,IF(العمليات!$E$2:$E$200=$A$3,ROW($A$2:$A$200)-ROW($A$2)+1)),ROWS($A$5:A80))),"") ->  | B80: =IFERROR(INDEX(العمليات!$I$2:$I$200,SMALL(IF(العمليات!$F$2:$F$200=$A$2,IF(العمليات!$E$2:$E$200=$A$3,ROW($A$2:$A$200)-ROW($A$2)+1)),ROWS($A$5:B80))),"") ->  | C80: =IFERROR(INDEX(العمليات!$H$2:$H$200,SMALL(IF(العمليات!$F$2:$F$200=$A$2,IF(العمليات!$E$2:$E$200=$A$3,ROW($A$2:$A$200)-ROW($A$2)+1)),ROWS($A$5:C80))),"") ->  | D80: =IFERROR(INDEX(العمليات!$K$2:$K$200,SMALL(IF(العمليات!$F$2:$F$200=$A$2,IF(العمليات!$E$2:$E$200=$A$3,ROW($A$2:$A$200)-ROW($A$2)+1)),ROWS($A$5:D80))),"") -> 
A81: =IFERROR(INDEX(العمليات!$G$2:$G$200,SMALL(IF(العمليات!$F$2:$F$200=$A$2,IF(العمليات!$E$2:$E$200=$A$3,ROW($A$2:$A$200)-ROW($A$2)+1)),ROWS($A$5:A81))),"") ->  | B81: =IFERROR(INDEX(العمليات!$I$2:$I$200,SMALL(IF(العمليات!$F$2:$F$200=$A$2,IF(العمليات!$E$2:$E$200=$A$3,ROW($A$2:$A$200)-ROW($A$2)+1)),ROWS($A$5:B81))),"") ->  | C81: =IFERROR(INDEX(العمليات!$H$2:$H$200,SMALL(IF(العمليات!$F$2:$F$200=$A$2,IF(العمليات!$E$2:$E$200=$A$3,ROW($A$2:$A$200)-ROW($A$2)+1)),ROWS($A$5:C81))),"") ->  | D81: =IFERROR(INDEX(العمليات!$K$2:$K$200,SMALL(IF(العمليات!$F$2:$F$200=$A$2,IF(العمليات!$E$2:$E$200=$A$3,ROW($A$2:$A$200)-ROW($A$2)+1)),ROWS($A$5:D81))),"") -> 
A82: =IFERROR(INDEX(العمليات!$G$2:$G$200,SMALL(IF(العمليات!$F$2:$F$200=$A$2,IF(العمليات!$E$2:$E$200=$A$3,ROW($A$2:$A$200)-ROW($A$2)+1)),ROWS($A$5:A82))),"") ->  | B82: =IFERROR(INDEX(العمليات!$I$2:$I$200,SMALL(IF(العمليات!$F$2:$F$200=$A$2,IF(العمليات!$E$2:$E$200=$A$3,ROW($A$2:$A$200)-ROW($A$2)+1)),ROWS($A$5:B82))),"") ->  | C82: =IFERROR(INDEX(العمليات!$H$2:$H$200,SMALL(IF(العمليات!$F$2:$F$200=$A$2,IF(العمليات!$E$2:$E$200=$A$3,ROW($A$2:$A$200)-ROW($A$2)+1)),ROWS($A$5:C82))),"") ->  | D82: =IFERROR(INDEX(العمليات!$K$2:$K$200,SMALL(IF(العمليات!$F$2:$F$200=$A$2,IF(العمليات!$E$2:$E$200=$A$3,ROW($A$2:$A$200)-ROW($A$2)+1)),ROWS($A$5:D82))),"") -> 
A83: =IFERROR(INDEX(العمليات!$G$2:$G$200,SMALL(IF(العمليات!$F$2:$F$200=$A$2,IF(العمليات!$E$2:$E$200=$A$3,ROW($A$2:$A$200)-ROW($A$2)+1)),ROWS($A$5:A83))),"") ->  | B83: =IFERROR(INDEX(العمليات!$I$2:$I$200,SMALL(IF(العمليات!$F$2:$F$200=$A$2,IF(العمليات!$E$2:$E$200=$A$3,ROW($A$2:$A$200)-ROW($A$2)+1)),ROWS($A$5:B83))),"") ->  | C83: =IFERROR(INDEX(العمليات!$H$2:$H$200,SMALL(IF(العمليات!$F$2:$F$200=$A$2,IF(العمليات!$E$2:$E$200=$A$3,ROW($A$2:$A$200)-ROW($A$2)+1)),ROWS($A$5:C83))),"") ->  | D83: =IFERROR(INDEX(العمليات!$K$2:$K$200,SMALL(IF(العمليات!$F$2:$F$200=$A$2,IF(العمليات!$E$2:$E$200=$A$3,ROW($A$2:$A$200)-ROW($A$2)+1)),ROWS($A$5:D83))),"") -> 
A84: =IFERROR(INDEX(العمليات!$G$2:$G$200,SMALL(IF(العمليات!$F$2:$F$200=$A$2,IF(العمليات!$E$2:$E$200=$A$3,ROW($A$2:$A$200)-ROW($A$2)+1)),ROWS($A$5:A84))),"") ->  | B84: =IFERROR(INDEX(العمليات!$I$2:$I$200,SMALL(IF(العمليات!$F$2:$F$200=$A$2,IF(العمليات!$E$2:$E$200=$A$3,ROW($A$2:$A$200)-ROW($A$2)+1)),ROWS($A$5:B84))),"") ->  | C84: =IFERROR(INDEX(العمليات!$H$2:$H$200,SMALL(IF(العمليات!$F$2:$F$200=$A$2,IF(العمليات!$E$2:$E$200=$A$3,ROW($A$2:$A$200)-ROW($A$2)+1)),ROWS($A$5:C84))),"") ->  | D84: =IFERROR(INDEX(العمليات!$K$2:$K$200,SMALL(IF(العمليات!$F$2:$F$200=$A$2,IF(العمليات!$E$2:$E$200=$A$3,ROW($A$2:$A$200)-ROW($A$2)+1)),ROWS($A$5:D84))),"") -> 
A85: =IFERROR(INDEX(العمليات!$G$2:$G$200,SMALL(IF(العمليات!$F$2:$F$200=$A$2,IF(العمليات!$E$2:$E$200=$A$3,ROW($A$2:$A$200)-ROW($A$2)+1)),ROWS($A$5:A85))),"") ->  | B85: =IFERROR(INDEX(العمليات!$I$2:$I$200,SMALL(IF(العمليات!$F$2:$F$200=$A$2,IF(العمليات!$E$2:$E$200=$A$3,ROW($A$2:$A$200)-ROW($A$2)+1)),ROWS($A$5:B85))),"") ->  | C85: =IFERROR(INDEX(العمليات!$H$2:$H$200,SMALL(IF(العمليات!$F$2:$F$200=$A$2,IF(العمليات!$E$2:$E$200=$A$3,ROW($A$2:$A$200)-ROW($A$2)+1)),ROWS($A$5:C85))),"") ->  | D85: =IFERROR(INDEX(العمليات!$K$2:$K$200,SMALL(IF(العمليات!$F$2:$F$200=$A$2,IF(العمليات!$E$2:$E$200=$A$3,ROW($A$2:$A$200)-ROW($A$2)+1)),ROWS($A$5:D85))),"") -> 
A86: =IFERROR(INDEX(العمليات!$G$2:$G$200,SMALL(IF(العمليات!$F$2:$F$200=$A$2,IF(العمليات!$E$2:$E$200=$A$3,ROW($A$2:$A$200)-ROW($A$2)+1)),ROWS($A$5:A86))),"") ->  | B86: =IFERROR(INDEX(العمليات!$I$2:$I$200,SMALL(IF(العمليات!$F$2:$F$200=$A$2,IF(العمليات!$E$2:$E$200=$A$3,ROW($A$2:$A$200)-ROW($A$2)+1)),ROWS($A$5:B86))),"") ->  | C86: =IFERROR(INDEX(العمليات!$H$2:$H$200,SMALL(IF(العمليات!$F$2:$F$200=$A$2,IF(العمليات!$E$2:$E$200=$A$3,ROW($A$2:$A$200)-ROW($A$2)+1)),ROWS($A$5:C86))),"") ->  | D86: =IFERROR(INDEX(العمليات!$K$2:$K$200,SMALL(IF(العمليات!$F$2:$F$200=$A$2,IF(العمليات!$E$2:$E$200=$A$3,ROW($A$2:$A$200)-ROW($A$2)+1)),ROWS($A$5:D86))),"") -> 
A87: =IFERROR(INDEX(العمليات!$G$2:$G$200,SMALL(IF(العمليات!$F$2:$F$200=$A$2,IF(العمليات!$E$2:$E$200=$A$3,ROW($A$2:$A$200)-ROW($A$2)+1)),ROWS($A$5:A87))),"") ->  | B87: =IFERROR(INDEX(العمليات!$I$2:$I$200,SMALL(IF(العمليات!$F$2:$F$200=$A$2,IF(العمليات!$E$2:$E$200=$A$3,ROW($A$2:$A$200)-ROW($A$2)+1)),ROWS($A$5:B87))),"") ->  | C87: =IFERROR(INDEX(العمليات!$H$2:$H$200,SMALL(IF(العمليات!$F$2:$F$200=$A$2,IF(العمليات!$E$2:$E$200=$A$3,ROW($A$2:$A$200)-ROW($A$2)+1)),ROWS($A$5:C87))),"") ->  | D87: =IFERROR(INDEX(العمليات!$K$2:$K$200,SMALL(IF(العمليات!$F$2:$F$200=$A$2,IF(العمليات!$E$2:$E$200=$A$3,ROW($A$2:$A$200)-ROW($A$2)+1)),ROWS($A$5:D87))),"") -> 
A88: =IFERROR(INDEX(العمليات!$G$2:$G$200,SMALL(IF(العمليات!$F$2:$F$200=$A$2,IF(العمليات!$E$2:$E$200=$A$3,ROW($A$2:$A$200)-ROW($A$2)+1)),ROWS($A$5:A88))),"") ->  | B88: =IFERROR(INDEX(العمليات!$I$2:$I$200,SMALL(IF(العمليات!$F$2:$F$200=$A$2,IF(العمليات!$E$2:$E$200=$A$3,ROW($A$2:$A$200)-ROW($A$2)+1)),ROWS($A$5:B88))),"") ->  | C88: =IFERROR(INDEX(العمليات!$H$2:$H$200,SMALL(IF(العمليات!$F$2:$F$200=$A$2,IF(العمليات!$E$2:$E$200=$A$3,ROW($A$2:$A$200)-ROW($A$2)+1)),ROWS($A$5:C88))),"") ->  | D88: =IFERROR(INDEX(العمليات!$K$2:$K$200,SMALL(IF(العمليات!$F$2:$F$200=$A$2,IF(العمليات!$E$2:$E$200=$A$3,ROW($A$2:$A$200)-ROW($A$2)+1)),ROWS($A$5:D88))),"") -> 
A89: =IFERROR(INDEX(العمليات!$G$2:$G$200,SMALL(IF(العمليات!$F$2:$F$200=$A$2,IF(العمليات!$E$2:$E$200=$A$3,ROW($A$2:$A$200)-ROW($A$2)+1)),ROWS($A$5:A89))),"") ->  | B89: =IFERROR(INDEX(العمليات!$I$2:$I$200,SMALL(IF(العمليات!$F$2:$F$200=$A$2,IF(العمليات!$E$2:$E$200=$A$3,ROW($A$2:$A$200)-ROW($A$2)+1)),ROWS($A$5:B89))),"") ->  | C89: =IFERROR(INDEX(العمليات!$H$2:$H$200,SMALL(IF(العمليات!$F$2:$F$200=$A$2,IF(العمليات!$E$2:$E$200=$A$3,ROW($A$2:$A$200)-ROW($A$2)+1)),ROWS($A$5:C89))),"") ->  | D89: =IFERROR(INDEX(العمليات!$K$2:$K$200,SMALL(IF(العمليات!$F$2:$F$200=$A$2,IF(العمليات!$E$2:$E$200=$A$3,ROW($A$2:$A$200)-ROW($A$2)+1)),ROWS($A$5:D89))),"") -> 
A90: =IFERROR(INDEX(العمليات!$G$2:$G$200,SMALL(IF(العمليات!$F$2:$F$200=$A$2,IF(العمليات!$E$2:$E$200=$A$3,ROW($A$2:$A$200)-ROW($A$2)+1)),ROWS($A$5:A90))),"") ->  | B90: =IFERROR(INDEX(العمليات!$I$2:$I$200,SMALL(IF(العمليات!$F$2:$F$200=$A$2,IF(العمليات!$E$2:$E$200=$A$3,ROW($A$2:$A$200)-ROW($A$2)+1)),ROWS($A$5:B90))),"") ->  | C90: =IFERROR(INDEX(العمليات!$H$2:$H$200,SMALL(IF(العمليات!$F$2:$F$200=$A$2,IF(العمليات!$E$2:$E$200=$A$3,ROW($A$2:$A$200)-ROW($A$2)+1)),ROWS($A$5:C90))),"") ->  | D90: =IFERROR(INDEX(العمليات!$K$2:$K$200,SMALL(IF(العمليات!$F$2:$F$200=$A$2,IF(العمليات!$E$2:$E$200=$A$3,ROW($A$2:$A$200)-ROW($A$2)+1)),ROWS($A$5:D90))),"") -> 
A91: =IFERROR(INDEX(العمليات!$G$2:$G$200,SMALL(IF(العمليات!$F$2:$F$200=$A$2,IF(العمليات!$E$2:$E$200=$A$3,ROW($A$2:$A$200)-ROW($A$2)+1)),ROWS($A$5:A91))),"") ->  | B91: =IFERROR(INDEX(العمليات!$I$2:$I$200,SMALL(IF(العمليات!$F$2:$F$200=$A$2,IF(العمليات!$E$2:$E$200=$A$3,ROW($A$2:$A$200)-ROW($A$2)+1)),ROWS($A$5:B91))),"") ->  | C91: =IFERROR(INDEX(العمليات!$H$2:$H$200,SMALL(IF(العمليات!$F$2:$F$200=$A$2,IF(العمليات!$E$2:$E$200=$A$3,ROW($A$2:$A$200)-ROW($A$2)+1)),ROWS($A$5:C91))),"") ->  | D91: =IFERROR(INDEX(العمليات!$K$2:$K$200,SMALL(IF(العمليات!$F$2:$F$200=$A$2,IF(العمليات!$E$2:$E$200=$A$3,ROW($A$2:$A$200)-ROW($A$2)+1)),ROWS($A$5:D91))),"") -> 
A92: =IFERROR(INDEX(العمليات!$G$2:$G$200,SMALL(IF(العمليات!$F$2:$F$200=$A$2,IF(العمليات!$E$2:$E$200=$A$3,ROW($A$2:$A$200)-ROW($A$2)+1)),ROWS($A$5:A92))),"") ->  | B92: =IFERROR(INDEX(العمليات!$I$2:$I$200,SMALL(IF(العمليات!$F$2:$F$200=$A$2,IF(العمليات!$E$2:$E$200=$A$3,ROW($A$2:$A$200)-ROW($A$2)+1)),ROWS($A$5:B92))),"") ->  | C92: =IFERROR(INDEX(العمليات!$H$2:$H$200,SMALL(IF(العمليات!$F$2:$F$200=$A$2,IF(العمليات!$E$2:$E$200=$A$3,ROW($A$2:$A$200)-ROW($A$2)+1)),ROWS($A$5:C92))),"") ->  | D92: =IFERROR(INDEX(العمليات!$K$2:$K$200,SMALL(IF(العمليات!$F$2:$F$200=$A$2,IF(العمليات!$E$2:$E$200=$A$3,ROW($A$2:$A$200)-ROW($A$2)+1)),ROWS($A$5:D92))),"") -> 
A93: =IFERROR(INDEX(العمليات!$G$2:$G$200,SMALL(IF(العمليات!$F$2:$F$200=$A$2,IF(العمليات!$E$2:$E$200=$A$3,ROW($A$2:$A$200)-ROW($A$2)+1)),ROWS($A$5:A93))),"") ->  | B93: =IFERROR(INDEX(العمليات!$I$2:$I$200,SMALL(IF(العمليات!$F$2:$F$200=$A$2,IF(العمليات!$E$2:$E$200=$A$3,ROW($A$2:$A$200)-ROW($A$2)+1)),ROWS($A$5:B93))),"") ->  | C93: =IFERROR(INDEX(العمليات!$H$2:$H$200,SMALL(IF(العمليات!$F$2:$F$200=$A$2,IF(العمليات!$E$2:$E$200=$A$3,ROW($A$2:$A$200)-ROW($A$2)+1)),ROWS($A$5:C93))),"") ->  | D93: =IFERROR(INDEX(العمليات!$K$2:$K$200,SMALL(IF(العمليات!$F$2:$F$200=$A$2,IF(العمليات!$E$2:$E$200=$A$3,ROW($A$2:$A$200)-ROW($A$2)+1)),ROWS($A$5:D93))),"") -> 
A94: =IFERROR(INDEX(العمليات!$G$2:$G$200,SMALL(IF(العمليات!$F$2:$F$200=$A$2,IF(العمليات!$E$2:$E$200=$A$3,ROW($A$2:$A$200)-ROW($A$2)+1)),ROWS($A$5:A94))),"") ->  | B94: =IFERROR(INDEX(العمليات!$I$2:$I$200,SMALL(IF(العمليات!$F$2:$F$200=$A$2,IF(العمليات!$E$2:$E$200=$A$3,ROW($A$2:$A$200)-ROW($A$2)+1)),ROWS($A$5:B94))),"") ->  | C94: =IFERROR(INDEX(العمليات!$H$2:$H$200,SMALL(IF(العمليات!$F$2:$F$200=$A$2,IF(العمليات!$E$2:$E$200=$A$3,ROW($A$2:$A$200)-ROW($A$2)+1)),ROWS($A$5:C94))),"") ->  | D94: =IFERROR(INDEX(العمليات!$K$2:$K$200,SMALL(IF(العمليات!$F$2:$F$200=$A$2,IF(العمليات!$E$2:$E$200=$A$3,ROW($A$2:$A$200)-ROW($A$2)+1)),ROWS($A$5:D94))),"") -> 
A95: =IFERROR(INDEX(العمليات!$G$2:$G$200,SMALL(IF(العمليات!$F$2:$F$200=$A$2,IF(العمليات!$E$2:$E$200=$A$3,ROW($A$2:$A$200)-ROW($A$2)+1)),ROWS($A$5:A95))),"") ->  | B95: =IFERROR(INDEX(العمليات!$I$2:$I$200,SMALL(IF(العمليات!$F$2:$F$200=$A$2,IF(العمليات!$E$2:$E$200=$A$3,ROW($A$2:$A$200)-ROW($A$2)+1)),ROWS($A$5:B95))),"") ->  | C95: =IFERROR(INDEX(العمليات!$H$2:$H$200,SMALL(IF(العمليات!$F$2:$F$200=$A$2,IF(العمليات!$E$2:$E$200=$A$3,ROW($A$2:$A$200)-ROW($A$2)+1)),ROWS($A$5:C95))),"") ->  | D95: =IFERROR(INDEX(العمليات!$K$2:$K$200,SMALL(IF(العمليات!$F$2:$F$200=$A$2,IF(العمليات!$E$2:$E$200=$A$3,ROW($A$2:$A$200)-ROW($A$2)+1)),ROWS($A$5:D95))),"") -> 
A96: =IFERROR(INDEX(العمليات!$G$2:$G$200,SMALL(IF(العمليات!$F$2:$F$200=$A$2,IF(العمليات!$E$2:$E$200=$A$3,ROW($A$2:$A$200)-ROW($A$2)+1)),ROWS($A$5:A96))),"") ->  | B96: =IFERROR(INDEX(العمليات!$I$2:$I$200,SMALL(IF(العمليات!$F$2:$F$200=$A$2,IF(العمليات!$E$2:$E$200=$A$3,ROW($A$2:$A$200)-ROW($A$2)+1)),ROWS($A$5:B96))),"") ->  | C96: =IFERROR(INDEX(العمليات!$H$2:$H$200,SMALL(IF(العمليات!$F$2:$F$200=$A$2,IF(العمليات!$E$2:$E$200=$A$3,ROW($A$2:$A$200)-ROW($A$2)+1)),ROWS($A$5:C96))),"") ->  | D96: =IFERROR(INDEX(العمليات!$K$2:$K$200,SMALL(IF(العمليات!$F$2:$F$200=$A$2,IF(العمليات!$E$2:$E$200=$A$3,ROW($A$2:$A$200)-ROW($A$2)+1)),ROWS($A$5:D96))),"") -> 
A97: =IFERROR(INDEX(العمليات!$G$2:$G$200,SMALL(IF(العمليات!$F$2:$F$200=$A$2,IF(العمليات!$E$2:$E$200=$A$3,ROW($A$2:$A$200)-ROW($A$2)+1)),ROWS($A$5:A97))),"") ->  | B97: =IFERROR(INDEX(العمليات!$I$2:$I$200,SMALL(IF(العمليات!$F$2:$F$200=$A$2,IF(العمليات!$E$2:$E$200=$A$3,ROW($A$2:$A$200)-ROW($A$2)+1)),ROWS($A$5:B97))),"") ->  | C97: =IFERROR(INDEX(العمليات!$H$2:$H$200,SMALL(IF(العمليات!$F$2:$F$200=$A$2,IF(العمليات!$E$2:$E$200=$A$3,ROW($A$2:$A$200)-ROW($A$2)+1)),ROWS($A$5:C97))),"") ->  | D97: =IFERROR(INDEX(العمليات!$K$2:$K$200,SMALL(IF(العمليات!$F$2:$F$200=$A$2,IF(العمليات!$E$2:$E$200=$A$3,ROW($A$2:$A$200)-ROW($A$2)+1)),ROWS($A$5:D97))),"") -> 
A98: =IFERROR(INDEX(العمليات!$G$2:$G$200,SMALL(IF(العمليات!$F$2:$F$200=$A$2,IF(العمليات!$E$2:$E$200=$A$3,ROW($A$2:$A$200)-ROW($A$2)+1)),ROWS($A$5:A98))),"") ->  | B98: =IFERROR(INDEX(العمليات!$I$2:$I$200,SMALL(IF(العمليات!$F$2:$F$200=$A$2,IF(العمليات!$E$2:$E$200=$A$3,ROW($A$2:$A$200)-ROW($A$2)+1)),ROWS($A$5:B98))),"") ->  | C98: =IFERROR(INDEX(العمليات!$H$2:$H$200,SMALL(IF(العمليات!$F$2:$F$200=$A$2,IF(العمليات!$E$2:$E$200=$A$3,ROW($A$2:$A$200)-ROW($A$2)+1)),ROWS($A$5:C98))),"") ->  | D98: =IFERROR(INDEX(العمليات!$K$2:$K$200,SMALL(IF(العمليات!$F$2:$F$200=$A$2,IF(العمليات!$E$2:$E$200=$A$3,ROW($A$2:$A$200)-ROW($A$2)+1)),ROWS($A$5:D98))),"") -> 
A99: =IFERROR(INDEX(العمليات!$G$2:$G$200,SMALL(IF(العمليات!$F$2:$F$200=$A$2,IF(العمليات!$E$2:$E$200=$A$3,ROW($A$2:$A$200)-ROW($A$2)+1)),ROWS($A$5:A99))),"") ->  | B99: =IFERROR(INDEX(العمليات!$I$2:$I$200,SMALL(IF(العمليات!$F$2:$F$200=$A$2,IF(العمليات!$E$2:$E$200=$A$3,ROW($A$2:$A$200)-ROW($A$2)+1)),ROWS($A$5:B99))),"") ->  | C99: =IFERROR(INDEX(العمليات!$H$2:$H$200,SMALL(IF(العمليات!$F$2:$F$200=$A$2,IF(العمليات!$E$2:$E$200=$A$3,ROW($A$2:$A$200)-ROW($A$2)+1)),ROWS($A$5:C99))),"") ->  | D99: =IFERROR(INDEX(العمليات!$K$2:$K$200,SMALL(IF(العمليات!$F$2:$F$200=$A$2,IF(العمليات!$E$2:$E$200=$A$3,ROW($A$2:$A$200)-ROW($A$2)+1)),ROWS($A$5:D99))),"") -> 
A100: =IFERROR(INDEX(العمليات!$G$2:$G$200,SMALL(IF(العمليات!$F$2:$F$200=$A$2,IF(العمليات!$E$2:$E$200=$A$3,ROW($A$2:$A$200)-ROW($A$2)+1)),ROWS($A$5:A100))),"") ->  | B100: =IFERROR(INDEX(العمليات!$I$2:$I$200,SMALL(IF(العمليات!$F$2:$F$200=$A$2,IF(العمليات!$E$2:$E$200=$A$3,ROW($A$2:$A$200)-ROW($A$2)+1)),ROWS($A$5:B100))),"") ->  | C100: =IFERROR(INDEX(العمليات!$H$2:$H$200,SMALL(IF(العمليات!$F$2:$F$200=$A$2,IF(العمليات!$E$2:$E$200=$A$3,ROW($A$2:$A$200)-ROW($A$2)+1)),ROWS($A$5:C100))),"") ->  | D100: =IFERROR(INDEX(العمليات!$K$2:$K$200,SMALL(IF(العمليات!$F$2:$F$200=$A$2,IF(العمليات!$E$2:$E$200=$A$3,ROW($A$2:$A$200)-ROW($A$2)+1)),ROWS($A$5:D100))),"") -> 
A101: =IFERROR(INDEX(العمليات!$G$2:$G$200,SMALL(IF(العمليات!$F$2:$F$200=$A$2,IF(العمليات!$E$2:$E$200=$A$3,ROW($A$2:$A$200)-ROW($A$2)+1)),ROWS($A$5:A101))),"") ->  | B101: =IFERROR(INDEX(العمليات!$I$2:$I$200,SMALL(IF(العمليات!$F$2:$F$200=$A$2,IF(العمليات!$E$2:$E$200=$A$3,ROW($A$2:$A$200)-ROW($A$2)+1)),ROWS($A$5:B101))),"") ->  | C101: =IFERROR(INDEX(العمليات!$H$2:$H$200,SMALL(IF(العمليات!$F$2:$F$200=$A$2,IF(العمليات!$E$2:$E$200=$A$3,ROW($A$2:$A$200)-ROW($A$2)+1)),ROWS($A$5:C101))),"") ->  | D101: =IFERROR(INDEX(العمليات!$K$2:$K$200,SMALL(IF(العمليات!$F$2:$F$200=$A$2,IF(العمليات!$E$2:$E$200=$A$3,ROW($A$2:$A$200)-ROW($A$2)+1)),ROWS($A$5:D101))),"") -> 
A102: =IFERROR(INDEX(العمليات!$G$2:$G$200,SMALL(IF(العمليات!$F$2:$F$200=$A$2,IF(العمليات!$E$2:$E$200=$A$3,ROW($A$2:$A$200)-ROW($A$2)+1)),ROWS($A$5:A102))),"") ->  | B102: =IFERROR(INDEX(العمليات!$I$2:$I$200,SMALL(IF(العمليات!$F$2:$F$200=$A$2,IF(العمليات!$E$2:$E$200=$A$3,ROW($A$2:$A$200)-ROW($A$2)+1)),ROWS($A$5:B102))),"") ->  | C102: =IFERROR(INDEX(العمليات!$H$2:$H$200,SMALL(IF(العمليات!$F$2:$F$200=$A$2,IF(العمليات!$E$2:$E$200=$A$3,ROW($A$2:$A$200)-ROW($A$2)+1)),ROWS($A$5:C102))),"") ->  | D102: =IFERROR(INDEX(العمليات!$K$2:$K$200,SMALL(IF(العمليات!$F$2:$F$200=$A$2,IF(العمليات!$E$2:$E$200=$A$3,ROW($A$2:$A$200)-ROW($A$2)+1)),ROWS($A$5:D102))),"") -> 
A103: =IFERROR(INDEX(العمليات!$G$2:$G$200,SMALL(IF(العمليات!$F$2:$F$200=$A$2,IF(العمليات!$E$2:$E$200=$A$3,ROW($A$2:$A$200)-ROW($A$2)+1)),ROWS($A$5:A103))),"") ->  | B103: =IFERROR(INDEX(العمليات!$I$2:$I$200,SMALL(IF(العمليات!$F$2:$F$200=$A$2,IF(العمليات!$E$2:$E$200=$A$3,ROW($A$2:$A$200)-ROW($A$2)+1)),ROWS($A$5:B103))),"") ->  | C103: =IFERROR(INDEX(العمليات!$H$2:$H$200,SMALL(IF(العمليات!$F$2:$F$200=$A$2,IF(العمليات!$E$2:$E$200=$A$3,ROW($A$2:$A$200)-ROW($A$2)+1)),ROWS($A$5:C103))),"") ->  | D103: =IFERROR(INDEX(العمليات!$K$2:$K$200,SMALL(IF(العمليات!$F$2:$F$200=$A$2,IF(العمليات!$E$2:$E$200=$A$3,ROW($A$2:$A$200)-ROW($A$2)+1)),ROWS($A$5:D103))),"") -> 
A104: =IFERROR(INDEX(العمليات!$G$2:$G$200,SMALL(IF(العمليات!$F$2:$F$200=$A$2,IF(العمليات!$E$2:$E$200=$A$3,ROW($A$2:$A$200)-ROW($A$2)+1)),ROWS($A$5:A104))),"") ->  | B104: =IFERROR(INDEX(العمليات!$I$2:$I$200,SMALL(IF(العمليات!$F$2:$F$200=$A$2,IF(العمليات!$E$2:$E$200=$A$3,ROW($A$2:$A$200)-ROW($A$2)+1)),ROWS($A$5:B104))),"") ->  | C104: =IFERROR(INDEX(العمليات!$H$2:$H$200,SMALL(IF(العمليات!$F$2:$F$200=$A$2,IF(العمليات!$E$2:$E$200=$A$3,ROW($A$2:$A$200)-ROW($A$2)+1)),ROWS($A$5:C104))),"") ->  | D104: =IFERROR(INDEX(العمليات!$K$2:$K$200,SMALL(IF(العمليات!$F$2:$F$200=$A$2,IF(العمليات!$E$2:$E$200=$A$3,ROW($A$2:$A$200)-ROW($A$2)+1)),ROWS($A$5:D104))),"") -> 
A105: =IFERROR(INDEX(العمليات!$G$2:$G$200,SMALL(IF(العمليات!$F$2:$F$200=$A$2,IF(العمليات!$E$2:$E$200=$A$3,ROW($A$2:$A$200)-ROW($A$2)+1)),ROWS($A$5:A105))),"") ->  | B105: =IFERROR(INDEX(العمليات!$I$2:$I$200,SMALL(IF(العمليات!$F$2:$F$200=$A$2,IF(العمليات!$E$2:$E$200=$A$3,ROW($A$2:$A$200)-ROW($A$2)+1)),ROWS($A$5:B105))),"") ->  | C105: =IFERROR(INDEX(العمليات!$H$2:$H$200,SMALL(IF(العمليات!$F$2:$F$200=$A$2,IF(العمليات!$E$2:$E$200=$A$3,ROW($A$2:$A$200)-ROW($A$2)+1)),ROWS($A$5:C105))),"") ->  | D105: =IFERROR(INDEX(العمليات!$K$2:$K$200,SMALL(IF(العمليات!$F$2:$F$200=$A$2,IF(العمليات!$E$2:$E$200=$A$3,ROW($A$2:$A$200)-ROW($A$2)+1)),ROWS($A$5:D105))),"") -> 
A106: =IFERROR(INDEX(العمليات!$G$2:$G$200,SMALL(IF(العمليات!$F$2:$F$200=$A$2,IF(العمليات!$E$2:$E$200=$A$3,ROW($A$2:$A$200)-ROW($A$2)+1)),ROWS($A$5:A106))),"") ->  | B106: =IFERROR(INDEX(العمليات!$I$2:$I$200,SMALL(IF(العمليات!$F$2:$F$200=$A$2,IF(العمليات!$E$2:$E$200=$A$3,ROW($A$2:$A$200)-ROW($A$2)+1)),ROWS($A$5:B106))),"") ->  | C106: =IFERROR(INDEX(العمليات!$H$2:$H$200,SMALL(IF(العمليات!$F$2:$F$200=$A$2,IF(العمليات!$E$2:$E$200=$A$3,ROW($A$2:$A$200)-ROW($A$2)+1)),ROWS($A$5:C106))),"") ->  | D106: =IFERROR(INDEX(العمليات!$K$2:$K$200,SMALL(IF(العمليات!$F$2:$F$200=$A$2,IF(العمليات!$E$2:$E$200=$A$3,ROW($A$2:$A$200)-ROW($A$2)+1)),ROWS($A$5:D106))),"") -> 
A107: =IFERROR(INDEX(العمليات!$G$2:$G$200,SMALL(IF(العمليات!$F$2:$F$200=$A$2,IF(العمليات!$E$2:$E$200=$A$3,ROW($A$2:$A$200)-ROW($A$2)+1)),ROWS($A$5:A107))),"") ->  | B107: =IFERROR(INDEX(العمليات!$I$2:$I$200,SMALL(IF(العمليات!$F$2:$F$200=$A$2,IF(العمليات!$E$2:$E$200=$A$3,ROW($A$2:$A$200)-ROW($A$2)+1)),ROWS($A$5:B107))),"") ->  | C107: =IFERROR(INDEX(العمليات!$H$2:$H$200,SMALL(IF(العمليات!$F$2:$F$200=$A$2,IF(العمليات!$E$2:$E$200=$A$3,ROW($A$2:$A$200)-ROW($A$2)+1)),ROWS($A$5:C107))),"") ->  | D107: =IFERROR(INDEX(العمليات!$K$2:$K$200,SMALL(IF(العمليات!$F$2:$F$200=$A$2,IF(العمليات!$E$2:$E$200=$A$3,ROW($A$2:$A$200)-ROW($A$2)+1)),ROWS($A$5:D107))),"") -> 
A108: =IFERROR(INDEX(العمليات!$G$2:$G$200,SMALL(IF(العمليات!$F$2:$F$200=$A$2,IF(العمليات!$E$2:$E$200=$A$3,ROW($A$2:$A$200)-ROW($A$2)+1)),ROWS($A$5:A108))),"") ->  | B108: =IFERROR(INDEX(العمليات!$I$2:$I$200,SMALL(IF(العمليات!$F$2:$F$200=$A$2,IF(العمليات!$E$2:$E$200=$A$3,ROW($A$2:$A$200)-ROW($A$2)+1)),ROWS($A$5:B108))),"") ->  | C108: =IFERROR(INDEX(العمليات!$H$2:$H$200,SMALL(IF(العمليات!$F$2:$F$200=$A$2,IF(العمليات!$E$2:$E$200=$A$3,ROW($A$2:$A$200)-ROW($A$2)+1)),ROWS($A$5:C108))),"") ->  | D108: =IFERROR(INDEX(العمليات!$K$2:$K$200,SMALL(IF(العمليات!$F$2:$F$200=$A$2,IF(العمليات!$E$2:$E$200=$A$3,ROW($A$2:$A$200)-ROW($A$2)+1)),ROWS($A$5:D108))),"") -> 
A109: =IFERROR(INDEX(العمليات!$G$2:$G$200,SMALL(IF(العمليات!$F$2:$F$200=$A$2,IF(العمليات!$E$2:$E$200=$A$3,ROW($A$2:$A$200)-ROW($A$2)+1)),ROWS($A$5:A109))),"") ->  | B109: =IFERROR(INDEX(العمليات!$I$2:$I$200,SMALL(IF(العمليات!$F$2:$F$200=$A$2,IF(العمليات!$E$2:$E$200=$A$3,ROW($A$2:$A$200)-ROW($A$2)+1)),ROWS($A$5:B109))),"") ->  | C109: =IFERROR(INDEX(العمليات!$H$2:$H$200,SMALL(IF(العمليات!$F$2:$F$200=$A$2,IF(العمليات!$E$2:$E$200=$A$3,ROW($A$2:$A$200)-ROW($A$2)+1)),ROWS($A$5:C109))),"") ->  | D109: =IFERROR(INDEX(العمليات!$K$2:$K$200,SMALL(IF(العمليات!$F$2:$F$200=$A$2,IF(العمليات!$E$2:$E$200=$A$3,ROW($A$2:$A$200)-ROW($A$2)+1)),ROWS($A$5:D109))),"") -> 
A110: =IFERROR(INDEX(العمليات!$G$2:$G$200,SMALL(IF(العمليات!$F$2:$F$200=$A$2,IF(العمليات!$E$2:$E$200=$A$3,ROW($A$2:$A$200)-ROW($A$2)+1)),ROWS($A$5:A110))),"") ->  | B110: =IFERROR(INDEX(العمليات!$I$2:$I$200,SMALL(IF(العمليات!$F$2:$F$200=$A$2,IF(العمليات!$E$2:$E$200=$A$3,ROW($A$2:$A$200)-ROW($A$2)+1)),ROWS($A$5:B110))),"") ->  | C110: =IFERROR(INDEX(العمليات!$H$2:$H$200,SMALL(IF(العمليات!$F$2:$F$200=$A$2,IF(العمليات!$E$2:$E$200=$A$3,ROW($A$2:$A$200)-ROW($A$2)+1)),ROWS($A$5:C110))),"") ->  | D110: =IFERROR(INDEX(العمليات!$K$2:$K$200,SMALL(IF(العمليات!$F$2:$F$200=$A$2,IF(العمليات!$E$2:$E$200=$A$3,ROW($A$2:$A$200)-ROW($A$2)+1)),ROWS($A$5:D110))),"") -> 
A111: =IFERROR(INDEX(العمليات!$G$2:$G$200,SMALL(IF(العمليات!$F$2:$F$200=$A$2,IF(العمليات!$E$2:$E$200=$A$3,ROW($A$2:$A$200)-ROW($A$2)+1)),ROWS($A$5:A111))),"") ->  | B111: =IFERROR(INDEX(العمليات!$I$2:$I$200,SMALL(IF(العمليات!$F$2:$F$200=$A$2,IF(العمليات!$E$2:$E$200=$A$3,ROW($A$2:$A$200)-ROW($A$2)+1)),ROWS($A$5:B111))),"") ->  | C111: =IFERROR(INDEX(العمليات!$H$2:$H$200,SMALL(IF(العمليات!$F$2:$F$200=$A$2,IF(العمليات!$E$2:$E$200=$A$3,ROW($A$2:$A$200)-ROW($A$2)+1)),ROWS($A$5:C111))),"") ->  | D111: =IFERROR(INDEX(العمليات!$K$2:$K$200,SMALL(IF(العمليات!$F$2:$F$200=$A$2,IF(العمليات!$E$2:$E$200=$A$3,ROW($A$2:$A$200)-ROW($A$2)+1)),ROWS($A$5:D111))),"") -> 
A112: =IFERROR(INDEX(العمليات!$G$2:$G$200,SMALL(IF(العمليات!$F$2:$F$200=$A$2,IF(العمليات!$E$2:$E$200=$A$3,ROW($A$2:$A$200)-ROW($A$2)+1)),ROWS($A$5:A112))),"") ->  | B112: =IFERROR(INDEX(العمليات!$I$2:$I$200,SMALL(IF(العمليات!$F$2:$F$200=$A$2,IF(العمليات!$E$2:$E$200=$A$3,ROW($A$2:$A$200)-ROW($A$2)+1)),ROWS($A$5:B112))),"") ->  | C112: =IFERROR(INDEX(العمليات!$H$2:$H$200,SMALL(IF(العمليات!$F$2:$F$200=$A$2,IF(العمليات!$E$2:$E$200=$A$3,ROW($A$2:$A$200)-ROW($A$2)+1)),ROWS($A$5:C112))),"") ->  | D112: =IFERROR(INDEX(العمليات!$K$2:$K$200,SMALL(IF(العمليات!$F$2:$F$200=$A$2,IF(العمليات!$E$2:$E$200=$A$3,ROW($A$2:$A$200)-ROW($A$2)+1)),ROWS($A$5:D112))),"") -> 
A113: =IFERROR(INDEX(العمليات!$G$2:$G$200,SMALL(IF(العمليات!$F$2:$F$200=$A$2,IF(العمليات!$E$2:$E$200=$A$3,ROW($A$2:$A$200)-ROW($A$2)+1)),ROWS($A$5:A113))),"") ->  | B113: =IFERROR(INDEX(العمليات!$I$2:$I$200,SMALL(IF(العمليات!$F$2:$F$200=$A$2,IF(العمليات!$E$2:$E$200=$A$3,ROW($A$2:$A$200)-ROW($A$2)+1)),ROWS($A$5:B113))),"") ->  | C113: =IFERROR(INDEX(العمليات!$H$2:$H$200,SMALL(IF(العمليات!$F$2:$F$200=$A$2,IF(العمليات!$E$2:$E$200=$A$3,ROW($A$2:$A$200)-ROW($A$2)+1)),ROWS($A$5:C113))),"") ->  | D113: =IFERROR(INDEX(العمليات!$K$2:$K$200,SMALL(IF(العمليات!$F$2:$F$200=$A$2,IF(العمليات!$E$2:$E$200=$A$3,ROW($A$2:$A$200)-ROW($A$2)+1)),ROWS($A$5:D113))),"") -> 
A114: =IFERROR(INDEX(العمليات!$G$2:$G$200,SMALL(IF(العمليات!$F$2:$F$200=$A$2,IF(العمليات!$E$2:$E$200=$A$3,ROW($A$2:$A$200)-ROW($A$2)+1)),ROWS($A$5:A114))),"") ->  | B114: =IFERROR(INDEX(العمليات!$I$2:$I$200,SMALL(IF(العمليات!$F$2:$F$200=$A$2,IF(العمليات!$E$2:$E$200=$A$3,ROW($A$2:$A$200)-ROW($A$2)+1)),ROWS($A$5:B114))),"") ->  | C114: =IFERROR(INDEX(العمليات!$H$2:$H$200,SMALL(IF(العمليات!$F$2:$F$200=$A$2,IF(العمليات!$E$2:$E$200=$A$3,ROW($A$2:$A$200)-ROW($A$2)+1)),ROWS($A$5:C114))),"") ->  | D114: =IFERROR(INDEX(العمليات!$K$2:$K$200,SMALL(IF(العمليات!$F$2:$F$200=$A$2,IF(العمليات!$E$2:$E$200=$A$3,ROW($A$2:$A$200)-ROW($A$2)+1)),ROWS($A$5:D114))),"") -> 
A115: =IFERROR(INDEX(العمليات!$G$2:$G$200,SMALL(IF(العمليات!$F$2:$F$200=$A$2,IF(العمليات!$E$2:$E$200=$A$3,ROW($A$2:$A$200)-ROW($A$2)+1)),ROWS($A$5:A115))),"") ->  | B115: =IFERROR(INDEX(العمليات!$I$2:$I$200,SMALL(IF(العمليات!$F$2:$F$200=$A$2,IF(العمليات!$E$2:$E$200=$A$3,ROW($A$2:$A$200)-ROW($A$2)+1)),ROWS($A$5:B115))),"") ->  | C115: =IFERROR(INDEX(العمليات!$H$2:$H$200,SMALL(IF(العمليات!$F$2:$F$200=$A$2,IF(العمليات!$E$2:$E$200=$A$3,ROW($A$2:$A$200)-ROW($A$2)+1)),ROWS($A$5:C115))),"") ->  | D115: =IFERROR(INDEX(العمليات!$K$2:$K$200,SMALL(IF(العمليات!$F$2:$F$200=$A$2,IF(العمليات!$E$2:$E$200=$A$3,ROW($A$2:$A$200)-ROW($A$2)+1)),ROWS($A$5:D115))),"") -> 
A116: =IFERROR(INDEX(العمليات!$G$2:$G$200,SMALL(IF(العمليات!$F$2:$F$200=$A$2,IF(العمليات!$E$2:$E$200=$A$3,ROW($A$2:$A$200)-ROW($A$2)+1)),ROWS($A$5:A116))),"") ->  | B116: =IFERROR(INDEX(العمليات!$I$2:$I$200,SMALL(IF(العمليات!$F$2:$F$200=$A$2,IF(العمليات!$E$2:$E$200=$A$3,ROW($A$2:$A$200)-ROW($A$2)+1)),ROWS($A$5:B116))),"") ->  | C116: =IFERROR(INDEX(العمليات!$H$2:$H$200,SMALL(IF(العمليات!$F$2:$F$200=$A$2,IF(العمليات!$E$2:$E$200=$A$3,ROW($A$2:$A$200)-ROW($A$2)+1)),ROWS($A$5:C116))),"") ->  | D116: =IFERROR(INDEX(العمليات!$K$2:$K$200,SMALL(IF(العمليات!$F$2:$F$200=$A$2,IF(العمليات!$E$2:$E$200=$A$3,ROW($A$2:$A$200)-ROW($A$2)+1)),ROWS($A$5:D116))),"") -> 
A117: =IFERROR(INDEX(العمليات!$G$2:$G$200,SMALL(IF(العمليات!$F$2:$F$200=$A$2,IF(العمليات!$E$2:$E$200=$A$3,ROW($A$2:$A$200)-ROW($A$2)+1)),ROWS($A$5:A117))),"") ->  | B117: =IFERROR(INDEX(العمليات!$I$2:$I$200,SMALL(IF(العمليات!$F$2:$F$200=$A$2,IF(العمليات!$E$2:$E$200=$A$3,ROW($A$2:$A$200)-ROW($A$2)+1)),ROWS($A$5:B117))),"") ->  | C117: =IFERROR(INDEX(العمليات!$H$2:$H$200,SMALL(IF(العمليات!$F$2:$F$200=$A$2,IF(العمليات!$E$2:$E$200=$A$3,ROW($A$2:$A$200)-ROW($A$2)+1)),ROWS($A$5:C117))),"") ->  | D117: =IFERROR(INDEX(العمليات!$K$2:$K$200,SMALL(IF(العمليات!$F$2:$F$200=$A$2,IF(العمليات!$E$2:$E$200=$A$3,ROW($A$2:$A$200)-ROW($A$2)+1)),ROWS($A$5:D117))),"") -> 
A118: =IFERROR(INDEX(العمليات!$G$2:$G$200,SMALL(IF(العمليات!$F$2:$F$200=$A$2,IF(العمليات!$E$2:$E$200=$A$3,ROW($A$2:$A$200)-ROW($A$2)+1)),ROWS($A$5:A118))),"") ->  | B118: =IFERROR(INDEX(العمليات!$I$2:$I$200,SMALL(IF(العمليات!$F$2:$F$200=$A$2,IF(العمليات!$E$2:$E$200=$A$3,ROW($A$2:$A$200)-ROW($A$2)+1)),ROWS($A$5:B118))),"") ->  | C118: =IFERROR(INDEX(العمليات!$H$2:$H$200,SMALL(IF(العمليات!$F$2:$F$200=$A$2,IF(العمليات!$E$2:$E$200=$A$3,ROW($A$2:$A$200)-ROW($A$2)+1)),ROWS($A$5:C118))),"") ->  | D118: =IFERROR(INDEX(العمليات!$K$2:$K$200,SMALL(IF(العمليات!$F$2:$F$200=$A$2,IF(العمليات!$E$2:$E$200=$A$3,ROW($A$2:$A$200)-ROW($A$2)+1)),ROWS($A$5:D118))),"") -> 
A119: =IFERROR(INDEX(العمليات!$G$2:$G$200,SMALL(IF(العمليات!$F$2:$F$200=$A$2,IF(العمليات!$E$2:$E$200=$A$3,ROW($A$2:$A$200)-ROW($A$2)+1)),ROWS($A$5:A119))),"") ->  | B119: =IFERROR(INDEX(العمليات!$I$2:$I$200,SMALL(IF(العمليات!$F$2:$F$200=$A$2,IF(العمليات!$E$2:$E$200=$A$3,ROW($A$2:$A$200)-ROW($A$2)+1)),ROWS($A$5:B119))),"") ->  | C119: =IFERROR(INDEX(العمليات!$H$2:$H$200,SMALL(IF(العمليات!$F$2:$F$200=$A$2,IF(العمليات!$E$2:$E$200=$A$3,ROW($A$2:$A$200)-ROW($A$2)+1)),ROWS($A$5:C119))),"") ->  | D119: =IFERROR(INDEX(العمليات!$K$2:$K$200,SMALL(IF(العمليات!$F$2:$F$200=$A$2,IF(العمليات!$E$2:$E$200=$A$3,ROW($A$2:$A$200)-ROW($A$2)+1)),ROWS($A$5:D119))),"") -> 
A120: =IFERROR(INDEX(العمليات!$G$2:$G$200,SMALL(IF(العمليات!$F$2:$F$200=$A$2,IF(العمليات!$E$2:$E$200=$A$3,ROW($A$2:$A$200)-ROW($A$2)+1)),ROWS($A$5:A120))),"") ->  | B120: =IFERROR(INDEX(العمليات!$I$2:$I$200,SMALL(IF(العمليات!$F$2:$F$200=$A$2,IF(العمليات!$E$2:$E$200=$A$3,ROW($A$2:$A$200)-ROW($A$2)+1)),ROWS($A$5:B120))),"") ->  | C120: =IFERROR(INDEX(العمليات!$H$2:$H$200,SMALL(IF(العمليات!$F$2:$F$200=$A$2,IF(العمليات!$E$2:$E$200=$A$3,ROW($A$2:$A$200)-ROW($A$2)+1)),ROWS($A$5:C120))),"") ->  | D120: =IFERROR(INDEX(العمليات!$K$2:$K$200,SMALL(IF(العمليات!$F$2:$F$200=$A$2,IF(العمليات!$E$2:$E$200=$A$3,ROW($A$2:$A$200)-ROW($A$2)+1)),ROWS($A$5:D120))),"") -> 
A121: =IFERROR(INDEX(العمليات!$G$2:$G$200,SMALL(IF(العمليات!$F$2:$F$200=$A$2,IF(العمليات!$E$2:$E$200=$A$3,ROW($A$2:$A$200)-ROW($A$2)+1)),ROWS($A$5:A121))),"") ->  | B121: =IFERROR(INDEX(العمليات!$I$2:$I$200,SMALL(IF(العمليات!$F$2:$F$200=$A$2,IF(العمليات!$E$2:$E$200=$A$3,ROW($A$2:$A$200)-ROW($A$2)+1)),ROWS($A$5:B121))),"") ->  | C121: =IFERROR(INDEX(العمليات!$H$2:$H$200,SMALL(IF(العمليات!$F$2:$F$200=$A$2,IF(العمليات!$E$2:$E$200=$A$3,ROW($A$2:$A$200)-ROW($A$2)+1)),ROWS($A$5:C121))),"") ->  | D121: =IFERROR(INDEX(العمليات!$K$2:$K$200,SMALL(IF(العمليات!$F$2:$F$200=$A$2,IF(العمليات!$E$2:$E$200=$A$3,ROW($A$2:$A$200)-ROW($A$2)+1)),ROWS($A$5:D121))),"") -> 
A122: =IFERROR(INDEX(العمليات!$G$2:$G$200,SMALL(IF(العمليات!$F$2:$F$200=$A$2,IF(العمليات!$E$2:$E$200=$A$3,ROW($A$2:$A$200)-ROW($A$2)+1)),ROWS($A$5:A122))),"") ->  | B122: =IFERROR(INDEX(العمليات!$I$2:$I$200,SMALL(IF(العمليات!$F$2:$F$200=$A$2,IF(العمليات!$E$2:$E$200=$A$3,ROW($A$2:$A$200)-ROW($A$2)+1)),ROWS($A$5:B122))),"") ->  | C122: =IFERROR(INDEX(العمليات!$H$2:$H$200,SMALL(IF(العمليات!$F$2:$F$200=$A$2,IF(العمليات!$E$2:$E$200=$A$3,ROW($A$2:$A$200)-ROW($A$2)+1)),ROWS($A$5:C122))),"") ->  | D122: =IFERROR(INDEX(العمليات!$K$2:$K$200,SMALL(IF(العمليات!$F$2:$F$200=$A$2,IF(العمليات!$E$2:$E$200=$A$3,ROW($A$2:$A$200)-ROW($A$2)+1)),ROWS($A$5:D122))),"") -> 
A123: =IFERROR(INDEX(العمليات!$G$2:$G$200,SMALL(IF(العمليات!$F$2:$F$200=$A$2,IF(العمليات!$E$2:$E$200=$A$3,ROW($A$2:$A$200)-ROW($A$2)+1)),ROWS($A$5:A123))),"") ->  | B123: =IFERROR(INDEX(العمليات!$I$2:$I$200,SMALL(IF(العمليات!$F$2:$F$200=$A$2,IF(العمليات!$E$2:$E$200=$A$3,ROW($A$2:$A$200)-ROW($A$2)+1)),ROWS($A$5:B123))),"") ->  | C123: =IFERROR(INDEX(العمليات!$H$2:$H$200,SMALL(IF(العمليات!$F$2:$F$200=$A$2,IF(العمليات!$E$2:$E$200=$A$3,ROW($A$2:$A$200)-ROW($A$2)+1)),ROWS($A$5:C123))),"") ->  | D123: =IFERROR(INDEX(العمليات!$K$2:$K$200,SMALL(IF(العمليات!$F$2:$F$200=$A$2,IF(العمليات!$E$2:$E$200=$A$3,ROW($A$2:$A$200)-ROW($A$2)+1)),ROWS($A$5:D123))),"") -> 
A124: =IFERROR(INDEX(العمليات!$G$2:$G$200,SMALL(IF(العمليات!$F$2:$F$200=$A$2,IF(العمليات!$E$2:$E$200=$A$3,ROW($A$2:$A$200)-ROW($A$2)+1)),ROWS($A$5:A124))),"") ->  | B124: =IFERROR(INDEX(العمليات!$I$2:$I$200,SMALL(IF(العمليات!$F$2:$F$200=$A$2,IF(العمليات!$E$2:$E$200=$A$3,ROW($A$2:$A$200)-ROW($A$2)+1)),ROWS($A$5:B124))),"") ->  | C124: =IFERROR(INDEX(العمليات!$H$2:$H$200,SMALL(IF(العمليات!$F$2:$F$200=$A$2,IF(العمليات!$E$2:$E$200=$A$3,ROW($A$2:$A$200)-ROW($A$2)+1)),ROWS($A$5:C124))),"") ->  | D124: =IFERROR(INDEX(العمليات!$K$2:$K$200,SMALL(IF(العمليات!$F$2:$F$200=$A$2,IF(العمليات!$E$2:$E$200=$A$3,ROW($A$2:$A$200)-ROW($A$2)+1)),ROWS($A$5:D124))),"") -> 
A125: =IFERROR(INDEX(العمليات!$G$2:$G$200,SMALL(IF(العمليات!$F$2:$F$200=$A$2,IF(العمليات!$E$2:$E$200=$A$3,ROW($A$2:$A$200)-ROW($A$2)+1)),ROWS($A$5:A125))),"") ->  | B125: =IFERROR(INDEX(العمليات!$I$2:$I$200,SMALL(IF(العمليات!$F$2:$F$200=$A$2,IF(العمليات!$E$2:$E$200=$A$3,ROW($A$2:$A$200)-ROW($A$2)+1)),ROWS($A$5:B125))),"") ->  | C125: =IFERROR(INDEX(العمليات!$H$2:$H$200,SMALL(IF(العمليات!$F$2:$F$200=$A$2,IF(العمليات!$E$2:$E$200=$A$3,ROW($A$2:$A$200)-ROW($A$2)+1)),ROWS($A$5:C125))),"") ->  | D125: =IFERROR(INDEX(العمليات!$K$2:$K$200,SMALL(IF(العمليات!$F$2:$F$200=$A$2,IF(العمليات!$E$2:$E$200=$A$3,ROW($A$2:$A$200)-ROW($A$2)+1)),ROWS($A$5:D125))),"") -> 
A126: =IFERROR(INDEX(العمليات!$G$2:$G$200,SMALL(IF(العمليات!$F$2:$F$200=$A$2,IF(العمليات!$E$2:$E$200=$A$3,ROW($A$2:$A$200)-ROW($A$2)+1)),ROWS($A$5:A126))),"") ->  | B126: =IFERROR(INDEX(العمليات!$I$2:$I$200,SMALL(IF(العمليات!$F$2:$F$200=$A$2,IF(العمليات!$E$2:$E$200=$A$3,ROW($A$2:$A$200)-ROW($A$2)+1)),ROWS($A$5:B126))),"") ->  | C126: =IFERROR(INDEX(العمليات!$H$2:$H$200,SMALL(IF(العمليات!$F$2:$F$200=$A$2,IF(العمليات!$E$2:$E$200=$A$3,ROW($A$2:$A$200)-ROW($A$2)+1)),ROWS($A$5:C126))),"") ->  | D126: =IFERROR(INDEX(العمليات!$K$2:$K$200,SMALL(IF(العمليات!$F$2:$F$200=$A$2,IF(العمليات!$E$2:$E$200=$A$3,ROW($A$2:$A$200)-ROW($A$2)+1)),ROWS($A$5:D126))),"") -> 
A127: =IFERROR(INDEX(العمليات!$G$2:$G$200,SMALL(IF(العمليات!$F$2:$F$200=$A$2,IF(العمليات!$E$2:$E$200=$A$3,ROW($A$2:$A$200)-ROW($A$2)+1)),ROWS($A$5:A127))),"") ->  | B127: =IFERROR(INDEX(العمليات!$I$2:$I$200,SMALL(IF(العمليات!$F$2:$F$200=$A$2,IF(العمليات!$E$2:$E$200=$A$3,ROW($A$2:$A$200)-ROW($A$2)+1)),ROWS($A$5:B127))),"") ->  | C127: =IFERROR(INDEX(العمليات!$H$2:$H$200,SMALL(IF(العمليات!$F$2:$F$200=$A$2,IF(العمليات!$E$2:$E$200=$A$3,ROW($A$2:$A$200)-ROW($A$2)+1)),ROWS($A$5:C127))),"") ->  | D127: =IFERROR(INDEX(العمليات!$K$2:$K$200,SMALL(IF(العمليات!$F$2:$F$200=$A$2,IF(العمليات!$E$2:$E$200=$A$3,ROW($A$2:$A$200)-ROW($A$2)+1)),ROWS($A$5:D127))),"") -> 
A128: =IFERROR(INDEX(العمليات!$G$2:$G$200,SMALL(IF(العمليات!$F$2:$F$200=$A$2,IF(العمليات!$E$2:$E$200=$A$3,ROW($A$2:$A$200)-ROW($A$2)+1)),ROWS($A$5:A128))),"") ->  | B128: =IFERROR(INDEX(العمليات!$I$2:$I$200,SMALL(IF(العمليات!$F$2:$F$200=$A$2,IF(العمليات!$E$2:$E$200=$A$3,ROW($A$2:$A$200)-ROW($A$2)+1)),ROWS($A$5:B128))),"") ->  | C128: =IFERROR(INDEX(العمليات!$H$2:$H$200,SMALL(IF(العمليات!$F$2:$F$200=$A$2,IF(العمليات!$E$2:$E$200=$A$3,ROW($A$2:$A$200)-ROW($A$2)+1)),ROWS($A$5:C128))),"") ->  | D128: =IFERROR(INDEX(العمليات!$K$2:$K$200,SMALL(IF(العمليات!$F$2:$F$200=$A$2,IF(العمليات!$E$2:$E$200=$A$3,ROW($A$2:$A$200)-ROW($A$2)+1)),ROWS($A$5:D128))),"") -> 
A129: =IFERROR(INDEX(العمليات!$G$2:$G$200,SMALL(IF(العمليات!$F$2:$F$200=$A$2,IF(العمليات!$E$2:$E$200=$A$3,ROW($A$2:$A$200)-ROW($A$2)+1)),ROWS($A$5:A129))),"") ->  | B129: =IFERROR(INDEX(العمليات!$I$2:$I$200,SMALL(IF(العمليات!$F$2:$F$200=$A$2,IF(العمليات!$E$2:$E$200=$A$3,ROW($A$2:$A$200)-ROW($A$2)+1)),ROWS($A$5:B129))),"") ->  | C129: =IFERROR(INDEX(العمليات!$H$2:$H$200,SMALL(IF(العمليات!$F$2:$F$200=$A$2,IF(العمليات!$E$2:$E$200=$A$3,ROW($A$2:$A$200)-ROW($A$2)+1)),ROWS($A$5:C129))),"") ->  | D129: =IFERROR(INDEX(العمليات!$K$2:$K$200,SMALL(IF(العمليات!$F$2:$F$200=$A$2,IF(العمليات!$E$2:$E$200=$A$3,ROW($A$2:$A$200)-ROW($A$2)+1)),ROWS($A$5:D129))),"") -> 
A130: =IFERROR(INDEX(العمليات!$G$2:$G$200,SMALL(IF(العمليات!$F$2:$F$200=$A$2,IF(العمليات!$E$2:$E$200=$A$3,ROW($A$2:$A$200)-ROW($A$2)+1)),ROWS($A$5:A130))),"") ->  | B130: =IFERROR(INDEX(العمليات!$I$2:$I$200,SMALL(IF(العمليات!$F$2:$F$200=$A$2,IF(العمليات!$E$2:$E$200=$A$3,ROW($A$2:$A$200)-ROW($A$2)+1)),ROWS($A$5:B130))),"") ->  | C130: =IFERROR(INDEX(العمليات!$H$2:$H$200,SMALL(IF(العمليات!$F$2:$F$200=$A$2,IF(العمليات!$E$2:$E$200=$A$3,ROW($A$2:$A$200)-ROW($A$2)+1)),ROWS($A$5:C130))),"") ->  | D130: =IFERROR(INDEX(العمليات!$K$2:$K$200,SMALL(IF(العمليات!$F$2:$F$200=$A$2,IF(العمليات!$E$2:$E$200=$A$3,ROW($A$2:$A$200)-ROW($A$2)+1)),ROWS($A$5:D130))),"") -> 
A131: =IFERROR(INDEX(العمليات!$G$2:$G$200,SMALL(IF(العمليات!$F$2:$F$200=$A$2,IF(العمليات!$E$2:$E$200=$A$3,ROW($A$2:$A$200)-ROW($A$2)+1)),ROWS($A$5:A131))),"") ->  | B131: =IFERROR(INDEX(العمليات!$I$2:$I$200,SMALL(IF(العمليات!$F$2:$F$200=$A$2,IF(العمليات!$E$2:$E$200=$A$3,ROW($A$2:$A$200)-ROW($A$2)+1)),ROWS($A$5:B131))),"") ->  | C131: =IFERROR(INDEX(العمليات!$H$2:$H$200,SMALL(IF(العمليات!$F$2:$F$200=$A$2,IF(العمليات!$E$2:$E$200=$A$3,ROW($A$2:$A$200)-ROW($A$2)+1)),ROWS($A$5:C131))),"") ->  | D131: =IFERROR(INDEX(العمليات!$K$2:$K$200,SMALL(IF(العمليات!$F$2:$F$200=$A$2,IF(العمليات!$E$2:$E$200=$A$3,ROW($A$2:$A$200)-ROW($A$2)+1)),ROWS($A$5:D131))),"") -> 
A132: =IFERROR(INDEX(العمليات!$G$2:$G$200,SMALL(IF(العمليات!$F$2:$F$200=$A$2,IF(العمليات!$E$2:$E$200=$A$3,ROW($A$2:$A$200)-ROW($A$2)+1)),ROWS($A$5:A132))),"") ->  | B132: =IFERROR(INDEX(العمليات!$I$2:$I$200,SMALL(IF(العمليات!$F$2:$F$200=$A$2,IF(العمليات!$E$2:$E$200=$A$3,ROW($A$2:$A$200)-ROW($A$2)+1)),ROWS($A$5:B132))),"") ->  | C132: =IFERROR(INDEX(العمليات!$H$2:$H$200,SMALL(IF(العمليات!$F$2:$F$200=$A$2,IF(العمليات!$E$2:$E$200=$A$3,ROW($A$2:$A$200)-ROW($A$2)+1)),ROWS($A$5:C132))),"") ->  | D132: =IFERROR(INDEX(العمليات!$K$2:$K$200,SMALL(IF(العمليات!$F$2:$F$200=$A$2,IF(العمليات!$E$2:$E$200=$A$3,ROW($A$2:$A$200)-ROW($A$2)+1)),ROWS($A$5:D132))),"") -> 
A133: =IFERROR(INDEX(العمليات!$G$2:$G$200,SMALL(IF(العمليات!$F$2:$F$200=$A$2,IF(العمليات!$E$2:$E$200=$A$3,ROW($A$2:$A$200)-ROW($A$2)+1)),ROWS($A$5:A133))),"") ->  | B133: =IFERROR(INDEX(العمليات!$I$2:$I$200,SMALL(IF(العمليات!$F$2:$F$200=$A$2,IF(العمليات!$E$2:$E$200=$A$3,ROW($A$2:$A$200)-ROW($A$2)+1)),ROWS($A$5:B133))),"") ->  | C133: =IFERROR(INDEX(العمليات!$H$2:$H$200,SMALL(IF(العمليات!$F$2:$F$200=$A$2,IF(العمليات!$E$2:$E$200=$A$3,ROW($A$2:$A$200)-ROW($A$2)+1)),ROWS($A$5:C133))),"") ->  | D133: =IFERROR(INDEX(العمليات!$K$2:$K$200,SMALL(IF(العمليات!$F$2:$F$200=$A$2,IF(العمليات!$E$2:$E$200=$A$3,ROW($A$2:$A$200)-ROW($A$2)+1)),ROWS($A$5:D133))),"") -> 
A134: =IFERROR(INDEX(العمليات!$G$2:$G$200,SMALL(IF(العمليات!$F$2:$F$200=$A$2,IF(العمليات!$E$2:$E$200=$A$3,ROW($A$2:$A$200)-ROW($A$2)+1)),ROWS($A$5:A134))),"") ->  | B134: =IFERROR(INDEX(العمليات!$I$2:$I$200,SMALL(IF(العمليات!$F$2:$F$200=$A$2,IF(العمليات!$E$2:$E$200=$A$3,ROW($A$2:$A$200)-ROW($A$2)+1)),ROWS($A$5:B134))),"") ->  | C134: =IFERROR(INDEX(العمليات!$H$2:$H$200,SMALL(IF(العمليات!$F$2:$F$200=$A$2,IF(العمليات!$E$2:$E$200=$A$3,ROW($A$2:$A$200)-ROW($A$2)+1)),ROWS($A$5:C134))),"") ->  | D134: =IFERROR(INDEX(العمليات!$K$2:$K$200,SMALL(IF(العمليات!$F$2:$F$200=$A$2,IF(العمليات!$E$2:$E$200=$A$3,ROW($A$2:$A$200)-ROW($A$2)+1)),ROWS($A$5:D134))),"") -> 
A135: =IFERROR(INDEX(العمليات!$G$2:$G$200,SMALL(IF(العمليات!$F$2:$F$200=$A$2,IF(العمليات!$E$2:$E$200=$A$3,ROW($A$2:$A$200)-ROW($A$2)+1)),ROWS($A$5:A135))),"") ->  | B135: =IFERROR(INDEX(العمليات!$I$2:$I$200,SMALL(IF(العمليات!$F$2:$F$200=$A$2,IF(العمليات!$E$2:$E$200=$A$3,ROW($A$2:$A$200)-ROW($A$2)+1)),ROWS($A$5:B135))),"") ->  | C135: =IFERROR(INDEX(العمليات!$H$2:$H$200,SMALL(IF(العمليات!$F$2:$F$200=$A$2,IF(العمليات!$E$2:$E$200=$A$3,ROW($A$2:$A$200)-ROW($A$2)+1)),ROWS($A$5:C135))),"") ->  | D135: =IFERROR(INDEX(العمليات!$K$2:$K$200,SMALL(IF(العمليات!$F$2:$F$200=$A$2,IF(العمليات!$E$2:$E$200=$A$3,ROW($A$2:$A$200)-ROW($A$2)+1)),ROWS($A$5:D135))),"") -> 
A136: =IFERROR(INDEX(العمليات!$G$2:$G$200,SMALL(IF(العمليات!$F$2:$F$200=$A$2,IF(العمليات!$E$2:$E$200=$A$3,ROW($A$2:$A$200)-ROW($A$2)+1)),ROWS($A$5:A136))),"") ->  | B136: =IFERROR(INDEX(العمليات!$I$2:$I$200,SMALL(IF(العمليات!$F$2:$F$200=$A$2,IF(العمليات!$E$2:$E$200=$A$3,ROW($A$2:$A$200)-ROW($A$2)+1)),ROWS($A$5:B136))),"") ->  | C136: =IFERROR(INDEX(العمليات!$H$2:$H$200,SMALL(IF(العمليات!$F$2:$F$200=$A$2,IF(العمليات!$E$2:$E$200=$A$3,ROW($A$2:$A$200)-ROW($A$2)+1)),ROWS($A$5:C136))),"") ->  | D136: =IFERROR(INDEX(العمليات!$K$2:$K$200,SMALL(IF(العمليات!$F$2:$F$200=$A$2,IF(العمليات!$E$2:$E$200=$A$3,ROW($A$2:$A$200)-ROW($A$2)+1)),ROWS($A$5:D136))),"") -> 
A137: =IFERROR(INDEX(العمليات!$G$2:$G$200,SMALL(IF(العمليات!$F$2:$F$200=$A$2,IF(العمليات!$E$2:$E$200=$A$3,ROW($A$2:$A$200)-ROW($A$2)+1)),ROWS($A$5:A137))),"") ->  | B137: =IFERROR(INDEX(العمليات!$I$2:$I$200,SMALL(IF(العمليات!$F$2:$F$200=$A$2,IF(العمليات!$E$2:$E$200=$A$3,ROW($A$2:$A$200)-ROW($A$2)+1)),ROWS($A$5:B137))),"") ->  | C137: =IFERROR(INDEX(العمليات!$H$2:$H$200,SMALL(IF(العمليات!$F$2:$F$200=$A$2,IF(العمليات!$E$2:$E$200=$A$3,ROW($A$2:$A$200)-ROW($A$2)+1)),ROWS($A$5:C137))),"") ->  | D137: =IFERROR(INDEX(العمليات!$K$2:$K$200,SMALL(IF(العمليات!$F$2:$F$200=$A$2,IF(العمليات!$E$2:$E$200=$A$3,ROW($A$2:$A$200)-ROW($A$2)+1)),ROWS($A$5:D137))),"") -> 
A138: =IFERROR(INDEX(العمليات!$G$2:$G$200,SMALL(IF(العمليات!$F$2:$F$200=$A$2,IF(العمليات!$E$2:$E$200=$A$3,ROW($A$2:$A$200)-ROW($A$2)+1)),ROWS($A$5:A138))),"") ->  | B138: =IFERROR(INDEX(العمليات!$I$2:$I$200,SMALL(IF(العمليات!$F$2:$F$200=$A$2,IF(العمليات!$E$2:$E$200=$A$3,ROW($A$2:$A$200)-ROW($A$2)+1)),ROWS($A$5:B138))),"") ->  | C138: =IFERROR(INDEX(العمليات!$H$2:$H$200,SMALL(IF(العمليات!$F$2:$F$200=$A$2,IF(العمليات!$E$2:$E$200=$A$3,ROW($A$2:$A$200)-ROW($A$2)+1)),ROWS($A$5:C138))),"") ->  | D138: =IFERROR(INDEX(العمليات!$K$2:$K$200,SMALL(IF(العمليات!$F$2:$F$200=$A$2,IF(العمليات!$E$2:$E$200=$A$3,ROW($A$2:$A$200)-ROW($A$2)+1)),ROWS($A$5:D138))),"") -> 
A139: =IFERROR(INDEX(العمليات!$G$2:$G$200,SMALL(IF(العمليات!$F$2:$F$200=$A$2,IF(العمليات!$E$2:$E$200=$A$3,ROW($A$2:$A$200)-ROW($A$2)+1)),ROWS($A$5:A139))),"") ->  | B139: =IFERROR(INDEX(العمليات!$I$2:$I$200,SMALL(IF(العمليات!$F$2:$F$200=$A$2,IF(العمليات!$E$2:$E$200=$A$3,ROW($A$2:$A$200)-ROW($A$2)+1)),ROWS($A$5:B139))),"") ->  | C139: =IFERROR(INDEX(العمليات!$H$2:$H$200,SMALL(IF(العمليات!$F$2:$F$200=$A$2,IF(العمليات!$E$2:$E$200=$A$3,ROW($A$2:$A$200)-ROW($A$2)+1)),ROWS($A$5:C139))),"") ->  | D139: =IFERROR(INDEX(العمليات!$K$2:$K$200,SMALL(IF(العمليات!$F$2:$F$200=$A$2,IF(العمليات!$E$2:$E$200=$A$3,ROW($A$2:$A$200)-ROW($A$2)+1)),ROWS($A$5:D139))),"") -> 

Sheet الرصيد
F1: الكود | G1: الصنف | H1: بيع | I1: A | J1: متوجد | K1: كرتين | L1: عبوات | M1: كود الموظف | N1: اسم الموظف | O1: اشتري ب | Q1: =SUM(O2:O1160) -> 1518.525
F2: =IFERROR(VLOOKUP(SMALL(اضافه!$E$2:$E$1653,ROW()-1),اضافه!$E$2:X1653,4,0),"") -> 101 | G2: =IF(F2<>"",VLOOKUP(F2,التكويد!$A$1:D201,2,0),"") -> صنف1 | H2: =IF(F2<>"",SUMIF(العمليات!$G$2:$G$1653,الرصيد!F2,العمليات!$H$2:$H$1653),"") -> 6 | I2: =IF(F2<>"",SUMIFS(اضافه!$K$2:$K$371,اضافه!$H$2:$H$371,الرصيد!F2,اضافه!$G$2:$G$371,الرصيد!$I$1),"") -> 480 | J2: =IF(F2<>"",I2-H2,"") -> 474 | K2: =IF(F2<>"",INT(J2/VLOOKUP(F2,التكويد!$A$1:$D$201,3,0)),"") -> 39 | L2: =IF(F2<>"",MOD(J2,VLOOKUP(F2,التكويد!$A$1:$D$201,3,0)),"") -> 6 | M2: =IFERROR(VLOOKUP(SMALL(العمليات!$B$2:$B$1653,ROW()-1),العمليات!$B$2:K1653,5,0),"") -> 1 | N2: =IF(M2<>"",VLOOKUP(M2,الموظفين!$A$2:$B$2006,2,0),"") -> عميل1 | O2: =SUMIF(العمليات!$F$2:$F$1635,الرصيد!M2,العمليات!$K$2:K1635) -> 1518.525
F3: =IFERROR(VLOOKUP(SMALL(اضافه!$E$2:$E$1653,ROW()-1),اضافه!$E$2:X1654,4,0),"") -> 102 | G3: =IF(F3<>"",VLOOKUP(F3,التكويد!$A$1:D202,2,0),"") -> صنف2 | H3: =IF(F3<>"",SUMIF(العمليات!$G$2:$G$1653,الرصيد!F3,العمليات!$H$2:$H$1653),"") -> 27 | I3: =IF(F3<>"",SUMIFS(اضافه!$K$2:$K$371,اضافه!$H$2:$H$371,الرصيد!F3,اضافه!$G$2:$G$371,الرصيد!$I$1),"") -> 240 | J3: =IF(F3<>"",I3-H3,"") -> 213 | K3: =IF(F3<>"",INT(J3/VLOOKUP(F3,التكويد!$A$1:$D$201,3,0)),"") -> 17 | L3: =IF(F3<>"",MOD(J3,VLOOKUP(F3,التكويد!$A$1:$D$201,3,0)),"") -> 9 | M3: =IFERROR(VLOOKUP(SMALL(العمليات!$B$2:$B$1653,ROW()-1),العمليات!$B$2:K1654,5,0),"") ->  | N3: =IF(M3<>"",VLOOKUP(M3,الموظفين!$A$2:$B$2006,2,0),"") ->  | O3: =SUMIF(العمليات!$F$2:$F$1635,الرصيد!M3,العمليات!$K$2:K1636) -> 0
F4: =IFERROR(VLOOKUP(SMALL(اضافه!$E$2:$E$1653,ROW()-1),اضافه!$E$2:X1655,4,0),"") -> 103 | G4: =IF(F4<>"",VLOOKUP(F4,التكويد!$A$1:D203,2,0),"") -> صنف3 | H4: =IF(F4<>"",SUMIF(العمليات!$G$2:$G$1653,الرصيد!F4,العمليات!$H$2:$H$1653),"") -> 0 | I4: =IF(F4<>"",SUMIFS(اضافه!$K$2:$K$371,اضافه!$H$2:$H$371,الرصيد!F4,اضافه!$G$2:$G$371,الرصيد!$I$1),"") -> 240 | J4: 240 | K4: =IF(F4<>"",INT(J4/VLOOKUP(F4,التكويد!$A$1:$D$201,3,0)),"") -> 20 | L4: =IF(F4<>"",MOD(J4,VLOOKUP(F4,التكويد!$A$1:$D$201,3,0)),"") -> 0 | M4: =IFERROR(VLOOKUP(SMALL(العمليات!$B$2:$B$1653,ROW()-1),العمليات!$B$2:K1655,5,0),"") ->  | N4: =IF(M4<>"",VLOOKUP(M4,الموظفين!$A$2:$B$2006,2,0),"") ->  | O4: =SUMIF(العمليات!$F$2:$F$1635,الرصيد!M4,العمليات!$K$2:K1637) -> 0
F5: =IFERROR(VLOOKUP(SMALL(اضافه!$E$2:$E$1653,ROW()-1),اضافه!$E$2:X1656,4,0),"") -> 104 | G5: =IF(F5<>"",VLOOKUP(F5,التكويد!$A$1:D204,2,0),"") -> صنف4 | H5: =IF(F5<>"",SUMIF(العمليات!$G$2:$G$1653,الرصيد!F5,العمليات!$H$2:$H$1653),"") -> 0 | I5: =IF(F5<>"",SUMIFS(اضافه!$K$2:$K$371,اضافه!$H$2:$H$371,الرصيد!F5,اضافه!$G$2:$G$371,الرصيد!$I$1),"") -> 240 | J5: 240 | K5: =IF(F5<>"",INT(J5/VLOOKUP(F5,التكويد!$A$1:$D$201,3,0)),"") -> 20 | L5: =IF(F5<>"",MOD(J5,VLOOKUP(F5,التكويد!$A$1:$D$201,3,0)),"") -> 0 | M5: =IFERROR(VLOOKUP(SMALL(العمليات!$B$2:$B$1653,ROW()-1),العمليات!$B$2:K1656,5,0),"") ->  | N5: =IF(M5<>"",VLOOKUP(M5,الموظفين!$A$2:$B$2006,2,0),"") ->  | O5: =SUMIF(العمليات!$F$2:$F$1635,الرصيد!M5,العمليات!$K$2:K1638) -> 0
F6: =IFERROR(VLOOKUP(SMALL(اضافه!$E$2:$E$1653,ROW()-1),اضافه!$E$2:X1657,4,0),"") -> 105 | G6: =IF(F6<>"",VLOOKUP(F6,التكويد!$A$1:D205,2,0),"") -> صنف5 | H6: =IF(F6<>"",SUMIF(العمليات!$G$2:$G$1653,الرصيد!F6,العمليات!$H$2:$H$1653),"") -> 27 | I6: =IF(F6<>"",SUMIFS(اضافه!$K$2:$K$371,اضافه!$H$2:$H$371,الرصيد!F6,اضافه!$G$2:$G$371,الرصيد!$I$1),"") -> 240 | J6: 213 | K6: =IF(F6<>"",INT(J6/VLOOKUP(F6,التكويد!$A$1:$D$201,3,0)),"") -> 17 | L6: =IF(F6<>"",MOD(J6,VLOOKUP(F6,التكويد!$A$1:$D$201,3,0)),"") -> 9 | M6: =IFERROR(VLOOKUP(SMALL(العمليات!$B$2:$B$1653,ROW()-1),العمليات!$B$2:K1657,5,0),"") ->  | N6: =IF(M6<>"",VLOOKUP(M6,الموظفين!$A$2:$B$2006,2,0),"") ->  | O6: =SUMIF(العمليات!$F$2:$F$1635,الرصيد!M6,العمليات!$K$2:K1639) -> 0
F7: =IFERROR(VLOOKUP(SMALL(اضافه!$E$2:$E$1653,ROW()-1),اضافه!$E$2:X1658,4,0),"") -> 106 | G7: =IF(F7<>"",VLOOKUP(F7,التكويد!$A$1:D206,2,0),"") -> صنف6 | H7: =IF(F7<>"",SUMIF(العمليات!$G$2:$G$1653,الرصيد!F7,العمليات!$H$2:$H$1653),"") -> 0 | I7: =IF(F7<>"",SUMIFS(اضافه!$K$2:$K$371,اضافه!$H$2:$H$371,الرصيد!F7,اضافه!$G$2:$G$371,الرصيد!$I$1),"") -> 120 | J7: 120 | K7: =IF(F7<>"",INT(J7/VLOOKUP(F7,التكويد!$A$1:$D$201,3,0)),"") -> 20 | L7: =IF(F7<>"",MOD(J7,VLOOKUP(F7,التكويد!$A$1:$D$201,3,0)),"") -> 0 | M7: =IFERROR(VLOOKUP(SMALL(العمليات!$B$2:$B$1653,ROW()-1),العمليات!$B$2:K1658,5,0),"") ->  | N7: =IF(M7<>"",VLOOKUP(M7,الموظفين!$A$2:$B$2006,2,0),"") ->  | O7: =SUMIF(العمليات!$F$2:$F$1635,الرصيد!M7,العمليات!$K$2:K1640) -> 0
F8: =IFERROR(VLOOKUP(SMALL(اضافه!$E$2:$E$1653,ROW()-1),اضافه!$E$2:X1659,4,0),"") -> 107 | G8: =IF(F8<>"",VLOOKUP(F8,التكويد!$A$1:D207,2,0),"") -> صنف7 | H8: =IF(F8<>"",SUMIF(العمليات!$G$2:$G$1653,الرصيد!F8,العمليات!$H$2:$H$1653),"") -> 81 | I8: =IF(F8<>"",SUMIFS(اضافه!$K$2:$K$371,اضافه!$H$2:$H$371,الرصيد!F8,اضافه!$G$2:$G$371,الرصيد!$I$1),"") -> 540 | J8: 459 | K8: =IF(F8<>"",INT(J8/VLOOKUP(F8,التكويد!$A$1:$D$201,3,0)),"") -> 17 | L8: =IF(F8<>"",MOD(J8,VLOOKUP(F8,التكويد!$A$1:$D$201,3,0)),"") -> 0 | M8: =IFERROR(VLOOKUP(SMALL(العمليات!$B$2:$B$1653,ROW()-1),العمليات!$B$2:K1659,5,0),"") ->  | N8: =IF(M8<>"",VLOOKUP(M8,الموظفين!$A$2:$B$2006,2,0),"") ->  | O8: =SUMIF(العمليات!$F$2:$F$1635,الرصيد!M8,العمليات!$K$2:K1641) -> 0
F9: =IFERROR(VLOOKUP(SMALL(اضافه!$E$2:$E$1653,ROW()-1),اضافه!$E$2:X1660,4,0),"") -> 108 | G9: =IF(F9<>"",VLOOKUP(F9,التكويد!$A$1:D208,2,0),"") -> صنف8 | H9: =IF(F9<>"",SUMIF(العمليات!$G$2:$G$1653,الرصيد!F9,العمليات!$H$2:$H$1653),"") -> 0 | I9: =IF(F9<>"",SUMIFS(اضافه!$K$2:$K$371,اضافه!$H$2:$H$371,الرصيد!F9,اضافه!$G$2:$G$371,الرصيد!$I$1),"") -> 120 | J9: 120 | K9: =IF(F9<>"",INT(J9/VLOOKUP(F9,التكويد!$A$1:$D$201,3,0)),"") -> 20 | L9: =IF(F9<>"",MOD(J9,VLOOKUP(F9,التكويد!$A$1:$D$201,3,0)),"") -> 0 | M9: =IFERROR(VLOOKUP(SMALL(العمليات!$B$2:$B$1653,ROW()-1),العمليات!$B$2:K1660,5,0),"") ->  | N9: =IF(M9<>"",VLOOKUP(M9,الموظفين!$A$2:$B$2006,2,0),"") ->  | O9: =SUMIF(العمليات!$F$2:$F$1635,الرصيد!M9,العمليات!$K$2:K1642) -> 0
F10: =IFERROR(VLOOKUP(SMALL(اضافه!$E$2:$E$1653,ROW()-1),اضافه!$E$2:X1661,4,0),"") -> 109 | G10: =IF(F10<>"",VLOOKUP(F10,التكويد!$A$1:D209,2,0),"") -> صنف9 | H10: =IF(F10<>"",SUMIF(العمليات!$G$2:$G$1653,الرصيد!F10,العمليات!$H$2:$H$1653),"") -> 0 | I10: =IF(F10<>"",SUMIFS(اضافه!$K$2:$K$371,اضافه!$H$2:$H$371,الرصيد!F10,اضافه!$G$2:$G$371,الرصيد!$I$1),"") -> 120 | J10: 120 | K10: =IF(F10<>"",INT(J10/VLOOKUP(F10,التكويد!$A$1:$D$201,3,0)),"") -> 20 | L10: =IF(F10<>"",MOD(J10,VLOOKUP(F10,التكويد!$A$1:$D$201,3,0)),"") -> 0 | M10: =IFERROR(VLOOKUP(SMALL(العمليات!$B$2:$B$1653,ROW()-1),العمليات!$B$2:K1661,5,0),"") ->  | N10: =IF(M10<>"",VLOOKUP(M10,الموظفين!$A$2:$B$2006,2,0),"") ->  | O10: =SUMIF(العمليات!$F$2:$F$1635,الرصيد!M10,العمليات!$K$2:K1643) -> 0
F11: =IFERROR(VLOOKUP(SMALL(اضافه!$E$2:$E$1653,ROW()-1),اضافه!$E$2:X1662,4,0),"") -> 110 | G11: =IF(F11<>"",VLOOKUP(F11,التكويد!$A$1:D210,2,0),"") -> صنف10 | H11: =IF(F11<>"",SUMIF(العمليات!$G$2:$G$1653,الرصيد!F11,العمليات!$H$2:$H$1653),"") -> 6 | I11: =IF(F11<>"",SUMIFS(اضافه!$K$2:$K$371,اضافه!$H$2:$H$371,الرصيد!F11,اضافه!$G$2:$G$371,الرصيد!$I$1),"") -> 540 | J11: 534 | K11: =IF(F11<>"",INT(J11/VLOOKUP(F11,التكويد!$A$1:$D$201,3,0)),"") -> 19 | L11: =IF(F11<>"",MOD(J11,VLOOKUP(F11,التكويد!$A$1:$D$201,3,0)),"") -> 21 | M11: =IFERROR(VLOOKUP(SMALL(العمليات!$B$2:$B$1653,ROW()-1),العمليات!$B$2:K1662,5,0),"") ->  | N11: =IF(M11<>"",VLOOKUP(M11,الموظفين!$A$2:$B$2006,2,0),"") ->  | O11: =SUMIF(العمليات!$F$2:$F$1635,الرصيد!M11,العمليات!$K$2:K1644) -> 0
F12: =IFERROR(VLOOKUP(SMALL(اضافه!$E$2:$E$1653,ROW()-1),اضافه!$E$2:X1663,4,0),"") -> 111 | G12: =IF(F12<>"",VLOOKUP(F12,التكويد!$A$1:D211,2,0),"") -> صنف11 | H12: =IF(F12<>"",SUMIF(العمليات!$G$2:$G$1653,الرصيد!F12,العمليات!$H$2:$H$1653),"") -> 0 | I12: =IF(F12<>"",SUMIFS(اضافه!$K$2:$K$371,اضافه!$H$2:$H$371,الرصيد!F12,اضافه!$G$2:$G$371,الرصيد!$I$1),"") -> 540 | J12: 540 | K12: =IF(F12<>"",INT(J12/VLOOKUP(F12,التكويد!$A$1:$D$201,3,0)),"") -> 20 | L12: =IF(F12<>"",MOD(J12,VLOOKUP(F12,التكويد!$A$1:$D$201,3,0)),"") -> 0 | M12: =IFERROR(VLOOKUP(SMALL(العمليات!$B$2:$B$1653,ROW()-1),العمليات!$B$2:K1663,5,0),"") ->  | N12: =IF(M12<>"",VLOOKUP(M12,الموظفين!$A$2:$B$2006,2,0),"") ->  | O12: =SUMIF(العمليات!$F$2:$F$1635,الرصيد!M12,العمليات!$K$2:K1645) -> 0
F13: =IFERROR(VLOOKUP(SMALL(اضافه!$E$2:$E$1653,ROW()-1),اضافه!$E$2:X1664,4,0),"") -> 112 | G13: =IF(F13<>"",VLOOKUP(F13,التكويد!$A$1:D212,2,0),"") -> صنف12 | H13: =IF(F13<>"",SUMIF(العمليات!$G$2:$G$1653,الرصيد!F13,العمليات!$H$2:$H$1653),"") -> 6 | I13: =IF(F13<>"",SUMIFS(اضافه!$K$2:$K$371,اضافه!$H$2:$H$371,الرصيد!F13,اضافه!$G$2:$G$371,الرصيد!$I$1),"") -> 540 | J13: 534 | K13: =IF(F13<>"",INT(J13/VLOOKUP(F13,التكويد!$A$1:$D$201,3,0)),"") -> 19 | L13: =IF(F13<>"",MOD(J13,VLOOKUP(F13,التكويد!$A$1:$D$201,3,0)),"") -> 21 | M13: =IFERROR(VLOOKUP(SMALL(العمليات!$B$2:$B$1653,ROW()-1),العمليات!$B$2:K1664,5,0),"") ->  | N13: =IF(M13<>"",VLOOKUP(M13,الموظفين!$A$2:$B$2006,2,0),"") ->  | O13: =SUMIF(العمليات!$F$2:$F$1635,الرصيد!M13,العمليات!$K$2:K1646) -> 0
F14: =IFERROR(VLOOKUP(SMALL(اضافه!$E$2:$E$1653,ROW()-1),اضافه!$E$2:X1665,4,0),"") -> 113 | G14: =IF(F14<>"",VLOOKUP(F14,التكويد!$A$1:D213,2,0),"") -> صنف13 | H14: =IF(F14<>"",SUMIF(العمليات!$G$2:$G$1653,الرصيد!F14,العمليات!$H$2:$H$1653),"") -> 0 | I14: =IF(F14<>"",SUMIFS(اضافه!$K$2:$K$371,اضافه!$H$2:$H$371,الرصيد!F14,اضافه!$G$2:$G$371,الرصيد!$I$1),"") -> 240 | J14: 240 | K14: =IF(F14<>"",INT(J14/VLOOKUP(F14,التكويد!$A$1:$D$201,3,0)),"") -> 20 | L14: =IF(F14<>"",MOD(J14,VLOOKUP(F14,التكويد!$A$1:$D$201,3,0)),"") -> 0 | M14: =IFERROR(VLOOKUP(SMALL(العمليات!$B$2:$B$1653,ROW()-1),العمليات!$B$2:K1665,5,0),"") ->  | N14: =IF(M14<>"",VLOOKUP(M14,الموظفين!$A$2:$B$2006,2,0),"") ->  | O14: =SUMIF(العمليات!$F$2:$F$1635,الرصيد!M14,العمليات!$K$2:K1647) -> 0
F15: =IFERROR(VLOOKUP(SMALL(اضافه!$E$2:$E$1653,ROW()-1),اضافه!$E$2:X1666,4,0),"") -> 114 | G15: =IF(F15<>"",VLOOKUP(F15,التكويد!$A$1:D214,2,0),"") -> صنف14 | H15: =IF(F15<>"",SUMIF(العمليات!$G$2:$G$1653,الرصيد!F15,العمليات!$H$2:$H$1653),"") -> 0 | I15: =IF(F15<>"",SUMIFS(اضافه!$K$2:$K$371,اضافه!$H$2:$H$371,الرصيد!F15,اضافه!$G$2:$G$371,الرصيد!$I$1),"") -> 240 | J15: 240 | K15: =IF(F15<>"",INT(J15/VLOOKUP(F15,التكويد!$A$1:$D$201,3,0)),"") -> 20 | L15: =IF(F15<>"",MOD(J15,VLOOKUP(F15,التكويد!$A$1:$D$201,3,0)),"") -> 0 | M15: =IFERROR(VLOOKUP(SMALL(العمليات!$B$2:$B$1653,ROW()-1),العمليات!$B$2:K1666,5,0),"") ->  | N15: =IF(M15<>"",VLOOKUP(M15,الموظفين!$A$2:$B$2006,2,0),"") ->  | O15: =SUMIF(العمليات!$F$2:$F$1635,الرصيد!M15,العمليات!$K$2:K1648) -> 0
F16: =IFERROR(VLOOKUP(SMALL(اضافه!$E$2:$E$1653,ROW()-1),اضافه!$E$2:X1667,4,0),"") -> 115 | G16: =IF(F16<>"",VLOOKUP(F16,التكويد!$A$1:D215,2,0),"") -> صنف15 | H16: =IF(F16<>"",SUMIF(العمليات!$G$2:$G$1653,الرصيد!F16,العمليات!$H$2:$H$1653),"") -> 9 | I16: =IF(F16<>"",SUMIFS(اضافه!$K$2:$K$371,اضافه!$H$2:$H$371,الرصيد!F16,اضافه!$G$2:$G$371,الرصيد!$I$1),"") -> 240 | J16: 231 | K16: =IF(F16<>"",INT(J16/VLOOKUP(F16,التكويد!$A$1:$D$201,3,0)),"") -> 19 | L16: =IF(F16<>"",MOD(J16,VLOOKUP(F16,التكويد!$A$1:$D$201,3,0)),"") -> 3 | M16: =IFERROR(VLOOKUP(SMALL(العمليات!$B$2:$B$1653,ROW()-1),العمليات!$B$2:K1667,5,0),"") ->  | N16: =IF(M16<>"",VLOOKUP(M16,الموظفين!$A$2:$B$2006,2,0),"") ->  | O16: =SUMIF(العمليات!$F$2:$F$1635,الرصيد!M16,العمليات!$K$2:K1649) -> 0
F17: =IFERROR(VLOOKUP(SMALL(اضافه!$E$2:$E$1653,ROW()-1),اضافه!$E$2:X1668,4,0),"") -> 116 | G17: =IF(F17<>"",VLOOKUP(F17,التكويد!$A$1:D216,2,0),"") -> صنف16 | H17: =IF(F17<>"",SUMIF(العمليات!$G$2:$G$1653,الرصيد!F17,العمليات!$H$2:$H$1653),"") -> 9 | I17: =IF(F17<>"",SUMIFS(اضافه!$K$2:$K$371,اضافه!$H$2:$H$371,الرصيد!F17,اضافه!$G$2:$G$371,الرصيد!$I$1),"") -> 240 | J17: 231 | K17: =IF(F17<>"",INT(J17/VLOOKUP(F17,التكويد!$A$1:$D$201,3,0)),"") -> 19 | L17: =IF(F17<>"",MOD(J17,VLOOKUP(F17,التكويد!$A$1:$D$201,3,0)),"") -> 3 | M17: =IFERROR(VLOOKUP(SMALL(العمليات!$B$2:$B$1653,ROW()-1),العمليات!$B$2:K1668,5,0),"") ->  | N17: =IF(M17<>"",VLOOKUP(M17,الموظفين!$A$2:$B$2006,2,0),"") ->  | O17: =SUMIF(العمليات!$F$2:$F$1635,الرصيد!M17,العمليات!$K$2:K1650) -> 0
F18: =IFERROR(VLOOKUP(SMALL(اضافه!$E$2:$E$1653,ROW()-1),اضافه!$E$2:X1669,4,0),"") -> 117 | G18: =IF(F18<>"",VLOOKUP(F18,التكويد!$A$1:D217,2,0),"") -> صنف17 | H18: =IF(F18<>"",SUMIF(العمليات!$G$2:$G$1653,الرصيد!F18,العمليات!$H$2:$H$1653),"") -> 9 | I18: =IF(F18<>"",SUMIFS(اضافه!$K$2:$K$371,اضافه!$H$2:$H$371,الرصيد!F18,اضافه!$G$2:$G$371,الرصيد!$I$1),"") -> 540 | J18: 531 | K18: =IF(F18<>"",INT(J18/VLOOKUP(F18,التكويد!$A$1:$D$201,3,0)),"") -> 19 | L18: =IF(F18<>"",MOD(J18,VLOOKUP(F18,التكويد!$A$1:$D$201,3,0)),"") -> 18 | M18: =IFERROR(VLOOKUP(SMALL(العمليات!$B$2:$B$1653,ROW()-1),العمليات!$B$2:K1669,5,0),"") ->  | N18: =IF(M18<>"",VLOOKUP(M18,الموظفين!$A$2:$B$2006,2,0),"") ->  | O18: =SUMIF(العمليات!$F$2:$F$1635,الرصيد!M18,العمليات!$K$2:K1651) -> 0
F19: =IFERROR(VLOOKUP(SMALL(اضافه!$E$2:$E$1653,ROW()-1),اضافه!$E$2:X1670,4,0),"") -> 118 | G19: =IF(F19<>"",VLOOKUP(F19,التكويد!$A$1:D218,2,0),"") -> صنف18 | H19: =IF(F19<>"",SUMIF(العمليات!$G$2:$G$1653,الرصيد!F19,العمليات!$H$2:$H$1653),"") -> 36 | I19: =IF(F19<>"",SUMIFS(اضافه!$K$2:$K$371,اضافه!$H$2:$H$371,الرصيد!F19,اضافه!$G$2:$G$371,الرصيد!$I$1),"") -> 540 | J19: 504 | K19: =IF(F19<>"",INT(J19/VLOOKUP(F19,التكويد!$A$1:$D$201,3,0)),"") -> 18 | L19: =IF(F19<>"",MOD(J19,VLOOKUP(F19,التكويد!$A$1:$D$201,3,0)),"") -> 18 | M19: =IFERROR(VLOOKUP(SMALL(العمليات!$B$2:$B$1653,ROW()-1),العمليات!$B$2:K1670,5,0),"") ->  | N19: =IF(M19<>"",VLOOKUP(M19,الموظفين!$A$2:$B$2006,2,0),"") ->  | O19: =SUMIF(العمليات!$F$2:$F$1635,الرصيد!M19,العمليات!$K$2:K1652) -> 0
F20: =IFERROR(VLOOKUP(SMALL(اضافه!$E$2:$E$1653,ROW()-1),اضافه!$E$2:X1671,4,0),"") -> 119 | G20: =IF(F20<>"",VLOOKUP(F20,التكويد!$A$1:D219,2,0),"") -> صنف19 | H20: =IF(F20<>"",SUMIF(العمليات!$G$2:$G$1653,الرصيد!F20,العمليات!$H$2:$H$1653),"") -> 54 | I20: =IF(F20<>"",SUMIFS(اضافه!$K$2:$K$371,اضافه!$H$2:$H$371,الرصيد!F20,اضافه!$G$2:$G$371,الرصيد!$I$1),"") -> 540 | J20: 486 | K20: =IF(F20<>"",INT(J20/VLOOKUP(F20,التكويد!$A$1:$D$201,3,0)),"") -> 18 | L20: =IF(F20<>"",MOD(J20,VLOOKUP(F20,التكويد!$A$1:$D$201,3,0)),"") -> 0 | M20: =IFERROR(VLOOKUP(SMALL(العمليات!$B$2:$B$1653,ROW()-1),العمليات!$B$2:K1671,5,0),"") ->  | N20: =IF(M20<>"",VLOOKUP(M20,الموظفين!$A$2:$B$2006,2,0),"") ->  | O20: =SUMIF(العمليات!$F$2:$F$1635,الرصيد!M20,العمليات!$K$2:K1653) -> 0
F21: =IFERROR(VLOOKUP(SMALL(اضافه!$E$2:$E$1653,ROW()-1),اضافه!$E$2:X1672,4,0),"") -> 120 | G21: =IF(F21<>"",VLOOKUP(F21,التكويد!$A$1:D220,2,0),"") -> صنف20 | H21: =IF(F21<>"",SUMIF(العمليات!$G$2:$G$1653,الرصيد!F21,العمليات!$H$2:$H$1653),"") -> 25 | I21: =IF(F21<>"",SUMIFS(اضافه!$K$2:$K$371,اضافه!$H$2:$H$371,الرصيد!F21,اضافه!$G$2:$G$371,الرصيد!$I$1),"") -> 540 | J21: 515 | K21: =IF(F21<>"",INT(J21/VLOOKUP(F21,التكويد!$A$1:$D$201,3,0)),"") -> 19 | L21: =IF(F21<>"",MOD(J21,VLOOKUP(F21,التكويد!$A$1:$D$201,3,0)),"") -> 2 | M21: =IFERROR(VLOOKUP(SMALL(العمليات!$B$2:$B$1653,ROW()-1),العمليات!$B$2:K1672,5,0),"") ->  | N21: =IF(M21<>"",VLOOKUP(M21,الموظفين!$A$2:$B$2006,2,0),"") ->  | O21: =SUMIF(العمليات!$F$2:$F$1635,الرصيد!M21,العمليات!$K$2:K1654) -> 0
F22: =IFERROR(VLOOKUP(SMALL(اضافه!$E$2:$E$1653,ROW()-1),اضافه!$E$2:X1673,4,0),"") -> 121 | G22: =IF(F22<>"",VLOOKUP(F22,التكويد!$A$1:D221,2,0),"") -> صنف21 | H22: =IF(F22<>"",SUMIF(العمليات!$G$2:$G$1653,الرصيد!F22,العمليات!$H$2:$H$1653),"") -> 21 | I22: =IF(F22<>"",SUMIFS(اضافه!$K$2:$K$371,اضافه!$H$2:$H$371,الرصيد!F22,اضافه!$G$2:$G$371,الرصيد!$I$1),"") -> 800 | J22: 779 | K22: =IF(F22<>"",INT(J22/VLOOKUP(F22,التكويد!$A$1:$D$201,3,0)),"") -> 19 | L22: =IF(F22<>"",MOD(J22,VLOOKUP(F22,التكويد!$A$1:$D$201,3,0)),"") -> 19 | M22: =IFERROR(VLOOKUP(SMALL(العمليات!$B$2:$B$1653,ROW()-1),العمليات!$B$2:K1673,5,0),"") ->  | N22: =IF(M22<>"",VLOOKUP(M22,الموظفين!$A$2:$B$2006,2,0),"") ->  | O22: =SUMIF(العمليات!$F$2:$F$1635,الرصيد!M22,العمليات!$K$2:K1655) -> 0
F23: =IFERROR(VLOOKUP(SMALL(اضافه!$E$2:$E$1653,ROW()-1),اضافه!$E$2:X1674,4,0),"") -> 122 | G23: =IF(F23<>"",VLOOKUP(F23,التكويد!$A$1:D222,2,0),"") -> صنف22 | H23: =IF(F23<>"",SUMIF(العمليات!$G$2:$G$1653,الرصيد!F23,العمليات!$H$2:$H$1653),"") -> 0 | I23: =IF(F23<>"",SUMIFS(اضافه!$K$2:$K$371,اضافه!$H$2:$H$371,الرصيد!F23,اضافه!$G$2:$G$371,الرصيد!$I$1),"") -> 800 | J23: 800 | K23: =IF(F23<>"",INT(J23/VLOOKUP(F23,التكويد!$A$1:$D$201,3,0)),"") -> 20 | L23: =IF(F23<>"",MOD(J23,VLOOKUP(F23,التكويد!$A$1:$D$201,3,0)),"") -> 0 | M23: =IFERROR(VLOOKUP(SMALL(العمليات!$B$2:$B$1653,ROW()-1),العمليات!$B$2:K1674,5,0),"") ->  | N23: =IF(M23<>"",VLOOKUP(M23,الموظفين!$A$2:$B$2006,2,0),"") ->  | O23: =SUMIF(العمليات!$F$2:$F$1635,الرصيد!M23,العمليات!$K$2:K1656) -> 0
F24: =IFERROR(VLOOKUP(SMALL(اضافه!$E$2:$E$1653,ROW()-1),اضافه!$E$2:X1675,4,0),"") -> 123 | G24: =IF(F24<>"",VLOOKUP(F24,التكويد!$A$1:D223,2,0),"") -> صنف23 | H24: =IF(F24<>"",SUMIF(العمليات!$G$2:$G$1653,الرصيد!F24,العمليات!$H$2:$H$1653),"") -> 25 | I24: =IF(F24<>"",SUMIFS(اضافه!$K$2:$K$371,اضافه!$H$2:$H$371,الرصيد!F24,اضافه!$G$2:$G$371,الرصيد!$I$1),"") -> 540 | J24: 515 | K24: =IF(F24<>"",INT(J24/VLOOKUP(F24,التكويد!$A$1:$D$201,3,0)),"") -> 19 | L24: =IF(F24<>"",MOD(J24,VLOOKUP(F24,التكويد!$A$1:$D$201,3,0)),"") -> 2 | M24: =IFERROR(VLOOKUP(SMALL(العمليات!$B$2:$B$1653,ROW()-1),العمليات!$B$2:K1675,5,0),"") ->  | N24: =IF(M24<>"",VLOOKUP(M24,الموظفين!$A$2:$B$2006,2,0),"") ->  | O24: =SUMIF(العمليات!$F$2:$F$1635,الرصيد!M24,العمليات!$K$2:K1657) -> 0
F25: =IFERROR(VLOOKUP(SMALL(اضافه!$E$2:$E$1653,ROW()-1),اضافه!$E$2:X1676,4,0),"") -> 124 | G25: =IF(F25<>"",VLOOKUP(F25,التكويد!$A$1:D224,2,0),"") -> صنف24 | H25: =IF(F25<>"",SUMIF(العمليات!$G$2:$G$1653,الرصيد!F25,العمليات!$H$2:$H$1653),"") -> 23 | I25: =IF(F25<>"",SUMIFS(اضافه!$K$2:$K$371,اضافه!$H$2:$H$371,الرصيد!F25,اضافه!$G$2:$G$371,الرصيد!$I$1),"") -> 540 | J25: 517 | K25: =IF(F25<>"",INT(J25/VLOOKUP(F25,التكويد!$A$1:$D$201,3,0)),"") -> 19 | L25: =IF(F25<>"",MOD(J25,VLOOKUP(F25,التكويد!$A$1:$D$201,3,0)),"") -> 4 | M25: =IFERROR(VLOOKUP(SMALL(العمليات!$B$2:$B$1653,ROW()-1),العمليات!$B$2:K1676,5,0),"") ->  | N25: =IF(M25<>"",VLOOKUP(M25,الموظفين!$A$2:$B$2006,2,0),"") ->  | O25: =SUMIF(العمليات!$F$2:$F$1635,الرصيد!M25,العمليات!$K$2:K1658) -> 0
F26: =IFERROR(VLOOKUP(SMALL(اضافه!$E$2:$E$1653,ROW()-1),اضافه!$E$2:X1677,4,0),"") -> 125 | G26: =IF(F26<>"",VLOOKUP(F26,التكويد!$A$1:D225,2,0),"") -> صنف25 | H26: =IF(F26<>"",SUMIF(العمليات!$G$2:$G$1653,الرصيد!F26,العمليات!$H$2:$H$1653),"") -> 12 | I26: =IF(F26<>"",SUMIFS(اضافه!$K$2:$K$371,اضافه!$H$2:$H$371,الرصيد!F26,اضافه!$G$2:$G$371,الرصيد!$I$1),"") -> 540 | J26: 528 | K26: =IF(F26<>"",INT(J26/VLOOKUP(F26,التكويد!$A$1:$D$201,3,0)),"") -> 19 | L26: =IF(F26<>"",MOD(J26,VLOOKUP(F26,التكويد!$A$1:$D$201,3,0)),"") -> 15 | M26: =IFERROR(VLOOKUP(SMALL(العمليات!$B$2:$B$1653,ROW()-1),العمليات!$B$2:K1677,5,0),"") ->  | N26: =IF(M26<>"",VLOOKUP(M26,الموظفين!$A$2:$B$2006,2,0),"") ->  | O26: =SUMIF(العمليات!$F$2:$F$1635,الرصيد!M26,العمليات!$K$2:K1659) -> 0
F27: =IFERROR(VLOOKUP(SMALL(اضافه!$E$2:$E$1653,ROW()-1),اضافه!$E$2:X1678,4,0),"") -> 126 | G27: =IF(F27<>"",VLOOKUP(F27,التكويد!$A$1:D226,2,0),"") -> صنف26 | H27: =IF(F27<>"",SUMIF(العمليات!$G$2:$G$1653,الرصيد!F27,العمليات!$H$2:$H$1653),"") -> 13 | I27: =IF(F27<>"",SUMIFS(اضافه!$K$2:$K$371,اضافه!$H$2:$H$371,الرصيد!F27,اضافه!$G$2:$G$371,الرصيد!$I$1),"") -> 540 | J27: 527 | K27: =IF(F27<>"",INT(J27/VLOOKUP(F27,التكويد!$A$1:$D$201,3,0)),"") -> 19 | L27: =IF(F27<>"",MOD(J27,VLOOKUP(F27,التكويد!$A$1:$D$201,3,0)),"") -> 14 | M27: =IFERROR(VLOOKUP(SMALL(العمليات!$B$2:$B$1653,ROW()-1),العمليات!$B$2:K1678,5,0),"") ->  | N27: =IF(M27<>"",VLOOKUP(M27,الموظفين!$A$2:$B$2006,2,0),"") ->  | O27: =SUMIF(العمليات!$F$2:$F$1635,الرصيد!M27,العمليات!$K$2:K1660) -> 0
F28: =IFERROR(VLOOKUP(SMALL(اضافه!$E$2:$E$1653,ROW()-1),اضافه!$E$2:X1679,4,0),"") -> 127 | G28: =IF(F28<>"",VLOOKUP(F28,التكويد!$A$1:D227,2,0),"") -> صنف27 | H28: =IF(F28<>"",SUMIF(العمليات!$G$2:$G$1653,الرصيد!F28,العمليات!$H$2:$H$1653),"") -> 0 | I28: =IF(F28<>"",SUMIFS(اضافه!$K$2:$K$371,اضافه!$H$2:$H$371,الرصيد!F28,اضافه!$G$2:$G$371,الرصيد!$I$1),"") -> 540 | J28: 540 | K28: =IF(F28<>"",INT(J28/VLOOKUP(F28,التكويد!$A$1:$D$201,3,0)),"") -> 20 | L28: =IF(F28<>"",MOD(J28,VLOOKUP(F28,التكويد!$A$1:$D$201,3,0)),"") -> 0 | M28: =IFERROR(VLOOKUP(SMALL(العمليات!$B$2:$B$1653,ROW()-1),العمليات!$B$2:K1679,5,0),"") ->  | N28: =IF(M28<>"",VLOOKUP(M28,الموظفين!$A$2:$B$2006,2,0),"") ->  | O28: =SUMIF(العمليات!$F$2:$F$1635,الرصيد!M28,العمليات!$K$2:K1661) -> 0
F29: =IFERROR(VLOOKUP(SMALL(اضافه!$E$2:$E$1653,ROW()-1),اضافه!$E$2:X1680,4,0),"") ->  | G29: =IF(F29<>"",VLOOKUP(F29,التكويد!$A$1:D228,2,0),"") ->  | H29: =IF(F29<>"",SUMIF(العمليات!$G$2:$G$1653,الرصيد!F29,العمليات!$H$2:$H$1653),"") ->  | I29: =IF(F29<>"",SUMIFS(اضافه!$K$2:$K$371,اضافه!$H$2:$H$371,الرصيد!F29,اضافه!$G$2:$G$371,الرصيد!$I$1),"") ->  | K29: =IF(F29<>"",INT(J29/VLOOKUP(F29,التكويد!$A$1:$D$201,3,0)),"") ->  | L29: =IF(F29<>"",MOD(J29,VLOOKUP(F29,التكويد!$A$1:$D$201,3,0)),"") ->  | M29: =IFERROR(VLOOKUP(SMALL(العمليات!$B$2:$B$1653,ROW()-1),العمليات!$B$2:K1680,5,0),"") ->  | N29: =IF(M29<>"",VLOOKUP(M29,الموظفين!$A$2:$B$2006,2,0),"") ->  | O29: =SUMIF(العمليات!$F$2:$F$1635,الرصيد!M29,العمليات!$K$2:K1662) -> 0
F30: =IFERROR(VLOOKUP(SMALL(اضافه!$E$2:$E$1653,ROW()-1),اضافه!$E$2:X1681,4,0),"") ->  | G30: =IF(F30<>"",VLOOKUP(F30,التكويد!$A$1:D229,2,0),"") ->  | H30: =IF(F30<>"",SUMIF(العمليات!$G$2:$G$1653,الرصيد!F30,العمليات!$H$2:$H$1653),"") ->  | I30: =IF(F30<>"",SUMIFS(اضافه!$K$2:$K$371,اضافه!$H$2:$H$371,الرصيد!F30,اضافه!$G$2:$G$371,الرصيد!$I$1),"") ->  | K30: =IF(F30<>"",INT(J30/VLOOKUP(F30,التكويد!$A$1:$D$201,3,0)),"") ->  | L30: =IF(F30<>"",MOD(J30,VLOOKUP(F30,التكويد!$A$1:$D$201,3,0)),"") ->  | M30: =IFERROR(VLOOKUP(SMALL(العمليات!$B$2:$B$1653,ROW()-1),العمليات!$B$2:K1681,5,0),"") ->  | N30: =IF(M30<>"",VLOOKUP(M30,الموظفين!$A$2:$B$2006,2,0),"") ->  | O30: =SUMIF(العمليات!$F$2:$F$1635,الرصيد!M30,العمليات!$K$2:K1663) -> 0
F31: =IFERROR(VLOOKUP(SMALL(اضافه!$E$2:$E$1653,ROW()-1),اضافه!$E$2:X1682,4,0),"") ->  | G31: =IF(F31<>"",VLOOKUP(F31,التكويد!$A$1:D230,2,0),"") ->  | H31: =IF(F31<>"",SUMIF(العمليات!$G$2:$G$1653,الرصيد!F31,العمليات!$H$2:$H$1653),"") ->  | I31: =IF(F31<>"",SUMIFS(اضافه!$K$2:$K$371,اضافه!$H$2:$H$371,الرصيد!F31,اضافه!$G$2:$G$371,الرصيد!$I$1),"") ->  | K31: =IF(F31<>"",INT(J31/VLOOKUP(F31,التكويد!$A$1:$D$201,3,0)),"") ->  | L31: =IF(F31<>"",MOD(J31,VLOOKUP(F31,التكويد!$A$1:$D$201,3,0)),"") ->  | M31: =IFERROR(VLOOKUP(SMALL(العمليات!$B$2:$B$1653,ROW()-1),العمليات!$B$2:K1682,5,0),"") ->  | N31: =IF(M31<>"",VLOOKUP(M31,الموظفين!$A$2:$B$2006,2,0),"") ->  | O31: =SUMIF(العمليات!$F$2:$F$1635,الرصيد!M31,العمليات!$K$2:K1664) -> 0
F32: =IFERROR(VLOOKUP(SMALL(اضافه!$E$2:$E$1653,ROW()-1),اضافه!$E$2:X1683,4,0),"") ->  | G32: =IF(F32<>"",VLOOKUP(F32,التكويد!$A$1:D231,2,0),"") ->  | H32: =IF(F32<>"",SUMIF(العمليات!$G$2:$G$1653,الرصيد!F32,العمليات!$H$2:$H$1653),"") ->  | I32: =IF(F32<>"",SUMIFS(اضافه!$K$2:$K$371,اضافه!$H$2:$H$371,الرصيد!F32,اضافه!$G$2:$G$371,الرصيد!$I$1),"") ->  | K32: =IF(F32<>"",INT(J32/VLOOKUP(F32,التكويد!$A$1:$D$201,3,0)),"") ->  | L32: =IF(F32<>"",MOD(J32,VLOOKUP(F32,التكويد!$A$1:$D$201,3,0)),"") ->  | M32: =IFERROR(VLOOKUP(SMALL(العمليات!$B$2:$B$1653,ROW()-1),العمليات!$B$2:K1683,5,0),"") ->  | N32: =IF(M32<>"",VLOOKUP(M32,الموظفين!$A$2:$B$2006,2,0),"") ->  | O32: =SUMIF(العمليات!$F$2:$F$1635,الرصيد!M32,العمليات!$K$2:K1665) -> 0
F33: =IFERROR(VLOOKUP(SMALL(اضافه!$E$2:$E$1653,ROW()-1),اضافه!$E$2:X1684,4,0),"") ->  | G33: =IF(F33<>"",VLOOKUP(F33,التكويد!$A$1:D232,2,0),"") ->  | H33: =IF(F33<>"",SUMIF(العمليات!$G$2:$G$1653,الرصيد!F33,العمليات!$H$2:$H$1653),"") ->  | I33: =IF(F33<>"",SUMIFS(اضافه!$K$2:$K$371,اضافه!$H$2:$H$371,الرصيد!F33,اضافه!$G$2:$G$371,الرصيد!$I$1),"") ->  | K33: =IF(F33<>"",INT(J33/VLOOKUP(F33,التكويد!$A$1:$D$201,3,0)),"") ->  | L33: =IF(F33<>"",MOD(J33,VLOOKUP(F33,التكويد!$A$1:$D$201,3,0)),"") ->  | M33: =IFERROR(VLOOKUP(SMALL(العمليات!$B$2:$B$1653,ROW()-1),العمليات!$B$2:K1684,5,0),"") ->  | N33: =IF(M33<>"",VLOOKUP(M33,الموظفين!$A$2:$B$2006,2,0),"") ->  | O33: =SUMIF(العمليات!$F$2:$F$1635,الرصيد!M33,العمليات!$K$2:K1666) -> 0
F34: =IFERROR(VLOOKUP(SMALL(اضافه!$E$2:$E$1653,ROW()-1),اضافه!$E$2:X1685,4,0),"") ->  | G34: =IF(F34<>"",VLOOKUP(F34,التكويد!$A$1:D233,2,0),"") ->  | H34: =IF(F34<>"",SUMIF(العمليات!$G$2:$G$1653,الرصيد!F34,العمليات!$H$2:$H$1653),"") ->  | I34: =IF(F34<>"",SUMIFS(اضافه!$K$2:$K$371,اضافه!$H$2:$H$371,الرصيد!F34,اضافه!$G$2:$G$371,الرصيد!$I$1),"") ->  | K34: =IF(F34<>"",INT(J34/VLOOKUP(F34,التكويد!$A$1:$D$201,3,0)),"") ->  | L34: =IF(F34<>"",MOD(J34,VLOOKUP(F34,التكويد!$A$1:$D$201,3,0)),"") ->  | M34: =IFERROR(VLOOKUP(SMALL(العمليات!$B$2:$B$1653,ROW()-1),العمليات!$B$2:K1685,5,0),"") ->  | N34: =IF(M34<>"",VLOOKUP(M34,الموظفين!$A$2:$B$2006,2,0),"") ->  | O34: =SUMIF(العمليات!$F$2:$F$1635,الرصيد!M34,العمليات!$K$2:K1667) -> 0
F35: =IFERROR(VLOOKUP(SMALL(اضافه!$E$2:$E$1653,ROW()-1),اضافه!$E$2:X1686,4,0),"") ->  | G35: =IF(F35<>"",VLOOKUP(F35,التكويد!$A$1:D234,2,0),"") ->  | H35: =IF(F35<>"",SUMIF(العمليات!$G$2:$G$1653,الرصيد!F35,العمليات!$H$2:$H$1653),"") ->  | I35: =IF(F35<>"",SUMIFS(اضافه!$K$2:$K$371,اضافه!$H$2:$H$371,الرصيد!F35,اضافه!$G$2:$G$371,الرصيد!$I$1),"") ->  | K35: =IF(F35<>"",INT(J35/VLOOKUP(F35,التكويد!$A$1:$D$201,3,0)),"") ->  | L35: =IF(F35<>"",MOD(J35,VLOOKUP(F35,التكويد!$A$1:$D$201,3,0)),"") ->  | M35: =IFERROR(VLOOKUP(SMALL(العمليات!$B$2:$B$1653,ROW()-1),العمليات!$B$2:K1686,5,0),"") ->  | N35: =IF(M35<>"",VLOOKUP(M35,الموظفين!$A$2:$B$2006,2,0),"") ->  | O35: =SUMIF(العمليات!$F$2:$F$1635,الرصيد!M35,العمليات!$K$2:K1668) -> 0
F36: =IFERROR(VLOOKUP(SMALL(اضافه!$E$2:$E$1653,ROW()-1),اضافه!$E$2:X1687,4,0),"") ->  | G36: =IF(F36<>"",VLOOKUP(F36,التكويد!$A$1:D235,2,0),"") ->  | H36: =IF(F36<>"",SUMIF(العمليات!$G$2:$G$1653,الرصيد!F36,العمليات!$H$2:$H$1653),"") ->  | I36: =IF(F36<>"",SUMIFS(اضافه!$K$2:$K$371,اضافه!$H$2:$H$371,الرصيد!F36,اضافه!$G$2:$G$371,الرصيد!$I$1),"") ->  | K36: =IF(F36<>"",INT(J36/VLOOKUP(F36,التكويد!$A$1:$D$201,3,0)),"") ->  | L36: =IF(F36<>"",MOD(J36,VLOOKUP(F36,التكويد!$A$1:$D$201,3,0)),"") ->  | M36: =IFERROR(VLOOKUP(SMALL(العمليات!$B$2:$B$1653,ROW()-1),العمليات!$B$2:K1687,5,0),"") ->  | N36: =IF(M36<>"",VLOOKUP(M36,الموظفين!$A$2:$B$2006,2,0),"") ->  | O36: =SUMIF(العمليات!$F$2:$F$1635,الرصيد!M36,العمليات!$K$2:K1669) -> 0
F37: =IFERROR(VLOOKUP(SMALL(اضافه!$E$2:$E$1653,ROW()-1),اضافه!$E$2:X1688,4,0),"") ->  | G37: =IF(F37<>"",VLOOKUP(F37,التكويد!$A$1:D236,2,0),"") ->  | H37: =IF(F37<>"",SUMIF(العمليات!$G$2:$G$1653,الرصيد!F37,العمليات!$H$2:$H$1653),"") ->  | I37: =IF(F37<>"",SUMIFS(اضافه!$K$2:$K$371,اضافه!$H$2:$H$371,الرصيد!F37,اضافه!$G$2:$G$371,الرصيد!$I$1),"") ->  | K37: =IF(F37<>"",INT(J37/VLOOKUP(F37,التكويد!$A$1:$D$201,3,0)),"") ->  | L37: =IF(F37<>"",MOD(J37,VLOOKUP(F37,التكويد!$A$1:$D$201,3,0)),"") ->  | M37: =IFERROR(VLOOKUP(SMALL(العمليات!$B$2:$B$1653,ROW()-1),العمليات!$B$2:K1688,5,0),"") ->  | N37: =IF(M37<>"",VLOOKUP(M37,الموظفين!$A$2:$B$2006,2,0),"") ->  | O37: =SUMIF(العمليات!$F$2:$F$1635,الرصيد!M37,العمليات!$K$2:K1670) -> 0
F38: =IFERROR(VLOOKUP(SMALL(اضافه!$E$2:$E$1653,ROW()-1),اضافه!$E$2:X1689,4,0),"") ->  | G38: =IF(F38<>"",VLOOKUP(F38,التكويد!$A$1:D237,2,0),"") ->  | H38: =IF(F38<>"",SUMIF(العمليات!$G$2:$G$1653,الرصيد!F38,العمليات!$H$2:$H$1653),"") ->  | I38: =IF(F38<>"",SUMIFS(اضافه!$K$2:$K$371,اضافه!$H$2:$H$371,الرصيد!F38,اضافه!$G$2:$G$371,الرصيد!$I$1),"") ->  | K38: =IF(F38<>"",INT(J38/VLOOKUP(F38,التكويد!$A$1:$D$201,3,0)),"") ->  | L38: =IF(F38<>"",MOD(J38,VLOOKUP(F38,التكويد!$A$1:$D$201,3,0)),"") ->  | M38: =IFERROR(VLOOKUP(SMALL(العمليات!$B$2:$B$1653,ROW()-1),العمليات!$B$2:K1689,5,0),"") ->  | N38: =IF(M38<>"",VLOOKUP(M38,الموظفين!$A$2:$B$2006,2,0),"") ->  | O38: =SUMIF(العمليات!$F$2:$F$1635,الرصيد!M38,العمليات!$K$2:K1671) -> 0
F39: =IFERROR(VLOOKUP(SMALL(اضافه!$E$2:$E$1653,ROW()-1),اضافه!$E$2:X1690,4,0),"") ->  | G39: =IF(F39<>"",VLOOKUP(F39,التكويد!$A$1:D238,2,0),"") ->  | H39: =IF(F39<>"",SUMIF(العمليات!$G$2:$G$1653,الرصيد!F39,العمليات!$H$2:$H$1653),"") ->  | I39: =IF(F39<>"",SUMIFS(اضافه!$K$2:$K$371,اضافه!$H$2:$H$371,الرصيد!F39,اضافه!$G$2:$G$371,الرصيد!$I$1),"") ->  | K39: =IF(F39<>"",INT(J39/VLOOKUP(F39,التكويد!$A$1:$D$201,3,0)),"") ->  | L39: =IF(F39<>"",MOD(J39,VLOOKUP(F39,التكويد!$A$1:$D$201,3,0)),"") ->  | M39: =IFERROR(VLOOKUP(SMALL(العمليات!$B$2:$B$1653,ROW()-1),العمليات!$B$2:K1690,5,0),"") ->  | N39: =IF(M39<>"",VLOOKUP(M39,الموظفين!$A$2:$B$2006,2,0),"") ->  | O39: =SUMIF(العمليات!$F$2:$F$1635,الرصيد!M39,العمليات!$K$2:K1672) -> 0
F40: =IFERROR(VLOOKUP(SMALL(اضافه!$E$2:$E$1653,ROW()-1),اضافه!$E$2:X1691,4,0),"") ->  | G40: =IF(F40<>"",VLOOKUP(F40,التكويد!$A$1:D239,2,0),"") ->  | H40: =IF(F40<>"",SUMIF(العمليات!$G$2:$G$1653,الرصيد!F40,العمليات!$H$2:$H$1653),"") ->  | I40: =IF(F40<>"",SUMIFS(اضافه!$K$2:$K$371,اضافه!$H$2:$H$371,الرصيد!F40,اضافه!$G$2:$G$371,الرصيد!$I$1),"") ->  | K40: =IF(F40<>"",INT(J40/VLOOKUP(F40,التكويد!$A$1:$D$201,3,0)),"") ->  | L40: =IF(F40<>"",MOD(J40,VLOOKUP(F40,التكويد!$A$1:$D$201,3,0)),"") ->  | M40: =IFERROR(VLOOKUP(SMALL(العمليات!$B$2:$B$1653,ROW()-1),العمليات!$B$2:K1691,5,0),"") ->  | N40: =IF(M40<>"",VLOOKUP(M40,الموظفين!$A$2:$B$2006,2,0),"") ->  | O40: =SUMIF(العمليات!$F$2:$F$1635,الرصيد!M40,العمليات!$K$2:K1673) -> 0
F41: =IFERROR(VLOOKUP(SMALL(اضافه!$E$2:$E$1653,ROW()-1),اضافه!$E$2:X1692,4,0),"") ->  | G41: =IF(F41<>"",VLOOKUP(F41,التكويد!$A$1:D240,2,0),"") ->  | H41: =IF(F41<>"",SUMIF(العمليات!$G$2:$G$1653,الرصيد!F41,العمليات!$H$2:$H$1653),"") ->  | I41: =IF(F41<>"",SUMIFS(اضافه!$K$2:$K$371,اضافه!$H$2:$H$371,الرصيد!F41,اضافه!$G$2:$G$371,الرصيد!$I$1),"") ->  | K41: =IF(F41<>"",INT(J41/VLOOKUP(F41,التكويد!$A$1:$D$201,3,0)),"") ->  | L41: =IF(F41<>"",MOD(J41,VLOOKUP(F41,التكويد!$A$1:$D$201,3,0)),"") ->  | M41: =IFERROR(VLOOKUP(SMALL(العمليات!$B$2:$B$1653,ROW()-1),العمليات!$B$2:K1692,5,0),"") ->  | N41: =IF(M41<>"",VLOOKUP(M41,الموظفين!$A$2:$B$2006,2,0),"") ->  | O41: =SUMIF(العمليات!$F$2:$F$1635,الرصيد!M41,العمليات!$K$2:K1674) -> 0
F42: =IFERROR(VLOOKUP(SMALL(اضافه!$E$2:$E$1653,ROW()-1),اضافه!$E$2:X1693,4,0),"") ->  | G42: =IF(F42<>"",VLOOKUP(F42,التكويد!$A$1:D241,2,0),"") ->  | H42: =IF(F42<>"",SUMIF(العمليات!$G$2:$G$1653,الرصيد!F42,العمليات!$H$2:$H$1653),"") ->  | I42: =IF(F42<>"",SUMIFS(اضافه!$K$2:$K$371,اضافه!$H$2:$H$371,الرصيد!F42,اضافه!$G$2:$G$371,الرصيد!$I$1),"") ->  | K42: =IF(F42<>"",INT(J42/VLOOKUP(F42,التكويد!$A$1:$D$201,3,0)),"") ->  | L42: =IF(F42<>"",MOD(J42,VLOOKUP(F42,التكويد!$A$1:$D$201,3,0)),"") ->  | M42: =IFERROR(VLOOKUP(SMALL(العمليات!$B$2:$B$1653,ROW()-1),العمليات!$B$2:K1693,5,0),"") ->  | N42: =IF(M42<>"",VLOOKUP(M42,الموظفين!$A$2:$B$2006,2,0),"") ->  | O42: =SUMIF(العمليات!$F$2:$F$1635,الرصيد!M42,العمليات!$K$2:K1675) -> 0
F43: =IFERROR(VLOOKUP(SMALL(اضافه!$E$2:$E$1653,ROW()-1),اضافه!$E$2:X1694,4,0),"") ->  | G43: =IF(F43<>"",VLOOKUP(F43,التكويد!$A$1:D242,2,0),"") ->  | H43: =IF(F43<>"",SUMIF(العمليات!$G$2:$G$1653,الرصيد!F43,العمليات!$H$2:$H$1653),"") ->  | I43: =IF(F43<>"",SUMIFS(اضافه!$K$2:$K$371,اضافه!$H$2:$H$371,الرصيد!F43,اضافه!$G$2:$G$371,الرصيد!$I$1),"") ->  | K43: =IF(F43<>"",INT(J43/VLOOKUP(F43,التكويد!$A$1:$D$201,3,0)),"") ->  | L43: =IF(F43<>"",MOD(J43,VLOOKUP(F43,التكويد!$A$1:$D$201,3,0)),"") ->  | M43: =IFERROR(VLOOKUP(SMALL(العمليات!$B$2:$B$1653,ROW()-1),العمليات!$B$2:K1694,5,0),"") ->  | N43: =IF(M43<>"",VLOOKUP(M43,الموظفين!$A$2:$B$2006,2,0),"") ->  | O43: =SUMIF(العمليات!$F$2:$F$1635,الرصيد!M43,العمليات!$K$2:K1676) -> 0
F44: =IFERROR(VLOOKUP(SMALL(اضافه!$E$2:$E$1653,ROW()-1),اضافه!$E$2:X1695,4,0),"") ->  | G44: =IF(F44<>"",VLOOKUP(F44,التكويد!$A$1:D243,2,0),"") ->  | H44: =IF(F44<>"",SUMIF(العمليات!$G$2:$G$1653,الرصيد!F44,العمليات!$H$2:$H$1653),"") ->  | I44: =IF(F44<>"",SUMIFS(اضافه!$K$2:$K$371,اضافه!$H$2:$H$371,الرصيد!F44,اضافه!$G$2:$G$371,الرصيد!$I$1),"") ->  | K44: =IF(F44<>"",INT(J44/VLOOKUP(F44,التكويد!$A$1:$D$201,3,0)),"") ->  | L44: =IF(F44<>"",MOD(J44,VLOOKUP(F44,التكويد!$A$1:$D$201,3,0)),"") ->  | M44: =IFERROR(VLOOKUP(SMALL(العمليات!$B$2:$B$1653,ROW()-1),العمليات!$B$2:K1695,5,0),"") ->  | N44: =IF(M44<>"",VLOOKUP(M44,الموظفين!$A$2:$B$2006,2,0),"") ->  | O44: =SUMIF(العمليات!$F$2:$F$1635,الرصيد!M44,العمليات!$K$2:K1677) -> 0
F45: =IFERROR(VLOOKUP(SMALL(اضافه!$E$2:$E$1653,ROW()-1),اضافه!$E$2:X1696,4,0),"") ->  | G45: =IF(F45<>"",VLOOKUP(F45,التكويد!$A$1:D244,2,0),"") ->  | H45: =IF(F45<>"",SUMIF(العمليات!$G$2:$G$1653,الرصيد!F45,العمليات!$H$2:$H$1653),"") ->  | I45: =IF(F45<>"",SUMIFS(اضافه!$K$2:$K$371,اضافه!$H$2:$H$371,الرصيد!F45,اضافه!$G$2:$G$371,الرصيد!$I$1),"") ->  | K45: =IF(F45<>"",INT(J45/VLOOKUP(F45,التكويد!$A$1:$D$201,3,0)),"") ->  | L45: =IF(F45<>"",MOD(J45,VLOOKUP(F45,التكويد!$A$1:$D$201,3,0)),"") ->  | M45: =IFERROR(VLOOKUP(SMALL(العمليات!$B$2:$B$1653,ROW()-1),العمليات!$B$2:K1696,5,0),"") ->  | N45: =IF(M45<>"",VLOOKUP(M45,الموظفين!$A$2:$B$2006,2,0),"") ->  | O45: =SUMIF(العمليات!$F$2:$F$1635,الرصيد!M45,العمليات!$K$2:K1678) -> 0
F46: =IFERROR(VLOOKUP(SMALL(اضافه!$E$2:$E$1653,ROW()-1),اضافه!$E$2:X1697,4,0),"") ->  | G46: =IF(F46<>"",VLOOKUP(F46,التكويد!$A$1:D245,2,0),"") ->  | H46: =IF(F46<>"",SUMIF(العمليات!$G$2:$G$1653,الرصيد!F46,العمليات!$H$2:$H$1653),"") ->  | I46: =IF(F46<>"",SUMIFS(اضافه!$K$2:$K$371,اضافه!$H$2:$H$371,الرصيد!F46,اضافه!$G$2:$G$371,الرصيد!$I$1),"") ->  | K46: =IF(F46<>"",INT(J46/VLOOKUP(F46,التكويد!$A$1:$D$201,3,0)),"") ->  | L46: =IF(F46<>"",MOD(J46,VLOOKUP(F46,التكويد!$A$1:$D$201,3,0)),"") ->  | M46: =IFERROR(VLOOKUP(SMALL(العمليات!$B$2:$B$1653,ROW()-1),العمليات!$B$2:K1697,5,0),"") ->  | N46: =IF(M46<>"",VLOOKUP(M46,الموظفين!$A$2:$B$2006,2,0),"") ->  | O46: =SUMIF(العمليات!$F$2:$F$1635,الرصيد!M46,العمليات!$K$2:K1679) -> 0
F47: =IFERROR(VLOOKUP(SMALL(اضافه!$E$2:$E$1653,ROW()-1),اضافه!$E$2:X1698,4,0),"") ->  | G47: =IF(F47<>"",VLOOKUP(F47,التكويد!$A$1:D246,2,0),"") ->  | H47: =IF(F47<>"",SUMIF(العمليات!$G$2:$G$1653,الرصيد!F47,العمليات!$H$2:$H$1653),"") ->  | I47: =IF(F47<>"",SUMIFS(اضافه!$K$2:$K$371,اضافه!$H$2:$H$371,الرصيد!F47,اضافه!$G$2:$G$371,الرصيد!$I$1),"") ->  | K47: =IF(F47<>"",INT(J47/VLOOKUP(F47,التكويد!$A$1:$D$201,3,0)),"") ->  | L47: =IF(F47<>"",MOD(J47,VLOOKUP(F47,التكويد!$A$1:$D$201,3,0)),"") ->  | M47: =IFERROR(VLOOKUP(SMALL(العمليات!$B$2:$B$1653,ROW()-1),العمليات!$B$2:K1698,5,0),"") ->  | N47: =IF(M47<>"",VLOOKUP(M47,الموظفين!$A$2:$B$2006,2,0),"") ->  | O47: =SUMIF(العمليات!$F$2:$F$1635,الرصيد!M47,العمليات!$K$2:K1680) -> 0
F48: =IFERROR(VLOOKUP(SMALL(اضافه!$E$2:$E$1653,ROW()-1),اضافه!$E$2:X1699,4,0),"") ->  | G48: =IF(F48<>"",VLOOKUP(F48,التكويد!$A$1:D247,2,0),"") ->  | H48: =IF(F48<>"",SUMIF(العمليات!$G$2:$G$1653,الرصيد!F48,العمليات!$H$2:$H$1653),"") ->  | I48: =IF(F48<>"",SUMIFS(اضافه!$K$2:$K$371,اضافه!$H$2:$H$371,الرصيد!F48,اضافه!$G$2:$G$371,الرصيد!$I$1),"") ->  | K48: =IF(F48<>"",INT(J48/VLOOKUP(F48,التكويد!$A$1:$D$201,3,0)),"") ->  | L48: =IF(F48<>"",MOD(J48,VLOOKUP(F48,التكويد!$A$1:$D$201,3,0)),"") ->  | M48: =IFERROR(VLOOKUP(SMALL(العمليات!$B$2:$B$1653,ROW()-1),العمليات!$B$2:K1699,5,0),"") ->  | N48: =IF(M48<>"",VLOOKUP(M48,الموظفين!$A$2:$B$2006,2,0),"") ->  | O48: =SUMIF(العمليات!$F$2:$F$1635,الرصيد!M48,العمليات!$K$2:K1681) -> 0
F49: =IFERROR(VLOOKUP(SMALL(اضافه!$E$2:$E$1653,ROW()-1),اضافه!$E$2:X1700,4,0),"") ->  | G49: =IF(F49<>"",VLOOKUP(F49,التكويد!$A$1:D248,2,0),"") ->  | H49: =IF(F49<>"",SUMIF(العمليات!$G$2:$G$1653,الرصيد!F49,العمليات!$H$2:$H$1653),"") ->  | I49: =IF(F49<>"",SUMIFS(اضافه!$K$2:$K$371,اضافه!$H$2:$H$371,الرصيد!F49,اضافه!$G$2:$G$371,الرصيد!$I$1),"") ->  | K49: =IF(F49<>"",INT(J49/VLOOKUP(F49,التكويد!$A$1:$D$201,3,0)),"") ->  | L49: =IF(F49<>"",MOD(J49,VLOOKUP(F49,التكويد!$A$1:$D$201,3,0)),"") ->  | M49: =IFERROR(VLOOKUP(SMALL(العمليات!$B$2:$B$1653,ROW()-1),العمليات!$B$2:K1700,5,0),"") ->  | N49: =IF(M49<>"",VLOOKUP(M49,الموظفين!$A$2:$B$2006,2,0),"") ->  | O49: =SUMIF(العمليات!$F$2:$F$1635,الرصيد!M49,العمليات!$K$2:K1682) -> 0
F50: =IFERROR(VLOOKUP(SMALL(اضافه!$E$2:$E$1653,ROW()-1),اضافه!$E$2:X1701,4,0),"") ->  | G50: =IF(F50<>"",VLOOKUP(F50,التكويد!$A$1:D249,2,0),"") ->  | H50: =IF(F50<>"",SUMIF(العمليات!$G$2:$G$1653,الرصيد!F50,العمليات!$H$2:$H$1653),"") ->  | I50: =IF(F50<>"",SUMIFS(اضافه!$K$2:$K$371,اضافه!$H$2:$H$371,الرصيد!F50,اضافه!$G$2:$G$371,الرصيد!$I$1),"") ->  | K50: =IF(F50<>"",INT(J50/VLOOKUP(F50,التكويد!$A$1:$D$201,3,0)),"") ->  | L50: =IF(F50<>"",MOD(J50,VLOOKUP(F50,التكويد!$A$1:$D$201,3,0)),"") ->  | M50: =IFERROR(VLOOKUP(SMALL(العمليات!$B$2:$B$1653,ROW()-1),العمليات!$B$2:K1701,5,0),"") ->  | N50: =IF(M50<>"",VLOOKUP(M50,الموظفين!$A$2:$B$2006,2,0),"") ->  | O50: =SUMIF(العمليات!$F$2:$F$1635,الرصيد!M50,العمليات!$K$2:K1683) -> 0
F51: =IFERROR(VLOOKUP(SMALL(اضافه!$E$2:$E$1653,ROW()-1),اضافه!$E$2:X1702,4,0),"") ->  | G51: =IF(F51<>"",VLOOKUP(F51,التكويد!$A$1:D250,2,0),"") ->  | H51: =IF(F51<>"",SUMIF(العمليات!$G$2:$G$1653,الرصيد!F51,العمليات!$H$2:$H$1653),"") ->  | I51: =IF(F51<>"",SUMIFS(اضافه!$K$2:$K$371,اضافه!$H$2:$H$371,الرصيد!F51,اضافه!$G$2:$G$371,الرصيد!$I$1),"") ->  | K51: =IF(F51<>"",INT(J51/VLOOKUP(F51,التكويد!$A$1:$D$201,3,0)),"") ->  | L51: =IF(F51<>"",MOD(J51,VLOOKUP(F51,التكويد!$A$1:$D$201,3,0)),"") ->  | M51: =IFERROR(VLOOKUP(SMALL(العمليات!$B$2:$B$1653,ROW()-1),العمليات!$B$2:K1702,5,0),"") ->  | N51: =IF(M51<>"",VLOOKUP(M51,الموظفين!$A$2:$B$2006,2,0),"") ->  | O51: =SUMIF(العمليات!$F$2:$F$1635,الرصيد!M51,العمليات!$K$2:K1684) -> 0
F52: =IFERROR(VLOOKUP(SMALL(اضافه!$E$2:$E$1653,ROW()-1),اضافه!$E$2:X1703,4,0),"") ->  | G52: =IF(F52<>"",VLOOKUP(F52,التكويد!$A$1:D251,2,0),"") ->  | H52: =IF(F52<>"",SUMIF(العمليات!$G$2:$G$1653,الرصيد!F52,العمليات!$H$2:$H$1653),"") ->  | I52: =IF(F52<>"",SUMIFS(اضافه!$K$2:$K$371,اضافه!$H$2:$H$371,الرصيد!F52,اضافه!$G$2:$G$371,الرصيد!$I$1),"") ->  | K52: =IF(F52<>"",INT(J52/VLOOKUP(F52,التكويد!$A$1:$D$201,3,0)),"") ->  | L52: =IF(F52<>"",MOD(J52,VLOOKUP(F52,التكويد!$A$1:$D$201,3,0)),"") ->  | M52: =IFERROR(VLOOKUP(SMALL(العمليات!$B$2:$B$1653,ROW()-1),العمليات!$B$2:K1703,5,0),"") ->  | N52: =IF(M52<>"",VLOOKUP(M52,الموظفين!$A$2:$B$2006,2,0),"") ->  | O52: =SUMIF(العمليات!$F$2:$F$1635,الرصيد!M52,العمليات!$K$2:K1685) -> 0
F53: =IFERROR(VLOOKUP(SMALL(اضافه!$E$2:$E$1653,ROW()-1),اضافه!$E$2:X1704,4,0),"") ->  | G53: =IF(F53<>"",VLOOKUP(F53,التكويد!$A$1:D252,2,0),"") ->  | H53: =IF(F53<>"",SUMIF(العمليات!$G$2:$G$1653,الرصيد!F53,العمليات!$H$2:$H$1653),"") ->  | I53: =IF(F53<>"",SUMIFS(اضافه!$K$2:$K$371,اضافه!$H$2:$H$371,الرصيد!F53,اضافه!$G$2:$G$371,الرصيد!$I$1),"") ->  | K53: =IF(F53<>"",INT(J53/VLOOKUP(F53,التكويد!$A$1:$D$201,3,0)),"") ->  | L53: =IF(F53<>"",MOD(J53,VLOOKUP(F53,التكويد!$A$1:$D$201,3,0)),"") ->  | M53: =IFERROR(VLOOKUP(SMALL(العمليات!$B$2:$B$1653,ROW()-1),العمليات!$B$2:K1704,5,0),"") ->  | N53: =IF(M53<>"",VLOOKUP(M53,الموظفين!$A$2:$B$2006,2,0),"") ->  | O53: =SUMIF(العمليات!$F$2:$F$1635,الرصيد!M53,العمليات!$K$2:K1686) -> 0
F54: =IFERROR(VLOOKUP(SMALL(اضافه!$E$2:$E$1653,ROW()-1),اضافه!$E$2:X1705,4,0),"") ->  | G54: =IF(F54<>"",VLOOKUP(F54,التكويد!$A$1:D253,2,0),"") ->  | H54: =IF(F54<>"",SUMIF(العمليات!$G$2:$G$1653,الرصيد!F54,العمليات!$H$2:$H$1653),"") ->  | I54: =IF(F54<>"",SUMIFS(اضافه!$K$2:$K$371,اضافه!$H$2:$H$371,الرصيد!F54,اضافه!$G$2:$G$371,الرصيد!$I$1),"") ->  | K54: =IF(F54<>"",INT(J54/VLOOKUP(F54,التكويد!$A$1:$D$201,3,0)),"") ->  | L54: =IF(F54<>"",MOD(J54,VLOOKUP(F54,التكويد!$A$1:$D$201,3,0)),"") ->  | M54: =IFERROR(VLOOKUP(SMALL(العمليات!$B$2:$B$1653,ROW()-1),العمليات!$B$2:K1705,5,0),"") ->  | N54: =IF(M54<>"",VLOOKUP(M54,الموظفين!$A$2:$B$2006,2,0),"") ->  | O54: =SUMIF(العمليات!$F$2:$F$1635,الرصيد!M54,العمليات!$K$2:K1687) -> 0
F55: =IFERROR(VLOOKUP(SMALL(اضافه!$E$2:$E$1653,ROW()-1),اضافه!$E$2:X1706,4,0),"") ->  | G55: =IF(F55<>"",VLOOKUP(F55,التكويد!$A$1:D254,2,0),"") ->  | H55: =IF(F55<>"",SUMIF(العمليات!$G$2:$G$1653,الرصيد!F55,العمليات!$H$2:$H$1653),"") ->  | I55: =IF(F55<>"",SUMIFS(اضافه!$K$2:$K$371,اضافه!$H$2:$H$371,الرصيد!F55,اضافه!$G$2:$G$371,الرصيد!$I$1),"") ->  | K55: =IF(F55<>"",INT(J55/VLOOKUP(F55,التكويد!$A$1:$D$201,3,0)),"") ->  | L55: =IF(F55<>"",MOD(J55,VLOOKUP(F55,التكويد!$A$1:$D$201,3,0)),"") ->  | M55: =IFERROR(VLOOKUP(SMALL(العمليات!$B$2:$B$1653,ROW()-1),العمليات!$B$2:K1706,5,0),"") ->  | N55: =IF(M55<>"",VLOOKUP(M55,الموظفين!$A$2:$B$2006,2,0),"") ->  | O55: =SUMIF(العمليات!$F$2:$F$1635,الرصيد!M55,العمليات!$K$2:K1688) -> 0
F56: =IFERROR(VLOOKUP(SMALL(اضافه!$E$2:$E$1653,ROW()-1),اضافه!$E$2:X1707,4,0),"") ->  | G56: =IF(F56<>"",VLOOKUP(F56,التكويد!$A$1:D255,2,0),"") ->  | H56: =IF(F56<>"",SUMIF(العمليات!$G$2:$G$1653,الرصيد!F56,العمليات!$H$2:$H$1653),"") ->  | I56: =IF(F56<>"",SUMIFS(اضافه!$K$2:$K$371,اضافه!$H$2:$H$371,الرصيد!F56,اضافه!$G$2:$G$371,الرصيد!$I$1),"") ->  | K56: =IF(F56<>"",INT(J56/VLOOKUP(F56,التكويد!$A$1:$D$201,3,0)),"") ->  | L56: =IF(F56<>"",MOD(J56,VLOOKUP(F56,التكويد!$A$1:$D$201,3,0)),"") ->  | M56: =IFERROR(VLOOKUP(SMALL(العمليات!$B$2:$B$1653,ROW()-1),العمليات!$B$2:K1707,5,0),"") ->  | N56: =IF(M56<>"",VLOOKUP(M56,الموظفين!$A$2:$B$2006,2,0),"") ->  | O56: =SUMIF(العمليات!$F$2:$F$1635,الرصيد!M56,العمليات!$K$2:K1689) -> 0
F57: =IFERROR(VLOOKUP(SMALL(اضافه!$E$2:$E$1653,ROW()-1),اضافه!$E$2:X1708,4,0),"") ->  | G57: =IF(F57<>"",VLOOKUP(F57,التكويد!$A$1:D256,2,0),"") ->  | H57: =IF(F57<>"",SUMIF(العمليات!$G$2:$G$1653,الرصيد!F57,العمليات!$H$2:$H$1653),"") ->  | I57: =IF(F57<>"",SUMIFS(اضافه!$K$2:$K$371,اضافه!$H$2:$H$371,الرصيد!F57,اضافه!$G$2:$G$371,الرصيد!$I$1),"") ->  | K57: =IF(F57<>"",INT(J57/VLOOKUP(F57,التكويد!$A$1:$D$201,3,0)),"") ->  | L57: =IF(F57<>"",MOD(J57,VLOOKUP(F57,التكويد!$A$1:$D$201,3,0)),"") ->  | M57: =IFERROR(VLOOKUP(SMALL(العمليات!$B$2:$B$1653,ROW()-1),العمليات!$B$2:K1708,5,0),"") ->  | N57: =IF(M57<>"",VLOOKUP(M57,الموظفين!$A$2:$B$2006,2,0),"") ->  | O57: =SUMIF(العمليات!$F$2:$F$1635,الرصيد!M57,العمليات!$K$2:K1690) -> 0
F58: =IFERROR(VLOOKUP(SMALL(اضافه!$E$2:$E$1653,ROW()-1),اضافه!$E$2:X1709,4,0),"") ->  | G58: =IF(F58<>"",VLOOKUP(F58,التكويد!$A$1:D257,2,0),"") ->  | H58: =IF(F58<>"",SUMIF(العمليات!$G$2:$G$1653,الرصيد!F58,العمليات!$H$2:$H$1653),"") ->  | I58: =IF(F58<>"",SUMIFS(اضافه!$K$2:$K$371,اضافه!$H$2:$H$371,الرصيد!F58,اضافه!$G$2:$G$371,الرصيد!$I$1),"") ->  | K58: =IF(F58<>"",INT(J58/VLOOKUP(F58,التكويد!$A$1:$D$201,3,0)),"") ->  | L58: =IF(F58<>"",MOD(J58,VLOOKUP(F58,التكويد!$A$1:$D$201,3,0)),"") ->  | M58: =IFERROR(VLOOKUP(SMALL(العمليات!$B$2:$B$1653,ROW()-1),العمليات!$B$2:K1709,5,0),"") ->  | N58: =IF(M58<>"",VLOOKUP(M58,الموظفين!$A$2:$B$2006,2,0),"") ->  | O58: =SUMIF(العمليات!$F$2:$F$1635,الرصيد!M58,العمليات!$K$2:K1691) -> 0
F59: =IFERROR(VLOOKUP(SMALL(اضافه!$E$2:$E$1653,ROW()-1),اضافه!$E$2:X1710,4,0),"") ->  | G59: =IF(F59<>"",VLOOKUP(F59,التكويد!$A$1:D258,2,0),"") ->  | H59: =IF(F59<>"",SUMIF(العمليات!$G$2:$G$1653,الرصيد!F59,العمليات!$H$2:$H$1653),"") ->  | I59: =IF(F59<>"",SUMIFS(اضافه!$K$2:$K$371,اضافه!$H$2:$H$371,الرصيد!F59,اضافه!$G$2:$G$371,الرصيد!$I$1),"") ->  | K59: =IF(F59<>"",INT(J59/VLOOKUP(F59,التكويد!$A$1:$D$201,3,0)),"") ->  | L59: =IF(F59<>"",MOD(J59,VLOOKUP(F59,التكويد!$A$1:$D$201,3,0)),"") ->  | M59: =IFERROR(VLOOKUP(SMALL(العمليات!$B$2:$B$1653,ROW()-1),العمليات!$B$2:K1710,5,0),"") ->  | N59: =IF(M59<>"",VLOOKUP(M59,الموظفين!$A$2:$B$2006,2,0),"") ->  | O59: =SUMIF(العمليات!$F$2:$F$1635,الرصيد!M59,العمليات!$K$2:K1692) -> 0
F60: =IFERROR(VLOOKUP(SMALL(اضافه!$E$2:$E$1653,ROW()-1),اضافه!$E$2:X1711,4,0),"") ->  | G60: =IF(F60<>"",VLOOKUP(F60,التكويد!$A$1:D259,2,0),"") ->  | H60: =IF(F60<>"",SUMIF(العمليات!$G$2:$G$1653,الرصيد!F60,العمليات!$H$2:$H$1653),"") ->  | I60: =IF(F60<>"",SUMIFS(اضافه!$K$2:$K$371,اضافه!$H$2:$H$371,الرصيد!F60,اضافه!$G$2:$G$371,الرصيد!$I$1),"") ->  | K60: =IF(F60<>"",INT(J60/VLOOKUP(F60,التكويد!$A$1:$D$201,3,0)),"") ->  | L60: =IF(F60<>"",MOD(J60,VLOOKUP(F60,التكويد!$A$1:$D$201,3,0)),"") ->  | M60: =IFERROR(VLOOKUP(SMALL(العمليات!$B$2:$B$1653,ROW()-1),العمليات!$B$2:K1711,5,0),"") ->  | N60: =IF(M60<>"",VLOOKUP(M60,الموظفين!$A$2:$B$2006,2,0),"") ->  | O60: =SUMIF(العمليات!$F$2:$F$1635,الرصيد!M60,العمليات!$K$2:K1693) -> 0
F61: =IFERROR(VLOOKUP(SMALL(اضافه!$E$2:$E$1653,ROW()-1),اضافه!$E$2:X1712,4,0),"") ->  | G61: =IF(F61<>"",VLOOKUP(F61,التكويد!$A$1:D260,2,0),"") ->  | H61: =IF(F61<>"",SUMIF(العمليات!$G$2:$G$1653,الرصيد!F61,العمليات!$H$2:$H$1653),"") ->  | I61: =IF(F61<>"",SUMIFS(اضافه!$K$2:$K$371,اضافه!$H$2:$H$371,الرصيد!F61,اضافه!$G$2:$G$371,الرصيد!$I$1),"") ->  | K61: =IF(F61<>"",INT(J61/VLOOKUP(F61,التكويد!$A$1:$D$201,3,0)),"") ->  | L61: =IF(F61<>"",MOD(J61,VLOOKUP(F61,التكويد!$A$1:$D$201,3,0)),"") ->  | M61: =IFERROR(VLOOKUP(SMALL(العمليات!$B$2:$B$1653,ROW()-1),العمليات!$B$2:K1712,5,0),"") ->  | N61: =IF(M61<>"",VLOOKUP(M61,الموظفين!$A$2:$B$2006,2,0),"") ->  | O61: =SUMIF(العمليات!$F$2:$F$1635,الرصيد!M61,العمليات!$K$2:K1694) -> 0
F62: =IFERROR(VLOOKUP(SMALL(اضافه!$E$2:$E$1653,ROW()-1),اضافه!$E$2:X1713,4,0),"") ->  | G62: =IF(F62<>"",VLOOKUP(F62,التكويد!$A$1:D261,2,0),"") ->  | H62: =IF(F62<>"",SUMIF(العمليات!$G$2:$G$1653,الرصيد!F62,العمليات!$H$2:$H$1653),"") ->  | I62: =IF(F62<>"",SUMIFS(اضافه!$K$2:$K$371,اضافه!$H$2:$H$371,الرصيد!F62,اضافه!$G$2:$G$371,الرصيد!$I$1),"") ->  | K62: =IF(F62<>"",INT(J62/VLOOKUP(F62,التكويد!$A$1:$D$201,3,0)),"") ->  | L62: =IF(F62<>"",MOD(J62,VLOOKUP(F62,التكويد!$A$1:$D$201,3,0)),"") ->  | M62: =IFERROR(VLOOKUP(SMALL(العمليات!$B$2:$B$1653,ROW()-1),العمليات!$B$2:K1713,5,0),"") ->  | N62: =IF(M62<>"",VLOOKUP(M62,الموظفين!$A$2:$B$2006,2,0),"") ->  | O62: =SUMIF(العمليات!$F$2:$F$1635,الرصيد!M62,العمليات!$K$2:K1695) -> 0
F63: =IFERROR(VLOOKUP(SMALL(اضافه!$E$2:$E$1653,ROW()-1),اضافه!$E$2:X1714,4,0),"") ->  | G63: =IF(F63<>"",VLOOKUP(F63,التكويد!$A$1:D262,2,0),"") ->  | H63: =IF(F63<>"",SUMIF(العمليات!$G$2:$G$1653,الرصيد!F63,العمليات!$H$2:$H$1653),"") ->  | I63: =IF(F63<>"",SUMIFS(اضافه!$K$2:$K$371,اضافه!$H$2:$H$371,الرصيد!F63,اضافه!$G$2:$G$371,الرصيد!$I$1),"") ->  | K63: =IF(F63<>"",INT(J63/VLOOKUP(F63,التكويد!$A$1:$D$201,3,0)),"") ->  | L63: =IF(F63<>"",MOD(J63,VLOOKUP(F63,التكويد!$A$1:$D$201,3,0)),"") ->  | M63: =IFERROR(VLOOKUP(SMALL(العمليات!$B$2:$B$1653,ROW()-1),العمليات!$B$2:K1714,5,0),"") ->  | N63: =IF(M63<>"",VLOOKUP(M63,الموظفين!$A$2:$B$2006,2,0),"") ->  | O63: =SUMIF(العمليات!$F$2:$F$1635,الرصيد!M63,العمليات!$K$2:K1696) -> 0
F64: =IFERROR(VLOOKUP(SMALL(اضافه!$E$2:$E$1653,ROW()-1),اضافه!$E$2:X1715,4,0),"") ->  | G64: =IF(F64<>"",VLOOKUP(F64,التكويد!$A$1:D263,2,0),"") ->  | H64: =IF(F64<>"",SUMIF(العمليات!$G$2:$G$1653,الرصيد!F64,العمليات!$H$2:$H$1653),"") ->  | I64: =IF(F64<>"",SUMIFS(اضافه!$K$2:$K$371,اضافه!$H$2:$H$371,الرصيد!F64,اضافه!$G$2:$G$371,الرصيد!$I$1),"") ->  | K64: =IF(F64<>"",INT(J64/VLOOKUP(F64,التكويد!$A$1:$D$201,3,0)),"") ->  | L64: =IF(F64<>"",MOD(J64,VLOOKUP(F64,التكويد!$A$1:$D$201,3,0)),"") ->  | M64: =IFERROR(VLOOKUP(SMALL(العمليات!$B$2:$B$1653,ROW()-1),العمليات!$B$2:K1715,5,0),"") ->  | N64: =IF(M64<>"",VLOOKUP(M64,الموظفين!$A$2:$B$2006,2,0),"") ->  | O64: =SUMIF(العمليات!$F$2:$F$1635,الرصيد!M64,العمليات!$K$2:K1697) -> 0
F65: =IFERROR(VLOOKUP(SMALL(اضافه!$E$2:$E$1653,ROW()-1),اضافه!$E$2:X1716,4,0),"") ->  | G65: =IF(F65<>"",VLOOKUP(F65,التكويد!$A$1:D264,2,0),"") ->  | H65: =IF(F65<>"",SUMIF(العمليات!$G$2:$G$1653,الرصيد!F65,العمليات!$H$2:$H$1653),"") ->  | I65: =IF(F65<>"",SUMIFS(اضافه!$K$2:$K$371,اضافه!$H$2:$H$371,الرصيد!F65,اضافه!$G$2:$G$371,الرصيد!$I$1),"") ->  | K65: =IF(F65<>"",INT(J65/VLOOKUP(F65,التكويد!$A$1:$D$201,3,0)),"") ->  | L65: =IF(F65<>"",MOD(J65,VLOOKUP(F65,التكويد!$A$1:$D$201,3,0)),"") ->  | M65: =IFERROR(VLOOKUP(SMALL(العمليات!$B$2:$B$1653,ROW()-1),العمليات!$B$2:K1716,5,0),"") ->  | N65: =IF(M65<>"",VLOOKUP(M65,الموظفين!$A$2:$B$2006,2,0),"") ->  | O65: =SUMIF(العمليات!$F$2:$F$1635,الرصيد!M65,العمليات!$K$2:K1698) -> 0
F66: =IFERROR(VLOOKUP(SMALL(اضافه!$E$2:$E$1653,ROW()-1),اضافه!$E$2:X1717,4,0),"") ->  | G66: =IF(F66<>"",VLOOKUP(F66,التكويد!$A$1:D265,2,0),"") ->  | H66: =IF(F66<>"",SUMIF(العمليات!$G$2:$G$1653,الرصيد!F66,العمليات!$H$2:$H$1653),"") ->  | I66: =IF(F66<>"",SUMIFS(اضافه!$K$2:$K$371,اضافه!$H$2:$H$371,الرصيد!F66,اضافه!$G$2:$G$371,الرصيد!$I$1),"") ->  | K66: =IF(F66<>"",INT(J66/VLOOKUP(F66,التكويد!$A$1:$D$201,3,0)),"") ->  | L66: =IF(F66<>"",MOD(J66,VLOOKUP(F66,التكويد!$A$1:$D$201,3,0)),"") ->  | M66: =IFERROR(VLOOKUP(SMALL(العمليات!$B$2:$B$1653,ROW()-1),العمليات!$B$2:K1717,5,0),"") ->  | N66: =IF(M66<>"",VLOOKUP(M66,الموظفين!$A$2:$B$2006,2,0),"") ->  | O66: =SUMIF(العمليات!$F$2:$F$1635,الرصيد!M66,العمليات!$K$2:K1699) -> 0
F67: =IFERROR(VLOOKUP(SMALL(اضافه!$E$2:$E$1653,ROW()-1),اضافه!$E$2:X1718,4,0),"") ->  | G67: =IF(F67<>"",VLOOKUP(F67,التكويد!$A$1:D266,2,0),"") ->  | H67: =IF(F67<>"",SUMIF(العمليات!$G$2:$G$1653,الرصيد!F67,العمليات!$H$2:$H$1653),"") ->  | I67: =IF(F67<>"",SUMIFS(اضافه!$K$2:$K$371,اضافه!$H$2:$H$371,الرصيد!F67,اضافه!$G$2:$G$371,الرصيد!$I$1),"") ->  | J67: =IF(F67<>"",I67-H67,"") ->  | K67: =IF(F67<>"",INT(J67/VLOOKUP(F67,التكويد!$A$1:$D$201,3,0)),"") ->  | L67: =IF(F67<>"",MOD(J67,VLOOKUP(F67,التكويد!$A$1:$D$201,3,0)),"") ->  | M67: =IFERROR(VLOOKUP(SMALL(العمليات!$B$2:$B$1653,ROW()-1),العمليات!$B$2:K1718,5,0),"") ->  | N67: =IF(M67<>"",VLOOKUP(M67,الموظفين!$A$2:$B$2006,2,0),"") ->  | O67: =SUMIF(العمليات!$F$2:$F$1635,الرصيد!M67,العمليات!$K$2:K1700) -> 0
F68: =IFERROR(VLOOKUP(SMALL(اضافه!$E$2:$E$1653,ROW()-1),اضافه!$E$2:X1719,4,0),"") ->  | G68: =IF(F68<>"",VLOOKUP(F68,التكويد!$A$1:D267,2,0),"") ->  | H68: =IF(F68<>"",SUMIF(العمليات!$G$2:$G$1653,الرصيد!F68,العمليات!$H$2:$H$1653),"") ->  | I68: =IF(F68<>"",SUMIFS(اضافه!$K$2:$K$371,اضافه!$H$2:$H$371,الرصيد!F68,اضافه!$G$2:$G$371,الرصيد!$I$1),"") ->  | K68: =IF(F68<>"",INT(J68/VLOOKUP(F68,التكويد!$A$1:$D$201,3,0)),"") ->  | L68: =IF(F68<>"",MOD(J68,VLOOKUP(F68,التكويد!$A$1:$D$201,3,0)),"") ->  | M68: =IFERROR(VLOOKUP(SMALL(العمليات!$B$2:$B$1653,ROW()-1),العمليات!$B$2:K1719,5,0),"") ->  | N68: =IF(M68<>"",VLOOKUP(M68,الموظفين!$A$2:$B$2006,2,0),"") ->  | O68: =SUMIF(العمليات!$F$2:$F$1635,الرصيد!M68,العمليات!$K$2:K1701) -> 0
F69: =IFERROR(VLOOKUP(SMALL(اضافه!$E$2:$E$1653,ROW()-1),اضافه!$E$2:X1720,4,0),"") ->  | G69: =IF(F69<>"",VLOOKUP(F69,التكويد!$A$1:D268,2,0),"") ->  | H69: =IF(F69<>"",SUMIF(العمليات!$G$2:$G$1653,الرصيد!F69,العمليات!$H$2:$H$1653),"") ->  | I69: =IF(F69<>"",SUMIFS(اضافه!$K$2:$K$371,اضافه!$H$2:$H$371,الرصيد!F69,اضافه!$G$2:$G$371,الرصيد!$I$1),"") ->  | K69: =IF(F69<>"",INT(J69/VLOOKUP(F69,التكويد!$A$1:$D$201,3,0)),"") ->  | L69: =IF(F69<>"",MOD(J69,VLOOKUP(F69,التكويد!$A$1:$D$201,3,0)),"") ->  | M69: =IFERROR(VLOOKUP(SMALL(العمليات!$B$2:$B$1653,ROW()-1),العمليات!$B$2:K1720,5,0),"") ->  | N69: =IF(M69<>"",VLOOKUP(M69,الموظفين!$A$2:$B$2006,2,0),"") ->  | O69: =SUMIF(العمليات!$F$2:$F$1635,الرصيد!M69,العمليات!$K$2:K1702) -> 0
F70: =IFERROR(VLOOKUP(SMALL(اضافه!$E$2:$E$1653,ROW()-1),اضافه!$E$2:X1721,4,0),"") ->  | G70: =IF(F70<>"",VLOOKUP(F70,التكويد!$A$1:D269,2,0),"") ->  | H70: =IF(F70<>"",SUMIF(العمليات!$G$2:$G$1653,الرصيد!F70,العمليات!$H$2:$H$1653),"") ->  | I70: =IF(F70<>"",SUMIFS(اضافه!$K$2:$K$371,اضافه!$H$2:$H$371,الرصيد!F70,اضافه!$G$2:$G$371,الرصيد!$I$1),"") ->  | K70: =IF(F70<>"",INT(J70/VLOOKUP(F70,التكويد!$A$1:$D$201,3,0)),"") ->  | L70: =IF(F70<>"",MOD(J70,VLOOKUP(F70,التكويد!$A$1:$D$201,3,0)),"") ->  | M70: =IFERROR(VLOOKUP(SMALL(العمليات!$B$2:$B$1653,ROW()-1),العمليات!$B$2:K1721,5,0),"") ->  | N70: =IF(M70<>"",VLOOKUP(M70,الموظفين!$A$2:$B$2006,2,0),"") ->  | O70: =SUMIF(العمليات!$F$2:$F$1635,الرصيد!M70,العمليات!$K$2:K1703) -> 0
F71: =IFERROR(VLOOKUP(SMALL(اضافه!$E$2:$E$1653,ROW()-1),اضافه!$E$2:X1722,4,0),"") ->  | G71: =IF(F71<>"",VLOOKUP(F71,التكويد!$A$1:D270,2,0),"") ->  | H71: =IF(F71<>"",SUMIF(العمليات!$G$2:$G$1653,الرصيد!F71,العمليات!$H$2:$H$1653),"") ->  | I71: =IF(F71<>"",SUMIFS(اضافه!$K$2:$K$371,اضافه!$H$2:$H$371,الرصيد!F71,اضافه!$G$2:$G$371,الرصيد!$I$1),"") ->  | K71: =IF(F71<>"",INT(J71/VLOOKUP(F71,التكويد!$A$1:$D$201,3,0)),"") ->  | L71: =IF(F71<>"",MOD(J71,VLOOKUP(F71,التكويد!$A$1:$D$201,3,0)),"") ->  | M71: =IFERROR(VLOOKUP(SMALL(العمليات!$B$2:$B$1653,ROW()-1),العمليات!$B$2:K1722,5,0),"") ->  | N71: =IF(M71<>"",VLOOKUP(M71,الموظفين!$A$2:$B$2006,2,0),"") ->  | O71: =SUMIF(العمليات!$F$2:$F$1635,الرصيد!M71,العمليات!$K$2:K1704) -> 0
F72: =IFERROR(VLOOKUP(SMALL(اضافه!$E$2:$E$1653,ROW()-1),اضافه!$E$2:X1723,4,0),"") ->  | G72: =IF(F72<>"",VLOOKUP(F72,التكويد!$A$1:D271,2,0),"") ->  | H72: =IF(F72<>"",SUMIF(العمليات!$G$2:$G$1653,الرصيد!F72,العمليات!$H$2:$H$1653),"") ->  | I72: =IF(F72<>"",SUMIFS(اضافه!$K$2:$K$371,اضافه!$H$2:$H$371,الرصيد!F72,اضافه!$G$2:$G$371,الرصيد!$I$1),"") ->  | K72: =IF(F72<>"",INT(J72/VLOOKUP(F72,التكويد!$A$1:$D$201,3,0)),"") ->  | L72: =IF(F72<>"",MOD(J72,VLOOKUP(F72,التكويد!$A$1:$D$201,3,0)),"") ->  | M72: =IFERROR(VLOOKUP(SMALL(العمليات!$B$2:$B$1653,ROW()-1),العمليات!$B$2:K1723,5,0),"") ->  | N72: =IF(M72<>"",VLOOKUP(M72,الموظفين!$A$2:$B$2006,2,0),"") ->  | O72: =SUMIF(العمليات!$F$2:$F$1635,الرصيد!M72,العمليات!$K$2:K1705) -> 0
F73: =IFERROR(VLOOKUP(SMALL(اضافه!$E$2:$E$1653,ROW()-1),اضافه!$E$2:X1724,4,0),"") ->  | G73: =IF(F73<>"",VLOOKUP(F73,التكويد!$A$1:D272,2,0),"") ->  | H73: =IF(F73<>"",SUMIF(العمليات!$G$2:$G$1653,الرصيد!F73,العمليات!$H$2:$H$1653),"") ->  | I73: =IF(F73<>"",SUMIFS(اضافه!$K$2:$K$371,اضافه!$H$2:$H$371,الرصيد!F73,اضافه!$G$2:$G$371,الرصيد!$I$1),"") ->  | K73: =IF(F73<>"",INT(J73/VLOOKUP(F73,التكويد!$A$1:$D$201,3,0)),"") ->  | L73: =IF(F73<>"",MOD(J73,VLOOKUP(F73,التكويد!$A$1:$D$201,3,0)),"") ->  | M73: =IFERROR(VLOOKUP(SMALL(العمليات!$B$2:$B$1653,ROW()-1),العمليات!$B$2:K1724,5,0),"") ->  | N73: =IF(M73<>"",VLOOKUP(M73,الموظفين!$A$2:$B$2006,2,0),"") ->  | O73: =SUMIF(العمليات!$F$2:$F$1635,الرصيد!M73,العمليات!$K$2:K1706) -> 0
F74: =IFERROR(VLOOKUP(SMALL(اضافه!$E$2:$E$1653,ROW()-1),اضافه!$E$2:X1725,4,0),"") ->  | G74: =IF(F74<>"",VLOOKUP(F74,التكويد!$A$1:D273,2,0),"") ->  | H74: =IF(F74<>"",SUMIF(العمليات!$G$2:$G$1653,الرصيد!F74,العمليات!$H$2:$H$1653),"") ->  | I74: =IF(F74<>"",SUMIFS(اضافه!$K$2:$K$371,اضافه!$H$2:$H$371,الرصيد!F74,اضافه!$G$2:$G$371,الرصيد!$I$1),"") ->  | K74: =IF(F74<>"",INT(J74/VLOOKUP(F74,التكويد!$A$1:$D$201,3,0)),"") ->  | L74: =IF(F74<>"",MOD(J74,VLOOKUP(F74,التكويد!$A$1:$D$201,3,0)),"") ->  | M74: =IFERROR(VLOOKUP(SMALL(العمليات!$B$2:$B$1653,ROW()-1),العمليات!$B$2:K1725,5,0),"") ->  | N74: =IF(M74<>"",VLOOKUP(M74,الموظفين!$A$2:$B$2006,2,0),"") ->  | O74: =SUMIF(العمليات!$F$2:$F$1635,الرصيد!M74,العمليات!$K$2:K1707) -> 0
F75: =IFERROR(VLOOKUP(SMALL(اضافه!$E$2:$E$1653,ROW()-1),اضافه!$E$2:X1726,4,0),"") ->  | G75: =IF(F75<>"",VLOOKUP(F75,التكويد!$A$1:D274,2,0),"") ->  | H75: =IF(F75<>"",SUMIF(العمليات!$G$2:$G$1653,الرصيد!F75,العمليات!$H$2:$H$1653),"") ->  | I75: =IF(F75<>"",SUMIFS(اضافه!$K$2:$K$371,اضافه!$H$2:$H$371,الرصيد!F75,اضافه!$G$2:$G$371,الرصيد!$I$1),"") ->  | K75: =IF(F75<>"",INT(J75/VLOOKUP(F75,التكويد!$A$1:$D$201,3,0)),"") ->  | L75: =IF(F75<>"",MOD(J75,VLOOKUP(F75,التكويد!$A$1:$D$201,3,0)),"") ->  | M75: =IFERROR(VLOOKUP(SMALL(العمليات!$B$2:$B$1653,ROW()-1),العمليات!$B$2:K1726,5,0),"") ->  | N75: =IF(M75<>"",VLOOKUP(M75,الموظفين!$A$2:$B$2006,2,0),"") ->  | O75: =SUMIF(العمليات!$F$2:$F$1635,الرصيد!M75,العمليات!$K$2:K1708) -> 0
F76: =IFERROR(VLOOKUP(SMALL(اضافه!$E$2:$E$1653,ROW()-1),اضافه!$E$2:X1727,4,0),"") ->  | G76: =IF(F76<>"",VLOOKUP(F76,التكويد!$A$1:D275,2,0),"") ->  | H76: =IF(F76<>"",SUMIF(العمليات!$G$2:$G$1653,الرصيد!F76,العمليات!$H$2:$H$1653),"") ->  | I76: =IF(F76<>"",SUMIFS(اضافه!$K$2:$K$371,اضافه!$H$2:$H$371,الرصيد!F76,اضافه!$G$2:$G$371,الرصيد!$I$1),"") ->  | K76: =IF(F76<>"",INT(J76/VLOOKUP(F76,التكويد!$A$1:$D$201,3,0)),"") ->  | L76: =IF(F76<>"",MOD(J76,VLOOKUP(F76,التكويد!$A$1:$D$201,3,0)),"") ->  | M76: =IFERROR(VLOOKUP(SMALL(العمليات!$B$2:$B$1653,ROW()-1),العمليات!$B$2:K1727,5,0),"") ->  | N76: =IF(M76<>"",VLOOKUP(M76,الموظفين!$A$2:$B$2006,2,0),"") ->  | O76: =SUMIF(العمليات!$F$2:$F$1635,الرصيد!M76,العمليات!$K$2:K1709) -> 0
F77: =IFERROR(VLOOKUP(SMALL(اضافه!$E$2:$E$1653,ROW()-1),اضافه!$E$2:X1728,4,0),"") ->  | G77: =IF(F77<>"",VLOOKUP(F77,التكويد!$A$1:D276,2,0),"") ->  | H77: =IF(F77<>"",SUMIF(العمليات!$G$2:$G$1653,الرصيد!F77,العمليات!$H$2:$H$1653),"") ->  | I77: =IF(F77<>"",SUMIFS(اضافه!$K$2:$K$371,اضافه!$H$2:$H$371,الرصيد!F77,اضافه!$G$2:$G$371,الرصيد!$I$1),"") ->  | K77: =IF(F77<>"",INT(J77/VLOOKUP(F77,التكويد!$A$1:$D$201,3,0)),"") ->  | L77: =IF(F77<>"",MOD(J77,VLOOKUP(F77,التكويد!$A$1:$D$201,3,0)),"") ->  | M77: =IFERROR(VLOOKUP(SMALL(العمليات!$B$2:$B$1653,ROW()-1),العمليات!$B$2:K1728,5,0),"") ->  | N77: =IF(M77<>"",VLOOKUP(M77,الموظفين!$A$2:$B$2006,2,0),"") ->  | O77: =SUMIF(العمليات!$F$2:$F$1635,الرصيد!M77,العمليات!$K$2:K1710) -> 0
F78: =IFERROR(VLOOKUP(SMALL(اضافه!$E$2:$E$1653,ROW()-1),اضافه!$E$2:X1729,4,0),"") ->  | G78: =IF(F78<>"",VLOOKUP(F78,التكويد!$A$1:D277,2,0),"") ->  | H78: =IF(F78<>"",SUMIF(العمليات!$G$2:$G$1653,الرصيد!F78,العمليات!$H$2:$H$1653),"") ->  | I78: =IF(F78<>"",SUMIFS(اضافه!$K$2:$K$371,اضافه!$H$2:$H$371,الرصيد!F78,اضافه!$G$2:$G$371,الرصيد!$I$1),"") ->  | K78: =IF(F78<>"",INT(J78/VLOOKUP(F78,التكويد!$A$1:$D$201,3,0)),"") ->  | L78: =IF(F78<>"",MOD(J78,VLOOKUP(F78,التكويد!$A$1:$D$201,3,0)),"") ->  | M78: =IFERROR(VLOOKUP(SMALL(العمليات!$B$2:$B$1653,ROW()-1),العمليات!$B$2:K1729,5,0),"") ->  | N78: =IF(M78<>"",VLOOKUP(M78,الموظفين!$A$2:$B$2006,2,0),"") ->  | O78: =SUMIF(العمليات!$F$2:$F$1635,الرصيد!M78,العمليات!$K$2:K1711) -> 0
F79: =IFERROR(VLOOKUP(SMALL(اضافه!$E$2:$E$1653,ROW()-1),اضافه!$E$2:X1730,4,0),"") ->  | G79: =IF(F79<>"",VLOOKUP(F79,التكويد!$A$1:D278,2,0),"") ->  | H79: =IF(F79<>"",SUMIF(العمليات!$G$2:$G$1653,الرصيد!F79,العمليات!$H$2:$H$1653),"") ->  | I79: =IF(F79<>"",SUMIFS(اضافه!$K$2:$K$371,اضافه!$H$2:$H$371,الرصيد!F79,اضافه!$G$2:$G$371,الرصيد!$I$1),"") ->  | K79: =IF(F79<>"",INT(J79/VLOOKUP(F79,التكويد!$A$1:$D$201,3,0)),"") ->  | L79: =IF(F79<>"",MOD(J79,VLOOKUP(F79,التكويد!$A$1:$D$201,3,0)),"") ->  | M79: =IFERROR(VLOOKUP(SMALL(العمليات!$B$2:$B$1653,ROW()-1),العمليات!$B$2:K1730,5,0),"") ->  | N79: =IF(M79<>"",VLOOKUP(M79,الموظفين!$A$2:$B$2006,2,0),"") ->  | O79: =SUMIF(العمليات!$F$2:$F$1635,الرصيد!M79,العمليات!$K$2:K1712) -> 0
F80: =IFERROR(VLOOKUP(SMALL(اضافه!$E$2:$E$1653,ROW()-1),اضافه!$E$2:X1731,4,0),"") ->  | G80: =IF(F80<>"",VLOOKUP(F80,التكويد!$A$1:D279,2,0),"") ->  | H80: =IF(F80<>"",SUMIF(العمليات!$G$2:$G$1653,الرصيد!F80,العمليات!$H$2:$H$1653),"") ->  | I80: =IF(F80<>"",SUMIFS(اضافه!$K$2:$K$371,اضافه!$H$2:$H$371,الرصيد!F80,اضافه!$G$2:$G$371,الرصيد!$I$1),"") ->  | K80: =IF(F80<>"",INT(J80/VLOOKUP(F80,التكويد!$A$1:$D$201,3,0)),"") ->  | L80: =IF(F80<>"",MOD(J80,VLOOKUP(F80,التكويد!$A$1:$D$201,3,0)),"") ->  | M80: =IFERROR(VLOOKUP(SMALL(العمليات!$B$2:$B$1653,ROW()-1),العمليات!$B$2:K1731,5,0),"") ->  | N80: =IF(M80<>"",VLOOKUP(M80,الموظفين!$A$2:$B$2006,2,0),"") ->  | O80: =SUMIF(العمليات!$F$2:$F$1635,الرصيد!M80,العمليات!$K$2:K1713) -> 0
F81: =IFERROR(VLOOKUP(SMALL(اضافه!$E$2:$E$1653,ROW()-1),اضافه!$E$2:X1732,4,0),"") ->  | G81: =IF(F81<>"",VLOOKUP(F81,التكويد!$A$1:D280,2,0),"") ->  | H81: =IF(F81<>"",SUMIF(العمليات!$G$2:$G$1653,الرصيد!F81,العمليات!$H$2:$H$1653),"") ->  | I81: =IF(F81<>"",SUMIFS(اضافه!$K$2:$K$371,اضافه!$H$2:$H$371,الرصيد!F81,اضافه!$G$2:$G$371,الرصيد!$I$1),"") ->  | K81: =IF(F81<>"",INT(J81/VLOOKUP(F81,التكويد!$A$1:$D$201,3,0)),"") ->  | L81: =IF(F81<>"",MOD(J81,VLOOKUP(F81,التكويد!$A$1:$D$201,3,0)),"") ->  | M81: =IFERROR(VLOOKUP(SMALL(العمليات!$B$2:$B$1653,ROW()-1),العمليات!$B$2:K1732,5,0),"") ->  | N81: =IF(M81<>"",VLOOKUP(M81,الموظفين!$A$2:$B$2006,2,0),"") ->  | O81: =SUMIF(العمليات!$F$2:$F$1635,الرصيد!M81,العمليات!$K$2:K1714) -> 0
F82: =IFERROR(VLOOKUP(SMALL(اضافه!$E$2:$E$1653,ROW()-1),اضافه!$E$2:X1733,4,0),"") ->  | G82: =IF(F82<>"",VLOOKUP(F82,التكويد!$A$1:D281,2,0),"") ->  | H82: =IF(F82<>"",SUMIF(العمليات!$G$2:$G$1653,الرصيد!F82,العمليات!$H$2:$H$1653),"") ->  | I82: =IF(F82<>"",SUMIFS(اضافه!$K$2:$K$371,اضافه!$H$2:$H$371,الرصيد!F82,اضافه!$G$2:$G$371,الرصيد!$I$1),"") ->  | K82: =IF(F82<>"",INT(J82/VLOOKUP(F82,التكويد!$A$1:$D$201,3,0)),"") ->  | L82: =IF(F82<>"",MOD(J82,VLOOKUP(F82,التكويد!$A$1:$D$201,3,0)),"") ->  | M82: =IFERROR(VLOOKUP(SMALL(العمليات!$B$2:$B$1653,ROW()-1),العمليات!$B$2:K1733,5,0),"") ->  | N82: =IF(M82<>"",VLOOKUP(M82,الموظفين!$A$2:$B$2006,2,0),"") ->  | O82: =SUMIF(العمليات!$F$2:$F$1635,الرصيد!M82,العمليات!$K$2:K1715) -> 0
F83: =IFERROR(VLOOKUP(SMALL(اضافه!$E$2:$E$1653,ROW()-1),اضافه!$E$2:X1734,4,0),"") ->  | G83: =IF(F83<>"",VLOOKUP(F83,التكويد!$A$1:D282,2,0),"") ->  | H83: =IF(F83<>"",SUMIF(العمليات!$G$2:$G$1653,الرصيد!F83,العمليات!$H$2:$H$1653),"") ->  | I83: =IF(F83<>"",SUMIFS(اضافه!$K$2:$K$371,اضافه!$H$2:$H$371,الرصيد!F83,اضافه!$G$2:$G$371,الرصيد!$I$1),"") ->  | K83: =IF(F83<>"",INT(J83/VLOOKUP(F83,التكويد!$A$1:$D$201,3,0)),"") ->  | L83: =IF(F83<>"",MOD(J83,VLOOKUP(F83,التكويد!$A$1:$D$201,3,0)),"") ->  | M83: =IFERROR(VLOOKUP(SMALL(العمليات!$B$2:$B$1653,ROW()-1),العمليات!$B$2:K1734,5,0),"") ->  | N83: =IF(M83<>"",VLOOKUP(M83,الموظفين!$A$2:$B$2006,2,0),"") ->  | O83: =SUMIF(العمليات!$F$2:$F$1635,الرصيد!M83,العمليات!$K$2:K1716) -> 0
F84: =IFERROR(VLOOKUP(SMALL(اضافه!$E$2:$E$1653,ROW()-1),اضافه!$E$2:X1735,4,0),"") ->  | G84: =IF(F84<>"",VLOOKUP(F84,التكويد!$A$1:D283,2,0),"") ->  | H84: =IF(F84<>"",SUMIF(العمليات!$G$2:$G$1653,الرصيد!F84,العمليات!$H$2:$H$1653),"") ->  | I84: =IF(F84<>"",SUMIFS(اضافه!$K$2:$K$371,اضافه!$H$2:$H$371,الرصيد!F84,اضافه!$G$2:$G$371,الرصيد!$I$1),"") ->  | K84: =IF(F84<>"",INT(J84/VLOOKUP(F84,التكويد!$A$1:$D$201,3,0)),"") ->  | L84: =IF(F84<>"",MOD(J84,VLOOKUP(F84,التكويد!$A$1:$D$201,3,0)),"") ->  | M84: =IFERROR(VLOOKUP(SMALL(العمليات!$B$2:$B$1653,ROW()-1),العمليات!$B$2:K1735,5,0),"") ->  | N84: =IF(M84<>"",VLOOKUP(M84,الموظفين!$A$2:$B$2006,2,0),"") ->  | O84: =SUMIF(العمليات!$F$2:$F$1635,الرصيد!M84,العمليات!$K$2:K1717) -> 0
F85: =IFERROR(VLOOKUP(SMALL(اضافه!$E$2:$E$1653,ROW()-1),اضافه!$E$2:X1736,4,0),"") ->  | G85: =IF(F85<>"",VLOOKUP(F85,التكويد!$A$1:D284,2,0),"") ->  | H85: =IF(F85<>"",SUMIF(العمليات!$G$2:$G$1653,الرصيد!F85,العمليات!$H$2:$H$1653),"") ->  | I85: =IF(F85<>"",SUMIFS(اضافه!$K$2:$K$371,اضافه!$H$2:$H$371,الرصيد!F85,اضافه!$G$2:$G$371,الرصيد!$I$1),"") ->  | K85: =IF(F85<>"",INT(J85/VLOOKUP(F85,التكويد!$A$1:$D$201,3,0)),"") ->  | L85: =IF(F85<>"",MOD(J85,VLOOKUP(F85,التكويد!$A$1:$D$201,3,0)),"") ->  | M85: =IFERROR(VLOOKUP(SMALL(العمليات!$B$2:$B$1653,ROW()-1),العمليات!$B$2:K1736,5,0),"") ->  | N85: =IF(M85<>"",VLOOKUP(M85,الموظفين!$A$2:$B$2006,2,0),"") ->  | O85: =SUMIF(العمليات!$F$2:$F$1635,الرصيد!M85,العمليات!$K$2:K1718) -> 0
F86: =IFERROR(VLOOKUP(SMALL(اضافه!$E$2:$E$1653,ROW()-1),اضافه!$E$2:X1737,4,0),"") ->  | G86: =IF(F86<>"",VLOOKUP(F86,التكويد!$A$1:D285,2,0),"") ->  | H86: =IF(F86<>"",SUMIF(العمليات!$G$2:$G$1653,الرصيد!F86,العمليات!$H$2:$H$1653),"") ->  | I86: =IF(F86<>"",SUMIFS(اضافه!$K$2:$K$371,اضافه!$H$2:$H$371,الرصيد!F86,اضافه!$G$2:$G$371,الرصيد!$I$1),"") ->  | K86: =IF(F86<>"",INT(J86/VLOOKUP(F86,التكويد!$A$1:$D$201,3,0)),"") ->  | L86: =IF(F86<>"",MOD(J86,VLOOKUP(F86,التكويد!$A$1:$D$201,3,0)),"") ->  | M86: =IFERROR(VLOOKUP(SMALL(العمليات!$B$2:$B$1653,ROW()-1),العمليات!$B$2:K1737,5,0),"") ->  | N86: =IF(M86<>"",VLOOKUP(M86,الموظفين!$A$2:$B$2006,2,0),"") ->  | O86: =SUMIF(العمليات!$F$2:$F$1635,الرصيد!M86,العمليات!$K$2:K1719) -> 0
F87: =IFERROR(VLOOKUP(SMALL(اضافه!$E$2:$E$1653,ROW()-1),اضافه!$E$2:X1738,4,0),"") ->  | G87: =IF(F87<>"",VLOOKUP(F87,التكويد!$A$1:D286,2,0),"") ->  | H87: =IF(F87<>"",SUMIF(العمليات!$G$2:$G$1653,الرصيد!F87,العمليات!$H$2:$H$1653),"") ->  | I87: =IF(F87<>"",SUMIFS(اضافه!$K$2:$K$371,اضافه!$H$2:$H$371,الرصيد!F87,اضافه!$G$2:$G$371,الرصيد!$I$1),"") ->  | K87: =IF(F87<>"",INT(J87/VLOOKUP(F87,التكويد!$A$1:$D$201,3,0)),"") ->  | L87: =IF(F87<>"",MOD(J87,VLOOKUP(F87,التكويد!$A$1:$D$201,3,0)),"") ->  | M87: =IFERROR(VLOOKUP(SMALL(العمليات!$B$2:$B$1653,ROW()-1),العمليات!$B$2:K1738,5,0),"") ->  | N87: =IF(M87<>"",VLOOKUP(M87,الموظفين!$A$2:$B$2006,2,0),"") ->  | O87: =SUMIF(العمليات!$F$2:$F$1635,الرصيد!M87,العمليات!$K$2:K1720) -> 0
F88: =IFERROR(VLOOKUP(SMALL(اضافه!$E$2:$E$1653,ROW()-1),اضافه!$E$2:X1739,4,0),"") ->  | G88: =IF(F88<>"",VLOOKUP(F88,التكويد!$A$1:D287,2,0),"") ->  | H88: =IF(F88<>"",SUMIF(العمليات!$G$2:$G$1653,الرصيد!F88,العمليات!$H$2:$H$1653),"") ->  | I88: =IF(F88<>"",SUMIFS(اضافه!$K$2:$K$371,اضافه!$H$2:$H$371,الرصيد!F88,اضافه!$G$2:$G$371,الرصيد!$I$1),"") ->  | K88: =IF(F88<>"",INT(J88/VLOOKUP(F88,التكويد!$A$1:$D$201,3,0)),"") ->  | L88: =IF(F88<>"",MOD(J88,VLOOKUP(F88,التكويد!$A$1:$D$201,3,0)),"") ->  | M88: =IFERROR(VLOOKUP(SMALL(العمليات!$B$2:$B$1653,ROW()-1),العمليات!$B$2:K1739,5,0),"") ->  | N88: =IF(M88<>"",VLOOKUP(M88,الموظفين!$A$2:$B$2006,2,0),"") ->  | O88: =SUMIF(العمليات!$F$2:$F$1635,الرصيد!M88,العمليات!$K$2:K1721) -> 0
F89: =IFERROR(VLOOKUP(SMALL(اضافه!$E$2:$E$1653,ROW()-1),اضافه!$E$2:X1740,4,0),"") ->  | G89: =IF(F89<>"",VLOOKUP(F89,التكويد!$A$1:D288,2,0),"") ->  | H89: =IF(F89<>"",SUMIF(العمليات!$G$2:$G$1653,الرصيد!F89,العمليات!$H$2:$H$1653),"") ->  | I89: =IF(F89<>"",SUMIFS(اضافه!$K$2:$K$371,اضافه!$H$2:$H$371,الرصيد!F89,اضافه!$G$2:$G$371,الرصيد!$I$1),"") ->  | K89: =IF(F89<>"",INT(J89/VLOOKUP(F89,التكويد!$A$1:$D$201,3,0)),"") ->  | L89: =IF(F89<>"",MOD(J89,VLOOKUP(F89,التكويد!$A$1:$D$201,3,0)),"") ->  | M89: =IFERROR(VLOOKUP(SMALL(العمليات!$B$2:$B$1653,ROW()-1),العمليات!$B$2:K1740,5,0),"") ->  | N89: =IF(M89<>"",VLOOKUP(M89,الموظفين!$A$2:$B$2006,2,0),"") ->  | O89: =SUMIF(العمليات!$F$2:$F$1635,الرصيد!M89,العمليات!$K$2:K1722) -> 0
F90: =IFERROR(VLOOKUP(SMALL(اضافه!$E$2:$E$1653,ROW()-1),اضافه!$E$2:X1741,4,0),"") ->  | G90: =IF(F90<>"",VLOOKUP(F90,التكويد!$A$1:D289,2,0),"") ->  | H90: =IF(F90<>"",SUMIF(العمليات!$G$2:$G$1653,الرصيد!F90,العمليات!$H$2:$H$1653),"") ->  | I90: =IF(F90<>"",SUMIFS(اضافه!$K$2:$K$371,اضافه!$H$2:$H$371,الرصيد!F90,اضافه!$G$2:$G$371,الرصيد!$I$1),"") ->  | K90: =IF(F90<>"",INT(J90/VLOOKUP(F90,التكويد!$A$1:$D$201,3,0)),"") ->  | L90: =IF(F90<>"",MOD(J90,VLOOKUP(F90,التكويد!$A$1:$D$201,3,0)),"") ->  | M90: =IFERROR(VLOOKUP(SMALL(العمليات!$B$2:$B$1653,ROW()-1),العمليات!$B$2:K1741,5,0),"") ->  | N90: =IF(M90<>"",VLOOKUP(M90,الموظفين!$A$2:$B$2006,2,0),"") ->  | O90: =SUMIF(العمليات!$F$2:$F$1635,الرصيد!M90,العمليات!$K$2:K1723) -> 0
F91: =IFERROR(VLOOKUP(SMALL(اضافه!$E$2:$E$1653,ROW()-1),اضافه!$E$2:X1742,4,0),"") ->  | G91: =IF(F91<>"",VLOOKUP(F91,التكويد!$A$1:D290,2,0),"") ->  | H91: =IF(F91<>"",SUMIF(العمليات!$G$2:$G$1653,الرصيد!F91,العمليات!$H$2:$H$1653),"") ->  | I91: =IF(F91<>"",SUMIFS(اضافه!$K$2:$K$371,اضافه!$H$2:$H$371,الرصيد!F91,اضافه!$G$2:$G$371,الرصيد!$I$1),"") ->  | K91: =IF(F91<>"",INT(J91/VLOOKUP(F91,التكويد!$A$1:$D$201,3,0)),"") ->  | L91: =IF(F91<>"",MOD(J91,VLOOKUP(F91,التكويد!$A$1:$D$201,3,0)),"") ->  | M91: =IFERROR(VLOOKUP(SMALL(العمليات!$B$2:$B$1653,ROW()-1),العمليات!$B$2:K1742,5,0),"") ->  | N91: =IF(M91<>"",VLOOKUP(M91,الموظفين!$A$2:$B$2006,2,0),"") ->  | O91: =SUMIF(العمليات!$F$2:$F$1635,الرصيد!M91,العمليات!$K$2:K1724) -> 0
F92: =IFERROR(VLOOKUP(SMALL(اضافه!$E$2:$E$1653,ROW()-1),اضافه!$E$2:X1743,4,0),"") ->  | G92: =IF(F92<>"",VLOOKUP(F92,التكويد!$A$1:D291,2,0),"") ->  | H92: =IF(F92<>"",SUMIF(العمليات!$G$2:$G$1653,الرصيد!F92,العمليات!$H$2:$H$1653),"") ->  | I92: =IF(F92<>"",SUMIFS(اضافه!$K$2:$K$371,اضافه!$H$2:$H$371,الرصيد!F92,اضافه!$G$2:$G$371,الرصيد!$I$1),"") ->  | K92: =IF(F92<>"",INT(J92/VLOOKUP(F92,التكويد!$A$1:$D$201,3,0)),"") ->  | L92: =IF(F92<>"",MOD(J92,VLOOKUP(F92,التكويد!$A$1:$D$201,3,0)),"") ->  | M92: =IFERROR(VLOOKUP(SMALL(العمليات!$B$2:$B$1653,ROW()-1),العمليات!$B$2:K1743,5,0),"") ->  | N92: =IF(M92<>"",VLOOKUP(M92,الموظفين!$A$2:$B$2006,2,0),"") ->  | O92: =SUMIF(العمليات!$F$2:$F$1635,الرصيد!M92,العمليات!$K$2:K1725) -> 0
F93: =IFERROR(VLOOKUP(SMALL(اضافه!$E$2:$E$1653,ROW()-1),اضافه!$E$2:X1744,4,0),"") ->  | G93: =IF(F93<>"",VLOOKUP(F93,التكويد!$A$1:D292,2,0),"") ->  | H93: =IF(F93<>"",SUMIF(العمليات!$G$2:$G$1653,الرصيد!F93,العمليات!$H$2:$H$1653),"") ->  | I93: =IF(F93<>"",SUMIFS(اضافه!$K$2:$K$371,اضافه!$H$2:$H$371,الرصيد!F93,اضافه!$G$2:$G$371,الرصيد!$I$1),"") ->  | K93: =IF(F93<>"",INT(J93/VLOOKUP(F93,التكويد!$A$1:$D$201,3,0)),"") ->  | L93: =IF(F93<>"",MOD(J93,VLOOKUP(F93,التكويد!$A$1:$D$201,3,0)),"") ->  | M93: =IFERROR(VLOOKUP(SMALL(العمليات!$B$2:$B$1653,ROW()-1),العمليات!$B$2:K1744,5,0),"") ->  | N93: =IF(M93<>"",VLOOKUP(M93,الموظفين!$A$2:$B$2006,2,0),"") ->  | O93: =SUMIF(العمليات!$F$2:$F$1635,الرصيد!M93,العمليات!$K$2:K1726) -> 0
F94: =IFERROR(VLOOKUP(SMALL(اضافه!$E$2:$E$1653,ROW()-1),اضافه!$E$2:X1745,4,0),"") ->  | G94: =IF(F94<>"",VLOOKUP(F94,التكويد!$A$1:D293,2,0),"") ->  | H94: =IF(F94<>"",SUMIF(العمليات!$G$2:$G$1653,الرصيد!F94,العمليات!$H$2:$H$1653),"") ->  | I94: =IF(F94<>"",SUMIFS(اضافه!$K$2:$K$371,اضافه!$H$2:$H$371,الرصيد!F94,اضافه!$G$2:$G$371,الرصيد!$I$1),"") ->  | K94: =IF(F94<>"",INT(J94/VLOOKUP(F94,التكويد!$A$1:$D$201,3,0)),"") ->  | L94: =IF(F94<>"",MOD(J94,VLOOKUP(F94,التكويد!$A$1:$D$201,3,0)),"") ->  | M94: =IFERROR(VLOOKUP(SMALL(العمليات!$B$2:$B$1653,ROW()-1),العمليات!$B$2:K1745,5,0),"") ->  | N94: =IF(M94<>"",VLOOKUP(M94,الموظفين!$A$2:$B$2006,2,0),"") ->  | O94: =SUMIF(العمليات!$F$2:$F$1635,الرصيد!M94,العمليات!$K$2:K1727) -> 0
F95: =IFERROR(VLOOKUP(SMALL(اضافه!$E$2:$E$1653,ROW()-1),اضافه!$E$2:X1746,4,0),"") ->  | G95: =IF(F95<>"",VLOOKUP(F95,التكويد!$A$1:D294,2,0),"") ->  | H95: =IF(F95<>"",SUMIF(العمليات!$G$2:$G$1653,الرصيد!F95,العمليات!$H$2:$H$1653),"") ->  | I95: =IF(F95<>"",SUMIFS(اضافه!$K$2:$K$371,اضافه!$H$2:$H$371,الرصيد!F95,اضافه!$G$2:$G$371,الرصيد!$I$1),"") ->  | K95: =IF(F95<>"",INT(J95/VLOOKUP(F95,التكويد!$A$1:$D$201,3,0)),"") ->  | L95: =IF(F95<>"",MOD(J95,VLOOKUP(F95,التكويد!$A$1:$D$201,3,0)),"") ->  | M95: =IFERROR(VLOOKUP(SMALL(العمليات!$B$2:$B$1653,ROW()-1),العمليات!$B$2:K1746,5,0),"") ->  | N95: =IF(M95<>"",VLOOKUP(M95,الموظفين!$A$2:$B$2006,2,0),"") ->  | O95: =SUMIF(العمليات!$F$2:$F$1635,الرصيد!M95,العمليات!$K$2:K1728) -> 0
F96: =IFERROR(VLOOKUP(SMALL(اضافه!$E$2:$E$1653,ROW()-1),اضافه!$E$2:X1747,4,0),"") ->  | G96: =IF(F96<>"",VLOOKUP(F96,التكويد!$A$1:D295,2,0),"") ->  | H96: =IF(F96<>"",SUMIF(العمليات!$G$2:$G$1653,الرصيد!F96,العمليات!$H$2:$H$1653),"") ->  | I96: =IF(F96<>"",SUMIFS(اضافه!$K$2:$K$371,اضافه!$H$2:$H$371,الرصيد!F96,اضافه!$G$2:$G$371,الرصيد!$I$1),"") ->  | K96: =IF(F96<>"",INT(J96/VLOOKUP(F96,التكويد!$A$1:$D$201,3,0)),"") ->  | L96: =IF(F96<>"",MOD(J96,VLOOKUP(F96,التكويد!$A$1:$D$201,3,0)),"") ->  | M96: =IFERROR(VLOOKUP(SMALL(العمليات!$B$2:$B$1653,ROW()-1),العمليات!$B$2:K1747,5,0),"") ->  | N96: =IF(M96<>"",VLOOKUP(M96,الموظفين!$A$2:$B$2006,2,0),"") ->  | O96: =SUMIF(العمليات!$F$2:$F$1635,الرصيد!M96,العمليات!$K$2:K1729) -> 0
F97: =IFERROR(VLOOKUP(SMALL(اضافه!$E$2:$E$1653,ROW()-1),اضافه!$E$2:X1748,4,0),"") ->  | G97: =IF(F97<>"",VLOOKUP(F97,التكويد!$A$1:D296,2,0),"") ->  | H97: =IF(F97<>"",SUMIF(العمليات!$G$2:$G$1653,الرصيد!F97,العمليات!$H$2:$H$1653),"") ->  | I97: =IF(F97<>"",SUMIFS(اضافه!$K$2:$K$371,اضافه!$H$2:$H$371,الرصيد!F97,اضافه!$G$2:$G$371,الرصيد!$I$1),"") ->  | K97: =IF(F97<>"",INT(J97/VLOOKUP(F97,التكويد!$A$1:$D$201,3,0)),"") ->  | L97: =IF(F97<>"",MOD(J97,VLOOKUP(F97,التكويد!$A$1:$D$201,3,0)),"") ->  | M97: =IFERROR(VLOOKUP(SMALL(العمليات!$B$2:$B$1653,ROW()-1),العمليات!$B$2:K1748,5,0),"") ->  | N97: =IF(M97<>"",VLOOKUP(M97,الموظفين!$A$2:$B$2006,2,0),"") ->  | O97: =SUMIF(العمليات!$F$2:$F$1635,الرصيد!M97,العمليات!$K$2:K1730) -> 0
F98: =IFERROR(VLOOKUP(SMALL(اضافه!$E$2:$E$1653,ROW()-1),اضافه!$E$2:X1749,4,0),"") ->  | G98: =IF(F98<>"",VLOOKUP(F98,التكويد!$A$1:D297,2,0),"") ->  | H98: =IF(F98<>"",SUMIF(العمليات!$G$2:$G$1653,الرصيد!F98,العمليات!$H$2:$H$1653),"") ->  | I98: =IF(F98<>"",SUMIFS(اضافه!$K$2:$K$371,اضافه!$H$2:$H$371,الرصيد!F98,اضافه!$G$2:$G$371,الرصيد!$I$1),"") ->  | K98: =IF(F98<>"",INT(J98/VLOOKUP(F98,التكويد!$A$1:$D$201,3,0)),"") ->  | L98: =IF(F98<>"",MOD(J98,VLOOKUP(F98,التكويد!$A$1:$D$201,3,0)),"") ->  | M98: =IFERROR(VLOOKUP(SMALL(العمليات!$B$2:$B$1653,ROW()-1),العمليات!$B$2:K1749,5,0),"") ->  | N98: =IF(M98<>"",VLOOKUP(M98,الموظفين!$A$2:$B$2006,2,0),"") ->  | O98: =SUMIF(العمليات!$F$2:$F$1635,الرصيد!M98,العمليات!$K$2:K1731) -> 0
F99: =IFERROR(VLOOKUP(SMALL(اضافه!$E$2:$E$1653,ROW()-1),اضافه!$E$2:X1750,4,0),"") ->  | G99: =IF(F99<>"",VLOOKUP(F99,التكويد!$A$1:D298,2,0),"") ->  | H99: =IF(F99<>"",SUMIF(العمليات!$G$2:$G$1653,الرصيد!F99,العمليات!$H$2:$H$1653),"") ->  | I99: =IF(F99<>"",SUMIFS(اضافه!$K$2:$K$371,اضافه!$H$2:$H$371,الرصيد!F99,اضافه!$G$2:$G$371,الرصيد!$I$1),"") ->  | K99: =IF(F99<>"",INT(J99/VLOOKUP(F99,التكويد!$A$1:$D$201,3,0)),"") ->  | L99: =IF(F99<>"",MOD(J99,VLOOKUP(F99,التكويد!$A$1:$D$201,3,0)),"") ->  | M99: =IFERROR(VLOOKUP(SMALL(العمليات!$B$2:$B$1653,ROW()-1),العمليات!$B$2:K1750,5,0),"") ->  | N99: =IF(M99<>"",VLOOKUP(M99,الموظفين!$A$2:$B$2006,2,0),"") ->  | O99: =SUMIF(العمليات!$F$2:$F$1635,الرصيد!M99,العمليات!$K$2:K1732) -> 0
F100: =IFERROR(VLOOKUP(SMALL(اضافه!$E$2:$E$1653,ROW()-1),اضافه!$E$2:X1751,4,0),"") ->  | G100: =IF(F100<>"",VLOOKUP(F100,التكويد!$A$1:D299,2,0),"") ->  | H100: =IF(F100<>"",SUMIF(العمليات!$G$2:$G$1653,الرصيد!F100,العمليات!$H$2:$H$1653),"") ->  | I100: =IF(F100<>"",SUMIFS(اضافه!$K$2:$K$371,اضافه!$H$2:$H$371,الرصيد!F100,اضافه!$G$2:$G$371,الرصيد!$I$1),"") ->  | K100: =IF(F100<>"",INT(J100/VLOOKUP(F100,التكويد!$A$1:$D$201,3,0)),"") ->  | L100: =IF(F100<>"",MOD(J100,VLOOKUP(F100,التكويد!$A$1:$D$201,3,0)),"") ->  | M100: =IFERROR(VLOOKUP(SMALL(العمليات!$B$2:$B$1653,ROW()-1),العمليات!$B$2:K1751,5,0),"") ->  | N100: =IF(M100<>"",VLOOKUP(M100,الموظفين!$A$2:$B$2006,2,0),"") ->  | O100: =SUMIF(العمليات!$F$2:$F$1635,الرصيد!M100,العمليات!$K$2:K1733) -> 0
F101: =IFERROR(VLOOKUP(SMALL(اضافه!$E$2:$E$1653,ROW()-1),اضافه!$E$2:X1752,4,0),"") ->  | G101: =IF(F101<>"",VLOOKUP(F101,التكويد!$A$1:D300,2,0),"") ->  | H101: =IF(F101<>"",SUMIF(العمليات!$G$2:$G$1653,الرصيد!F101,العمليات!$H$2:$H$1653),"") ->  | I101: =IF(F101<>"",SUMIFS(اضافه!$K$2:$K$371,اضافه!$H$2:$H$371,الرصيد!F101,اضافه!$G$2:$G$371,الرصيد!$I$1),"") ->  | K101: =IF(F101<>"",INT(J101/VLOOKUP(F101,التكويد!$A$1:$D$201,3,0)),"") ->  | L101: =IF(F101<>"",MOD(J101,VLOOKUP(F101,التكويد!$A$1:$D$201,3,0)),"") ->  | M101: =IFERROR(VLOOKUP(SMALL(العمليات!$B$2:$B$1653,ROW()-1),العمليات!$B$2:K1752,5,0),"") ->  | N101: =IF(M101<>"",VLOOKUP(M101,الموظفين!$A$2:$B$2006,2,0),"") ->  | O101: =SUMIF(العمليات!$F$2:$F$1635,الرصيد!M101,العمليات!$K$2:K1734) -> 0
F102: =IFERROR(VLOOKUP(SMALL(اضافه!$E$2:$E$1653,ROW()-1),اضافه!$E$2:X1753,4,0),"") ->  | G102: =IF(F102<>"",VLOOKUP(F102,التكويد!$A$1:D301,2,0),"") ->  | H102: =IF(F102<>"",SUMIF(العمليات!$G$2:$G$1653,الرصيد!F102,العمليات!$H$2:$H$1653),"") ->  | I102: =IF(F102<>"",SUMIFS(اضافه!$K$2:$K$371,اضافه!$H$2:$H$371,الرصيد!F102,اضافه!$G$2:$G$371,الرصيد!$I$1),"") ->  | K102: =IF(F102<>"",INT(J102/VLOOKUP(F102,التكويد!$A$1:$D$201,3,0)),"") ->  | L102: =IF(F102<>"",MOD(J102,VLOOKUP(F102,التكويد!$A$1:$D$201,3,0)),"") ->  | M102: =IFERROR(VLOOKUP(SMALL(العمليات!$B$2:$B$1653,ROW()-1),العمليات!$B$2:K1753,5,0),"") ->  | N102: =IF(M102<>"",VLOOKUP(M102,الموظفين!$A$2:$B$2006,2,0),"") ->  | O102: =SUMIF(العمليات!$F$2:$F$1635,الرصيد!M102,العمليات!$K$2:K1735) -> 0
F103: =IFERROR(VLOOKUP(SMALL(اضافه!$E$2:$E$1653,ROW()-1),اضافه!$E$2:X1754,4,0),"") ->  | G103: =IF(F103<>"",VLOOKUP(F103,التكويد!$A$1:D302,2,0),"") ->  | H103: =IF(F103<>"",SUMIF(العمليات!$G$2:$G$1653,الرصيد!F103,العمليات!$H$2:$H$1653),"") ->  | I103: =IF(F103<>"",SUMIFS(اضافه!$K$2:$K$371,اضافه!$H$2:$H$371,الرصيد!F103,اضافه!$G$2:$G$371,الرصيد!$I$1),"") ->  | K103: =IF(F103<>"",INT(J103/VLOOKUP(F103,التكويد!$A$1:$D$201,3,0)),"") ->  | L103: =IF(F103<>"",MOD(J103,VLOOKUP(F103,التكويد!$A$1:$D$201,3,0)),"") ->  | M103: =IFERROR(VLOOKUP(SMALL(العمليات!$B$2:$B$1653,ROW()-1),العمليات!$B$2:K1754,5,0),"") ->  | N103: =IF(M103<>"",VLOOKUP(M103,الموظفين!$A$2:$B$2006,2,0),"") ->  | O103: =SUMIF(العمليات!$F$2:$F$1635,الرصيد!M103,العمليات!$K$2:K1736) -> 0
F104: =IFERROR(VLOOKUP(SMALL(اضافه!$E$2:$E$1653,ROW()-1),اضافه!$E$2:X1755,4,0),"") ->  | G104: =IF(F104<>"",VLOOKUP(F104,التكويد!$A$1:D303,2,0),"") ->  | H104: =IF(F104<>"",SUMIF(العمليات!$G$2:$G$1653,الرصيد!F104,العمليات!$H$2:$H$1653),"") ->  | I104: =IF(F104<>"",SUMIFS(اضافه!$K$2:$K$371,اضافه!$H$2:$H$371,الرصيد!F104,اضافه!$G$2:$G$371,الرصيد!$I$1),"") ->  | K104: =IF(F104<>"",INT(J104/VLOOKUP(F104,التكويد!$A$1:$D$201,3,0)),"") ->  | L104: =IF(F104<>"",MOD(J104,VLOOKUP(F104,التكويد!$A$1:$D$201,3,0)),"") ->  | M104: =IFERROR(VLOOKUP(SMALL(العمليات!$B$2:$B$1653,ROW()-1),العمليات!$B$2:K1755,5,0),"") ->  | N104: =IF(M104<>"",VLOOKUP(M104,الموظفين!$A$2:$B$2006,2,0),"") ->  | O104: =SUMIF(العمليات!$F$2:$F$1635,الرصيد!M104,العمليات!$K$2:K1737) -> 0
F105: =IFERROR(VLOOKUP(SMALL(اضافه!$E$2:$E$1653,ROW()-1),اضافه!$E$2:X1756,4,0),"") ->  | G105: =IF(F105<>"",VLOOKUP(F105,التكويد!$A$1:D304,2,0),"") ->  | H105: =IF(F105<>"",SUMIF(العمليات!$G$2:$G$1653,الرصيد!F105,العمليات!$H$2:$H$1653),"") ->  | I105: =IF(F105<>"",SUMIFS(اضافه!$K$2:$K$371,اضافه!$H$2:$H$371,الرصيد!F105,اضافه!$G$2:$G$371,الرصيد!$I$1),"") ->  | K105: =IF(F105<>"",INT(J105/VLOOKUP(F105,التكويد!$A$1:$D$201,3,0)),"") ->  | L105: =IF(F105<>"",MOD(J105,VLOOKUP(F105,التكويد!$A$1:$D$201,3,0)),"") ->  | M105: =IFERROR(VLOOKUP(SMALL(العمليات!$B$2:$B$1653,ROW()-1),العمليات!$B$2:K1756,5,0),"") ->  | N105: =IF(M105<>"",VLOOKUP(M105,الموظفين!$A$2:$B$2006,2,0),"") ->  | O105: =SUMIF(العمليات!$F$2:$F$1635,الرصيد!M105,العمليات!$K$2:K1738) -> 0
F106: =IFERROR(VLOOKUP(SMALL(اضافه!$E$2:$E$1653,ROW()-1),اضافه!$E$2:X1757,4,0),"") ->  | G106: =IF(F106<>"",VLOOKUP(F106,التكويد!$A$1:D305,2,0),"") ->  | H106: =IF(F106<>"",SUMIF(العمليات!$G$2:$G$1653,الرصيد!F106,العمليات!$H$2:$H$1653),"") ->  | I106: =IF(F106<>"",SUMIFS(اضافه!$K$2:$K$371,اضافه!$H$2:$H$371,الرصيد!F106,اضافه!$G$2:$G$371,الرصيد!$I$1),"") ->  | K106: =IF(F106<>"",INT(J106/VLOOKUP(F106,التكويد!$A$1:$D$201,3,0)),"") ->  | L106: =IF(F106<>"",MOD(J106,VLOOKUP(F106,التكويد!$A$1:$D$201,3,0)),"") ->  | M106: =IFERROR(VLOOKUP(SMALL(العمليات!$B$2:$B$1653,ROW()-1),العمليات!$B$2:K1757,5,0),"") ->  | N106: =IF(M106<>"",VLOOKUP(M106,الموظفين!$A$2:$B$2006,2,0),"") ->  | O106: =SUMIF(العمليات!$F$2:$F$1635,الرصيد!M106,العمليات!$K$2:K1739) -> 0
F107: =IFERROR(VLOOKUP(SMALL(اضافه!$E$2:$E$1653,ROW()-1),اضافه!$E$2:X1758,4,0),"") ->  | G107: =IF(F107<>"",VLOOKUP(F107,التكويد!$A$1:D306,2,0),"") ->  | H107: =IF(F107<>"",SUMIF(العمليات!$G$2:$G$1653,الرصيد!F107,العمليات!$H$2:$H$1653),"") ->  | I107: =IF(F107<>"",SUMIFS(اضافه!$K$2:$K$371,اضافه!$H$2:$H$371,الرصيد!F107,اضافه!$G$2:$G$371,الرصيد!$I$1),"") ->  | K107: =IF(F107<>"",INT(J107/VLOOKUP(F107,التكويد!$A$1:$D$201,3,0)),"") ->  | L107: =IF(F107<>"",MOD(J107,VLOOKUP(F107,التكويد!$A$1:$D$201,3,0)),"") ->  | M107: =IFERROR(VLOOKUP(SMALL(العمليات!$B$2:$B$1653,ROW()-1),العمليات!$B$2:K1758,5,0),"") ->  | N107: =IF(M107<>"",VLOOKUP(M107,الموظفين!$A$2:$B$2006,2,0),"") ->  | O107: =SUMIF(العمليات!$F$2:$F$1635,الرصيد!M107,العمليات!$K$2:K1740) -> 0
F108: =IFERROR(VLOOKUP(SMALL(اضافه!$E$2:$E$1653,ROW()-1),اضافه!$E$2:X1759,4,0),"") ->  | G108: =IF(F108<>"",VLOOKUP(F108,التكويد!$A$1:D307,2,0),"") ->  | H108: =IF(F108<>"",SUMIF(العمليات!$G$2:$G$1653,الرصيد!F108,العمليات!$H$2:$H$1653),"") ->  | I108: =IF(F108<>"",SUMIFS(اضافه!$K$2:$K$371,اضافه!$H$2:$H$371,الرصيد!F108,اضافه!$G$2:$G$371,الرصيد!$I$1),"") ->  | K108: =IF(F108<>"",INT(J108/VLOOKUP(F108,التكويد!$A$1:$D$201,3,0)),"") ->  | L108: =IF(F108<>"",MOD(J108,VLOOKUP(F108,التكويد!$A$1:$D$201,3,0)),"") ->  | M108: =IFERROR(VLOOKUP(SMALL(العمليات!$B$2:$B$1653,ROW()-1),العمليات!$B$2:K1759,5,0),"") ->  | N108: =IF(M108<>"",VLOOKUP(M108,الموظفين!$A$2:$B$2006,2,0),"") ->  | O108: =SUMIF(العمليات!$F$2:$F$1635,الرصيد!M108,العمليات!$K$2:K1741) -> 0
F109: =IFERROR(VLOOKUP(SMALL(اضافه!$E$2:$E$1653,ROW()-1),اضافه!$E$2:X1760,4,0),"") ->  | G109: =IF(F109<>"",VLOOKUP(F109,التكويد!$A$1:D308,2,0),"") ->  | H109: =IF(F109<>"",SUMIF(العمليات!$G$2:$G$1653,الرصيد!F109,العمليات!$H$2:$H$1653),"") ->  | I109: =IF(F109<>"",SUMIFS(اضافه!$K$2:$K$371,اضافه!$H$2:$H$371,الرصيد!F109,اضافه!$G$2:$G$371,الرصيد!$I$1),"") ->  | K109: =IF(F109<>"",INT(J109/VLOOKUP(F109,التكويد!$A$1:$D$201,3,0)),"") ->  | L109: =IF(F109<>"",MOD(J109,VLOOKUP(F109,التكويد!$A$1:$D$201,3,0)),"") ->  | M109: =IFERROR(VLOOKUP(SMALL(العمليات!$B$2:$B$1653,ROW()-1),العمليات!$B$2:K1760,5,0),"") ->  | N109: =IF(M109<>"",VLOOKUP(M109,الموظفين!$A$2:$B$2006,2,0),"") ->  | O109: =SUMIF(العمليات!$F$2:$F$1635,الرصيد!M109,العمليات!$K$2:K1742) -> 0
F110: =IFERROR(VLOOKUP(SMALL(اضافه!$E$2:$E$1653,ROW()-1),اضافه!$E$2:X1761,4,0),"") ->  | G110: =IF(F110<>"",VLOOKUP(F110,التكويد!$A$1:D309,2,0),"") ->  | H110: =IF(F110<>"",SUMIF(العمليات!$G$2:$G$1653,الرصيد!F110,العمليات!$H$2:$H$1653),"") ->  | I110: =IF(F110<>"",SUMIFS(اضافه!$K$2:$K$371,اضافه!$H$2:$H$371,الرصيد!F110,اضافه!$G$2:$G$371,الرصيد!$I$1),"") ->  | K110: =IF(F110<>"",INT(J110/VLOOKUP(F110,التكويد!$A$1:$D$201,3,0)),"") ->  | L110: =IF(F110<>"",MOD(J110,VLOOKUP(F110,التكويد!$A$1:$D$201,3,0)),"") ->  | M110: =IFERROR(VLOOKUP(SMALL(العمليات!$B$2:$B$1653,ROW()-1),العمليات!$B$2:K1761,5,0),"") ->  | N110: =IF(M110<>"",VLOOKUP(M110,الموظفين!$A$2:$B$2006,2,0),"") ->  | O110: =SUMIF(العمليات!$F$2:$F$1635,الرصيد!M110,العمليات!$K$2:K1743) -> 0
F111: =IFERROR(VLOOKUP(SMALL(اضافه!$E$2:$E$1653,ROW()-1),اضافه!$E$2:X1762,4,0),"") ->  | G111: =IF(F111<>"",VLOOKUP(F111,التكويد!$A$1:D310,2,0),"") ->  | H111: =IF(F111<>"",SUMIF(العمليات!$G$2:$G$1653,الرصيد!F111,العمليات!$H$2:$H$1653),"") ->  | I111: =IF(F111<>"",SUMIFS(اضافه!$K$2:$K$371,اضافه!$H$2:$H$371,الرصيد!F111,اضافه!$G$2:$G$371,الرصيد!$I$1),"") ->  | K111: =IF(F111<>"",INT(J111/VLOOKUP(F111,التكويد!$A$1:$D$201,3,0)),"") ->  | L111: =IF(F111<>"",MOD(J111,VLOOKUP(F111,التكويد!$A$1:$D$201,3,0)),"") ->  | M111: =IFERROR(VLOOKUP(SMALL(العمليات!$B$2:$B$1653,ROW()-1),العمليات!$B$2:K1762,5,0),"") ->  | N111: =IF(M111<>"",VLOOKUP(M111,الموظفين!$A$2:$B$2006,2,0),"") ->  | O111: =SUMIF(العمليات!$F$2:$F$1635,الرصيد!M111,العمليات!$K$2:K1744) -> 0
F112: =IFERROR(VLOOKUP(SMALL(اضافه!$E$2:$E$1653,ROW()-1),اضافه!$E$2:X1763,4,0),"") ->  | G112: =IF(F112<>"",VLOOKUP(F112,التكويد!$A$1:D311,2,0),"") ->  | H112: =IF(F112<>"",SUMIF(العمليات!$G$2:$G$1653,الرصيد!F112,العمليات!$H$2:$H$1653),"") ->  | I112: =IF(F112<>"",SUMIFS(اضافه!$K$2:$K$371,اضافه!$H$2:$H$371,الرصيد!F112,اضافه!$G$2:$G$371,الرصيد!$I$1),"") ->  | K112: =IF(F112<>"",INT(J112/VLOOKUP(F112,التكويد!$A$1:$D$201,3,0)),"") ->  | L112: =IF(F112<>"",MOD(J112,VLOOKUP(F112,التكويد!$A$1:$D$201,3,0)),"") ->  | M112: =IFERROR(VLOOKUP(SMALL(العمليات!$B$2:$B$1653,ROW()-1),العمليات!$B$2:K1763,5,0),"") ->  | N112: =IF(M112<>"",VLOOKUP(M112,الموظفين!$A$2:$B$2006,2,0),"") ->  | O112: =SUMIF(العمليات!$F$2:$F$1635,الرصيد!M112,العمليات!$K$2:K1745) -> 0
F113: =IFERROR(VLOOKUP(SMALL(اضافه!$E$2:$E$1653,ROW()-1),اضافه!$E$2:X1764,4,0),"") ->  | G113: =IF(F113<>"",VLOOKUP(F113,التكويد!$A$1:D312,2,0),"") ->  | H113: =IF(F113<>"",SUMIF(العمليات!$G$2:$G$1653,الرصيد!F113,العمليات!$H$2:$H$1653),"") ->  | I113: =IF(F113<>"",SUMIFS(اضافه!$K$2:$K$371,اضافه!$H$2:$H$371,الرصيد!F113,اضافه!$G$2:$G$371,الرصيد!$I$1),"") ->  | K113: =IF(F113<>"",INT(J113/VLOOKUP(F113,التكويد!$A$1:$D$201,3,0)),"") ->  | L113: =IF(F113<>"",MOD(J113,VLOOKUP(F113,التكويد!$A$1:$D$201,3,0)),"") ->  | M113: =IFERROR(VLOOKUP(SMALL(العمليات!$B$2:$B$1653,ROW()-1),العمليات!$B$2:K1764,5,0),"") ->  | N113: =IF(M113<>"",VLOOKUP(M113,الموظفين!$A$2:$B$2006,2,0),"") ->  | O113: =SUMIF(العمليات!$F$2:$F$1635,الرصيد!M113,العمليات!$K$2:K1746) -> 0
F114: =IFERROR(VLOOKUP(SMALL(اضافه!$E$2:$E$1653,ROW()-1),اضافه!$E$2:X1765,4,0),"") ->  | G114: =IF(F114<>"",VLOOKUP(F114,التكويد!$A$1:D313,2,0),"") ->  | H114: =IF(F114<>"",SUMIF(العمليات!$G$2:$G$1653,الرصيد!F114,العمليات!$H$2:$H$1653),"") ->  | I114: =IF(F114<>"",SUMIFS(اضافه!$K$2:$K$371,اضافه!$H$2:$H$371,الرصيد!F114,اضافه!$G$2:$G$371,الرصيد!$I$1),"") ->  | K114: =IF(F114<>"",INT(J114/VLOOKUP(F114,التكويد!$A$1:$D$201,3,0)),"") ->  | L114: =IF(F114<>"",MOD(J114,VLOOKUP(F114,التكويد!$A$1:$D$201,3,0)),"") ->  | M114: =IFERROR(VLOOKUP(SMALL(العمليات!$B$2:$B$1653,ROW()-1),العمليات!$B$2:K1765,5,0),"") ->  | N114: =IF(M114<>"",VLOOKUP(M114,الموظفين!$A$2:$B$2006,2,0),"") ->  | O114: =SUMIF(العمليات!$F$2:$F$1635,الرصيد!M114,العمليات!$K$2:K1747) -> 0
F115: =IFERROR(VLOOKUP(SMALL(اضافه!$E$2:$E$1653,ROW()-1),اضافه!$E$2:X1766,4,0),"") ->  | G115: =IF(F115<>"",VLOOKUP(F115,التكويد!$A$1:D314,2,0),"") ->  | H115: =IF(F115<>"",SUMIF(العمليات!$G$2:$G$1653,الرصيد!F115,العمليات!$H$2:$H$1653),"") ->  | I115: =IF(F115<>"",SUMIFS(اضافه!$K$2:$K$371,اضافه!$H$2:$H$371,الرصيد!F115,اضافه!$G$2:$G$371,الرصيد!$I$1),"") ->  | K115: =IF(F115<>"",INT(J115/VLOOKUP(F115,التكويد!$A$1:$D$201,3,0)),"") ->  | L115: =IF(F115<>"",MOD(J115,VLOOKUP(F115,التكويد!$A$1:$D$201,3,0)),"") ->  | M115: =IFERROR(VLOOKUP(SMALL(العمليات!$B$2:$B$1653,ROW()-1),العمليات!$B$2:K1766,5,0),"") ->  | N115: =IF(M115<>"",VLOOKUP(M115,الموظفين!$A$2:$B$2006,2,0),"") ->  | O115: =SUMIF(العمليات!$F$2:$F$1635,الرصيد!M115,العمليات!$K$2:K1748) -> 0
F116: =IFERROR(VLOOKUP(SMALL(اضافه!$E$2:$E$1653,ROW()-1),اضافه!$E$2:X1767,4,0),"") ->  | G116: =IF(F116<>"",VLOOKUP(F116,التكويد!$A$1:D315,2,0),"") ->  | H116: =IF(F116<>"",SUMIF(العمليات!$G$2:$G$1653,الرصيد!F116,العمليات!$H$2:$H$1653),"") ->  | I116: =IF(F116<>"",SUMIFS(اضافه!$K$2:$K$371,اضافه!$H$2:$H$371,الرصيد!F116,اضافه!$G$2:$G$371,الرصيد!$I$1),"") ->  | K116: =IF(F116<>"",INT(J116/VLOOKUP(F116,التكويد!$A$1:$D$201,3,0)),"") ->  | L116: =IF(F116<>"",MOD(J116,VLOOKUP(F116,التكويد!$A$1:$D$201,3,0)),"") ->  | M116: =IFERROR(VLOOKUP(SMALL(العمليات!$B$2:$B$1653,ROW()-1),العمليات!$B$2:K1767,5,0),"") ->  | N116: =IF(M116<>"",VLOOKUP(M116,الموظفين!$A$2:$B$2006,2,0),"") ->  | O116: =SUMIF(العمليات!$F$2:$F$1635,الرصيد!M116,العمليات!$K$2:K1749) -> 0
F117: =IFERROR(VLOOKUP(SMALL(اضافه!$E$2:$E$1653,ROW()-1),اضافه!$E$2:X1768,4,0),"") ->  | G117: =IF(F117<>"",VLOOKUP(F117,التكويد!$A$1:D316,2,0),"") ->  | H117: =IF(F117<>"",SUMIF(العمليات!$G$2:$G$1653,الرصيد!F117,العمليات!$H$2:$H$1653),"") ->  | I117: =IF(F117<>"",SUMIFS(اضافه!$K$2:$K$371,اضافه!$H$2:$H$371,الرصيد!F117,اضافه!$G$2:$G$371,الرصيد!$I$1),"") ->  | K117: =IF(F117<>"",INT(J117/VLOOKUP(F117,التكويد!$A$1:$D$201,3,0)),"") ->  | L117: =IF(F117<>"",MOD(J117,VLOOKUP(F117,التكويد!$A$1:$D$201,3,0)),"") ->  | M117: =IFERROR(VLOOKUP(SMALL(العمليات!$B$2:$B$1653,ROW()-1),العمليات!$B$2:K1768,5,0),"") ->  | N117: =IF(M117<>"",VLOOKUP(M117,الموظفين!$A$2:$B$2006,2,0),"") ->  | O117: =SUMIF(العمليات!$F$2:$F$1635,الرصيد!M117,العمليات!$K$2:K1750) -> 0
F118: =IFERROR(VLOOKUP(SMALL(اضافه!$E$2:$E$1653,ROW()-1),اضافه!$E$2:X1769,4,0),"") ->  | G118: =IF(F118<>"",VLOOKUP(F118,التكويد!$A$1:D317,2,0),"") ->  | H118: =IF(F118<>"",SUMIF(العمليات!$G$2:$G$1653,الرصيد!F118,العمليات!$H$2:$H$1653),"") ->  | I118: =IF(F118<>"",SUMIFS(اضافه!$K$2:$K$371,اضافه!$H$2:$H$371,الرصيد!F118,اضافه!$G$2:$G$371,الرصيد!$I$1),"") ->  | K118: =IF(F118<>"",INT(J118/VLOOKUP(F118,التكويد!$A$1:$D$201,3,0)),"") ->  | L118: =IF(F118<>"",MOD(J118,VLOOKUP(F118,التكويد!$A$1:$D$201,3,0)),"") ->  | M118: =IFERROR(VLOOKUP(SMALL(العمليات!$B$2:$B$1653,ROW()-1),العمليات!$B$2:K1769,5,0),"") ->  | N118: =IF(M118<>"",VLOOKUP(M118,الموظفين!$A$2:$B$2006,2,0),"") ->  | O118: =SUMIF(العمليات!$F$2:$F$1635,الرصيد!M118,العمليات!$K$2:K1751) -> 0
F119: =IFERROR(VLOOKUP(SMALL(اضافه!$E$2:$E$1653,ROW()-1),اضافه!$E$2:X1770,4,0),"") ->  | G119: =IF(F119<>"",VLOOKUP(F119,التكويد!$A$1:D318,2,0),"") ->  | H119: =IF(F119<>"",SUMIF(العمليات!$G$2:$G$1653,الرصيد!F119,العمليات!$H$2:$H$1653),"") ->  | I119: =IF(F119<>"",SUMIFS(اضافه!$K$2:$K$371,اضافه!$H$2:$H$371,الرصيد!F119,اضافه!$G$2:$G$371,الرصيد!$I$1),"") ->  | K119: =IF(F119<>"",INT(J119/VLOOKUP(F119,التكويد!$A$1:$D$201,3,0)),"") ->  | L119: =IF(F119<>"",MOD(J119,VLOOKUP(F119,التكويد!$A$1:$D$201,3,0)),"") ->  | M119: =IFERROR(VLOOKUP(SMALL(العمليات!$B$2:$B$1653,ROW()-1),العمليات!$B$2:K1770,5,0),"") ->  | N119: =IF(M119<>"",VLOOKUP(M119,الموظفين!$A$2:$B$2006,2,0),"") ->  | O119: =SUMIF(العمليات!$F$2:$F$1635,الرصيد!M119,العمليات!$K$2:K1752) -> 0
F120: =IFERROR(VLOOKUP(SMALL(اضافه!$E$2:$E$1653,ROW()-1),اضافه!$E$2:X1771,4,0),"") ->  | G120: =IF(F120<>"",VLOOKUP(F120,التكويد!$A$1:D319,2,0),"") ->  | H120: =IF(F120<>"",SUMIF(العمليات!$G$2:$G$1653,الرصيد!F120,العمليات!$H$2:$H$1653),"") ->  | I120: =IF(F120<>"",SUMIFS(اضافه!$K$2:$K$371,اضافه!$H$2:$H$371,الرصيد!F120,اضافه!$G$2:$G$371,الرصيد!$I$1),"") ->  | K120: =IF(F120<>"",INT(J120/VLOOKUP(F120,التكويد!$A$1:$D$201,3,0)),"") ->  | L120: =IF(F120<>"",MOD(J120,VLOOKUP(F120,التكويد!$A$1:$D$201,3,0)),"") ->  | M120: =IFERROR(VLOOKUP(SMALL(العمليات!$B$2:$B$1653,ROW()-1),العمليات!$B$2:K1771,5,0),"") ->  | N120: =IF(M120<>"",VLOOKUP(M120,الموظفين!$A$2:$B$2006,2,0),"") ->  | O120: =SUMIF(العمليات!$F$2:$F$1635,الرصيد!M120,العمليات!$K$2:K1753) -> 0
F121: =IFERROR(VLOOKUP(SMALL(اضافه!$E$2:$E$1653,ROW()-1),اضافه!$E$2:X1772,4,0),"") ->  | G121: =IF(F121<>"",VLOOKUP(F121,التكويد!$A$1:D320,2,0),"") ->  | H121: =IF(F121<>"",SUMIF(العمليات!$G$2:$G$1653,الرصيد!F121,العمليات!$H$2:$H$1653),"") ->  | I121: =IF(F121<>"",SUMIFS(اضافه!$K$2:$K$371,اضافه!$H$2:$H$371,الرصيد!F121,اضافه!$G$2:$G$371,الرصيد!$I$1),"") ->  | K121: =IF(F121<>"",INT(J121/VLOOKUP(F121,التكويد!$A$1:$D$201,3,0)),"") ->  | L121: =IF(F121<>"",MOD(J121,VLOOKUP(F121,التكويد!$A$1:$D$201,3,0)),"") ->  | M121: =IFERROR(VLOOKUP(SMALL(العمليات!$B$2:$B$1653,ROW()-1),العمليات!$B$2:K1772,5,0),"") ->  | N121: =IF(M121<>"",VLOOKUP(M121,الموظفين!$A$2:$B$2006,2,0),"") ->  | O121: =SUMIF(العمليات!$F$2:$F$1635,الرصيد!M121,العمليات!$K$2:K1754) -> 0
F122: =IFERROR(VLOOKUP(SMALL(اضافه!$E$2:$E$1653,ROW()-1),اضافه!$E$2:X1773,4,0),"") ->  | G122: =IF(F122<>"",VLOOKUP(F122,التكويد!$A$1:D321,2,0),"") ->  | H122: =IF(F122<>"",SUMIF(العمليات!$G$2:$G$1653,الرصيد!F122,العمليات!$H$2:$H$1653),"") ->  | I122: =IF(F122<>"",SUMIFS(اضافه!$K$2:$K$371,اضافه!$H$2:$H$371,الرصيد!F122,اضافه!$G$2:$G$371,الرصيد!$I$1),"") ->  | K122: =IF(F122<>"",INT(J122/VLOOKUP(F122,التكويد!$A$1:$D$201,3,0)),"") ->  | L122: =IF(F122<>"",MOD(J122,VLOOKUP(F122,التكويد!$A$1:$D$201,3,0)),"") ->  | M122: =IFERROR(VLOOKUP(SMALL(العمليات!$B$2:$B$1653,ROW()-1),العمليات!$B$2:K1773,5,0),"") ->  | N122: =IF(M122<>"",VLOOKUP(M122,الموظفين!$A$2:$B$2006,2,0),"") ->  | O122: =SUMIF(العمليات!$F$2:$F$1635,الرصيد!M122,العمليات!$K$2:K1755) -> 0
F123: =IFERROR(VLOOKUP(SMALL(اضافه!$E$2:$E$1653,ROW()-1),اضافه!$E$2:X1774,4,0),"") ->  | G123: =IF(F123<>"",VLOOKUP(F123,التكويد!$A$1:D322,2,0),"") ->  | H123: =IF(F123<>"",SUMIF(العمليات!$G$2:$G$1653,الرصيد!F123,العمليات!$H$2:$H$1653),"") ->  | I123: =IF(F123<>"",SUMIFS(اضافه!$K$2:$K$371,اضافه!$H$2:$H$371,الرصيد!F123,اضافه!$G$2:$G$371,الرصيد!$I$1),"") ->  | K123: =IF(F123<>"",INT(J123/VLOOKUP(F123,التكويد!$A$1:$D$201,3,0)),"") ->  | L123: =IF(F123<>"",MOD(J123,VLOOKUP(F123,التكويد!$A$1:$D$201,3,0)),"") ->  | M123: =IFERROR(VLOOKUP(SMALL(العمليات!$B$2:$B$1653,ROW()-1),العمليات!$B$2:K1774,5,0),"") ->  | N123: =IF(M123<>"",VLOOKUP(M123,الموظفين!$A$2:$B$2006,2,0),"") ->  | O123: =SUMIF(العمليات!$F$2:$F$1635,الرصيد!M123,العمليات!$K$2:K1756) -> 0
F124: =IFERROR(VLOOKUP(SMALL(اضافه!$E$2:$E$1653,ROW()-1),اضافه!$E$2:X1775,4,0),"") ->  | G124: =IF(F124<>"",VLOOKUP(F124,التكويد!$A$1:D323,2,0),"") ->  | H124: =IF(F124<>"",SUMIF(العمليات!$G$2:$G$1653,الرصيد!F124,العمليات!$H$2:$H$1653),"") ->  | I124: =IF(F124<>"",SUMIFS(اضافه!$K$2:$K$371,اضافه!$H$2:$H$371,الرصيد!F124,اضافه!$G$2:$G$371,الرصيد!$I$1),"") ->  | K124: =IF(F124<>"",INT(J124/VLOOKUP(F124,التكويد!$A$1:$D$201,3,0)),"") ->  | L124: =IF(F124<>"",MOD(J124,VLOOKUP(F124,التكويد!$A$1:$D$201,3,0)),"") ->  | M124: =IFERROR(VLOOKUP(SMALL(العمليات!$B$2:$B$1653,ROW()-1),العمليات!$B$2:K1775,5,0),"") ->  | N124: =IF(M124<>"",VLOOKUP(M124,الموظفين!$A$2:$B$2006,2,0),"") ->  | O124: =SUMIF(العمليات!$F$2:$F$1635,الرصيد!M124,العمليات!$K$2:K1757) -> 0
F125: =IFERROR(VLOOKUP(SMALL(اضافه!$E$2:$E$1653,ROW()-1),اضافه!$E$2:X1776,4,0),"") ->  | G125: =IF(F125<>"",VLOOKUP(F125,التكويد!$A$1:D324,2,0),"") ->  | H125: =IF(F125<>"",SUMIF(العمليات!$G$2:$G$1653,الرصيد!F125,العمليات!$H$2:$H$1653),"") ->  | I125: =IF(F125<>"",SUMIFS(اضافه!$K$2:$K$371,اضافه!$H$2:$H$371,الرصيد!F125,اضافه!$G$2:$G$371,الرصيد!$I$1),"") ->  | K125: =IF(F125<>"",INT(J125/VLOOKUP(F125,التكويد!$A$1:$D$201,3,0)),"") ->  | L125: =IF(F125<>"",MOD(J125,VLOOKUP(F125,التكويد!$A$1:$D$201,3,0)),"") ->  | M125: =IFERROR(VLOOKUP(SMALL(العمليات!$B$2:$B$1653,ROW()-1),العمليات!$B$2:K1776,5,0),"") ->  | N125: =IF(M125<>"",VLOOKUP(M125,الموظفين!$A$2:$B$2006,2,0),"") ->  | O125: =SUMIF(العمليات!$F$2:$F$1635,الرصيد!M125,العمليات!$K$2:K1758) -> 0
F126: =IFERROR(VLOOKUP(SMALL(اضافه!$E$2:$E$1653,ROW()-1),اضافه!$E$2:X1777,4,0),"") ->  | G126: =IF(F126<>"",VLOOKUP(F126,التكويد!$A$1:D325,2,0),"") ->  | H126: =IF(F126<>"",SUMIF(العمليات!$G$2:$G$1653,الرصيد!F126,العمليات!$H$2:$H$1653),"") ->  | I126: =IF(F126<>"",SUMIFS(اضافه!$K$2:$K$371,اضافه!$H$2:$H$371,الرصيد!F126,اضافه!$G$2:$G$371,الرصيد!$I$1),"") ->  | K126: =IF(F126<>"",INT(J126/VLOOKUP(F126,التكويد!$A$1:$D$201,3,0)),"") ->  | L126: =IF(F126<>"",MOD(J126,VLOOKUP(F126,التكويد!$A$1:$D$201,3,0)),"") ->  | M126: =IFERROR(VLOOKUP(SMALL(العمليات!$B$2:$B$1653,ROW()-1),العمليات!$B$2:K1777,5,0),"") ->  | N126: =IF(M126<>"",VLOOKUP(M126,الموظفين!$A$2:$B$2006,2,0),"") ->  | O126: =SUMIF(العمليات!$F$2:$F$1635,الرصيد!M126,العمليات!$K$2:K1759) -> 0
F127: =IFERROR(VLOOKUP(SMALL(اضافه!$E$2:$E$1653,ROW()-1),اضافه!$E$2:X1778,4,0),"") ->  | G127: =IF(F127<>"",VLOOKUP(F127,التكويد!$A$1:D326,2,0),"") ->  | H127: =IF(F127<>"",SUMIF(العمليات!$G$2:$G$1653,الرصيد!F127,العمليات!$H$2:$H$1653),"") ->  | I127: =IF(F127<>"",SUMIFS(اضافه!$K$2:$K$371,اضافه!$H$2:$H$371,الرصيد!F127,اضافه!$G$2:$G$371,الرصيد!$I$1),"") ->  | K127: =IF(F127<>"",INT(J127/VLOOKUP(F127,التكويد!$A$1:$D$201,3,0)),"") ->  | L127: =IF(F127<>"",MOD(J127,VLOOKUP(F127,التكويد!$A$1:$D$201,3,0)),"") ->  | M127: =IFERROR(VLOOKUP(SMALL(العمليات!$B$2:$B$1653,ROW()-1),العمليات!$B$2:K1778,5,0),"") ->  | N127: =IF(M127<>"",VLOOKUP(M127,الموظفين!$A$2:$B$2006,2,0),"") ->  | O127: =SUMIF(العمليات!$F$2:$F$1635,الرصيد!M127,العمليات!$K$2:K1760) -> 0
F128: =IFERROR(VLOOKUP(SMALL(اضافه!$E$2:$E$1653,ROW()-1),اضافه!$E$2:X1779,4,0),"") ->  | G128: =IF(F128<>"",VLOOKUP(F128,التكويد!$A$1:D327,2,0),"") ->  | H128: =IF(F128<>"",SUMIF(العمليات!$G$2:$G$1653,الرصيد!F128,العمليات!$H$2:$H$1653),"") ->  | I128: =IF(F128<>"",SUMIFS(اضافه!$K$2:$K$371,اضافه!$H$2:$H$371,الرصيد!F128,اضافه!$G$2:$G$371,الرصيد!$I$1),"") ->  | K128: =IF(F128<>"",INT(J128/VLOOKUP(F128,التكويد!$A$1:$D$201,3,0)),"") ->  | L128: =IF(F128<>"",MOD(J128,VLOOKUP(F128,التكويد!$A$1:$D$201,3,0)),"") ->  | M128: =IFERROR(VLOOKUP(SMALL(العمليات!$B$2:$B$1653,ROW()-1),العمليات!$B$2:K1779,5,0),"") ->  | N128: =IF(M128<>"",VLOOKUP(M128,الموظفين!$A$2:$B$2006,2,0),"") ->  | O128: =SUMIF(العمليات!$F$2:$F$1635,الرصيد!M128,العمليات!$K$2:K1761) -> 0
F129: =IFERROR(VLOOKUP(SMALL(اضافه!$E$2:$E$1653,ROW()-1),اضافه!$E$2:X1780,4,0),"") ->  | G129: =IF(F129<>"",VLOOKUP(F129,التكويد!$A$1:D328,2,0),"") ->  | H129: =IF(F129<>"",SUMIF(العمليات!$G$2:$G$1653,الرصيد!F129,العمليات!$H$2:$H$1653),"") ->  | I129: =IF(F129<>"",SUMIFS(اضافه!$K$2:$K$371,اضافه!$H$2:$H$371,الرصيد!F129,اضافه!$G$2:$G$371,الرصيد!$I$1),"") ->  | K129: =IF(F129<>"",INT(J129/VLOOKUP(F129,التكويد!$A$1:$D$201,3,0)),"") ->  | L129: =IF(F129<>"",MOD(J129,VLOOKUP(F129,التكويد!$A$1:$D$201,3,0)),"") ->  | M129: =IFERROR(VLOOKUP(SMALL(العمليات!$B$2:$B$1653,ROW()-1),العمليات!$B$2:K1780,5,0),"") ->  | N129: =IF(M129<>"",VLOOKUP(M129,الموظفين!$A$2:$B$2006,2,0),"") ->  | O129: =SUMIF(العمليات!$F$2:$F$1635,الرصيد!M129,العمليات!$K$2:K1762) -> 0
F130: =IFERROR(VLOOKUP(SMALL(اضافه!$E$2:$E$1653,ROW()-1),اضافه!$E$2:X1781,4,0),"") ->  | G130: =IF(F130<>"",VLOOKUP(F130,التكويد!$A$1:D329,2,0),"") ->  | H130: =IF(F130<>"",SUMIF(العمليات!$G$2:$G$1653,الرصيد!F130,العمليات!$H$2:$H$1653),"") ->  | I130: =IF(F130<>"",SUMIFS(اضافه!$K$2:$K$371,اضافه!$H$2:$H$371,الرصيد!F130,اضافه!$G$2:$G$371,الرصيد!$I$1),"") ->  | K130: =IF(F130<>"",INT(J130/VLOOKUP(F130,التكويد!$A$1:$D$201,3,0)),"") ->  | L130: =IF(F130<>"",MOD(J130,VLOOKUP(F130,التكويد!$A$1:$D$201,3,0)),"") ->  | M130: =IFERROR(VLOOKUP(SMALL(العمليات!$B$2:$B$1653,ROW()-1),العمليات!$B$2:K1781,5,0),"") ->  | N130: =IF(M130<>"",VLOOKUP(M130,الموظفين!$A$2:$B$2006,2,0),"") ->  | O130: =SUMIF(العمليات!$F$2:$F$1635,الرصيد!M130,العمليات!$K$2:K1763) -> 0
F131: =IFERROR(VLOOKUP(SMALL(اضافه!$E$2:$E$1653,ROW()-1),اضافه!$E$2:X1782,4,0),"") ->  | G131: =IF(F131<>"",VLOOKUP(F131,التكويد!$A$1:D330,2,0),"") ->  | H131: =IF(F131<>"",SUMIF(العمليات!$G$2:$G$1653,الرصيد!F131,العمليات!$H$2:$H$1653),"") ->  | I131: =IF(F131<>"",SUMIFS(اضافه!$K$2:$K$371,اضافه!$H$2:$H$371,الرصيد!F131,اضافه!$G$2:$G$371,الرصيد!$I$1),"") ->  | J131: =IF(F131<>"",I131-H131,"") ->  | K131: =IF(F131<>"",INT(J131/VLOOKUP(F131,التكويد!$A$1:$D$201,3,0)),"") ->  | L131: =IF(F131<>"",MOD(J131,VLOOKUP(F131,التكويد!$A$1:$D$201,3,0)),"") ->  | M131: =IFERROR(VLOOKUP(SMALL(العمليات!$B$2:$B$1653,ROW()-1),العمليات!$B$2:K1782,5,0),"") ->  | N131: =IF(M131<>"",VLOOKUP(M131,الموظفين!$A$2:$B$2006,2,0),"") ->  | O131: =SUMIF(العمليات!$F$2:$F$1635,الرصيد!M131,العمليات!$K$2:K1764) -> 0
F132: =IFERROR(VLOOKUP(SMALL(اضافه!$E$2:$E$1653,ROW()-1),اضافه!$E$2:X1783,4,0),"") ->  | G132: =IF(F132<>"",VLOOKUP(F132,التكويد!$A$1:D331,2,0),"") ->  | H132: =IF(F132<>"",SUMIF(العمليات!$G$2:$G$1653,الرصيد!F132,العمليات!$H$2:$H$1653),"") ->  | I132: =IF(F132<>"",SUMIFS(اضافه!$K$2:$K$371,اضافه!$H$2:$H$371,الرصيد!F132,اضافه!$G$2:$G$371,الرصيد!$I$1),"") ->  | K132: =IF(F132<>"",INT(J132/VLOOKUP(F132,التكويد!$A$1:$D$201,3,0)),"") ->  | L132: =IF(F132<>"",MOD(J132,VLOOKUP(F132,التكويد!$A$1:$D$201,3,0)),"") ->  | M132: =IFERROR(VLOOKUP(SMALL(العمليات!$B$2:$B$1653,ROW()-1),العمليات!$B$2:K1783,5,0),"") ->  | N132: =IF(M132<>"",VLOOKUP(M132,الموظفين!$A$2:$B$2006,2,0),"") ->  | O132: =SUMIF(العمليات!$F$2:$F$1635,الرصيد!M132,العمليات!$K$2:K1765) -> 0
F133: =IFERROR(VLOOKUP(SMALL(اضافه!$E$2:$E$1653,ROW()-1),اضافه!$E$2:X1784,4,0),"") ->  | G133: =IF(F133<>"",VLOOKUP(F133,التكويد!$A$1:D332,2,0),"") ->  | H133: =IF(F133<>"",SUMIF(العمليات!$G$2:$G$1653,الرصيد!F133,العمليات!$H$2:$H$1653),"") ->  | I133: =IF(F133<>"",SUMIFS(اضافه!$K$2:$K$371,اضافه!$H$2:$H$371,الرصيد!F133,اضافه!$G$2:$G$371,الرصيد!$I$1),"") ->  | K133: =IF(F133<>"",INT(J133/VLOOKUP(F133,التكويد!$A$1:$D$201,3,0)),"") ->  | L133: =IF(F133<>"",MOD(J133,VLOOKUP(F133,التكويد!$A$1:$D$201,3,0)),"") ->  | M133: =IFERROR(VLOOKUP(SMALL(العمليات!$B$2:$B$1653,ROW()-1),العمليات!$B$2:K1784,5,0),"") ->  | N133: =IF(M133<>"",VLOOKUP(M133,الموظفين!$A$2:$B$2006,2,0),"") ->  | O133: =SUMIF(العمليات!$F$2:$F$1635,الرصيد!M133,العمليات!$K$2:K1766) -> 0
F134: =IFERROR(VLOOKUP(SMALL(اضافه!$E$2:$E$1653,ROW()-1),اضافه!$E$2:X1785,4,0),"") ->  | G134: =IF(F134<>"",VLOOKUP(F134,التكويد!$A$1:D333,2,0),"") ->  | H134: =IF(F134<>"",SUMIF(العمليات!$G$2:$G$1653,الرصيد!F134,العمليات!$H$2:$H$1653),"") ->  | I134: =IF(F134<>"",SUMIFS(اضافه!$K$2:$K$371,اضافه!$H$2:$H$371,الرصيد!F134,اضافه!$G$2:$G$371,الرصيد!$I$1),"") ->  | K134: =IF(F134<>"",INT(J134/VLOOKUP(F134,التكويد!$A$1:$D$201,3,0)),"") ->  | L134: =IF(F134<>"",MOD(J134,VLOOKUP(F134,التكويد!$A$1:$D$201,3,0)),"") ->  | M134: =IFERROR(VLOOKUP(SMALL(العمليات!$B$2:$B$1653,ROW()-1),العمليات!$B$2:K1785,5,0),"") ->  | N134: =IF(M134<>"",VLOOKUP(M134,الموظفين!$A$2:$B$2006,2,0),"") ->  | O134: =SUMIF(العمليات!$F$2:$F$1635,الرصيد!M134,العمليات!$K$2:K1767) -> 0
F135: =IFERROR(VLOOKUP(SMALL(اضافه!$E$2:$E$1653,ROW()-1),اضافه!$E$2:X1786,4,0),"") ->  | G135: =IF(F135<>"",VLOOKUP(F135,التكويد!$A$1:D334,2,0),"") ->  | H135: =IF(F135<>"",SUMIF(العمليات!$G$2:$G$1653,الرصيد!F135,العمليات!$H$2:$H$1653),"") ->  | I135: =IF(F135<>"",SUMIFS(اضافه!$K$2:$K$371,اضافه!$H$2:$H$371,الرصيد!F135,اضافه!$G$2:$G$371,الرصيد!$I$1),"") ->  | K135: =IF(F135<>"",INT(J135/VLOOKUP(F135,التكويد!$A$1:$D$201,3,0)),"") ->  | L135: =IF(F135<>"",MOD(J135,VLOOKUP(F135,التكويد!$A$1:$D$201,3,0)),"") ->  | M135: =IFERROR(VLOOKUP(SMALL(العمليات!$B$2:$B$1653,ROW()-1),العمليات!$B$2:K1786,5,0),"") ->  | N135: =IF(M135<>"",VLOOKUP(M135,الموظفين!$A$2:$B$2006,2,0),"") ->  | O135: =SUMIF(العمليات!$F$2:$F$1635,الرصيد!M135,العمليات!$K$2:K1768) -> 0
F136: =IFERROR(VLOOKUP(SMALL(اضافه!$E$2:$E$1653,ROW()-1),اضافه!$E$2:X1787,4,0),"") ->  | G136: =IF(F136<>"",VLOOKUP(F136,التكويد!$A$1:D335,2,0),"") ->  | H136: =IF(F136<>"",SUMIF(العمليات!$G$2:$G$1653,الرصيد!F136,العمليات!$H$2:$H$1653),"") ->  | I136: =IF(F136<>"",SUMIFS(اضافه!$K$2:$K$371,اضافه!$H$2:$H$371,الرصيد!F136,اضافه!$G$2:$G$371,الرصيد!$I$1),"") ->  | K136: =IF(F136<>"",INT(J136/VLOOKUP(F136,التكويد!$A$1:$D$201,3,0)),"") ->  | L136: =IF(F136<>"",MOD(J136,VLOOKUP(F136,التكويد!$A$1:$D$201,3,0)),"") ->  | M136: =IFERROR(VLOOKUP(SMALL(العمليات!$B$2:$B$1653,ROW()-1),العمليات!$B$2:K1787,5,0),"") ->  | N136: =IF(M136<>"",VLOOKUP(M136,الموظفين!$A$2:$B$2006,2,0),"") ->  | O136: =SUMIF(العمليات!$F$2:$F$1635,الرصيد!M136,العمليات!$K$2:K1769) -> 0
F137: =IFERROR(VLOOKUP(SMALL(اضافه!$E$2:$E$1653,ROW()-1),اضافه!$E$2:X1788,4,0),"") ->  | G137: =IF(F137<>"",VLOOKUP(F137,التكويد!$A$1:D336,2,0),"") ->  | H137: =IF(F137<>"",SUMIF(العمليات!$G$2:$G$1653,الرصيد!F137,العمليات!$H$2:$H$1653),"") ->  | I137: =IF(F137<>"",SUMIFS(اضافه!$K$2:$K$371,اضافه!$H$2:$H$371,الرصيد!F137,اضافه!$G$2:$G$371,الرصيد!$I$1),"") ->  | K137: =IF(F137<>"",INT(J137/VLOOKUP(F137,التكويد!$A$1:$D$201,3,0)),"") ->  | L137: =IF(F137<>"",MOD(J137,VLOOKUP(F137,التكويد!$A$1:$D$201,3,0)),"") ->  | M137: =IFERROR(VLOOKUP(SMALL(العمليات!$B$2:$B$1653,ROW()-1),العمليات!$B$2:K1788,5,0),"") ->  | N137: =IF(M137<>"",VLOOKUP(M137,الموظفين!$A$2:$B$2006,2,0),"") ->  | O137: =SUMIF(العمليات!$F$2:$F$1635,الرصيد!M137,العمليات!$K$2:K1770) -> 0
F138: =IFERROR(VLOOKUP(SMALL(اضافه!$E$2:$E$1653,ROW()-1),اضافه!$E$2:X1789,4,0),"") ->  | G138: =IF(F138<>"",VLOOKUP(F138,التكويد!$A$1:D337,2,0),"") ->  | H138: =IF(F138<>"",SUMIF(العمليات!$G$2:$G$1653,الرصيد!F138,العمليات!$H$2:$H$1653),"") ->  | I138: =IF(F138<>"",SUMIFS(اضافه!$K$2:$K$371,اضافه!$H$2:$H$371,الرصيد!F138,اضافه!$G$2:$G$371,الرصيد!$I$1),"") ->  | K138: =IF(F138<>"",INT(J138/VLOOKUP(F138,التكويد!$A$1:$D$201,3,0)),"") ->  | L138: =IF(F138<>"",MOD(J138,VLOOKUP(F138,التكويد!$A$1:$D$201,3,0)),"") ->  | M138: =IFERROR(VLOOKUP(SMALL(العمليات!$B$2:$B$1653,ROW()-1),العمليات!$B$2:K1789,5,0),"") ->  | N138: =IF(M138<>"",VLOOKUP(M138,الموظفين!$A$2:$B$2006,2,0),"") ->  | O138: =SUMIF(العمليات!$F$2:$F$1635,الرصيد!M138,العمليات!$K$2:K1771) -> 0
F139: =IFERROR(VLOOKUP(SMALL(اضافه!$E$2:$E$1653,ROW()-1),اضافه!$E$2:X1790,4,0),"") ->  | G139: =IF(F139<>"",VLOOKUP(F139,التكويد!$A$1:D338,2,0),"") ->  | H139: =IF(F139<>"",SUMIF(العمليات!$G$2:$G$1653,الرصيد!F139,العمليات!$H$2:$H$1653),"") ->  | I139: =IF(F139<>"",SUMIFS(اضافه!$K$2:$K$371,اضافه!$H$2:$H$371,الرصيد!F139,اضافه!$G$2:$G$371,الرصيد!$I$1),"") ->  | K139: =IF(F139<>"",INT(J139/VLOOKUP(F139,التكويد!$A$1:$D$201,3,0)),"") ->  | L139: =IF(F139<>"",MOD(J139,VLOOKUP(F139,التكويد!$A$1:$D$201,3,0)),"") ->  | M139: =IFERROR(VLOOKUP(SMALL(العمليات!$B$2:$B$1653,ROW()-1),العمليات!$B$2:K1790,5,0),"") ->  | N139: =IF(M139<>"",VLOOKUP(M139,الموظفين!$A$2:$B$2006,2,0),"") ->  | O139: =SUMIF(العمليات!$F$2:$F$1635,الرصيد!M139,العمليات!$K$2:K1772) -> 0
